Workbook

Sheet START

Sheet Instructions
D2: 2020
X4: Yes
X5: No
W7: Type of Entities Range:
X8: Parent Municipality
X9: Consolidated Information
W17: MTREF Range: | X17: 2008
X18: 2009
X19: 2010
X20: 2011
X21: 2012
X22: 2013
X23: 2014
X24: 2015
X25: 2016
X26: 2017
X27: 2018
X28: 2019
X29: 2020
X30: 2021
X31: 2022
W33: MTREF Linked: | X33: 13
W34: MTREF: | X34: =INDEX(X17:X31,X33,1) -> 2020
W36: Fin Year: | X36: =MTREF&"/"&RIGHT(MTREF,2)+1 -> 2020/21

Sheet Template names (hidden)
A1: Common sheet headings
A2: Head1 | B2: =HLOOKUP(MTREF,Headings,2) -> 2018/19 | C2: Prior year -1
A3: Head1A | B3: =HLOOKUP(MTREF,Headings,3) -> 2017/18 | C3: Prior year -2
A4: Head1B | B4: =HLOOKUP(MTREF,Headings,4) -> 2016/17 | C4: Prior year -3
A5: Head2 | B5: =HLOOKUP(MTREF,Headings,5) -> Current Year 2019/20 | C5: Year in which budget is being prepared
A6: Head2A | B6: =HLOOKUP(MTREF,Headings,6) -> 2019/20 | C6: Year in which budget is being prepared
A7: Head3 | B7: =HLOOKUP(MTREF,Headings,7) -> 2020/21 Medium Term Revenue & Expenditure Framework | C7: MTREF name
A8: Head4 | B8: LTFS | C8: Long term financial strategy
A9: Head5 | B9: Audited Outcome
A10: Head5A | B10: Outcome
A11: Head5B | B11: Pre-audit outcome
A12: Head6 | B12: Original Budget
A13: Head7 | B13: Adjusted Budget
A14: Head8 | B14: Full Year Forecast
A15: Head9 | B15: =HLOOKUP(MTREF,Headings,8) -> Budget Year 2020/21 | C15: 1st year of MTREF | D15: Year1
A16: Head10 | B16: =HLOOKUP(MTREF,Headings,9) -> Budget Year +1 2021/22 | C16: 2nd year of MTREF | D16: Year2
A17: Head11 | B17: =HLOOKUP(MTREF,Headings,10) -> Budget Year +2 2022/23 | C17: 3rd year of MTREF | D17: Year3
A18: Head12 | B18: =HLOOKUP(MTREF,Headings,11) -> Forecast 2023/24 | C18: 1st yr of long term forecast | D18: Year4
A19: Head13 | B19: =HLOOKUP(MTREF,Headings,12) -> Forecast 2024/25 | C19: Next yr of long term forecast | D19: Year5
A20: Head14 | B20: =HLOOKUP(MTREF,Headings,13) -> Forecast 2025/26 | C20: Next yr of long term forecast | D20: Year6
A21: Head15 | B21: =HLOOKUP(MTREF,Headings,14) -> Forecast 2026/27 | C21: Next yr of long term forecast | D21: Year7
A22: Head16 | B22: =HLOOKUP(MTREF,Headings,15) -> Forecast 2027/28 | C22: Next yr of long term forecast | D22: Year8
A23: Head17 | B23: =HLOOKUP(MTREF,Headings,16) -> Forecast 2028/29 | C23: Next yr of long term forecast | D23: Year9
A24: Head18 | B24: =HLOOKUP(MTREF,Headings,17) -> Forecast 2029/30 | C24: Next yr of long term forecast | D24: Year10
A25: Head19 | B25: =HLOOKUP(MTREF,Headings,18) -> Forecast 2030/31 | C25: Next yr of long term forecast | D25: Year11
A26: Head20 | B26: =HLOOKUP(MTREF,Headings,19) -> Forecast 2031/32 | C26: Next yr of long term forecast | D26: Year12
A27: Head21 | B27: =HLOOKUP(MTREF,Headings,20) -> Forecast 2032/33 | C27: Next yr of long term forecast | D27: Year13
A28: Head22 | B28: =HLOOKUP(MTREF,Headings,21) -> Forecast 2033/34 | C28: Next yr of long term forecast | D28: Year14
A29: Head23 | B29: =HLOOKUP(MTREF,Headings,22) -> Forecast 2034/35 | C29: Next yr of long term forecast | D29: Year15
A30: Head24 | B30: Description
A31: Head25
A32: Head26 | B32: Vote Description
A33: Head27 | B33: Ref
A34: Head27a | B34: References
A35: Head28 | B35: Surplus/(Deficit) for the year | D35: Result
A36: Head29 | B36: =HLOOKUP(MTREF,Headings,23) -> Annual target 2020/21
A37: Head30 | B37: =HLOOKUP(MTREF,Headings,24) -> Revised target 2020/21
A38: Head31 | B38: Quarter ended 30 September
A39: Head32 | B39: Quarter ended 31 December
A40: Head33 | B40: Quarter ended 31 March
A41: Head34 | B41: Quarter ended 30 June
A42: Head35 | B42: Variance explanation
A43: Head36 | B43: YTD Actual 31 Dec
A44: Head37 | B44: YTD Budget 31 Dec
A45: Head38 | B45: Monthly actual
A46: Head39 | B46: YTD actual
A47: Head40 | B47: YTD budget
A48: Head41 | B48: YTD variance
A49: Head42 | B49: Surplus/ (Deficit) for the yr/period
A50: Head43 | B50: =Head3&" Summary" -> 2020/21 Medium Term Revenue & Expenditure Framework Summary
A51: Head44 | B51: 2001 Census
A52: Head45 | B52: 2011 Census
A53: Head46 | B53: - Adjustments Budget - January 2007
A54: Head47 | B54: Previous target year to complete
A55: Head48 | B55: Present value
A56: Head49
A57: Head50 | B57: Other Adjusts.
A58: Head51 | B58: Accum. Funds
A59: Head52 | B59: Multi-year capital
A60: Head53 | B60: Unfore. Unavoid.
A61: Head54 | B61: Prior Adjusted
A62: Head55 | B62: Nat. or Prov. Govt
A63: Head56 | B63: Total Adjusts.
A64: SFPerf1 | B64: Budgeted Financial Performance
A65: SFPerf2 | B65: Forecast Financial Performance
A66: SFPos1 | B66: Budgeted Financial Position
A67: SFPos2 | B67: Forecast Financial Position
A68: Cash1 | B68: Budget Cash Flow
A69: Cash2 | B69: Forecast Cash Flow
A70: RandM | B70: Expenditure includes repairs & maintenance of R'000
A71: Depart1 | B71: Department 1 - | D71: DEP1
A72: Depart2 | B72: Department 2 - | D72: DEP2
A73: Depart3 | B73: Department 3 - | D73: DEP3
A74: Depart4 | B74: Department 4 - | D74: DEP4
A75: Depart5 | B75: Department 5 - | D75: DEP5
A76: Depart6 | B76: Department 6 - | D76: DEP6
A77: Depart7 | B77: Department 7 - | D77: DEP7
A78: Depart8 | B78: Department 8 - | D78: DEP8
A79: Depart9 | B79: Department 9 - | D79: DEP9
A80: Depart10 | B80: Department 10 - | D80: DEP10
A81: Depart11 | B81: Department 11 - | D81: DEP11
A82: Depart12 | B82: Department 12 - | D82: DEP12
A83: Depart13 | B83: Department 13 - | D83: DEP13
A84: Depart14 | B84: Department 14 - | D84: DEP14
A87: Base year of forecast column selection names
A88: Choose | B88: ACT
B89: APP
B90: ADJ
A92: Standard nomenclature
A93: Muni | B93: ='Lookup and lists'!B28 -> DC15 O .R. Tambo
A94: Municipal Entities | B94: 1 | C94: Type of report: | D94: 2
A95: =IF((MuniEntities=1)*(MuniType=2),"YES","NO") -> YES | B95: Does this municipality have entities (consolidated budget and entity budgets required)? YES/NO
A96: Entity 1 | B96: (Pty) Ltd Example 1 - Municipal entity - | D96: Ent1
A97: Entity 2 | B97: (Pty) Ltd Example 2 - Municipal entity - | D97: Ent2
A98: Entity 3 | B98: Municipal Entity Example 3 | D98: Ent3
A99: Budget approval tables | C99: Chart x-ref | D99: Sch/Tab/Ch | E99: Alternative for municipalities without entities | F99: Alternative for municipalities without entities
B100: =IF(Consolques="YES",E100,F100) -> Table A1 Consolidated Budget Summary | D100: Table A1 | E100: =D100&"Consolidated Budget Summary" -> Table A1 Consolidated Budget Summary | F100: =D100&"Budget Summary" -> Table A1 Budget Summary
B101: Table A2 Consolidated Budgeted Financial Performance (revenue and expenditure by functional classification) | C101: Charts 5, 6 | D101: Table A2 | E101: =D101&"Consolidated Budgeted Financial Performance (revenue and expenditure by functional classification)" -> Table A2 Consolidated Budgeted Financial Performance (revenue and expenditure by functional classification) | F101: =D101&"Budgeted Financial Performance (revenue and expenditure by functional classification)" -> Table A2 Budgeted Financial Performance (revenue and expenditure by functional classification)
B102: Table A3 Consolidated Budgeted Financial Performance (revenue and expenditure by municipal vote) | D102: Table A3 | E102: =D102&"Consolidated Budgeted Financial Performance (revenue and expenditure by municipal vote)" -> Table A3 Consolidated Budgeted Financial Performance (revenue and expenditure by municipal vote) | F102: =D102&"Budgeted Financial Performance (revenue and expenditure by municipal vote)" -> Table A3 Budgeted Financial Performance (revenue and expenditure by municipal vote)
B103: Table A4 Consolidated Budgeted Financial Performance (revenue and expenditure) | C103: Charts 1, 2, 3, 4 | D103: Table A4 | E103: =D103&"Consolidated Budgeted Financial Performance (revenue and expenditure)" -> Table A4 Consolidated Budgeted Financial Performance (revenue and expenditure) | F103: =D103&"Budgeted Financial Performance (revenue and expenditure)" -> Table A4 Budgeted Financial Performance (revenue and expenditure)
B104: Table A5 Consolidated Budgeted Capital Expenditure by vote, functional classification and funding | C104: Charts 7, 8, 9, 10, 20 | D104: Table A5 | E104: =D104&"Consolidated Budgeted Capital Expenditure by vote, functional classification and funding" -> Table A5 Consolidated Budgeted Capital Expenditure by vote, functional classification and funding | F104: =D104&"Budgeted Capital Expenditure by vote, functional classification and funding" -> Table A5 Budgeted Capital Expenditure by vote, functional classification and funding
B105: Table A6 Consolidated Budgeted Financial Position | D105: Table A6 | E105: =D105&"Consolidated Budgeted Financial Position" -> Table A6 Consolidated Budgeted Financial Position | F105: =D105&"Budgeted Financial Position" -> Table A6 Budgeted Financial Position
B106: Table A7 Consolidated Budgeted Cash Flows | D106: Table A7 | E106: =D106&"Consolidated Budgeted Cash Flows" -> Table A7 Consolidated Budgeted Cash Flows | F106: =D106&"Budgeted Cash Flows" -> Table A7 Budgeted Cash Flows
B107: Table A8 Consolidated Cash backed reserves/accumulated surplus reconciliation | D107: Table A8 | E107: =D107&"Consolidated Cash backed reserves/accumulated surplus reconciliation" -> Table A8 Consolidated Cash backed reserves/accumulated surplus reconciliation | F107: =D107&"Cash backed reserves/accumulated surplus reconciliation" -> Table A8 Cash backed reserves/accumulated surplus reconciliation
B108: Table A9 Consolidated Asset Management | D108: Table A9 | E108: =D108&"Consolidated Asset Management" -> Table A9 Consolidated Asset Management | F108: =D108&"Asset Management" -> Table A9 Asset Management
B109: Table A10 Consolidated basic service delivery measurement | D109: Table A10 | E109: =D109&"Consolidated basic service delivery measurement" -> Table A10 Consolidated basic service delivery measurement | F109: =D109&"Basic service delivery measurement" -> Table A10 Basic service delivery measurement
A110: Supportinging Tables to the Budget Approval Tables | C110: =$C$99 -> Chart x-ref | D110: =$D$99 -> Sch/Tab/Ch
A111: Supporting Table SA1 | B111: =A111&" Supportinging detail to 'Budgeted Financial Performance'" -> Supporting Table SA1 Supportinging detail to 'Budgeted Financial Performance'
A112: Supporting Table SA2 | B112: =IF(Consolques="YES",E112,F112) -> Supporting Table SA2 Consolidated Matrix Financial Performance Budget (revenue source/expenditure type & dept.) | E112: =A112&"Consolidated Matrix Financial Performance Budget (revenue source/expenditure type & dept.)" -> Supporting Table SA2 Consolidated Matrix Financial Performance Budget (revenue source/expenditure type & dept.) | F112: =A112&"Matrix Financial Performance Budget (revenue source/expenditure type and dept.)" -> Supporting Table SA2 Matrix Financial Performance Budget (revenue source/expenditure type and dept.)
A113: Supporting Table SA3 | B113: =A113&"Supportinging detail to 'Budgeted Financial Position'" -> Supporting Table SA3 Supportinging detail to 'Budgeted Financial Position'
A114: Supporting Table SA4 | B114: =A114&"Reconciliation of IDP strategic objectives and budget (revenue)" -> Supporting Table SA4 Reconciliation of IDP strategic objectives and budget (revenue) | C114: Chart 11
A115: Supporting Table SA5 | B115: =A115&"Reconciliation of IDP strategic objectives and budget (operating expenditure)" -> Supporting Table SA5 Reconciliation of IDP strategic objectives and budget (operating expenditure) | C115: Chart 12
A116: Supporting Table SA6 | B116: =A116&"Reconciliation of IDP strategic objectives and budget (capital expenditure)" -> Supporting Table SA6 Reconciliation of IDP strategic objectives and budget (capital expenditure) | C116: Chart 13
A117: Supporting Table SA7 | B117: =A117&" Measureable performance objectives" -> Supporting Table SA7 Measureable performance objectives
A118: Supporting Table SA8 | B118: =A118&" Performance indicators and benchmarks" -> Supporting Table SA8 Performance indicators and benchmarks | C118: Chts 15-19
A119: Supporting Table SA9 | B119: =A119&" Social, economic and demographic statistics and assumptions" -> Supporting Table SA9 Social, economic and demographic statistics and assumptions
A120: Supporting Table SA10 | B120: =A120&" Funding measurement" -> Supporting Table SA10 Funding measurement | C120: Chart 14
A121: Supporting Table SA11 | B121: =A121&" Property rates summary" -> Supporting Table SA11 Property rates summary
A122: Supporting Table SA12a | B122: =A122&" Property rates by category (current year)" -> Supporting Table SA12a Property rates by category (current year)
A123: Supporting Table SA12b | B123: =A123&" Property rates by category (budget year)" -> Supporting Table SA12b Property rates by category (budget year)
A124: Supporting Table SA13a | B124: =A124&" Service Tariffs by category" -> Supporting Table SA13a Service Tariffs by category
A125: Supporting Table SA13b | B125: =A125&" Service Tariffs by category - explanatory" -> Supporting Table SA13b Service Tariffs by category - explanatory
A126: Supporting Table SA14 | B126: =A126&" Household bills" -> Supporting Table SA14 Household bills
A127: Supporting Table SA15 | B127: =A127&" Investment particulars by type" -> Supporting Table SA15 Investment particulars by type
A128: Supporting Table SA16 | B128: =A128&" Investment particulars by maturity" -> Supporting Table SA16 Investment particulars by maturity
A129: Supporting Table SA17 | B129: =A129&" Borrowing" -> Supporting Table SA17 Borrowing
A130: Supporting Table SA18 | B130: =A130&" Transfers and grant receipts" -> Supporting Table SA18 Transfers and grant receipts
A131: Supporting Table SA19 | B131: =A131&" Expenditure on transfers and grant programme" -> Supporting Table SA19 Expenditure on transfers and grant programme
A132: Supporting Table SA20 | B132: =A132&" Reconciliation of transfers, grant receipts and unspent funds" -> Supporting Table SA20 Reconciliation of transfers, grant receipts and unspent funds
A133: Supporting Table SA21 | B133: =A133&" Transfers and grants made by the municipality" -> Supporting Table SA21 Transfers and grants made by the municipality
A134: Supporting Table SA22 | B134: =A134&" Summary councillor and staff benefits" -> Supporting Table SA22 Summary councillor and staff benefits
A135: Supporting Table SA23 | B135: =A135&" Salaries, allowances & benefits (political office bearers/councillors/senior managers)" -> Supporting Table SA23 Salaries, allowances & benefits (political office bearers/councillors/senior managers)
A136: Supporting Table SA24 | B136: =A136&" Summary of personnel numbers" -> Supporting Table SA24 Summary of personnel numbers
A137: Supporting Table SA25 | B137: =IF(Consolques="YES",E137,F137) -> Supporting Table SA25 Consolidated budgeted monthly revenue and expenditure | E137: =A137&" Consolidated budgeted monthly revenue and expenditure" -> Supporting Table SA25 Consolidated budgeted monthly revenue and expenditure | F137: =A137&" Budgeted monthly revenue and expenditure" -> Supporting Table SA25 Budgeted monthly revenue and expenditure
A138: Supporting Table SA26 | B138: Supporting Table SA26 Consolidated budgeted monthly revenue and expenditure (municipal vote) | E138: =A138&" Consolidated budgeted monthly revenue and expenditure (municipal vote)" -> Supporting Table SA26 Consolidated budgeted monthly revenue and expenditure (municipal vote) | F138: =A138&" Budgeted monthly revenue and expenditure (municipal vote)" -> Supporting Table SA26 Budgeted monthly revenue and expenditure (municipal vote)
A139: Supporting Table SA27 | B139: Supporting Table SA27 Consolidated budgeted monthly revenue and expenditure (functional classification) | E139: =A139&" Consolidated budgeted monthly revenue and expenditure (functional classification)" -> Supporting Table SA27 Consolidated budgeted monthly revenue and expenditure (functional classification) | F139: =A139&" Budgeted monthly revenue and expenditure (functional classification)" -> Supporting Table SA27 Budgeted monthly revenue and expenditure (functional classification)
A140: Supporting Table SA28 | B140: Supporting Table SA28 Consolidated budgeted monthly capital expenditure (municipal vote) | E140: =A140&" Consolidated budgeted monthly capital expenditure (municipal vote)" -> Supporting Table SA28 Consolidated budgeted monthly capital expenditure (municipal vote) | F140: =A140&" Budgeted monthly capital expenditure (municipal vote)" -> Supporting Table SA28 Budgeted monthly capital expenditure (municipal vote)
A141: Supporting Table SA29 | B141: Supporting Table SA29 Consolidated budgeted monthly capital expenditure (functional classification) | E141: =A141&" Consolidated budgeted monthly capital expenditure (functional classification)" -> Supporting Table SA29 Consolidated budgeted monthly capital expenditure (functional classification) | F141: =A141&" Budgeted monthly capital expenditure (functional classification)" -> Supporting Table SA29 Budgeted monthly capital expenditure (functional classification)
A142: Supporting Table SA30 | B142: Supporting Table SA30 Consolidated budgeted monthly cash flow | E142: =A142&" Consolidated budgeted monthly cash flow" -> Supporting Table SA30 Consolidated budgeted monthly cash flow | F142: =A142&" Budgeted monthly cash flow" -> Supporting Table SA30 Budgeted monthly cash flow
A143: Supporting Table SA31 | B143: Supporting Table SA31 Aggregated entity budget | E143: =A143&" Aggregated entity budget" -> Supporting Table SA31 Aggregated entity budget | F143: NOT REQUIRED - municipality does not have entities
A144: Supporting Table SA32 | B144: =A144&" List of external mechanisms" -> Supporting Table SA32 List of external mechanisms
A145: Supporting Table SA33 | B145: =A145&" Contracts having future budgetary implications" -> Supporting Table SA33 Contracts having future budgetary implications
A146: Supporting Table SA34a | B146: =IF(Consolques="YES",E146,F146) -> Supporting Table SA34a Consolidated capital expenditure on new assets by asset class | E146: =A146&" Consolidated capital expenditure on new assets by asset class" -> Supporting Table SA34a Consolidated capital expenditure on new assets by asset class | F146: =A146&" Capital expenditure on new assets by asset class" -> Supporting Table SA34a Capital expenditure on new assets by asset class
A147: Supporting Table SA34b | B147: Supporting Table SA34b Consolidated capital expenditure on the renewal of existing assets by asset class | E147: =A147&" Consolidated capital expenditure on the renewal of existing assets by asset class" -> Supporting Table SA34b Consolidated capital expenditure on the renewal of existing assets by asset class | F147: =A147&" Capital expenditure on the renewal of existing assets by asset class" -> Supporting Table SA34b Capital expenditure on the renewal of existing assets by asset class
A148: Supporting Table SA34c | B148: Supporting Table SA34c Consolidated repairs and maintenance by asset class | E148: =A148&" Consolidated repairs and maintenance by asset class" -> Supporting Table SA34c Consolidated repairs and maintenance by asset class | F148: =A148&" Repairs and maintenance expenditure by asset class" -> Supporting Table SA34c Repairs and maintenance expenditure by asset class
A149: Supporting Table SA34d | B149: =IF(Consolques="YES",E149,F149) -> Supporting Table SA34d Consolidated Depreciation by asset class | E149: =A149&" Consolidated Depreciation by asset class" -> Supporting Table SA34d Consolidated Depreciation by asset class | F149: =A149&" Depreciation by asset class" -> Supporting Table SA34d Depreciation by asset class
A150: Supporting Table SA34e | B150: =IF(Consolques="YES",E150,F150) -> Supporting Table SA34e Consolidated capital expenditure on the upgrading of existing assets by asset class | E150: =A150&" Consolidated capital expenditure on the upgrading of existing assets by asset class" -> Supporting Table SA34e Consolidated capital expenditure on the upgrading of existing assets by asset class | F150: =A150&" Capital expenditure on the upgrading of existing assets by asset class" -> Supporting Table SA34e Capital expenditure on the upgrading of existing assets by asset class
A151: Supporting Table SA35 | B151: Supporting Table SA35 Consolidated future financial implications of the capital budget | E151: =A151&" Consolidated future financial implications of the capital budget" -> Supporting Table SA35 Consolidated future financial implications of the capital budget | F151: =A151& " Future financial implications of the capital budget" -> Supporting Table SA35 Future financial implications of the capital budget
A152: Supporting Table SA36 | B152: Supporting Table SA36 Consolidated detailed capital budget | E152: =A152&" Consolidated detailed capital budget" -> Supporting Table SA36 Consolidated detailed capital budget | F152: =A152& " Detailed capital budget" -> Supporting Table SA36 Detailed capital budget
A153: Supporting Table SA37 | B153: Supporting Table SA37 Consolidated projects delayed from previous financial year/s | E153: =A153&" Consolidated projects delayed from previous financial year/s" -> Supporting Table SA37 Consolidated projects delayed from previous financial year/s | F153: =A153& " Projects delayed from previous financial year/s" -> Supporting Table SA37 Projects delayed from previous financial year/s
A154: Supporting Table SA38 | B154: =IF(Consolques="YES",E154,F154) -> Supporting Table SA38 Consolidated detailed operational projects | E154: =A154&" Consolidated detailed operational projects" -> Supporting Table SA38 Consolidated detailed operational projects | F154: =A154& " Detailed operational projects" -> Supporting Table SA38 Detailed operational projects
A156: Budget Charts | B156: Charts | C156: Cross reference
A157: Chart A1 | B157: =A157&"Revenue by Municipal Vote" -> Chart A1 Revenue by Municipal Vote
A158: Chart A2 | B158: =A158&"Expenditure by Municipal Vote" -> Chart A2 Expenditure by Municipal Vote
A159: Chart A3 | B159: =A159&"Revenue by Standard Classification" -> Chart A3 Revenue by Standard Classification | C159: A2
A160: Chart A4 | B160: =A160&"Expenditure by Standard Classification" -> Chart A4 Expenditure by Standard Classification | C160: A2
A161: Chart A5 | B161: =A161&"Revenue by Major Source (refer 'Minor' source for 'Other Revenue' allocation" -> Chart A5 Revenue by Major Source (refer 'Minor' source for 'Other Revenue' allocation | C161: A3
A162: Chart A6 | B162: =A162&"Revenue by Minor Source (Other)" -> Chart A6 Revenue by Minor Source (Other) | C162: A3
A163: Chart A7 | B163: =A163&"Expenditure by Major Type" -> Chart A7 Expenditure by Major Type | C163: A3
A164: Chart A8 | B164: =A164&"Expenditure by Minor Type (Other)" -> Chart A8 Expenditure by Minor Type (Other) | C164: A3
A165: Chart A9 | B165: =A165&"Capital Expenditure by Municipal Vote/Appropriation (Major)" -> Chart A9 Capital Expenditure by Municipal Vote/Appropriation (Major) | C165: A5
A166: Chart A10 | B166: =A166&"Capital Expenditure by Municipal Vote/Appropriation (Minor)" -> Chart A10 Capital Expenditure by Municipal Vote/Appropriation (Minor) | C166: A5
A167: Chart A11 | B167: =A166&"Capital Expenditure by Standard Classification" -> Chart A10 Capital Expenditure by Standard Classification | C167: A5
A168: Chart A12 | B168: =A168&"Capital expenditure performance trend" -> Chart A12 Capital expenditure performance trend | C168: A5
A169: Chart A13 | B169: =A169&"Capital funding by Source" -> Chart A13 Capital funding by Source | C169: A5
A170: Chart A14 | B170: =A170&"Cash flow trend" -> Chart A14 Cash flow trend | C170: A7
A171: Chart A15 | B171: =A171&"IDP Strategic Objective - Revenue" -> Chart A15 IDP Strategic Objective - Revenue | C171: Table A4
A172: Chart A16 | B172: =A172&"IDP Strategic Objective - Expenditure" -> Chart A16 IDP Strategic Objective - Expenditure | C172: Table A5
A173: Chart A17 | B173: =A173&"IDP Strategic Objective - Capital Expenditure" -> Chart A17 IDP Strategic Objective - Capital Expenditure | C173: Table A6
A174: Chart A18 | B174: =A174&"Debt (borrowing to Total Revenue)" -> Chart A18 Debt (borrowing to Total Revenue) | C174: Table A8
A175: Chart A19 | B175: =A175&"Debtors' trend analysis" -> Chart A19 Debtors' trend analysis | C175: Table A8
A176: Chart A20 | B176: =A176&"Distribution losses" -> Chart A20 Distribution losses | C176: Table A8
A177: Chart A21 | B177: =A177&"Borrowed funding of capital expenditure" -> Chart A21 Borrowed funding of capital expenditure | C177: Table A8
A178: Chart A22 | B178: =A178&"Expenditure analysis (% of Revenue)" -> Chart A22 Expenditure analysis (% of Revenue) | C178: Table A8
A179: Chart A23 | B179: =A179&"Increases in service charges" -> Chart A23 Increases in service charges | C179: Table A10

Sheet Lookup and lists (hidden)
A1: Description | B1: 2007 | C1: 2008 | D1: 2009 | E1: 2010 | F1: 2011 | G1: 2012 | H1: 2013 | I1: 2014 | J1: 2015 | K1: 2016 | L1: 2017 | M1: 2018 | N1: 2019 | O1: 2020 | Q1: Lists | Y1: Grants: | Z1: National - opex | AA1: Provincial - opex | AB1: National - capex | AC1: Provincial - capex
A2: ='Template names'!C2 -> Prior year -1 | B2: 2005/06 | C2: 2006/07 | D2: 2007/08 | E2: =E1-2&"/"&RIGHT(E1,2)-1 -> 2008/9 | F2: 2009/10 | G2: 2010/11 | H2: 2011/12 | I2: 2012/13 | J2: 2013/14 | K2: 2014/15 | L2: 2015/16 | M2: 2016/17 | N2: 2017/18 | O2: 2018/19 | Q2: Yes | R2: <1 | S2: <4 | T2: Market | U2: Land & impr. | V2: Yes | W2: Uniform | X2: Yrs | Z2: Local Government Equitable Share | AA2: Health subsidy | AB2: Municipal Infrastructure Grant (MIG) | AC2: Agriculture
A3: ='Template names'!C3 -> Prior year -2 | B3: 2004/05 | C3: 2005/06 | D3: 2006/07 | E3: =E1-3&"/"&RIGHT(E1,2)-2 -> 2007/8 | F3: 2008/9 | G3: 2009/10 | H3: 2010/11 | I3: 2011/12 | J3: 2012/13 | K3: 2013/14 | L3: 2014/15 | M3: 2015/16 | N3: 2016/17 | O3: 2017/18 | Q3: No | R3: 1 | S3: 4 | T3: Dep.Replace | U3: Land only | V3: No | W3: Variable | X3: Mths | Z3: RSC Levy Replacement | AA3: Ambulance subsidy | AB3: Public Transport and Systems | AC3: Education
A4: ='Template names'!C4 -> Prior year -3 | B4: 2003/04 | C4: 2004/05 | D4: 2005/06 | E4: =E1-4&"/"&RIGHT(E1,2)-3 -> 2006/7 | F4: 2007/8 | G4: 2008/9 | H4: 2009/10 | I4: 2010/11 | J4: 2011/12 | K4: 2012/13 | L4: 2013/14 | M4: 2014/15 | N4: 2015/16 | O4: 2016/17 | R4: 2 | S4: 5 | T4: Other | U4: Other | Z4: Finance Management | AA4: Housing | AB4: Rural Transport Services and Infrastructure | AC4: Health
A5: ='Template names'!C5 -> Year in which budget is being prepared | B5: Current Year 2006/07 | C5: Current Year 2007/08 | D5: Current Year 2008/09 | E5: ="Current Year "& E1-1&"/"&RIGHT(E1,2) -> Current Year 2009/10 | F5: Current Year 2010/11 | G5: Current Year 2011/12 | H5: Current Year 2012/13 | I5: Current Year 2013/14 | J5: Current Year 2014/15 | K5: Current Year 2015/16 | L5: Current Year 2016/17 | M5: Current Year 2017/18 | N5: Current Year 2018/19 | O5: Current Year 2019/20 | R5: 3 | S5: 6 | Z5: Municipal Systems Improvement | AA5: Sport and Recreation | AB5: Regional Bulk Infrastructure | AC5: Housing and Local Government
A6: ='Template names'!C6 -> Year in which budget is being prepared | B6: 2006/07 | C6: 2007/08 | D6: 2008/09 | E6: =E1-1&"/"&RIGHT(E1,2) -> 2009/10 | F6: 2010/11 | G6: 2011/12 | H6: 2012/13 | I6: 2013/14 | J6: 2014/15 | K6: 2015/16 | L6: 2016/17 | M6: 2017/18 | N6: 2018/19 | O6: 2019/20 | R6: 4 | S6: 6-10 | Z6: Water Services Operating Subsidy | AB6: Rural Households Infrastructure | AC6: Other Departments
A7: ='Template names'!C7 -> MTREF name | B7: 2007/08 Medium Term Revenue & Expenditure Framework | C7: 2008/09 Medium Term Revenue & Expenditure Framework | D7: 2009/10 Medium Term Revenue & Expenditure Framework | E7: =E1&"/"&RIGHT(E1,2)+1&" Medium Term Revenue & Expenditure Framework" -> 2010/11 Medium Term Revenue & Expenditure Framework | F7: 2011/12 Medium Term Revenue & Expenditure Framework | G7: 2012/13 Medium Term Revenue & Expenditure Framework | H7: 2013/14 Medium Term Revenue & Expenditure Framework | I7: 2014/15 Medium Term Revenue & Expenditure Framework | J7: 2015/16 Medium Term Revenue & Expenditure Framework | K7: 2016/17 Medium Term Revenue & Expenditure Framework | L7: 2017/18 Medium Term Revenue & Expenditure Framework | M7: 2018/19 Medium Term Revenue & Expenditure Framework | N7: 2019/20 Medium Term Revenue & Expenditure Framework | O7: 2020/21 Medium Term Revenue & Expenditure Framework | R7: 5 | S7: >10 | Z7: Energy Efficiency and Demand Management | AB7: Neighbourhood Development Partnership | AC7: Public Works, Roads, Transport
A8: ='Template names'!C15 -> 1st year of MTREF | B8: Budget Year 2007/08 | C8: Budget Year 2008/09 | D8: Budget Year 2009/10 | E8: ="Budget Year "&E1&"/"&RIGHT(E1,2)+1 -> Budget Year 2010/11 | F8: Budget Year 2011/12 | G8: Budget Year 2012/13 | H8: Budget Year 2013/14 | I8: Budget Year 2014/15 | J8: Budget Year 2015/16 | K8: Budget Year 2016/17 | L8: Budget Year 2017/18 | M8: Budget Year 2018/19 | N8: Budget Year 2019/20 | O8: Budget Year 2020/21 | R8: >5 | Z8: Integrated National Electrification Programme | AB8: 2010 FIFA World Cup Stadiums Development | AC8: Sport and Recreation
A9: ='Template names'!C16 -> 2nd year of MTREF | B9: Budget Year +1 2008/09 | C9: Budget Year +1 2009/10 | D9: Budget Year +1 2010/11 | E9: ="Budget Year +1 "&E1+1&"/"&RIGHT(E1,2)+2 -> Budget Year +1 2011/12 | F9: Budget Year +1 2012/13 | G9: Budget Year +1 2013/14 | H9: Budget Year +1 2014/15 | I9: Budget Year +1 2015/16 | J9: Budget Year +1 2016/17 | K9: Budget Year +1 2017/18 | L9: Budget Year +1 2018/19 | M9: Budget Year +1 2019/20 | N9: Budget Year +1 2020/21 | O9: Budget Year +1 2021/22 | Z9: Municipal Drought Relief
A10: ='Template names'!C17 -> 3rd year of MTREF | B10: Budget Year +2 2009/10 | C10: Budget Year +2 2010/11 | D10: Budget Year +2 2011/12 | E10: ="Budget Year +2 "&E1+2&"/"&RIGHT(E1,2)+3 -> Budget Year +2 2012/13 | F10: Budget Year +2 2013/14 | G10: Budget Year +2 2014/15 | H10: Budget Year +2 2015/16 | I10: Budget Year +2 2016/17 | J10: Budget Year +2 2017/18 | K10: Budget Year +2 2018/19 | L10: Budget Year +2 2019/20 | M10: Budget Year +2 2020/21 | N10: Budget Year +2 2021/22 | O10: Budget Year +2 2022/23 | Z10: 2010 FIFA World Cup Operating
A11: ='Template names'!C18 -> 1st yr of long term forecast | B11: Forecast 2010/11 | C11: Forecast 2011/12 | D11: Forecast 2012/13 | E11: ="Forecast "&E1+3&"/"&RIGHT(E1,2)+4 -> Forecast 2013/14 | F11: Forecast 2014/15 | G11: Forecast 2015/16 | H11: Forecast 2016/17 | I11: Forecast 2017/18 | J11: Forecast 2018/19 | K11: Forecast 2019/20 | L11: Forecast 2020/21 | M11: Forecast 2021/22 | N11: Forecast 2022/23 | O11: Forecast 2023/24 | Z11: Electricity Demand Side Management
A12: ='Template names'!C19 -> Next yr of long term forecast | B12: Forecast 2011/12 | C12: Forecast 2012/13 | D12: Forecast 2013/14 | E12: ="Forecast "&E1+4&"/"&RIGHT(E1,2)+5 -> Forecast 2014/15 | F12: Forecast 2015/16 | G12: Forecast 2016/17 | H12: Forecast 2017/18 | I12: Forecast 2018/19 | J12: Forecast 2019/20 | K12: Forecast 2020/21 | L12: Forecast 2021/22 | M12: Forecast 2022/23 | N12: Forecast 2023/24 | O12: Forecast 2024/25 | Z12: EPWP Incentive
A13: ='Template names'!C20 -> Next yr of long term forecast | B13: Forecast 2012/13 | C13: Forecast 2013/14 | D13: Forecast 2014/15 | E13: ="Forecast "&E1+5&"/"&RIGHT(E1,2)+6 -> Forecast 2015/16 | F13: Forecast 2016/17 | G13: Forecast 2017/18 | H13: Forecast 2018/19 | I13: Forecast 2019/20 | J13: Forecast 2020/21 | K13: Forecast 2021/22 | L13: Forecast 2022/23 | M13: Forecast 2023/24 | N13: Forecast 2024/25 | O13: Forecast 2025/26
A14: ='Template names'!C21 -> Next yr of long term forecast | B14: Forecast 2013/14 | C14: Forecast 2014/15 | D14: Forecast 2015/16 | E14: ="Forecast "&E1+6&"/"&RIGHT(E1,2)+7 -> Forecast 2016/17 | F14: Forecast 2017/18 | G14: Forecast 2018/19 | H14: Forecast 2019/20 | I14: Forecast 2020/21 | J14: Forecast 2021/22 | K14: Forecast 2022/23 | L14: Forecast 2023/24 | M14: Forecast 2024/25 | N14: Forecast 2025/26 | O14: Forecast 2026/27 | Z14: Asset Class | AA14: Asset sub-class old | AB14: Asset sub-class | AC14: IUDF | AD14: MTSF
A15: ='Template names'!C22 -> Next yr of long term forecast | B15: Forecast 2014/15 | C15: Forecast 2015/16 | D15: Forecast 2016/17 | E15: ="Forecast "&E1+7&"/"&RIGHT(E1,2)+8 -> Forecast 2017/18 | F15: Forecast 2018/19 | G15: Forecast 2019/20 | H15: Forecast 2020/21 | I15: Forecast 2021/22 | J15: Forecast 2022/23 | K15: Forecast 2023/24 | L15: Forecast 2024/25 | M15: Forecast 2025/26 | N15: Forecast 2026/27 | O15: Forecast 2027/28
A16: ='Template names'!C23 -> Next yr of long term forecast | B16: Forecast 2015/16 | C16: Forecast 2016/17 | D16: Forecast 2017/18 | E16: ="Forecast "&E1+8&"/"&RIGHT(E1,2)+9 -> Forecast 2018/19 | F16: Forecast 2019/20 | G16: Forecast 2020/21 | H16: Forecast 2021/22 | I16: Forecast 2022/23 | J16: Forecast 2023/24 | K16: Forecast 2024/25 | L16: Forecast 2025/26 | M16: Forecast 2026/27 | N16: Forecast 2027/28 | O16: Forecast 2028/29 | Z16: Roads Infrastructure | AA16: Roads, Pavements & Bridges | AB16: Roads | AC16: Spatial integration | AD16: Quality basic education
A17: ='Template names'!C24 -> Next yr of long term forecast | B17: Forecast 2016/17 | C17: Forecast 2017/18 | D17: Forecast 2018/19 | E17: ="Forecast "&E1+9&"/"&RIGHT(E1,2)+10 -> Forecast 2019/20 | F17: Forecast 2020/21 | G17: Forecast 2021/22 | H17: Forecast 2022/23 | I17: Forecast 2023/24 | J17: Forecast 2024/25 | K17: Forecast 2025/26 | L17: Forecast 2026/27 | M17: Forecast 2027/28 | N17: Forecast 2028/29 | O17: Forecast 2029/30 | Z17: Storm water Infrastructure | AA17: Storm water | AB17: Road Structures | AC17: Inclusion and access | AD17: A long and healthy life for all South Africans
A18: ='Template names'!C25 -> Next yr of long term forecast | B18: Forecast 2017/18 | C18: Forecast 2018/19 | D18: Forecast 2019/20 | E18: ="Forecast "&E1+10&"/"&RIGHT(E1,2)+11 -> Forecast 2020/21 | F18: Forecast 2021/22 | G18: Forecast 2022/23 | H18: Forecast 2023/24 | I18: Forecast 2024/25 | J18: Forecast 2025/26 | K18: Forecast 2026/27 | L18: Forecast 2027/28 | M18: Forecast 2028/29 | N18: Forecast 2029/30 | O18: Forecast 2030/31 | Z18: Electrical Infrastructure | AA18: Generation | AB18: Road Furniture | AC18: Growth | AD18: All people in South Africa are and feel safe
A19: ='Template names'!C26 -> Next yr of long term forecast | B19: Forecast 2018/19 | C19: Forecast 2019/20 | D19: Forecast 2020/21 | E19: ="Forecast "&E1+11&"/"&RIGHT(E1,2)+12 -> Forecast 2021/22 | F19: Forecast 2022/23 | G19: Forecast 2023/24 | H19: Forecast 2024/25 | I19: Forecast 2025/26 | J19: Forecast 2026/27 | K19: Forecast 2027/28 | L19: Forecast 2028/29 | M19: Forecast 2029/30 | N19: Forecast 2030/31 | O19: Forecast 2031/32 | Z19: Water Supply Infrastructure | AA19: Transmission & Reticulation | AB19: Capital Spares | AC19: Governance | AD19: Decent employment through inclusive growth
A20: ='Template names'!C27 -> Next yr of long term forecast | B20: Forecast 2019/20 | C20: Forecast 2020/21 | D20: Forecast 2021/22 | E20: ="Forecast "&E1+12&"/"&RIGHT(E1,2)+13 -> Forecast 2022/23 | F20: Forecast 2023/24 | G20: Forecast 2024/25 | H20: Forecast 2025/26 | I20: Forecast 2026/27 | J20: Forecast 2027/28 | K20: Forecast 2028/29 | L20: Forecast 2029/30 | M20: Forecast 2030/31 | N20: Forecast 2031/32 | O20: Forecast 2032/33 | Z20: Sanitation Infrastructure | AA20: Street Lighting | AB20: Drainage Collection | AD20: A skilled and capable workforce to support an inclusive growth path
A21: ='Template names'!C28 -> Next yr of long term forecast | B21: Forecast 2020/21 | C21: Forecast 2021/22 | D21: Forecast 2022/23 | E21: ="Forecast "&E1+13&"/"&RIGHT(E1,2)+14 -> Forecast 2023/24 | F21: Forecast 2024/25 | G21: Forecast 2025/26 | H21: Forecast 2026/27 | I21: Forecast 2027/28 | J21: Forecast 2028/29 | K21: Forecast 2029/30 | L21: Forecast 2030/31 | M21: Forecast 2031/32 | N21: Forecast 2032/33 | O21: Forecast 2033/34 | Z21: Solid Waste Infrastructure | AA21: Dams & Reservoirs | AB21: Storm water Conveyance | AD21: An efficient, competitive and responsive economic infrastructure network
A22: ='Template names'!C29 -> Next yr of long term forecast | B22: Forecast 2021/22 | C22: Forecast 2022/23 | D22: Forecast 2023/24 | E22: ="Forecast "&E1+14&"/"&RIGHT(E1,2)+15 -> Forecast 2024/25 | F22: Forecast 2025/26 | G22: Forecast 2026/27 | H22: Forecast 2027/28 | I22: Forecast 2028/29 | J22: Forecast 2029/30 | K22: Forecast 2030/31 | L22: Forecast 2031/32 | M22: Forecast 2032/33 | N22: Forecast 2033/34 | O22: Forecast 2034/35 | Z22: Rail Infrastructure | AA22: Water purification | AB22: Attenuation | AD22: Vibrant, equitable, sustainable rural communities contributing towards food security for all
A23: Adjustments Budget | B23: Annual target 2007/08 | C23: Annual target 2008/09 | D23: Annual target 2009/10 | E23: ="Annual target " & E1&"/"&RIGHT(E1,2)+1 -> Annual target 2010/11 | F23: Annual target 2011/12 | G23: Annual target 2012/13 | H23: Annual target 2013/14 | I23: Annual target 2014/15 | J23: Annual target 2015/16 | K23: Annual target 2016/17 | L23: Annual target 2017/18 | M23: Annual target 2018/19 | N23: Annual target 2019/20 | O23: Annual target 2020/21 | Z23: Coastal Infrastructure | AA23: Reticulation | AB23: Power Plants | AD23: Sustainable human settlements and improved quality of household life
A24: =A23 -> Adjustments Budget | B24: Revised target 2007/08 | C24: Revised target 2008/09 | D24: Revised target 2009/10 | E24: ="Revised target "& E1&"/"&RIGHT(E1,2)+1 -> Revised target 2010/11 | F24: Revised target 2011/12 | G24: Revised target 2012/13 | H24: Revised target 2013/14 | I24: Revised target 2014/15 | J24: Revised target 2015/16 | K24: Revised target 2016/17 | L24: Revised target 2017/18 | M24: Revised target 2018/19 | N24: Revised target 2019/20 | O24: Revised target 2020/21 | Z24: Information and Communication Infrastructure | AA24: Sewerage purification | AB24: HV Substations | AD24: Responsive, accountable, effective and efficient local government
A25: NOTE: This sheet should not be directly amended - select headings from sheet 'S' | Z25: Community Facilities | AA25: Waste Management | AB25: HV Switching Station | AD25: Protect and enhance our environmental assets and natural resources
Z26: Sport and Recreation Facilities | AA26: Transportation | AB26: HV Transmission Conductors | AD26: Create a better South Africa and contribute to a better Africa and a better world
A27: Name link | B27: 35 | Z27: Heritage assets | AA27: Gas | AB27: MV Substations | AD27: An efficient, effective and development-oriented public service
A28: Name of Muni | B28: =INDEX(B29:B307,B27,1) -> DC15 O .R. Tambo | Z28: Revenue Generating | AA28: Parks & gardens | AB28: MV Switching Stations | AD28: A comprehensive, responsive and sustainable social protection system
B29: Choose name from list | C29: Set name on 'Instructions' sheet | Z29: Non-revenue Generating | AA29: Sportsfields & stadia | AB29: MV Networks | AD29: A diverse, socially cohesive society with a common national identity
B30: BUF Buffalo City | C30: EC EASTERN CAPE | Z30: Operational Buildings | AA30: Swimming pools | AB30: LV Networks
B31: NMA Nelson Mandela Bay | C31: EC EASTERN CAPE | Z31: Housing | AA31: Community halls | AB31: Capital Spares
B32: EC101 Dr Beyers Naude | C32: EC EASTERN CAPE | Z32: Biological or Cultivated Assets | AA32: Libraries | AB32: Dams and Weirs
B33: EC102 Blue Crane Route | C33: EC EASTERN CAPE | Z33: Servitudes | AA33: Recreational facilities | AB33: Boreholes
B34: EC104 Makana | C34: EC EASTERN CAPE | Z34: Licences and Rights | AA34: Fire, safety & emergency | AB34: Reservoirs
B35: EC105 Ndlambe | C35: EC EASTERN CAPE | Z35: Computer Equipment | AA35: Security and policing | AB35: Pump Stations
B36: EC106 Sundays River Valley | C36: EC EASTERN CAPE | Z36: Furniture and Office Equipment | AA36: Buses | AB36: Water Treatment Works
B37: EC108 Kouga | C37: EC EASTERN CAPE | Z37: Machinery and Equipment | AA37: Clinics | AB37: Bulk Mains
B38: EC109 Kou-Kamma | C38: EC EASTERN CAPE | Z38: Transport Assets | AA38: Museums & Art Galleries | AB38: Distribution
B39: DC10 Sarah Baartman | C39: EC EASTERN CAPE | Z39: Land | AA39: Cemeteries | AB39: Distribution Points
B40: EC121 Mbhashe | C40: EC EASTERN CAPE | Z40: Zoo's, Marine and Non-biological Animals | AA40: Social rental housing | AB40: PRV Stations
B41: EC122 Mnquma | C41: EC EASTERN CAPE | AA41: Buildings | AB41: Capital Spares
B42: EC123 Great Kei | C42: EC EASTERN CAPE | AA42: Housing development | AB42: Pump Station
B43: EC124 Amahlathi | C43: EC EASTERN CAPE | AA43: General vehicles | AB43: Reticulation
B44: EC126 Ngqushwa | C44: EC EASTERN CAPE | AA44: Specialised vehicles - Refuse | AB44: Waste Water Treatment Works
B45: EC129 Raymond Mhlaba | C45: EC EASTERN CAPE | AA45: Specialised vehicles - Fire | AB45: Outfall Sewers
B46: DC12 Amathole | C46: EC EASTERN CAPE | AA46: Specialised vehicles - Conservancy | AB46: Toilet Facilities
B47: EC131 Inxuba Yethemba | C47: EC EASTERN CAPE | AA47: Specialised vehicles - Ambulances | AB47: Capital Spares
B48: EC135 Intsika Yethu | C48: EC EASTERN CAPE | AA48: Plant & equipment | AB48: Landfill Sites
B49: EC136 Emalahleni (Ec) | C49: EC EASTERN CAPE | AA49: Computers - hardware/equipment | AB49: Waste Transfer Stations
B50: EC137 Engcobo | C50: EC EASTERN CAPE | AA50: Furniture and other office equipment | AB50: Waste Processing Facilities
B51: EC138 Sakhisizwe | C51: EC EASTERN CAPE | AA51: Abattoirs | AB51: Waste Drop-off Points
B52: EC139 Enoch Mgijima | C52: EC EASTERN CAPE | AA52: Markets | AB52: Waste Separation Facilities
B53: DC13 Chris Hani | C53: EC EASTERN CAPE | AA53: Civic Land and Buildings | AB53: Electricity Generation Facilities
B54: EC141 Elundini | C54: EC EASTERN CAPE | AA54: Other Buildings | AB54: Capital Spares
B55: EC142 Senqu | C55: EC EASTERN CAPE | AA55: Other Land | AB55: Rail Lines
B56: EC145 Walter Sisulu | C56: EC EASTERN CAPE | AA56: Surplus Assets - (Investment or Inventory) | AB56: Rail Structures
B57: DC14 Joe Gqabi | C57: EC EASTERN CAPE | AA57: Computers - software & programming | AB57: Rail Furniture
B58: EC153 Ngquza Hills | C58: EC EASTERN CAPE | AA58: Other | AB58: Drainage Collection
B59: EC154 Port St Johns | C59: EC EASTERN CAPE | AB59: Storm water Conveyance
B60: EC155 Nyandeni | C60: EC EASTERN CAPE | Z60: SA16 - Investments | AB60: Attenuation
B61: EC156 Mhlontlo | C61: EC EASTERN CAPE | Z61: Security | AA61: Interest rate | AB61: MV Substations
B62: EC157 King Sabata Dalindyebo | C62: EC EASTERN CAPE | Z62: Yes | AA62: Fixed | AB62: LV Networks
B63: DC15 O .R. Tambo | C63: EC EASTERN CAPE | Z63: No | AA63: Variable | AB63: Capital Spares
B64: EC441 Matatiele | C64: EC EASTERN CAPE | AB64: Sand Pumps
B65: EC442 Umzimvubu | C65: EC EASTERN CAPE | AB65: Piers
B66: EC443 Mbizana | C66: EC EASTERN CAPE | Z66: SA36, SA37 - Capital projects | AB66: Revetments
B67: EC444 Ntabankulu | C67: EC EASTERN CAPE | Z67: Yes | AB67: Promenades
B68: DC44 Alfred Nzo | C68: EC EASTERN CAPE | Z68: No | AB68: Capital Spares
B69: MAN Mangaung | C69: FS FREE STATE | AB69: Data Centres
B70: FS161 Letsemeng | C70: FS FREE STATE | AB70: Core Layers
B71: FS162 Kopanong | C71: FS FREE STATE | AB71: Distribution Layers
B72: FS163 Mohokare | C72: FS FREE STATE | AB72: Capital Spares
B73: DC16 Xhariep | C73: FS FREE STATE | AB73: Halls
B74: FS181 Masilonyana | C74: FS FREE STATE | AB74: Centres
B75: FS182 Tokologo | C75: FS FREE STATE | AB75: Crèches
B76: FS183 Tswelopele | C76: FS FREE STATE | AB76: Clinics/Care Centres
B77: FS184 Matjhabeng | C77: FS FREE STATE | AB77: Fire/Ambulance Stations
B78: FS185 Nala | C78: FS FREE STATE | AB78: Testing Stations
B79: DC18 Lejweleputswa | C79: FS FREE STATE | AB79: Museums
B80: FS191 Setsoto | C80: FS FREE STATE | AB80: Galleries
B81: FS192 Dihlabeng | C81: FS FREE STATE | AB81: Theatres
B82: FS193 Nketoana | C82: FS FREE STATE | AB82: Libraries
B83: FS194 Maluti-a-Phofung | C83: FS FREE STATE | AB83: Cemeteries/Crematoria
B84: FS195 Phumelela | C84: FS FREE STATE | AB84: Police
B85: FS196 Mantsopa | C85: FS FREE STATE | AB85: Purls
B86: DC19 Thabo Mofutsanyana | C86: FS FREE STATE | AB86: Public Open Space
B87: FS201 Moqhaka | C87: FS FREE STATE | AB87: Nature Reserves
B88: FS203 Ngwathe | C88: FS FREE STATE | AB88: Public Ablution Facilities
B89: FS204 Metsimaholo | C89: FS FREE STATE | AB89: Markets
B90: FS205 Mafube | C90: FS FREE STATE | AB90: Stalls
B91: DC20 Fezile Dabi | C91: FS FREE STATE | AB91: Abattoirs
B92: EKU City of Ekurhuleni | C92: GT GAUTENG | AB92: Airports
B93: JHB City Of Johannesburg | C93: GT GAUTENG | AB93: Taxi Ranks/Bus Terminals
B94: TSH City Of Tshwane | C94: GT GAUTENG | AB94: Capital Spares
B95: GT421 Emfuleni | C95: GT GAUTENG | AB95: Indoor Facilities
B96: GT422 Midvaal | C96: GT GAUTENG | AB96: Outdoor Facilities
B97: GT423 Lesedi | C97: GT GAUTENG | AB97: Capital Spares
B98: DC42 Sedibeng | C98: GT GAUTENG | AB98: Monuments
B99: GT481 Mogale City | C99: GT GAUTENG | AB99: Historic Buildings
B100: GT484 Merafong City | C100: GT GAUTENG | AB100: Works of Art
B101: GT485 Rand West City | C101: GT GAUTENG | AB101: Conservation Areas
B102: DC48 West Rand | C102: GT GAUTENG | AB102: Other Heritage
B103: ETH eThekwini | C103: KZN KWAZULU-NATAL | AB103: Improved Property
B104: KZN212 Umdoni | C104: KZN KWAZULU-NATAL | AB104: Unimproved Property
B105: KZN213 Umzumbe | C105: KZN KWAZULU-NATAL | AB105: Municipal Offices
B106: KZN214 uMuziwabantu | C106: KZN KWAZULU-NATAL | AB106: Pay/Enquiry Points
B107: KZN216 Ray Nkonyeni | C107: KZN KWAZULU-NATAL | AB107: Building Plan Offices
B108: DC21 Ugu | C108: KZN KWAZULU-NATAL | AB108: Workshops
B109: KZN221 uMshwathi | C109: KZN KWAZULU-NATAL | AB109: Yards
B110: KZN222 uMngeni | C110: KZN KWAZULU-NATAL | AB110: Stores
B111: KZN223 Mpofana | C111: KZN KWAZULU-NATAL | AB111: Laboratories
B112: KZN224 Impendle | C112: KZN KWAZULU-NATAL | AB112: Training Centres
B113: KZN225 Msunduzi | C113: KZN KWAZULU-NATAL | AB113: Manufacturing Plant
B114: KZN226 Mkhambathini | C114: KZN KWAZULU-NATAL | AB114: Depots
B115: KZN227 Richmond | C115: KZN KWAZULU-NATAL | AB115: Capital Spares
B116: DC22 uMgungundlovu | C116: KZN KWAZULU-NATAL | AB116: Staff Housing
B117: KZN235 Okhahlamba | C117: KZN KWAZULU-NATAL | AB117: Social Housing
B118: KZN237 Inkosi Langalibalele | C118: KZN KWAZULU-NATAL | AB118: Capital Spares
B119: KZN238 Alfred Duma | C119: KZN KWAZULU-NATAL | AB119: Water Rights
B120: DC23 Uthukela | C120: KZN KWAZULU-NATAL | AB120: Effluent Licenses
B121: KZN241 Endumeni | C121: KZN KWAZULU-NATAL | AB121: Solid Waste Licenses
B122: KZN242 Nquthu | C122: KZN KWAZULU-NATAL | AB122: Computer Software and Applications
B123: KZN244 Msinga | C123: KZN KWAZULU-NATAL | AB123: Load Settlement Software Applications
B124: KZN245 Umvoti | C124: KZN KWAZULU-NATAL | AB124: Unspecified
B125: DC24 Umzinyathi | C125: KZN KWAZULU-NATAL
B126: KZN252 Newcastle | C126: KZN KWAZULU-NATAL
B127: KZN253 Emadlangeni | C127: KZN KWAZULU-NATAL
B128: KZN254 Dannhauser | C128: KZN KWAZULU-NATAL
B129: DC25 Amajuba | C129: KZN KWAZULU-NATAL
B130: KZN261 eDumbe | C130: KZN KWAZULU-NATAL
B131: KZN262 uPhongolo | C131: KZN KWAZULU-NATAL
B132: KZN263 Abaqulusi | C132: KZN KWAZULU-NATAL
B133: KZN265 Nongoma | C133: KZN KWAZULU-NATAL
B134: KZN266 Ulundi | C134: KZN KWAZULU-NATAL
B135: DC26 Zululand | C135: KZN KWAZULU-NATAL
B136: KZN271 Umhlabuyalingana | C136: KZN KWAZULU-NATAL
B137: KZN272 Jozini | C137: KZN KWAZULU-NATAL
B138: KZN275 Mtubatuba | C138: KZN KWAZULU-NATAL
B139: KZN276 Hlabisa Big Five | C139: KZN KWAZULU-NATAL
B140: DC27 Umkhanyakude | C140: KZN KWAZULU-NATAL
B141: KZN281 Mfolozi | C141: KZN KWAZULU-NATAL
B142: KZN282 uMhlathuze | C142: KZN KWAZULU-NATAL
B143: KZN284 uMlalazi | C143: KZN KWAZULU-NATAL
B144: KZN285 Mthonjaneni | C144: KZN KWAZULU-NATAL
B145: KZN286 Nkandla | C145: KZN KWAZULU-NATAL
B146: DC28 King Cetshwayo | C146: KZN KWAZULU-NATAL
B147: KZN291 Mandeni | C147: KZN KWAZULU-NATAL
B148: KZN292 KwaDukuza | C148: KZN KWAZULU-NATAL
B149: KZN293 Ndwedwe | C149: KZN KWAZULU-NATAL
B150: KZN294 Maphumulo | C150: KZN KWAZULU-NATAL
B151: DC29 iLembe | C151: KZN KWAZULU-NATAL
B152: KZN433 Greater Kokstad | C152: KZN KWAZULU-NATAL
B153: KZN434 Ubuhlebezwe | C153: KZN KWAZULU-NATAL
B154: KZN435 Umzimkhulu | C154: KZN KWAZULU-NATAL
B155: KZN436 Dr Nkosazana Dlamini Zuma | C155: KZN KWAZULU-NATAL
B156: DC43 Harry Gwala | C156: KZN KWAZULU-NATAL
B157: LIM331 Greater Giyani | C157: LIM LIMPOPO
B158: LIM332 Greater Letaba | C158: LIM LIMPOPO
B159: LIM333 Greater Tzaneen | C159: LIM LIMPOPO
B160: LIM334 Ba-Phalaborwa | C160: LIM LIMPOPO
B161: LIM335 Maruleng | C161: LIM LIMPOPO
B162: DC33 Mopani | C162: LIM LIMPOPO
B163: LIM341 Musina | C163: LIM LIMPOPO
B164: LIM343 Thulamela | C164: LIM LIMPOPO
B165: LIM344 Makhado | C165: LIM LIMPOPO
B166: LIM345 Collins Chabane | C166: LIM LIMPOPO
B167: DC34 Vhembe | C167: LIM LIMPOPO
B168: LIM351 Blouberg | C168: LIM LIMPOPO
B169: LIM353 Molemole | C169: LIM LIMPOPO
B170: LIM354 Polokwane | C170: LIM LIMPOPO
B171: LIM355 Lepelle-Nkumpi | C171: LIM LIMPOPO
B172: DC35 Capricorn | C172: LIM LIMPOPO
B173: LIM361 Thabazimbi | C173: LIM LIMPOPO
B174: LIM362 Lephalale | C174: LIM LIMPOPO
B175: LIM366 Bela Bela | C175: LIM LIMPOPO
B176: LIM367 Mogalakwena | C176: LIM LIMPOPO
B177: LIM368 Modimolle-Mookgopong | C177: LIM LIMPOPO
B178: DC36 Waterberg | C178: LIM LIMPOPO
B179: LIM471 Ephraim Mogale | C179: LIM LIMPOPO
B180: LIM472 Elias Motsoaledi | C180: LIM LIMPOPO
B181: LIM473 Makhuduthamaga | C181: LIM LIMPOPO
B182: LIM476 Tubatse Fetakgomo | C182: LIM LIMPOPO
B183: DC47 Sekhukhune | C183: LIM LIMPOPO
B184: MP301 Albert Luthuli | C184: MP MPUMALANGA
B185: MP302 Msukaligwa | C185: MP MPUMALANGA
B186: MP303 Mkhondo | C186: MP MPUMALANGA
B187: MP304 Pixley Ka Seme (MP) | C187: MP MPUMALANGA
B188: MP305 Lekwa | C188: MP MPUMALANGA
B189: MP306 Dipaleseng | C189: MP MPUMALANGA
B190: MP307 Govan Mbeki | C190: MP MPUMALANGA
B191: DC30 Gert Sibande | C191: MP MPUMALANGA
B192: MP311 Victor Khanye | C192: MP MPUMALANGA
B193: MP312 Emalahleni (Mp) | C193: MP MPUMALANGA
B194: MP313 Steve Tshwete | C194: MP MPUMALANGA
B195: MP314 Emakhazeni | C195: MP MPUMALANGA
B196: MP315 Thembisile Hani | C196: MP MPUMALANGA
B197: MP316 Dr J.S. Moroka | C197: MP MPUMALANGA
B198: DC31 Nkangala | C198: MP MPUMALANGA
B199: MP321 Thaba Chweu | C199: MP MPUMALANGA
B200: MP324 Nkomazi | C200: MP MPUMALANGA
... 87 more rows

Sheet Org structure
A1: Organisational Structure Votes | C1: Organisational Structure Sub-Votes | E1: Display Sub-Votes
A2: =B2&" - "&C2 -> Vote 01 - Council & Committees | B2: Vote 01 | C2: Council & Committees
A3: =B10&" - "&C10 -> Vote 02 - Finance & Administration | B3: 01.1 | C3: Speaker's Office | D3: =CONCATENATE(B3, " - ", C3) -> 01.1 - Speaker's Office | E3: 01.1 - Speaker's Office
A4: =B25&" - "&C25 -> Vote 03 - Planning & Development | B4: 01.2 | C4: Mayoral Office | D4: 01.2 - Mayoral Office | E4: 01.2 - Mayoral Office
A5: =B30&" - "&C30 -> Vote 04 - Health | B5: 01.3 | C5: Office Of The Municipal Manager | D5: 01.3 - Office Of The Municipal Manager | E5: 01.3 - Office Of The Municipal Manager
A6: =B32&" - "&C32 -> Vote 05 - Community & Social Services | B6: 01.4 | C6: Office Of The Executive Mayor | D6: 01.4 - Office Of The Executive Mayor | E6: 01.4 - Office Of The Executive Mayor
A7: =B34&" - "&C34 -> Vote 06 - Housing | B7: 01.5 | C7: Internal Audit | D7: 01.5 - Internal Audit | E7: 01.5 - Internal Audit
A8: =B37&" - "&C37 -> Vote 07 - Public Safety | B8: 01.6 | C8: Office Of The Chief Operating Officer | D8: 01.6 - Office Of The Chief Operating Officer | E8: 01.6 - Office Of The Chief Operating Officer
A9: =B40&" - "&C40 -> Vote 08 - Sports & Recreation | B9: 01.7 | C9: Legal Services | D9: 01.7 - Legal Services | E9: 01.7 - Legal Services
A10: =B42&" - "&C42 -> Vote 09 - Environmental | B10: Vote 02 | C10: Finance & Administration
A11: =B44&" - "&C44 -> Vote 10 - Roads | B11: 02.1 | C11: Budget And Reporting Office | D11: =CONCATENATE(B11, " - ", C11) -> 02.1 - Budget And Reporting Office | E11: 02.1 - Budget And Reporting Office
A12: =B47&" - "&C47 -> Vote 11 - Water | B12: 02.2 | C12: Budget And Reporting Office | D12: 02.2 - Budget And Reporting Office | E12: 02.2 - Budget And Reporting Office
A13: =B56&" - "&C56 -> Vote 12 - Tourism | B13: 02.3 | C13: Human Resources | D13: 02.3 - Human Resources | E13: 02.3 - Human Resources
A14: =B58&" - "&C58 -> Vote 13 - Development Agency | B14: 02.4 | C14: Procurement And Asset Management | D14: 02.4 - Procurement And Asset Management | E14: 02.4 - Procurement And Asset Management
A15: =B60&" - "&C60 -> Vote 14 - | B15: 02.5 | C15: Information Technology | D15: 02.5 - Information Technology | E15: 02.5 - Information Technology
A16: =B61&" - "&C61 -> Vote 15 - Other | B16: 02.6 | C16: Municipal Records And Auxiliary Services | D16: 02.6 - Municipal Records And Auxiliary Services | E16: 02.6 - Municipal Records And Auxiliary Services
B17: 02.7 | C17: Geographical Information Systems | D17: 02.7 - Geographical Information Systems | E17: 02.7 - Geographical Information Systems
B18: 02.8 | C18: Security Services & Municipal Keypoints | D18: 02.8 - Security Services & Municipal Keypoints | E18: 02.8 - Security Services & Municipal Keypoints
B19: 02.9 | C19: Treasury And Revenue | D19: 02.9 - Treasury And Revenue | E19: 02.9 - Treasury And Revenue
B20: 02.10 | C20: Treasury And Revenue | D20: 02.10 - Treasury And Revenue | E20: 02.10 - Treasury And Revenue
B21: 02.11 | C21: Budget And Reporting | D21: 02.11 - Budget And Reporting | E21: 02.11 - Budget And Reporting
B22: 02.12 | C22: Budget And Reporting | D22: 02.12 - Budget And Reporting | E22: 02.12 - Budget And Reporting
B23: 02.13 | C23: Accounting Services | D23: 02.13 - Accounting Services | E23: 02.13 - Accounting Services
B24: 02.14 | C24: Wsa Finance | D24: 02.14 - Wsa Finance | E24: 02.14 - Wsa Finance
B25: Vote 03 | C25: Planning & Development
B26: 03.1 | C26: Economic Development | D26: =CONCATENATE(B26, " - ", C26) -> 03.1 - Economic Development | E26: 03.1 - Economic Development
B27: 03.2 | C27: Survey And Planning | D27: =CONCATENATE(B27, " - ", C27) -> 03.2 - Survey And Planning | E27: 03.2 - Survey And Planning
B28: 03.3 | C28: Ntinga Development Agency | D28: =CONCATENATE(B28, " - ", C28) -> 03.3 - Ntinga Development Agency | E28: 03.3 - Ntinga Development Agency
B29: 03.4 | C29: Socio-Economic Development Facilitation | D29: =CONCATENATE(B29, " - ", C29) -> 03.4 - Socio-Economic Development Facilitation | E29: 03.4 - Socio-Economic Development Facilitation
B30: Vote 04 | C30: Health
B31: 04.1 | C31: Municipal Health | D31: =CONCATENATE(B31, " - ", C31) -> 04.1 - Municipal Health | E31: 04.1 - Municipal Health
B32: Vote 05 | C32: Community & Social Services
B33: 05.1 | C33: Social Development And Community Safety | D33: =CONCATENATE(B33, " - ", C33) -> 05.1 - Social Development And Community Safety | E33: 05.1 - Social Development And Community Safety
B34: Vote 06 | C34: Housing
B35: 06.1 | C35: Housing Settlement | D35: =CONCATENATE(B35, " - ", C35) -> 06.1 - Housing Settlement | E35: 06.1 - Housing Settlement
B36: 06.2 | C36: Building And Technology | D36: =CONCATENATE(B36, " - ", C36) -> 06.2 - Building And Technology | E36: 06.2 - Building And Technology
B37: Vote 07 | C37: Public Safety
B38: 07.1 | C38: Disaster Management | D38: =CONCATENATE(B38, " - ", C38) -> 07.1 - Disaster Management | E38: 07.1 - Disaster Management
B39: 07.2 | C39: Fire; Rescue And Emergency | D39: =CONCATENATE(B39, " - ", C39) -> 07.2 - Fire; Rescue And Emergency | E39: 07.2 - Fire; Rescue And Emergency
B40: Vote 08 | C40: Sports & Recreation
B41: 08.1 | C41: Arts; Sports And Culture | D41: =CONCATENATE(B41, " - ", C41) -> 08.1 - Arts; Sports And Culture | E41: 08.1 - Arts; Sports And Culture
B42: Vote 09 | C42: Environmental
B43: 09.1 | C43: Environmental Management | D43: =CONCATENATE(B43, " - ", C43) -> 09.1 - Environmental Management | E43: 09.1 - Environmental Management
B44: Vote 10 | C44: Roads
B45: 10.1 | C45: Planner Transport Planning | D45: =CONCATENATE(B45, " - ", C45) -> 10.1 - Planner Transport Planning | E45: 10.1 - Planner Transport Planning
B46: 10.2 | C46: Public Works | D46: =CONCATENATE(B46, " - ", C46) -> 10.2 - Public Works | E46: 10.2 - Public Works
B47: Vote 11 | C47: Water
B48: 11.1 | C48: Wsa Planning | D48: =CONCATENATE(B48, " - ", C48) -> 11.1 - Wsa Planning | E48: 11.1 - Wsa Planning
B49: 11.2 | C49: Wsa Monit. Env. Municipal Health Service | D49: 11.2 - Wsa Monit. Env. Municipal Health Service | E49: 11.2 - Wsa Monit. Env. Municipal Health Service
B50: 11.3 | C50: Wsu1 | D50: 11.3 - Wsu1 | E50: 11.3 - Wsu1
B51: 11.4 | C51: Wsu2 | D51: 11.4 - Wsu2 | E51: 11.4 - Wsu2
B52: 11.5 | C52: Wsu3 | D52: 11.5 - Wsu3 | E52: 11.5 - Wsu3
B53: 11.6 | C53: Wsu4 | D53: 11.6 - Wsu4 | E53: 11.6 - Wsu4
B54: 11.7 | C54: Wsa Communication Customer Relations | D54: 11.7 - Wsa Communication Customer Relations | E54: 11.7 - Wsa Communication Customer Relations
B55: 11.8 | C55: Wsa Capex Services | D55: 11.8 - Wsa Capex Services | E55: 11.8 - Wsa Capex Services
B56: Vote 12 | C56: Tourism
B57: 12.1 | C57: Tourism | D57: =CONCATENATE(B57, " - ", C57) -> 12.1 - Tourism | E57: 12.1 - Tourism
B58: Vote 13 | C58: Development Agency
B59: 13.1 | C59: Ntinga Development Agency | D59: =CONCATENATE(B59, " - ", C59) -> 13.1 - Ntinga Development Agency | E59: 13.1 - Ntinga Development Agency
B60: Vote 14
B61: Vote 15 | C61: Other

Sheet Contacts
A1: =muni&" - "&" Contact Information" -> DC15 O .R. Tambo - Contact Information
A3: A. GENERAL INFORMATION
A4: Municipality | B4: =muni -> DC15 O .R. Tambo | C4: =IF(B4="Choose name from List","Set name on 'Instructions' sheet", "") -> 
A6: Grade | B6: 5 | C6: 1 Grade in terms of the Remuneration of Public Office Bearers Act.
A8: Province | B8: =IF(B4>" ",VLOOKUP(B4,'Lookup and lists'!B29:C307,2, FALSE)," ") -> EC EASTERN CAPE
A10: Web Address | B10: ortambodm,gov.za
A12: e-mail Address
A14: B. CONTACT INFORMATION
A15: Postal address:
A16: P.O. Box | B16: 6043
A17: City / Town | B17: MTHATHA
A18: Postal Code | B18: 5100
A20: Street address
A21: Building | B21: OR TAMBO HOUSE
A22: Street No. & Name | B22: NELSON MANDELA DRIVE
A23: City / Town | B23: MTHATHA
A24: Postal Code | B24: 51000
A26: General Contacts
A27: Telephone number | B27: 047501656400
A28: Fax number | B28: 047 532 6518
A30: C. POLITICAL LEADERSHIP
A31: Speaker: | C31: Secretary/PA to the Speaker:
A32: ID Number | B32: 7104235784082 | C32: ID Number | D32: 840815 56271 089
A33: Title | B33: Mr | C33: Title | D33: Mr
A34: Name | B34: XOLILIE NKOMPELA | C34: Name | D34: SINDILE STOYILE
A35: Telephone number | B35: 047 501 7001 | C35: Telephone number | D35: 047 501 7001
A36: Cell number | B36: 076 062 8714 | C36: Cell number
A37: Fax number | C37: Fax number
A38: E-mail address | C38: E-mail address
A40: Mayor/Executive Mayor: | C40: Secretary/PA to the Mayor/Executive Mayor:
A41: ID Number | B41: 6304190877084 | C41: ID Number | D41: 8802060854081
A42: Title | B42: Ms | C42: Title | D42: Ms
A43: Name | B43: THOKOZILE SOKHANYILE | C43: Name | D43: SINALO MPAYIPHELI
A44: Telephone number | B44: 0475016451 | C44: Telephone number | D44: 0475011761
A45: Cell number | B45: 0828563796 | C45: Cell number | D45: 0739914715
A46: Fax number | C46: Fax number
A47: E-mail address | B47: sokanyilet@gmail.com | C47: E-mail address | D47: sinalo.mpayipheli@gmail.com
A49: Deputy Mayor/Executive Mayor: | C49: Secretary/PA to the Deputy Mayor/Executive Mayor:
A50: ID Number | B50: 560801 5673 085 | C50: ID Number | D50: 890215 1208 088
A51: Title | B51: Mr | C51: Title | D51: Ms
A52: Name | B52: ROBERT NOGUMLA | C52: Name | D52: XOLISWA MENE
A53: Telephone number | B53: 0475016428 | C53: Telephone number
A54: Cell number | C54: Cell number | D54: 072 339 1721
A55: Fax number | C55: Fax number
A56: E-mail address | C56: E-mail address
A58: D. MANAGEMENT LEADERSHIP
A59: Municipal Manager: | C59: Secretary/PA to the Municipal Manager:
A60: ID Number | B60: 640204 5063 080 | C60: ID Number | D60: 930714 0866 088
A61: Title | B61: Mr | C61: Title | D61: Ms
A62: Name | B62: OWEN HLAZO | C62: Name | D62: MONGIKAZI MPAYIPHELI
A63: Telephone number | B63: 047 501 6404 | C63: Telephone number | D63: 047 501 6407
A64: Cell number | B64: 082 559 9536 | C64: Cell number
A65: Fax number | C65: Fax number
A66: E-mail address | B66: owenhlazo@yahoo.com | C66: E-mail address | D66: mongikazim@ortambodm.gov.za
A68: Chief Financial Officer | C68: Secretary/PA to the Chief Financial Officer
A69: ID Number | B69: 660103 6043 080 | C69: ID Number | D69: 800410 0494 081
A70: Title | B70: Mr | C70: Title | D70: Ms
A71: Name | B71: MOABI MOLEKO | C71: Name | D71: SIYANDA NDUKWANA
A72: Telephone number | B72: 047 501 6447 | C72: Telephone number | D72: 047 501 6447
A73: Cell number | B73: 083 761 0195 | C73: Cell number | D73: 072 132 8257
A74: Fax number | C74: Fax number
A75: E-mail address | B75: taum46@gmail.com | C75: E-mail address | D75: sb@galmail.co.za
A77: Official responsible for submitting financial information | C77: Official responsible for submitting financial information
A78: ID Number | B78: 740703 5289 081 | C78: ID Number | D78: 8606095800088
A79: Title | B79: Mr | C79: Title | D79: Mr
A80: Name | B80: SIPHO QEGU | C80: Name | D80: Vuyolwethu Bisha
A81: Telephone number | B81: 047 501 6546 | C81: Telephone number | D81: 047 501 6522
A82: Cell number | B82: 082 938 5775 | C82: Cell number
A83: Fax number | C83: Fax number
A84: E-mail address | B84: sipho10@hotmail.com | C84: E-mail address | D84: vuyolwethubisha@gmail.com
A85: Official responsible for submitting financial information | C85: Official responsible for submitting financial information
A86: ID Number | C86: ID Number
A87: Title | C87: Title
A88: Name | C88: Name
A89: Telephone number | C89: Telephone number
A90: Cell number | C90: Cell number
A91: Fax number | C91: Fax number
A92: E-mail address | C92: E-mail address
A93: Official responsible for submitting financial information | C93: Official responsible for submitting financial information
A94: ID Number | C94: ID Number
A95: Title | C95: Title
A96: Name | C96: Name
A97: Telephone number | C97: Telephone number
A98: Cell number | C98: Cell number
A99: Fax number | C99: Fax number
A100: E-mail address | C100: E-mail address
A101: Official responsible for submitting financial information | C101: Official responsible for submitting financial information
A102: ID Number | C102: ID Number
A103: Title | C103: Title
A104: Name | C104: Name
A105: Telephone number | C105: Telephone number
A106: Cell number | C106: Cell number
A107: Fax number | C107: Fax number
A108: E-mail address | C108: E-mail address
A109: Official responsible for submitting financial information | C109: Official responsible for submitting financial information
A110: ID Number | C110: ID Number
A111: Title | C111: Title
A112: Name | C112: Name
A113: Telephone number | C113: Telephone number
A114: Cell number | C114: Cell number
A115: Fax number | C115: Fax number
A116: E-mail address | C116: E-mail address
A117: Official responsible for submitting financial information | C117: Official responsible for submitting financial information
A118: ID Number | C118: ID Number
A119: Title | C119: Title
A120: Name | C120: Name
A121: Telephone number | C121: Telephone number
A122: Cell number | C122: Cell number
A123: Fax number | C123: Fax number
A124: E-mail address | C124: E-mail address
A125: Official responsible for submitting financial information | C125: Official responsible for submitting financial information
A126: ID Number | C126: ID Number
A127: Title | C127: Title
A128: Name | C128: Name
A129: Telephone number | C129: Telephone number
A130: Cell number | C130: Cell number
A131: Fax number | C131: Fax number
A132: E-mail address | C132: E-mail address
A133: Official responsible for submitting financial information
A134: ID Number
A135: Title
A136: Name
A137: Telephone number
A138: Cell number
A139: Fax number
A140: E-mail address

Sheet A1-Sum
A1: =muni&" - "&Approve1 -> DC15 O .R. Tambo - Table A1 Consolidated Budget Summary
A2: =desc -> Description | B2: =head1b -> 2016/17 | C2: =head1A -> 2017/18 | D2: =Head1 -> 2018/19 | E2: =Head2 -> Current Year 2019/20 | I2: =Head3 -> 2020/21 Medium Term Revenue & Expenditure Framework
A3: R thousands | B3: =Head5 -> Audited Outcome | C3: =Head5 -> Audited Outcome | D3: =Head5 -> Audited Outcome | E3: =Head6 -> Original Budget | F3: =Head7 -> Adjusted Budget | G3: =Head8 -> Full Year Forecast | H3: =Head5b -> Pre-audit outcome | I3: =Head9 -> Budget Year 2020/21 | J3: =Head10 -> Budget Year +1 2021/22 | K3: =Head11 -> Budget Year +2 2022/23
A4: Financial Performance
A5: Property rates | B5: ='A4-FinPerf RE'!C5 -> 0 | C5: ='A4-FinPerf RE'!D5 -> 0 | D5: ='A4-FinPerf RE'!E5 -> 0 | E5: ='A4-FinPerf RE'!F5 -> 0 | F5: ='A4-FinPerf RE'!G5 -> 0 | G5: ='A4-FinPerf RE'!H5 -> 0 | H5: ='A4-FinPerf RE'!I5 -> 0 | I5: ='A4-FinPerf RE'!J5 -> 0 | J5: ='A4-FinPerf RE'!K5 -> 0 | K5: ='A4-FinPerf RE'!L5 -> 0
A6: Service charges | B6: =SUM('A4-FinPerf RE'!C6:C9) -> 206822345 | C6: =SUM('A4-FinPerf RE'!D6:D9) -> 230269381 | D6: =SUM('A4-FinPerf RE'!E6:E9) -> 246651581.8 | E6: =SUM('A4-FinPerf RE'!F6:F9) -> 307474028 | F6: =SUM('A4-FinPerf RE'!G6:G9) -> 340974028 | G6: =SUM('A4-FinPerf RE'!H6:H9) -> 340974028 | H6: =SUM('A4-FinPerf RE'!I6:I9) -> 225392584.5 | I6: =SUM('A4-FinPerf RE'!J6:J9) -> 367302470 | J6: =SUM('A4-FinPerf RE'!K6:K9) -> 368384618 | K6: =SUM('A4-FinPerf RE'!L6:L9) -> 390489695
A7: Investment revenue | B7: ='A4-FinPerf RE'!C12 -> 39503639 | C7: ='A4-FinPerf RE'!D12 -> 52465123 | D7: ='A4-FinPerf RE'!E12 -> 41483463 | E7: ='A4-FinPerf RE'!F12 -> 36882200 | F7: ='A4-FinPerf RE'!G12 -> 23882200 | G7: ='A4-FinPerf RE'!H12 -> 23882200 | H7: ='A4-FinPerf RE'!I12 -> 22753738.77 | I7: ='A4-FinPerf RE'!J12 -> 29515576 | J7: ='A4-FinPerf RE'!K12 -> 38899639 | K7: ='A4-FinPerf RE'!L12 -> 40689023
A8: Transfers recognised - operational | B8: ='A4-FinPerf RE'!C18 -> 648400220 | C8: ='A4-FinPerf RE'!D18 -> 728676577 | D8: ='A4-FinPerf RE'!E18 -> 793811821 | E8: ='A4-FinPerf RE'!F18 -> 863952000 | F8: ='A4-FinPerf RE'!G18 -> 900944560 | G8: ='A4-FinPerf RE'!H18 -> 900944560 | H8: ='A4-FinPerf RE'!I18 -> 842731747.7 | I8: ='A4-FinPerf RE'!J18 -> 976036181 | J8: ='A4-FinPerf RE'!K18 -> 1036542466 | K8: ='A4-FinPerf RE'!L18 -> 1104844272
A9: Other own revenue | B9: ='A4-FinPerf RE'!C11+'A4-FinPerf RE'!C13+'A4-FinPerf RE'!C14+'A4-FinPerf RE'!C15+'A4-FinPerf RE'!C16+'A4-FinPerf RE'!C17+'A4-FinPerf RE'!C19+'A4-FinPerf RE'!C20 -> 184868591 | C9: ='A4-FinPerf RE'!D11+'A4-FinPerf RE'!D13+'A4-FinPerf RE'!D14+'A4-FinPerf RE'!D15+'A4-FinPerf RE'!D16+'A4-FinPerf RE'!D17+'A4-FinPerf RE'!D19+'A4-FinPerf RE'!D20 -> 73129025 | D9: ='A4-FinPerf RE'!E11+'A4-FinPerf RE'!E13+'A4-FinPerf RE'!E14+'A4-FinPerf RE'!E15+'A4-FinPerf RE'!E16+'A4-FinPerf RE'!E17+'A4-FinPerf RE'!E19+'A4-FinPerf RE'!E20 -> 61000283 | E9: ='A4-FinPerf RE'!F11+'A4-FinPerf RE'!F13+'A4-FinPerf RE'!F14+'A4-FinPerf RE'!F15+'A4-FinPerf RE'!F16+'A4-FinPerf RE'!F17+'A4-FinPerf RE'!F19+'A4-FinPerf RE'!F20 -> 291603206 | F9: ='A4-FinPerf RE'!G11+'A4-FinPerf RE'!G13+'A4-FinPerf RE'!G14+'A4-FinPerf RE'!G15+'A4-FinPerf RE'!G16+'A4-FinPerf RE'!G17+'A4-FinPerf RE'!G19+'A4-FinPerf RE'!G20 -> 356838414 | G9: ='A4-FinPerf RE'!H11+'A4-FinPerf RE'!H13+'A4-FinPerf RE'!H14+'A4-FinPerf RE'!H15+'A4-FinPerf RE'!H16+'A4-FinPerf RE'!H17+'A4-FinPerf RE'!H19+'A4-FinPerf RE'!H20 -> 356838414 | H9: ='A4-FinPerf RE'!I11+'A4-FinPerf RE'!I13+'A4-FinPerf RE'!I14+'A4-FinPerf RE'!I15+'A4-FinPerf RE'!I16+'A4-FinPerf RE'!I17+'A4-FinPerf RE'!I19+'A4-FinPerf RE'!I20 -> 22700451.99 | I9: ='A4-FinPerf RE'!J11+'A4-FinPerf RE'!J13+'A4-FinPerf RE'!J14+'A4-FinPerf RE'!J15+'A4-FinPerf RE'!J16+'A4-FinPerf RE'!J17+'A4-FinPerf RE'!J19+'A4-FinPerf RE'!J20 -> 375953280 | J9: ='A4-FinPerf RE'!K11+'A4-FinPerf RE'!K13+'A4-FinPerf RE'!K14+'A4-FinPerf RE'!K15+'A4-FinPerf RE'!K16+'A4-FinPerf RE'!K17+'A4-FinPerf RE'!K19+'A4-FinPerf RE'!K20 -> 347733290 | K9: ='A4-FinPerf RE'!L11+'A4-FinPerf RE'!L13+'A4-FinPerf RE'!L14+'A4-FinPerf RE'!L15+'A4-FinPerf RE'!L16+'A4-FinPerf RE'!L17+'A4-FinPerf RE'!L19+'A4-FinPerf RE'!L20 -> 332319311
A10: ='A4-FinPerf RE'!A21 -> Total Revenue (excluding capital transfers and contributions) | B10: =SUM(B5:B9) -> 1079594795 | C10: 1084540106 | D10: 1142947149 | E10: 1499911434 | F10: 1622639202 | G10: 1622639202 | H10: 1113578523 | I10: 1748807507 | J10: 1791560013 | K10: 1868342301
A11: Employee costs | B11: ='A4-FinPerf RE'!C24 -> 436330870 | C11: ='A4-FinPerf RE'!D24 -> 545660194.5 | D11: ='A4-FinPerf RE'!E24 -> 580576128.8 | E11: ='A4-FinPerf RE'!F24 -> 579709959 | F11: ='A4-FinPerf RE'!G24 -> 624867280 | G11: ='A4-FinPerf RE'!H24 -> 624867280 | H11: ='A4-FinPerf RE'!I24 -> 520522197.4 | I11: ='A4-FinPerf RE'!J24 -> 680160045 | J11: ='A4-FinPerf RE'!K24 -> 720651764 | K11: ='A4-FinPerf RE'!L24 -> 765566273
A12: Remuneration of councillors | B12: ='A4-FinPerf RE'!C25 -> 17749620 | C12: ='A4-FinPerf RE'!D25 -> 20304599 | D12: ='A4-FinPerf RE'!E25 -> 23714415 | E12: ='A4-FinPerf RE'!F25 -> 22659098 | F12: ='A4-FinPerf RE'!G25 -> 22659098 | G12: ='A4-FinPerf RE'!H25 -> 22659098 | H12: ='A4-FinPerf RE'!I25 -> 15900351.45 | I12: ='A4-FinPerf RE'!J25 -> 24075294 | J12: ='A4-FinPerf RE'!K25 -> 25579999 | K12: ='A4-FinPerf RE'!L25 -> 27178747
A13: Depreciation & asset impairment | B13: ='A4-FinPerf RE'!C27 -> 164455907 | C13: ='A4-FinPerf RE'!D27 -> 189380733 | D13: ='A4-FinPerf RE'!E27 -> 196525406 | E13: ='A4-FinPerf RE'!F27 -> 165748000 | F13: ='A4-FinPerf RE'!G27 -> 241121946 | G13: ='A4-FinPerf RE'!H27 -> 241121946 | H13: ='A4-FinPerf RE'!I27 -> 0 | I13: ='A4-FinPerf RE'!J27 -> 176963581 | J13: ='A4-FinPerf RE'!K27 -> 185858322 | K13: ='A4-FinPerf RE'!L27 -> 194022428
A14: Finance charges | B14: ='A4-FinPerf RE'!C28 -> 12769623 | C14: ='A4-FinPerf RE'!D28 -> 9151978 | D14: ='A4-FinPerf RE'!E28 -> 9355557 | E14: ='A4-FinPerf RE'!F28 -> 0 | F14: ='A4-FinPerf RE'!G28 -> 0 | G14: ='A4-FinPerf RE'!H28 -> 0 | H14: ='A4-FinPerf RE'!I28 -> 122365.66 | I14: ='A4-FinPerf RE'!J28 -> 0 | J14: ='A4-FinPerf RE'!K28 -> 0 | K14: ='A4-FinPerf RE'!L28 -> 0
A15: Materials and bulk purchases | B15: ='A4-FinPerf RE'!C29+'A4-FinPerf RE'!C30 -> 42406949 | C15: ='A4-FinPerf RE'!D29+'A4-FinPerf RE'!D30 -> 86246413 | D15: ='A4-FinPerf RE'!E29+'A4-FinPerf RE'!E30 -> 74571814 | E15: ='A4-FinPerf RE'!F29+'A4-FinPerf RE'!F30 -> 65903782 | F15: ='A4-FinPerf RE'!G29+'A4-FinPerf RE'!G30 -> 90462212 | G15: ='A4-FinPerf RE'!H29+'A4-FinPerf RE'!H30 -> 90462212 | H15: ='A4-FinPerf RE'!I29+'A4-FinPerf RE'!I30 -> 24672300.21 | I15: ='A4-FinPerf RE'!J29+'A4-FinPerf RE'!J30 -> 74407068 | J15: ='A4-FinPerf RE'!K29+'A4-FinPerf RE'!K30 -> 80451315 | K15: ='A4-FinPerf RE'!L29+'A4-FinPerf RE'!L30 -> 86130404
A16: Transfers and grants | B16: ='A4-FinPerf RE'!C32 -> 112119877 | C16: ='A4-FinPerf RE'!D32 -> 66107346.52 | D16: ='A4-FinPerf RE'!E32 -> 92458694.33 | E16: ='A4-FinPerf RE'!F32 -> 71524657 | F16: ='A4-FinPerf RE'!G32 -> 87523211 | G16: ='A4-FinPerf RE'!H32 -> 87523211 | H16: ='A4-FinPerf RE'!I32 -> 56275810.3 | I16: ='A4-FinPerf RE'!J32 -> 97304786 | J16: ='A4-FinPerf RE'!K32 -> 91060295 | K16: ='A4-FinPerf RE'!L32 -> 93760687
A17: Other expenditure | B17: ='A4-FinPerf RE'!C26+'A4-FinPerf RE'!C31+'A4-FinPerf RE'!C33+'A4-FinPerf RE'!C34 -> 602411401 | C17: ='A4-FinPerf RE'!D26+'A4-FinPerf RE'!D31+'A4-FinPerf RE'!D33+'A4-FinPerf RE'!D34 -> 653472576 | D17: ='A4-FinPerf RE'!E26+'A4-FinPerf RE'!E31+'A4-FinPerf RE'!E33+'A4-FinPerf RE'!E34 -> 705130750.8 | E17: ='A4-FinPerf RE'!F26+'A4-FinPerf RE'!F31+'A4-FinPerf RE'!F33+'A4-FinPerf RE'!F34 -> 527698232 | F17: ='A4-FinPerf RE'!G26+'A4-FinPerf RE'!G31+'A4-FinPerf RE'!G33+'A4-FinPerf RE'!G34 -> 592932675 | G17: ='A4-FinPerf RE'!H26+'A4-FinPerf RE'!H31+'A4-FinPerf RE'!H33+'A4-FinPerf RE'!H34 -> 592932675 | H17: ='A4-FinPerf RE'!I26+'A4-FinPerf RE'!I31+'A4-FinPerf RE'!I33+'A4-FinPerf RE'!I34 -> 294921184.6 | I17: ='A4-FinPerf RE'!J26+'A4-FinPerf RE'!J31+'A4-FinPerf RE'!J33+'A4-FinPerf RE'!J34 -> 653490469 | J17: ='A4-FinPerf RE'!K26+'A4-FinPerf RE'!K31+'A4-FinPerf RE'!K33+'A4-FinPerf RE'!K34 -> 688903124 | K17: ='A4-FinPerf RE'!L26+'A4-FinPerf RE'!L31+'A4-FinPerf RE'!L33+'A4-FinPerf RE'!L34 -> 697348722
A18: ='A4-FinPerf RE'!A35 -> Total Expenditure | B18: =SUM(B11:B17) -> 1388244247 | C18: =SUM(C11:C17) -> 1570323840 | D18: 1682332766 | E18: 1433243728 | F18: 1659566422 | G18: 1659566422 | H18: 912414209.6 | I18: 1706401243 | J18: 1792504819 | K18: 1864007261
A19: ='A4-FinPerf RE'!A37 -> Surplus/(Deficit) | B19: =B10-B18 -> -308649452 | C19: -485783734 | D19: -539385617.1 | E19: 66667706 | F19: -36927220 | G19: -36927220 | H19: 201164313.4 | I19: 42406264 | J19: -944806 | K19: 4335040
A20: ='A4-FinPerf RE'!A38 -> Transfers and subsidies - capital (monetary allocations) (National / Provincial and District) | B20: ='A4-FinPerf RE'!C38 -> 780648829 | C20: ='A4-FinPerf RE'!D38 -> 1021322104 | D20: ='A4-FinPerf RE'!E38 -> 1089864335 | E20: ='A4-FinPerf RE'!F38 -> 982905000 | F20: ='A4-FinPerf RE'!G38 -> 1149755730 | G20: ='A4-FinPerf RE'!H38 -> 1149755730 | H20: ='A4-FinPerf RE'!I38 -> 15065078.46 | I20: ='A4-FinPerf RE'!J38 -> 891519000 | J20: ='A4-FinPerf RE'!K38 -> 882465000 | K20: ='A4-FinPerf RE'!L38 -> 988437000
A21: ='A4-FinPerf RE'!A39&" & "&'A4-FinPerf RE'!A40 -> Transfers and subsidies - capital (monetary allocations) (National / Provincial Departmental Agencies, Households, Non-profit Institutions, Private Enterprises, Public Corporatons, Higher Educational Institutions) & Transfers and subsidies - capital (in-kind - all) | B21: ='A4-FinPerf RE'!C39+'A4-FinPerf RE'!C40 -> 0 | C21: ='A4-FinPerf RE'!D39+'A4-FinPerf RE'!D40 -> 0 | D21: ='A4-FinPerf RE'!E39+'A4-FinPerf RE'!E40 -> 0 | E21: ='A4-FinPerf RE'!F39+'A4-FinPerf RE'!F40 -> 0 | F21: ='A4-FinPerf RE'!G39+'A4-FinPerf RE'!G40 -> 0 | G21: ='A4-FinPerf RE'!H39+'A4-FinPerf RE'!H40 -> 0 | H21: ='A4-FinPerf RE'!I39+'A4-FinPerf RE'!I40 -> 0 | I21: ='A4-FinPerf RE'!J39+'A4-FinPerf RE'!J40 -> 0 | J21: ='A4-FinPerf RE'!K39+'A4-FinPerf RE'!K40 -> 0 | K21: ='A4-FinPerf RE'!L39+'A4-FinPerf RE'!L40 -> 0
A22: ='A4-FinPerf RE'!A41 -> Surplus/(Deficit) after capital transfers & contributions | B22: =B19+SUM(B20:B21) -> 471999377 | C22: =C19+SUM(C20:C21) -> 535538370 | D22: 550478717.9 | E22: 1049572706 | F22: 1112828510 | G22: 1112828510 | H22: 216229391.8 | I22: 933925264 | J22: 881520194 | K22: 992772040
A23: ='A4-FinPerf RE'!A46 -> Share of surplus/ (deficit) of associate | B23: ='A4-FinPerf RE'!C46 -> 0 | C23: ='A4-FinPerf RE'!D46 -> 0 | D23: ='A4-FinPerf RE'!E46 -> 0 | E23: ='A4-FinPerf RE'!F46 -> 0 | F23: ='A4-FinPerf RE'!G46 -> 0 | G23: ='A4-FinPerf RE'!H46 -> 0 | H23: ='A4-FinPerf RE'!I46 -> 0 | I23: ='A4-FinPerf RE'!J46 -> 0 | J23: ='A4-FinPerf RE'!K46 -> 0 | K23: ='A4-FinPerf RE'!L46 -> 0
A24: ='A4-FinPerf RE'!A47 -> Surplus/(Deficit) for the year | B24: =B22+B23 -> 471999377 | C24: =C22+C23 -> 535538370 | D24: 550478717.9 | E24: 1049572706 | F24: 1112828510 | G24: 1112828510 | H24: 216229391.8 | I24: 933925264 | J24: 881520194 | K24: 992772040
A26: Capital expenditure & funds sources
A27: Capital expenditure | B27: ='A5-Capex'!C63 -> 810395059 | C27: ='A5-Capex'!D63 -> 779295709 | D27: ='A5-Capex'!E63 -> 875178512 | E27: ='A5-Capex'!F63 -> 1123227534 | F27: ='A5-Capex'!G63 -> 1351709411 | G27: ='A5-Capex'!H63 -> 1351709411 | H27: ='A5-Capex'!I63 -> 523157567.8 | I27: ='A5-Capex'!J63 -> 1044807053 | J27: ='A5-Capex'!K63 -> 978659832 | K27: ='A5-Capex'!L63 -> 1060649435
A28: Transfers recognised - capital | B28: ='A5-Capex'!C70 -> 809271875 | C28: ='A5-Capex'!D70 -> 731779794 | D28: ='A5-Capex'!E70 -> 862537145 | E28: ='A5-Capex'!F70 -> 982905001 | F28: ='A5-Capex'!G70 -> 1219465772 | G28: ='A5-Capex'!H70 -> 1219465772 | H28: ='A5-Capex'!I70 -> 471255319.9 | I28: ='A5-Capex'!J70 -> 920415000 | J28: ='A5-Capex'!K70 -> 889298000 | K28: ='A5-Capex'!L70 -> 995289800
A30: ='A5-Capex'!A72 -> Borrowing | B30: ='A5-Capex'!C72 -> 0 | C30: ='A5-Capex'!D72 -> 0 | D30: ='A5-Capex'!E72 -> 0 | E30: ='A5-Capex'!F72 -> 0 | F30: ='A5-Capex'!G72 -> 0 | G30: ='A5-Capex'!H72 -> 0 | H30: ='A5-Capex'!I72 -> 0 | I30: ='A5-Capex'!J72 -> 0 | J30: ='A5-Capex'!K72 -> 0 | K30: ='A5-Capex'!L72 -> 0
A31: ='A5-Capex'!A73 -> Internally generated funds | B31: ='A5-Capex'!C73 -> 1123184 | C31: ='A5-Capex'!D73 -> 47515915 | D31: ='A5-Capex'!E73 -> 12641367 | E31: ='A5-Capex'!F73 -> 140322533 | F31: ='A5-Capex'!G73 -> 132243639 | G31: ='A5-Capex'!H73 -> 132243639 | H31: ='A5-Capex'!I73 -> 51902247.86 | I31: ='A5-Capex'!J73 -> 124392053 | J31: ='A5-Capex'!K73 -> 89361832 | K31: ='A5-Capex'!L73 -> 65359635
A32: Total sources of capital funds | B32: =+B28+B30+B31 -> 810395059 | C32: =+C28+C30+C31 -> 779295709 | D32: 875178512 | E32: 1123227534 | F32: 1351709411 | G32: 1351709411 | H32: 523157567.8 | I32: 1044807053 | J32: 978659832 | K32: 1060649435
A34: Financial position
A35: ='A6-FinPos'!A12 -> Total current assets | B35: ='A6-FinPos'!C12 -> 455664716 | C35: ='A6-FinPos'!D12 -> 476240329.4 | D35: ='A6-FinPos'!E12 -> 549840998.5 | E35: ='A6-FinPos'!F12 -> 662789121.1 | F35: ='A6-FinPos'!G12 -> 430183968 | G35: ='A6-FinPos'!H12 -> 430183968 | H35: ='A6-FinPos'!I12 -> 494373992.2 | I35: ='A6-FinPos'!J12 -> 351700753.1 | J35: ='A6-FinPos'!K12 -> 525721839.1 | K35: ='A6-FinPos'!L12 -> 486326711.1
A36: ='A6-FinPos'!A24 -> Total non current assets | B36: ='A6-FinPos'!C24 -> 5376246196 | C36: ='A6-FinPos'!D24 -> 5988979371 | D36: ='A6-FinPos'!E24 -> 6533149258 | E36: ='A6-FinPos'!F24 -> 9718279264 | F36: ='A6-FinPos'!G24 -> 8510510621 | G36: ='A6-FinPos'!H24 -> 8510510621 | H36: ='A6-FinPos'!I24 -> 6965443624 | I36: ='A6-FinPos'!J24 -> 9133838404 | J36: ='A6-FinPos'!K24 -> 9794915856 | K36: ='A6-FinPos'!L24 -> 10273636980
A37: ='A6-FinPos'!A34 -> Total current liabilities | B37: ='A6-FinPos'!C34 -> 395321409 | C37: ='A6-FinPos'!D34 -> 467755382 | D37: ='A6-FinPos'!E34 -> 637370957 | E37: ='A6-FinPos'!F34 -> 282179826.5 | F37: ='A6-FinPos'!G34 -> 222368358 | G37: ='A6-FinPos'!H34 -> 222368358 | H37: ='A6-FinPos'!I34 -> 1085914039 | I37: ='A6-FinPos'!J34 -> 227260013 | J37: ='A6-FinPos'!K34 -> 461580728.1 | K37: ='A6-FinPos'!L34 -> 419299251.1
A38: ='A6-FinPos'!A39 -> Total non current liabilities | B38: ='A6-FinPos'!C39 -> 102837391 | C38: ='A6-FinPos'!D39 -> 87087052 | D38: ='A6-FinPos'!E39 -> 113540052 | E38: ='A6-FinPos'!F39 -> 40674534.08 | F38: ='A6-FinPos'!G39 -> 0 | G38: ='A6-FinPos'!H39 -> 0 | H38: ='A6-FinPos'!I39 -> 0 | I38: ='A6-FinPos'!J39 -> 0 | J38: ='A6-FinPos'!K39 -> 0 | K38: ='A6-FinPos'!L39 -> 0
A39: Community wealth/Equity | B39: ='A6-FinPos'!C48 -> 5350006140 | C39: ='A6-FinPos'!D48 -> 5903313468 | D39: ='A6-FinPos'!E48 -> 6458937889 | E39: ='A6-FinPos'!F48 -> 1.005821402e+10 | F39: ='A6-FinPos'!G48 -> 8718326231 | G39: ='A6-FinPos'!H48 -> 8718326231 | H39: ='A6-FinPos'!I48 -> 6373903577 | I39: ='A6-FinPos'!J48 -> 9258279145 | J39: ='A6-FinPos'!K48 -> 9859056967 | K39: ='A6-FinPos'!L48 -> 10340664440
A41: Cash flows
A42: Net cash from (used) operating | B42: ='A7-CFlow'!C17 -> 722803190 | C42: ='A7-CFlow'!D17 -> 738860534 | D42: ='A7-CFlow'!E17 -> 934630190 | E42: ='A7-CFlow'!F17 -> 1157972544 | F42: ='A7-CFlow'!G17 -> 1165217545 | G42: ='A7-CFlow'!H17 -> 1165217545 | H42: ='A7-CFlow'!I17 -> 1126201575 | I42: ='A7-CFlow'!J17 -> 1079508556 | J42: ='A7-CFlow'!K17 -> 995992797 | K42: ='A7-CFlow'!L17 -> 1076541415
A43: Net cash from (used) investing | B43: ='A7-CFlow'!C27 -> -800860959 | C43: ='A7-CFlow'!D27 -> -776725219 | D43: ='A7-CFlow'!E27 -> -872872769 | E43: ='A7-CFlow'!F27 -> -1107615533 | F43: ='A7-CFlow'!G27 -> -1281711263 | G43: ='A7-CFlow'!H27 -> -1281711263 | H43: ='A7-CFlow'!I27 -> -1281711263 | I43: ='A7-CFlow'!J27 -> -1044807053 | J43: ='A7-CFlow'!K27 -> -978659832 | K43: ='A7-CFlow'!L27 -> -1060649435
A44: Net cash from (used) financing | B44: ='A7-CFlow'!C36 -> -20434 | C44: ='A7-CFlow'!D36 -> -38795339 | D44: ='A7-CFlow'!E36 -> 0 | E44: ='A7-CFlow'!F36 -> 0 | F44: ='A7-CFlow'!G36 -> 0 | G44: ='A7-CFlow'!H36 -> 0 | H44: ='A7-CFlow'!I36 -> 0 | I44: ='A7-CFlow'!J36 -> -3745000 | J44: ='A7-CFlow'!K36 -> -4007150 | K44: ='A7-CFlow'!L36 -> -4187472
A45: =LEFT('A7-CFlow'!A40,37) -> Cash/cash equivalents at the year end | B45: ='A7-CFlow'!C40 -> 291314534 | C45: ='A7-CFlow'!D40 -> 214654510 | D45: ='A7-CFlow'!E40 -> 276411931 | E45: ='A7-CFlow'!F40 -> 234131272.4 | F45: ='A7-CFlow'!G40 -> 254833829 | G45: ='A7-CFlow'!H40 -> 254833829 | H45: ='A7-CFlow'!I40 -> 215817859 | I45: ='A7-CFlow'!J40 -> 246774362 | J45: ='A7-CFlow'!K40 -> 260100177 | K45: ='A7-CFlow'!L40 -> 271804685
A47: Cash backing/surplus reconciliation
A48: ='A8-ResRecon'!A4 -> Cash and investments available | B48: ='A8-ResRecon'!C8 -> 291314534 | C48: ='A8-ResRecon'!D8 -> 214654510 | D48: ='A8-ResRecon'!E8 -> 276411929 | E48: ='A8-ResRecon'!F8 -> 455518479.8 | F48: ='A8-ResRecon'!G8 -> 254833829 | G48: ='A8-ResRecon'!H8 -> 254833829 | H48: ='A8-ResRecon'!I8 -> 215817859 | I48: ='A8-ResRecon'!J8 -> 246774362 | J48: ='A8-ResRecon'!K8 -> 260100177 | K48: ='A8-ResRecon'!L8 -> 271804685
A49: ='A8-ResRecon'!A10 -> Application of cash and investments | B49: ='A8-ResRecon'!C18 -> 297698460 | C49: ='A8-ResRecon'!D18 -> 260259744 | D49: ='A8-ResRecon'!E18 -> 538094025 | E49: ='A8-ResRecon'!F18 -> -23902154.51 | F49: ='A8-ResRecon'!G18 -> -127734333.2 | G49: ='A8-ResRecon'!H18 -> -127734333.2 | H49: ='A8-ResRecon'!I18 -> 312224875.7 | I49: ='A8-ResRecon'!J18 -> -125554075.7 | J49: ='A8-ResRecon'!K18 -> 60585853.3 | K49: ='A8-ResRecon'!L18 -> 65471981.67
A50: Balance - surplus (shortfall) | B50: =B48-B49 -> -6383926 | C50: =C48-C49 -> -45605234 | D50: -261682096 | E50: 479420634.3 | F50: 382568162.2 | G50: 382568162.2 | H50: -96407016.71 | I50: 372328437.7 | J50: 199514323.7 | K50: 206332703.3
A52: Asset management
A53: Asset register summary (WDV) | B53: ='A9-Asset'!C165 -> 802234498 | C53: ='A9-Asset'!D165 -> 2910489141 | D53: ='A9-Asset'!E165 -> 4624109566 | E53: ='A9-Asset'!F165 -> 1123227534 | F53: ='A9-Asset'!G165 -> 8504831621 | G53: ='A9-Asset'!H165 -> 8504831621 | H53: ='A9-Asset'!H165 -> 8504831621 | I53: ='A9-Asset'!I165 -> 9133838404 | J53: ='A9-Asset'!J165 -> 9794915856 | K53: ='A9-Asset'!K165 -> 10273636980
A54: ='A9-Asset'!A168 -> Depreciation | B54: ='A9-Asset'!C168 -> 164455907 | C54: ='A9-Asset'!D168 -> 189380733 | D54: ='A9-Asset'!E168 -> 196525406 | E54: ='A9-Asset'!F168 -> 165748000 | F54: ='A9-Asset'!G168 -> 241121946 | G54: ='A9-Asset'!H168 -> 241121946 | H54: ='A9-Asset'!H168 -> 241121946 | I54: ='A9-Asset'!I168 -> 176963581 | J54: ='A9-Asset'!J168 -> 185858322 | K54: ='A9-Asset'!K168 -> 194022428
A55: Renewal and Upgrading of Existing Assets | B55: ='A9-Asset'!C37+'A9-Asset'!C69 -> 0 | C55: ='A9-Asset'!D37+'A9-Asset'!D69 -> 0 | D55: ='A9-Asset'!E37+'A9-Asset'!E69 -> 0 | E55: ='A9-Asset'!F37+'A9-Asset'!F69 -> 28181271 | F55: ='A9-Asset'!G37+'A9-Asset'!G69 -> 12935056 | G55: ='A9-Asset'!H37+'A9-Asset'!H69 -> 12935056 | H55: ='A9-Asset'!H37+'A9-Asset'!H69 -> 12935056 | I55: ='A9-Asset'!I37+'A9-Asset'!I69 -> 20377854 | J55: ='A9-Asset'!J37+'A9-Asset'!J69 -> 10590882 | K55: ='A9-Asset'!K37+'A9-Asset'!K69 -> 7598902
A56: Repairs and Maintenance | B56: ='A9-Asset'!C169 -> 86311406 | C56: ='A9-Asset'!D169 -> 156870235.7 | D56: ='A9-Asset'!E169 -> 145144142.4 | E56: ='A9-Asset'!F169 -> 82809477 | F56: ='A9-Asset'!G169 -> 76295715 | G56: ='A9-Asset'!H169 -> 76295715 | H56: ='A9-Asset'!H169 -> 76295715 | I56: ='A9-Asset'!I169 -> 97220613 | J56: ='A9-Asset'!J169 -> 93310261 | K56: ='A9-Asset'!K169 -> 91439925
A58: Free services
A59: Cost of Free Basic Services provided | B59: ='A10-SerDel'!C60 -> 0 | C59: ='A10-SerDel'!D60 -> 0 | D59: ='A10-SerDel'!E60 -> 0 | E59: ='A10-SerDel'!F60 -> 577491525 | F59: ='A10-SerDel'!G60 -> 577491525 | G59: ='A10-SerDel'!H60 -> 577491525 | H59: ='A10-SerDel'!I60 -> 612141016.5 | I59: ='A10-SerDel'!I60 -> 612141016.5 | J59: ='A10-SerDel'!J60 -> 648869477.5 | K59: ='A10-SerDel'!K60 -> 687801646.1
A60: Revenue cost of free services provided | B60: ='A10-SerDel'!C79 -> 0 | C60: ='A10-SerDel'!D79 -> 0 | D60: ='A10-SerDel'!E79 -> 0 | E60: ='A10-SerDel'!F79 -> 0 | F60: ='A10-SerDel'!G79 -> 0 | G60: ='A10-SerDel'!H79 -> 0 | H60: ='A10-SerDel'!I79 -> 0 | I60: ='A10-SerDel'!I79 -> 0 | J60: ='A10-SerDel'!J79 -> 0 | K60: ='A10-SerDel'!K79 -> 0
A61: Households below minimum service level
A62: ='A10-SerDel'!A5 -> Water: | B62: ='A10-SerDel'!C14 -> 212140 | C62: ='A10-SerDel'!D14 -> 169307 | D62: ='A10-SerDel'!E14 -> 172783 | E62: ='A10-SerDel'!F14 -> 177250 | F62: ='A10-SerDel'!G14 -> 177250 | G62: ='A10-SerDel'!H14 -> 177250 | H62: ='A10-SerDel'!I14 -> 190461 | I62: ='A10-SerDel'!I14 -> 190461 | J62: ='A10-SerDel'!J14 -> 206046 | K62: ='A10-SerDel'!K14 -> 221620
A63: ='A10-SerDel'!A16 -> Sanitation/sewerage: | B63: ='A10-SerDel'!C26 -> 29080 | C63: ='A10-SerDel'!D26 -> 76152 | D63: ='A10-SerDel'!E26 -> 65273 | E63: ='A10-SerDel'!F26 -> 63028 | F63: ='A10-SerDel'!G26 -> 63028 | G63: ='A10-SerDel'!H26 -> 63028 | H63: ='A10-SerDel'!I26 -> 59776 | I63: ='A10-SerDel'!I26 -> 59776 | J63: ='A10-SerDel'!J26 -> 53943 | K63: ='A10-SerDel'!K26 -> 47926
A64: ='A10-SerDel'!A28 -> Energy: | B64: ='A10-SerDel'!C35 -> 0 | C64: ='A10-SerDel'!D35 -> 0 | D64: ='A10-SerDel'!E35 -> 0 | E64: ='A10-SerDel'!F35 -> 0 | F64: ='A10-SerDel'!G35 -> 0 | G64: ='A10-SerDel'!H35 -> 0 | H64: ='A10-SerDel'!I35 -> 0 | I64: ='A10-SerDel'!I35 -> 0 | J64: ='A10-SerDel'!J35 -> 0 | K64: ='A10-SerDel'!K35 -> 0
A65: ='A10-SerDel'!A37 -> Refuse: | B65: ='A10-SerDel'!C45 -> 0 | C65: ='A10-SerDel'!D45 -> 0 | D65: ='A10-SerDel'!E45 -> 0 | E65: ='A10-SerDel'!F45 -> 0 | F65: ='A10-SerDel'!G45 -> 0 | G65: ='A10-SerDel'!H45 -> 0 | H65: ='A10-SerDel'!I45 -> 0 | I65: ='A10-SerDel'!I45 -> 0 | J65: ='A10-SerDel'!J45 -> 0 | K65: ='A10-SerDel'!K45 -> 0

Sheet A2-FinPerf SC
A1: =muni&" - "&Approve3 -> DC15 O .R. Tambo - Table A2 Consolidated Budgeted Financial Performance (revenue and expenditure by functional classification)
A2: ="Functional Classification "&desc -> Functional Classification Description | B2: =head27 -> Ref | C2: =head1b -> 2016/17 | D2: =head1A -> 2017/18 | E2: =Head1 -> 2018/19 | F2: =Head2 -> Current Year 2019/20 | I2: =Head3 -> 2020/21 Medium Term Revenue & Expenditure Framework
A3: R thousand | B3: 1 | C3: =Head5 -> Audited Outcome | D3: =Head5 -> Audited Outcome | E3: =Head5 -> Audited Outcome | F3: =Head6 -> Original Budget | G3: =Head7 -> Adjusted Budget | H3: =Head8 -> Full Year Forecast | I3: =Head9 -> Budget Year 2020/21 | J3: =Head10 -> Budget Year +1 2021/22 | K3: =Head11 -> Budget Year +2 2022/23
A4: Revenue - Functional
A5: Governance and administration | C5: =SUM(C6:C8) -> 1098633954 | D5: =SUM(D6:D8) -> 780698013.1 | E5: 834234881.7 | F5: 544076542 | G5: 572168703 | H5: 572168703 | I5: 568777300 | J5: 620893196 | K5: 645348234
A6: Executive and council | C6: =A2A!C6 -> 0 | D6: =A2A!D6 -> 0 | E6: =A2A!E6 -> 0 | F6: =A2A!F6 -> 199651649 | G6: =A2A!G6 -> 226905426 | H6: =A2A!H6 -> 226905426 | I6: =A2A!I6 -> 226843183 | J6: =A2A!J6 -> 247403611 | K6: =A2A!K6 -> 258612130
A7: Finance and administration | C7: =A2A!C9 -> 1098633954 | D7: =A2A!D9 -> 780698013.1 | E7: =A2A!E9 -> 834234881.7 | F7: =A2A!F9 -> 335865610 | G7: =A2A!G9 -> 336703994 | H7: =A2A!H9 -> 336703994 | I7: =A2A!I9 -> 333524897 | J7: =A2A!J9 -> 364578566 | K7: =A2A!K9 -> 377293017
A8: Internal audit | C8: =A2A!C23 -> 0 | D8: =A2A!D23 -> 0 | E8: =A2A!E23 -> 0 | F8: =A2A!F23 -> 8559283 | G8: =A2A!G23 -> 8559283 | H8: =A2A!H23 -> 8559283 | I8: =A2A!I23 -> 8409220 | J8: =A2A!J23 -> 8911019 | K8: =A2A!K23 -> 9443087
A9: Community and public safety | C9: =SUM(C10:C14) -> 0 | D9: =SUM(D10:D14) -> 425380.42 | E9: 5284162 | F9: 135904272 | G9: 187356002 | H9: 187356002 | I9: 169493720 | J9: 137496995 | K9: 145690423
A10: Community and social services | C10: =A2A!C26 -> 0 | D10: =A2A!D26 -> 425380.42 | E10: =A2A!E26 -> 0 | F10: =A2A!F26 -> 47317204 | G10: =A2A!G26 -> 50802004 | H10: =A2A!H26 -> 50802004 | I10: =A2A!I26 -> 47517907 | J10: =A2A!J26 -> 46892299 | K10: =A2A!K26 -> 49619711
A11: Sport and recreation | C11: =A2A!C48 -> 0 | D11: =A2A!D48 -> 0 | E11: =A2A!E48 -> 0 | F11: =A2A!F48 -> 11212608 | G11: =A2A!G48 -> 11212608 | H11: =A2A!H48 -> 11212608 | I11: =A2A!I48 -> 8845544 | J11: =A2A!J48 -> 9330948 | K11: =A2A!K48 -> 9843587
A12: Public safety | C12: =A2A!C54 -> 0 | D12: =A2A!D54 -> 0 | E12: =A2A!E54 -> 0 | F12: =A2A!F54 -> 35759908 | G12: =A2A!G54 -> 36076108 | H12: =A2A!H54 -> 36076108 | I12: =A2A!I54 -> 34942611 | J12: =A2A!J54 -> 40062995 | K12: =A2A!K54 -> 42597894
A13: Housing | C13: =A2A!C63 -> 0 | D13: =A2A!D63 -> 0 | E13: =A2A!E63 -> 5284162 | F13: =A2A!F63 -> 19662654 | G13: =A2A!G63 -> 66913384 | H13: =A2A!H63 -> 66913384 | I13: =A2A!I63 -> 55330001 | J13: =A2A!J63 -> 16957707 | K13: =A2A!K63 -> 17895112
A14: Health | C14: =A2A!C66 -> 0 | D14: =A2A!D66 -> 0 | E14: =A2A!E66 -> 0 | F14: =A2A!F66 -> 21951898 | G14: =A2A!G66 -> 22351898 | H14: =A2A!H66 -> 22351898 | I14: =A2A!I66 -> 22857657 | J14: =A2A!J66 -> 24253046 | K14: =A2A!K66 -> 25734119
A15: Economic and environmental services | C15: =SUM(C16:C18) -> 3174662.97 | D15: =SUM(D16:D18) -> 7398480.03 | E15: 7853841.41 | F15: 172047262 | G15: 299978936 | H15: 299978936 | I15: 314156738 | J15: 259785669 | K15: 262591076
A16: Planning and development | C16: =A2A!C75 -> 3174662.97 | D16: =A2A!D75 -> 4811000 | E16: =A2A!E75 -> 4882000 | F16: =A2A!F75 -> 87392065 | G16: =A2A!G75 -> 223333739 | H16: =A2A!H75 -> 223333739 | I16: =A2A!I75 -> 232273397 | J16: =A2A!J75 -> 212181070 | K16: =A2A!K75 -> 217853757
A17: Road transport | C17: =A2A!C86 -> 0 | D17: =A2A!D86 -> 2587480.03 | E17: =A2A!E86 -> 2971841.41 | F17: =A2A!F86 -> 69827630 | G17: =A2A!G86 -> 61127630 | H17: =A2A!H86 -> 61127630 | I17: =A2A!I86 -> 65842177 | J17: =A2A!J86 -> 30749301 | K17: =A2A!K86 -> 27025670
A18: Environmental protection | C18: =A2A!C91 -> 0 | D18: =A2A!D91 -> 0 | E18: =A2A!E91 -> 0 | F18: =A2A!F91 -> 14827567 | G18: =A2A!G91 -> 15517567 | H18: =A2A!H91 -> 15517567 | I18: =A2A!I91 -> 16041164 | J18: =A2A!J91 -> 16855298 | K18: =A2A!K91 -> 17711649
A19: Trading services | C19: =SUM(C20:C23) -> 758435007.1 | D19: =SUM(D20:D23) -> 1317340337 | E19: 1385438599 | F19: 1623968906 | G19: 1706011839 | H19: 1706011839 | I19: 1580353821 | J19: =SUM(J20:J23) -> 1648214958 | K19: 1795104699
A20: Energy sources | C20: =A2A!C99 -> 0 | D20: =A2A!D99 -> 0 | E20: =A2A!E99 -> 0 | F20: =A2A!F99 -> 0 | G20: =A2A!G99 -> 0 | H20: =A2A!H99 -> 0 | I20: =A2A!I99 -> 0 | J20: =A2A!J99 -> 0 | K20: =A2A!K99 -> 0
A21: Water management | C21: =A2A!C103 -> 715881034.1 | D21: =A2A!D103 -> 1350873831 | E21: =A2A!E103 -> 1363035183 | F21: =A2A!F103 -> 1623968906 | G21: =A2A!G103 -> 1706011839 | H21: =A2A!H103 -> 1706011839 | I21: =A2A!I103 -> 1580353821 | J21: =A2A!J103 -> 1648214958 | K21: =A2A!K103 -> 1795104699
A22: Waste water management | C22: =A2A!C107 -> 42553973 | D22: =A2A!D107 -> -33533494.75 | E22: =A2A!E107 -> 22403415.74 | F22: =A2A!F107 -> 0 | G22: =A2A!G107 -> 0 | H22: =A2A!H107 -> 0 | I22: =A2A!I107 -> 0 | J22: =A2A!J107 -> 0 | K22: =A2A!K107 -> 0
A23: Waste management | C23: =A2A!C112 -> 0 | D23: =A2A!D112 -> 0 | E23: =A2A!E112 -> 0 | F23: =A2A!F112 -> 0 | G23: =A2A!G112 -> 0 | H23: =A2A!H112 -> 0 | I23: =A2A!I112 -> 0 | J23: =A2A!J112 -> 0 | K23: =A2A!K112 -> 0
A24: Other | B24: 4 | C24: =A2A!C117 -> 0 | D24: =A2A!D117 -> 0 | E24: =A2A!E117 -> 0 | F24: =A2A!F117 -> 6819452 | G24: =A2A!G117 -> 6879452 | H24: =A2A!H117 -> 6879452 | I24: =A2A!I117 -> 7544928 | J24: =A2A!J117 -> 7634195 | K24: =A2A!K117 -> 8044869
A25: ="Total "&A4 -> Total Revenue - Functional | B25: 2 | C25: =C5+C9+C15+C19+C24 -> 1860243624 | D25: =D5+D9+D15+D19+D24 -> 2105862210 | E25: =E5+E9+E15+E19+E24 -> 2232811484 | F25: 2482816434 | G25: 2772394932 | H25: 2772394932 | I25: =I5+I9+I15+I19+I24 -> 2640326507 | J25: 2674025013 | K25: 2856779301
A27: Expenditure - Functional
A28: Governance and administration | C28: =SUM(C29:C31) -> 527812401.6 | D28: =SUM(D29:D31) -> 506553133.7 | E28: 550066666.3 | F28: 526534383 | G28: 551076545 | H28: 551076545 | I28: 562185989 | J28: 610716040 | K28: 641386209
A29: Executive and council | C29: =A2A!C128 -> 127197844.1 | D29: =A2A!D128 -> 185779060.6 | E29: =A2A!E128 -> 221401689 | F29: =A2A!F128 -> 203945645 | G29: =A2A!G128 -> 230889425 | H29: =A2A!H128 -> 230889425 | I29: =A2A!I128 -> 236949124 | J29: =A2A!J128 -> 252911091 | K29: =A2A!K128 -> 264800111
A30: Finance and administration | C30: =A2A!C131 -> 395650164.7 | D30: =A2A!D131 -> 314965211.2 | E30: =A2A!E131 -> 320687720 | F30: =A2A!F131 -> 314029456 | G30: =A2A!G131 -> 311627838 | H30: =A2A!H131 -> 311627838 | I30: =A2A!I131 -> 316827643 | J30: =A2A!J131 -> 348893928 | K30: =A2A!K131 -> 367143013
A31: Internal audit | C31: =A2A!C145 -> 4964392.79 | D31: =A2A!D145 -> 5808861.92 | E31: =A2A!E145 -> 7977257.31 | F31: =A2A!F145 -> 8559282 | G31: =A2A!G145 -> 8559282 | H31: =A2A!H145 -> 8559282 | I31: =A2A!I145 -> 8409222 | J31: =A2A!J145 -> 8911021 | K31: =A2A!K145 -> 9443085
A32: Community and public safety | C32: =SUM(C33:C37) -> 56088640.2 | D32: =SUM(D33:D37) -> 76738594.73 | E32: 105714891.2 | F32: 124239266 | G32: 127119268 | H32: 127119268 | I32: 129260440 | J32: 134177744 | K32: 139690429
A33: Community and social services | C33: =A2A!C148 -> 25373514.52 | D33: =A2A!D148 -> 34871484.89 | E33: =A2A!E148 -> 37841871.71 | F33: =A2A!F148 -> 44317203 | G33: =A2A!G148 -> 46881003 | H33: =A2A!H148 -> 46881003 | I33: =A2A!I148 -> 48739915 | J33: =A2A!J148 -> 48180294 | K33: =A2A!K148 -> 49619708
A34: Sport and recreation | C34: =A2A!C170 -> 4895070.3 | D34: =A2A!D170 -> 5251346.02 | E34: =A2A!E170 -> 7186701.12 | F34: =A2A!F170 -> 11212604 | G34: =A2A!G170 -> 11212605 | H34: =A2A!H170 -> 11212605 | I34: =A2A!I170 -> 9298410 | J34: =A2A!J170 -> 9808264 | K34: =A2A!K170 -> 9843593
A35: Public safety | C35: =A2A!C176 -> 14459518.1 | D35: =A2A!D176 -> 18342774.73 | E35: =A2A!E176 -> 21337184.08 | F35: =A2A!F176 -> 30759907 | G35: =A2A!G176 -> 31076107 | H35: =A2A!H176 -> 31076107 | I35: =A2A!I176 -> 32642610 | J35: =A2A!J176 -> 34562994 | K35: =A2A!K176 -> 36597893
A36: Housing | C36: =A2A!C185 -> 8327762.41 | D36: =A2A!D185 -> 15702638.19 | E36: =A2A!E185 -> 20208908.59 | F36: =A2A!F185 -> 16117653 | G36: =A2A!G185 -> 16117654 | H36: =A2A!H185 -> 16117654 | I36: =A2A!I185 -> 15638526 | J36: =A2A!J185 -> 17285324 | K36: =A2A!K185 -> 17895115
A37: Health | C37: =A2A!C188 -> 3032774.87 | D37: =A2A!D188 -> 2570350.9 | E37: =A2A!E188 -> 19140225.74 | F37: =A2A!F188 -> 21831899 | G37: =A2A!G188 -> 21831899 | H37: =A2A!H188 -> 21831899 | I37: =A2A!I188 -> 22940979 | J37: =A2A!J188 -> 24340868 | K37: =A2A!K188 -> 25734120
A38: Economic and environmental services | C38: =SUM(C39:C41) -> 119761213.9 | D38: =SUM(D39:D41) -> 174296345.9 | E38: 101476460 | F38: 117641260 | G38: 320494896 | H38: 320494896 | I38: 237299462 | J38: 240808593 | K38: 251330372
A39: Planning and development | C39: =A2A!C197 -> 76591171.42 | D39: =A2A!D197 -> 138372432.9 | E39: =A2A!E197 -> 79346995.77 | F39: =A2A!F197 -> 81098063 | G39: =A2A!G197 -> 282701700 | H39: =A2A!H197 -> 282701700 | I39: =A2A!I197 -> 196149332 | J39: =A2A!J197 -> 198663649 | K39: =A2A!K197 -> 209899056
A40: Road transport | C40: =A2A!C208 -> 18225948.05 | D40: =A2A!D208 -> 9781256.12 | E40: =A2A!E208 -> 9860994.33 | F40: =A2A!F208 -> 21715630 | G40: =A2A!G208 -> 22515629 | H40: =A2A!H208 -> 22515629 | I40: =A2A!I208 -> 23000963 | J40: =A2A!J208 -> 23067810 | K40: =A2A!K208 -> 23719669
A41: Environmental protection | C41: =A2A!C213 -> 24944094.43 | D41: =A2A!D213 -> 26142656.94 | E41: =A2A!E213 -> 12268469.94 | F41: =A2A!F213 -> 14827567 | G41: =A2A!G213 -> 15277567 | H41: =A2A!H213 -> 15277567 | I41: =A2A!I213 -> 18149167 | J41: =A2A!J213 -> 19077134 | K41: =A2A!K213 -> 17711647
A42: Trading services | C42: =SUM(C43:C46) -> 683644106.7 | D42: =SUM(D43:D46) -> 808050691.2 | E42: 919779580.8 | F42: =SUM(F43:F46) -> 658009367 | G42: 653996261 | H42: 653996261 | I42: 770110423 | J42: 799168249 | K42: =SUM(K43:K46) -> 823555382
A43: Energy sources | C43: =A2A!C221 -> 0 | D43: =A2A!D221 -> 0 | E43: =A2A!E221 -> 0 | F43: =A2A!F221 -> 0 | G43: =A2A!G221 -> 0 | H43: =A2A!H221 -> 0 | I43: =A2A!I221 -> 0 | J43: =A2A!J221 -> 0 | K43: =A2A!K221 -> 0
A44: Water management | C44: =A2A!C225 -> 700135406.7 | D44: =A2A!D225 -> 702047890.5 | E44: =A2A!E225 -> 871340722.3 | F44: =A2A!F225 -> 658009367 | G44: =A2A!G225 -> 653996261 | H44: =A2A!H225 -> 653996261 | I44: =A2A!I225 -> 770110423 | J44: =A2A!J225 -> 799168249 | K44: =A2A!K225 -> 823555382
A45: Waste water management | C45: =A2A!C229 -> -16491300 | D45: =A2A!D229 -> 106002800.7 | E45: =A2A!E229 -> 48438858.45 | F45: =A2A!F229 -> 0 | G45: =A2A!G229 -> 0 | H45: =A2A!H229 -> 0 | I45: =A2A!I229 -> 0 | J45: =A2A!J229 -> 0 | K45: =A2A!K229 -> 0
A46: Waste management | C46: =A2A!C234 -> 0 | D46: =A2A!D234 -> 0 | E46: =A2A!E234 -> 0 | F46: =A2A!F234 -> 0 | G46: =A2A!G234 -> 0 | H46: =A2A!H234 -> 0 | I46: =A2A!I234 -> 0 | J46: =A2A!J234 -> 0 | K46: =A2A!K234 -> 0
A47: Other | B47: 4 | C47: =A2A!C239 -> 937884.68 | D47: =A2A!D239 -> 4685074.41 | E47: =A2A!E239 -> 5295167.55 | F47: =A2A!F239 -> 6819452 | G47: =A2A!G239 -> 6879452 | H47: =A2A!H239 -> 6879452 | I47: =A2A!I239 -> 7544929 | J47: =A2A!J239 -> 7634193 | K47: =A2A!K239 -> 8044869
A48: ="Total "&A27 -> Total Expenditure - Functional | B48: 3 | C48: =C28+C32+C38+C42+C47 -> 1388244247 | D48: =D28+D32+D38+D42+D47 -> 1570323840 | E48: =E28+E32+E38+E42+E47 -> 1682332766 | F48: =F28+F32+F38+F42+F47 -> 1433243728 | G48: 1659566422 | H48: 1659566422 | I48: 1706401243 | J48: 1792504819 | K48: 1864007261
A49: =result -> Surplus/(Deficit) for the year | C49: =C25-C48 -> 471999377 | D49: =D25-D48 -> 535538370 | E49: 550478717.9 | F49: 1049572706 | G49: 1112828510 | H49: 1112828510 | I49: 933925264 | J49: 881520194 | K49: 992772040
A50: =head27a -> References
A51: 1. Government Finance Statistics Functions and Sub-functions are standardised to assist the compilation of national and international accounts for comparison purposes
A52: 2. Total Revenue by functional classification must reconcile to Total Operating Revenue shown in Budgeted Financial Performance (revenue and expenditure)
A53: 3. Total Expenditure by Functional Classification must reconcile to Total Operating Expenditure shown in Budgeted Financial Performance (revenue and expenditure)
A54: 4. All amounts must be classified under a functional classification . The GFS function 'Other' is only for Abbatoirs, Air Transport, Forestry, Licensing and Regulation, Markets and Tourism - and if used must be supported by footnotes. Nothing else may be placed under 'Other'. Assign associate share to relevant classification.
A57: check oprev balance | C57: =C25-'A4-FinPerf RE'!C59 -> 0 | D57: =D25-'A4-FinPerf RE'!D59 -> 0 | E57: =E25-'A4-FinPerf RE'!E59 -> 0 | F57: =F25-'A4-FinPerf RE'!F59 -> 0 | G57: =G25-'A4-FinPerf RE'!G59 -> 0 | H57: =H25-'A4-FinPerf RE'!H59 -> 0 | I57: =I25-'A4-FinPerf RE'!J59 -> 0 | J57: =J25-'A4-FinPerf RE'!K59 -> 0 | K57: =K25-'A4-FinPerf RE'!L59 -> 0
A58: check opexp balance | C58: =C48-'A4-FinPerf RE'!C35 -> 0 | D58: =D48-'A4-FinPerf RE'!D35 -> 0 | E58: =E48-'A4-FinPerf RE'!E35 -> 0 | F58: =F48-'A4-FinPerf RE'!F35 -> 0 | G58: =G48-'A4-FinPerf RE'!G35 -> 0 | H58: =H48-'A4-FinPerf RE'!H35 -> 0 | I58: =I48-'A4-FinPerf RE'!J35 -> 0 | J58: =J48-'A4-FinPerf RE'!K35 -> 0 | K58: =K48-'A4-FinPerf RE'!L35 -> 0

Sheet A2A
A1: =muni&" - "&Approve3 -> DC15 O .R. Tambo - Table A2 Consolidated Budgeted Financial Performance (revenue and expenditure by functional classification)
A2: ="Functional Classification "&desc -> Functional Classification Description | B2: =head27 -> Ref | C2: =head1b -> 2016/17 | D2: =head1A -> 2017/18 | E2: =Head1 -> 2018/19 | F2: =Head2 -> Current Year 2019/20 | I2: =Head3 -> 2020/21 Medium Term Revenue & Expenditure Framework
A3: R thousand | B3: 1 | C3: =Head5 -> Audited Outcome | D3: =Head5 -> Audited Outcome | E3: =Head5 -> Audited Outcome | F3: =Head6 -> Original Budget | G3: =Head7 -> Adjusted Budget | H3: =Head8 -> Full Year Forecast | I3: =Head9 -> Budget Year 2020/21 | J3: =Head10 -> Budget Year +1 2021/22 | K3: =Head11 -> Budget Year +2 2022/23
A4: Revenue - Functional
A5: Municipal governance and administration | C5: =C6+C9+C23 -> 1098633954 | D5: 780698013.1 | E5: 834234881.7 | F5: 544076542 | G5: 572168703 | H5: 572168703 | I5: 568777300 | J5: 620893196 | K5: 645348234
A6: Executive and council | C6: =SUM(C7:C8) -> 0 | D6: =SUM(D7:D8) -> 0 | E6: 0 | F6: 199651649 | G6: 226905426 | H6: 226905426 | I6: 226843183 | J6: 247403611 | K6: 258612130
A7: Mayor and Council | C7: 0 | D7: 0 | E7: 0 | F7: 160086135 | G7: 181889309 | H7: 181889309 | I7: 190326986 | J7: 202045758 | K7: 210801115
A8: Municipal Manager, Town Secretary and Chief Executive | C8: 0 | D8: 0 | E8: 0 | F8: 39565514 | G8: 45016117 | H8: 45016117 | I8: 36516197 | J8: 45357853 | K8: 47811015
A9: Finance and administration | C9: =SUM(C10:C22) -> 1098633954 | D9: 780698013.1 | E9: 834234881.7 | F9: 335865610 | G9: 336703994 | H9: 336703994 | I9: 333524897 | J9: 364578566 | K9: 377293017
A10: Administrative and Corporate Support | C10: 0 | D10: 0 | E10: 0 | F10: 10430756 | G10: 9315908 | H10: 9315908 | I10: 11075549 | J10: 11770500 | K10: 12501611
A11: Asset Management
A12: Finance | C12: 1098242422 | D12: 730292382.6 | E12: 793780182 | F12: 99706192 | G12: 91045179 | H12: 91045179 | I12: 92075214 | J12: 96203096 | K12: 101631550
A13: Fleet Management
A14: Human Resources | C14: 391531.86 | D14: 0 | E14: 0 | F14: 90433454 | G14: 81420661 | H14: 81420661 | I14: 94237891 | J14: 100729114 | K14: 106542325
A15: Information Technology | C15: 0 | D15: 0 | E15: 0 | F15: 34764271 | G15: 34105449 | H15: 34105449 | I15: 21797681 | J15: 34857676 | K15: 36343479
A16: Legal Services | C16: 0 | D16: 0 | E16: 0 | F16: 9388379 | G16: 10437776 | H16: 10437776 | I16: 7961677 | J16: 11520212 | K16: 12107834
A17: Marketing, Customer Relations, Publicity and Media Co-ordination
A18: Property Services
A19: Risk Management
A20: Security Services | C20: 0 | D20: 0 | E20: 0 | F20: 34811466 | G20: 34597929 | H20: 34597929 | I20: 36327943 | J20: 38505195 | K20: 40854320
A21: Supply Chain Management | C21: 0 | D21: 50405630.42 | E21: 40454699.65 | F21: 56331092 | G21: 75781092 | H21: 75781092 | I21: 70048942 | J21: 70992773 | K21: 67311898
A22: Valuation Service
A23: Internal audit | C23: =SUM(C24:C24) -> 0 | D23: 0 | E23: 0 | F23: 8559283 | G23: 8559283 | H23: 8559283 | I23: 8409220 | J23: 8911019 | K23: 9443087
A24: Governance Function | C24: 0 | D24: 0 | E24: 0 | F24: 8559283 | G24: 8559283 | H24: 8559283 | I24: 8409220 | J24: 8911019 | K24: 9443087
A25: Community and public safety | C25: =C26+C48+C54+C63+C66 -> 0 | D25: 425380.42 | E25: 5284162 | F25: 135904272 | G25: 187356002 | H25: 187356002 | I25: 169493720 | J25: 137496995 | K25: 145690423
A26: Community and social services | C26: =SUM(C27:C47) -> 0 | D26: =SUM(D27:D47) -> 425380.42 | E26: 0 | F26: 47317204 | G26: 50802004 | H26: 50802004 | I26: 47517907 | J26: 46892299 | K26: 49619711
A27: Aged Care
A28: Agricultural
A29: Animal Care and Diseases
A30: Cemeteries, Funeral Parlours and Crematoriums
A31: Child Care Facilities
A32: Community Halls and Facilities
A33: Consumer Protection
A34: Cultural Matters
A35: Disaster Management | C35: 0 | D35: 425380.42 | E35: 0 | F35: 31956248 | G35: 35441048 | H35: 35441048 | I35: 31896733 | J35: 30383275 | K35: 32171415
A36: Education
A37: Indigenous and Customary Law
A38: Industrial Promotion
A39: Language Policy
A40: Libraries and Archives
A41: Literacy Programmes
A42: Media Services
A43: Museums and Art Galleries
A44: Population Development | C44: 0 | D44: 0 | E44: 0 | F44: 15360956 | G44: 15360956 | H44: 15360956 | I44: 15621174 | J44: 16509024 | K44: 17448296
A45: Provincial Cultural Matters
A46: Theatres
A47: Zoo's
A48: Sport and recreation | C48: =SUM(C49:C53) -> 0 | D48: =SUM(D49:D53) -> 0 | E48: 0 | F48: 11212608 | G48: 11212608 | H48: 11212608 | I48: 8845544 | J48: 9330948 | K48: 9843587
A49: Beaches and Jetties
A50: Casinos, Racing, Gambling, Wagering
A51: Community Parks (including Nurseries)
A52: Recreational Facilities
A53: Sports Grounds and Stadiums | C53: 0 | D53: 0 | E53: 0 | F53: 11212608 | G53: 11212608 | H53: 11212608 | I53: 8845544 | J53: 9330948 | K53: 9843587
A54: Public safety | C54: =SUM(C55:C62) -> 0 | D54: 0 | E54: 0 | F54: 35759908 | G54: 36076108 | H54: 36076108 | I54: 34942611 | J54: 40062995 | K54: 42597894
A55: Civil Defence
A56: Cleansing
A57: Control of Public Nuisances
A58: Fencing and Fences
A59: Fire Fighting and Protection | C59: 0 | D59: 0 | E59: 0 | F59: 35759908 | G59: 36076108 | H59: 36076108 | I59: 34942611 | J59: 40062995 | K59: 42597894
A60: Licensing and Control of Animals
A61: Police Forces, Traffic and Street Parking Control
A62: Pounds
A63: Housing | C63: =SUM(C64:C65) -> 0 | D63: =SUM(D64:D65) -> 0 | E63: 5284162 | F63: 19662654 | G63: 66913384 | H63: 66913384 | I63: 55330001 | J63: 16957707 | K63: 17895112
A64: Housing | C64: 0 | D64: 0 | E64: 5284162 | F64: 19662654 | G64: 66913384 | H64: 66913384 | I64: 55330001 | J64: 16957707 | K64: 17895112
A65: Informal Settlements
A66: Health | C66: =SUM(C67:C73) -> 0 | D66: =SUM(D67:D73) -> 0 | E66: 0 | F66: 21951898 | G66: 22351898 | H66: 22351898 | I66: 22857657 | J66: 24253046 | K66: 25734119
A67: Ambulance
A68: Health Services | C68: 0 | D68: 0 | E68: 0 | F68: 21951898 | G68: 22351898 | H68: 22351898 | I68: 22857657 | J68: 24253046 | K68: 25734119
A69: Laboratory Services
A70: Food Control
A71: Health Surveillance and Prevention of Communicable Diseases including immunizations
A72: Vector Control
A73: Chemical Safety
A74: Economic and environmental services | C74: =C75+C86+C91 -> 3174662.97 | D74: 7398480.03 | E74: 7853841.41 | F74: 172047262 | G74: 299978936 | H74: 299978936 | I74: 314156738 | J74: 259785669 | K74: 262591076
A75: Planning and development | C75: =SUM(C76:C85) -> 3174662.97 | D75: =SUM(D76:D85) -> 4811000 | E75: 4882000 | F75: 87392065 | G75: 223333739 | H75: 223333739 | I75: 232273397 | J75: 212181070 | K75: 217853757
A76: Billboards
A77: Corporate Wide Strategic Planning (IDPs, LEDs)
A78: Central City Improvement District | C78: 0 | D78: 0 | E78: 0 | F78: 1913152 | G78: 1913152 | H78: 1913152 | I78: 2025207 | J78: 2144376 | K78: 2270652
A79: Development Facilitation
A80: Economic Development/Planning | C80: 3174662.97 | D80: 4811000 | E80: 4882000 | F80: 85478913 | G80: 221420587 | H80: 221420587 | I80: 230248190 | J80: 210036694 | K80: 215583105
A81: Regional Planning and Development
A82: Town Planning, Building Regulations and Enforcement, and City Engineer
A83: Project Management Unit
A84: Provincial Planning
A85: Support to Local Municipalities
A86: Road transport | C86: =SUM(C87:C90) -> 0 | D86: 2587480.03 | E86: 2971841.41 | F86: 69827630 | G86: 61127630 | H86: 61127630 | I86: 65842177 | J86: 30749301 | K86: 27025670
A87: Public Transport | C87: 0 | D87: 2587480.03 | E87: 2971841.41 | F87: 69827630 | G87: 61127630 | H87: 61127630 | I87: 65842177 | J87: 30749301 | K87: 27025670
A88: Road and Traffic Regulation
A89: Roads
A90: Taxi Ranks
A91: Environmental protection | C91: =SUM(C92:C97) -> 0 | D91: =SUM(D92:D97) -> 0 | E91: 0 | F91: 14827567 | G91: 15517567 | H91: 15517567 | I91: 16041164 | J91: 16855298 | K91: 17711649
A92: Biodiversity and Landscape
A93: Coastal Protection
A94: Indigenous Forests
A95: Nature Conservation | C95: 0 | D95: 0 | E95: 0 | F95: 14827567 | G95: 15517567 | H95: 15517567 | I95: 16041164 | J95: 16855298 | K95: 17711649
A96: Pollution Control
A97: Soil Conservation
A98: Trading services | C98: =C99+C103+C107+C112 -> 758435007.1 | D98: =D99+D103+D107+D112 -> 1317340337 | E98: 1385438599 | F98: 1623968906 | G98: 1706011839 | H98: 1706011839 | I98: 1580353821 | J98: 1648214958 | K98: =K99+K103+K107+K112 -> 1795104699
A99: Energy sources | C99: =SUM(C100:C102) -> 0 | D99: =SUM(D100:D102) -> 0 | E99: 0 | F99: 0 | G99: 0 | H99: 0 | I99: 0 | J99: 0 | K99: 0
A100: Electricity
A101: Street Lighting and Signal Systems
A102: Nonelectric Energy
A103: Water management | C103: =SUM(C104:C106) -> 715881034.1 | D103: =SUM(D104:D106) -> 1350873831 | E103: 1363035183 | F103: 1623968906 | G103: 1706011839 | H103: 1706011839 | I103: 1580353821 | J103: 1648214958 | K103: 1795104699
A104: Water Treatment
A105: Water Distribution | C105: 715881034.1 | D105: 1350873831 | E105: 1363035183 | F105: 1623968906 | G105: 1706011839 | H105: 1706011839 | I105: 1580353821 | J105: 1648214958 | K105: 1795104699
A106: Water Storage
A107: Waste water management | C107: =SUM(C108:C111) -> 42553973 | D107: =SUM(D108:D111) -> -33533494.75 | E107: 22403415.74 | F107: 0 | G107: 0 | H107: 0 | I107: 0 | J107: 0 | K107: 0
A108: Public Toilets
A109: Sewerage | C109: -237146 | D109: -33533494.75 | E109: 22403415.74
A110: Storm Water Management
A111: Waste Water Treatment | C111: 42791119
A112: Waste management | C112: =SUM(C113:C116) -> 0 | D112: =SUM(D113:D116) -> 0 | E112: 0 | F112: 0 | G112: 0 | H112: 0 | I112: 0 | J112: 0 | K112: 0
A113: Recycling
A114: Solid Waste Disposal (Landfill Sites)
A115: Solid Waste Removal
A116: Street Cleaning
A117: Other | C117: =SUM(C118:C123) -> 0 | D117: =SUM(D118:D123) -> 0 | E117: 0 | F117: 6819452 | G117: 6879452 | H117: 6879452 | I117: 7544928 | J117: 7634195 | K117: 8044869
A118: Abattoirs
A119: Air Transport
A120: Forestry
A121: Licensing and Regulation
A122: Markets
A123: Tourism | C123: 0 | D123: 0 | E123: 0 | F123: 6819452 | G123: 6879452 | H123: 6879452 | I123: 7544928 | J123: 7634195 | K123: 8044869
A124: ="Total "&A4 -> Total Revenue - Functional | B124: 2 | C124: =C5+C25+C74+C98+C117 -> 1860243624 | D124: 2105862210 | E124: 2232811484 | F124: 2482816434 | G124: 2772394932 | H124: 2772394932 | I124: 2640326507 | J124: 2674025013 | K124: 2856779301
A126: Expenditure - Functional
A127: =A5 -> Municipal governance and administration | C127: =C128+C131+C145 -> 527812401.6 | D127: 506553133.7 | E127: 550066666.3 | F127: 526534383 | G127: 551076545 | H127: 551076545 | I127: 562185989 | J127: 610716040 | K127: 641386209
A128: Executive and council | C128: =SUM(C129:C130) -> 127197844.1 | D128: 185779060.6 | E128: 221401689 | F128: 203945645 | G128: 230889425 | H128: 230889425 | I128: 236949124 | J128: 252911091 | K128: 264800111
A129: Mayor and Council | C129: 108627457.2 | D129: 156424119.6 | E129: 171220660.1 | F129: 158086133 | G129: 180239310 | H129: 180239310 | I129: 187570137 | J129: 200910020 | K129: 210801120
A130: Municipal Manager, Town Secretary and Chief Executive | C130: 18570386.95 | D130: 29354941.02 | E130: 50181028.86 | F130: 45859512 | G130: 50650115 | H130: 50650115 | I130: 49378987 | J130: 52001071 | K130: 53998991
A131: Finance and administration | C131: =SUM(C132:C144) -> 395650164.7 | D131: 314965211.2 | E131: 320687720 | F131: 314029456 | G131: 311627838 | H131: 311627838 | I131: 316827643 | J131: 348893928 | K131: 367143013
A132: Administrative and Corporate Support | C132: 6787198.51 | D132: 6175056.51 | E132: 6749317.59 | F132: 10430757 | G132: 9315909 | H132: 9315909 | I132: 11077362 | J132: 11772407 | K132: 12501608
A133: Asset Management
A134: Finance | C134: 247937909.6 | D134: 128157657.1 | E134: 114094596 | F134: 89706192 | G134: 89045179 | H134: 89045179 | I134: 92075215 | J134: 96203095 | K134: 101631548
A135: Fleet Management
A136: Human Resources | C136: 47032058.74 | D136: 62964458.74 | E136: 63640649.54 | F136: 90433453 | G136: 81420659 | H136: 81420659 | I136: 94245137 | J136: 100736752 | K136: 106542325
A137: Information Technology | C137: 14029066.41 | D137: 17887265.8 | E137: 26796740.8 | F137: 33078116 | G137: 32019293 | H137: 32019293 | I137: 20214362 | J137: 32769859 | K137: 33693478
A138: Legal Services | C138: 13635648.92 | D138: 10637914.46 | E138: 21041102.14 | F138: 9388377 | G138: 11097774 | H138: 11097774 | I138: 7961676 | J138: 11520213 | K138: 12107834
A139: Marketing, Customer Relations, Publicity and Media Co-ordination
A140: Property Services
A141: Risk Management
A142: Security Services | C142: 19593170.93 | D142: 26248228.75 | E142: 31669496.56 | F142: 33311466 | G142: 33097929 | H142: 33097929 | I142: 34840502 | J142: 36603805 | K142: 38354320
A143: Supply Chain Management | C143: 46635111.54 | D143: 62894629.81 | E143: 56695817.35 | F143: 47681095 | G143: 55631095 | H143: 55631095 | I143: 56413389 | J143: 59287797 | K143: 62311900
A144: Valuation Service
A145: Internal audit | C145: =SUM(C146:C146) -> 4964392.79 | D145: 5808861.92 | E145: 7977257.31 | F145: 8559282 | G145: 8559282 | H145: 8559282 | I145: 8409222 | J145: 8911021 | K145: 9443085
A146: Governance Function | C146: 4964392.79 | D146: 5808861.92 | E146: 7977257.31 | F146: 8559282 | G146: 8559282 | H146: 8559282 | I146: 8409222 | J146: 8911021 | K146: 9443085
A147: Community and public safety | C147: =C148+C170+C176+C185+C188 -> 56088640.2 | D147: 76738594.73 | E147: 105714891.2 | F147: 124239266 | G147: 127119268 | H147: 127119268 | I147: 129260440 | J147: 134177744 | K147: 139690429
A148: Community and social services | C148: =SUM(C149:C169) -> 25373514.52 | D148: =SUM(D149:D169) -> 34871484.89 | E148: 37841871.71 | F148: 44317203 | G148: 46881003 | H148: 46881003 | I148: 48739915 | J148: 48180294 | K148: 49619708
A149: Aged Care
A150: Agricultural
A151: Animal Care and Diseases
A152: Cemeteries, Funeral Parlours and Crematoriums
A153: Child Care Facilities
A154: Community Halls and Facilities
A155: Consumer Protection
A156: Cultural Matters
A157: Disaster Management | C157: 13483268.74 | D157: 23322876.36 | E157: 24568018.77 | F157: 28956249 | G157: 31520049 | H157: 31520049 | I157: 32529957 | J157: 31050691 | K157: 32171415
A158: Education
A159: =A37 -> Indigenous and Customary Law
A160: Industrial Promotion
A161: Language Policy
A162: Libraries and Archives
A163: Literacy Programmes
A164: Media Services
A165: Museums and Art Galleries
A166: Population Development | C166: 11890245.78 | D166: 11548608.53 | E166: 13273852.94 | F166: 15360954 | G166: 15360954 | H166: 15360954 | I166: 16209958 | J166: 17129603 | K166: 17448293
A167: Provincial Cultural Matters
A168: Theatres
A169: Zoo's
A170: Sport and recreation | C170: =SUM(C171:C175) -> 4895070.3 | D170: 5251346.02 | E170: 7186701.12 | F170: 11212604 | G170: 11212605 | H170: 11212605 | I170: 9298410 | J170: 9808264 | K170: 9843593
A171: Beaches and Jetties
A172: Casinos, Racing, Gambling, Wagering
A173: Community Parks (including Nurseries)
A174: Recreational Facilities
A175: Sports Grounds and Stadiums | C175: 4895070.3 | D175: 5251346.02 | E175: 7186701.12 | F175: 11212604 | G175: 11212605 | H175: 11212605 | I175: 9298410 | J175: 9808264 | K175: 9843593
A176: Public safety | C176: =SUM(C177:C184) -> 14459518.1 | D176: 18342774.73 | E176: 21337184.08 | F176: 30759907 | G176: 31076107 | H176: 31076107 | I176: 32642610 | J176: 34562994 | K176: 36597893
A177: Civil Defence
A178: Cleansing
A179: =A57 -> Control of Public Nuisances
A180: Fencing and Fences
A181: Fire Fighting and Protection | C181: 14459518.1 | D181: 18342774.73 | E181: 21337184.08 | F181: 30759907 | G181: 31076107 | H181: 31076107 | I181: 32642610 | J181: 34562994 | K181: 36597893
A182: Licensing and Control of Animals
A183: Police Forces, Traffic and Street Parking Control
A184: Pounds
A185: =A63 -> Housing | C185: =SUM(C186:C187) -> 8327762.41 | D185: 15702638.19 | E185: 20208908.59 | F185: 16117653 | G185: 16117654 | H185: 16117654 | I185: 15638526 | J185: 17285324 | K185: 17895115
A186: Housing | C186: 8327762.41 | D186: 15702638.19 | E186: 20208908.59 | F186: 16117653 | G186: 16117654 | H186: 16117654 | I186: 15638526 | J186: 17285324 | K186: 17895115
A187: Informal Settlements
A188: Health | C188: =SUM(C189:C195) -> 3032774.87 | D188: =SUM(D189:D195) -> 2570350.9 | E188: 19140225.74 | F188: 21831899 | G188: 21831899 | H188: 21831899 | I188: 22940979 | J188: 24340868 | K188: 25734120
A189: Ambulance
A190: Health Services | C190: 3032774.87 | D190: 2570350.9 | E190: 19140225.74 | F190: 21831899 | G190: 21831899 | H190: 21831899 | I190: 22940979 | J190: 24340868 | K190: 25734120
A191: Laboratory Services
A192: Food Control
A193: Health Surveillance and Prevention of Communicable Diseases including immunizations
A194: Vector Control
A195: Chemical Safety
A196: Economic and environmental services | C196: =C197+C208+C213 -> 119761213.9 | D196: 174296345.9 | E196: 101476460 | F196: 117641260 | G196: 320494896 | H196: 320494896 | I196: 237299462 | J196: 240808593 | K196: 251330372
A197: Planning and development | C197: =SUM(C198:C207) -> 76591171.42 | D197: =SUM(D198:D207) -> 138372432.9 | E197: 79346995.77 | F197: 81098063 | G197: 282701700 | H197: 282701700 | I197: 196149332 | J197: 198663649 | K197: 209899056
A198: Billboards
A199: Corporate Wide Strategic Planning (IDPs, LEDs)
A200: Central City Improvement District | C200: 0 | D200: 1877651.78 | E200: 1986575.01 | F200: 1913150 | G200: 1913150 | H200: 1913150 | I200: 2025206 | J200: 2144373 | K200: 2270655
A201: Development Facilitation
... 53 more rows

Sheet A3-FinPerf V
A1: =muni&" - "&Approve2 -> DC15 O .R. Tambo - Table A3 Consolidated Budgeted Financial Performance (revenue and expenditure by municipal vote)
A2: =Vdesc -> Vote Description | B2: =head27 -> Ref | C2: =head1b -> 2016/17 | D2: =head1A -> 2017/18 | E2: =Head1 -> 2018/19 | F2: =Head2 -> Current Year 2019/20 | I2: =Head3 -> 2020/21 Medium Term Revenue & Expenditure Framework | L2: =Head4 -> LTFS
A3: R thousand | C3: =Head5 -> Audited Outcome | D3: =Head5 -> Audited Outcome | E3: =Head5 -> Audited Outcome | F3: =Head6 -> Original Budget | G3: =Head7 -> Adjusted Budget | H3: =Head8 -> Full Year Forecast | I3: =Head9 -> Budget Year 2020/21 | J3: =Head10 -> Budget Year +1 2021/22 | K3: =Head11 -> Budget Year +2 2022/23 | L3: =Head12 -> Forecast 2023/24 | M3: =Head13 -> Forecast 2024/25 | N3: =Head14 -> Forecast 2025/26 | O3: =Head15 -> Forecast 2026/27 | P3: =Head16 -> Forecast 2027/28 | Q3: =Head17 -> Forecast 2028/29 | R3: =Head18 -> Forecast 2029/30 | S3: =Head19 -> Forecast 2030/31 | T3: =Head20 -> Forecast 2031/32 | U3: =Head21 -> Forecast 2032/33 | V3: =Head22 -> Forecast 2033/34 | W3: =Head23 -> Forecast 2034/35
A4: Revenue by Vote | B4: 1
A5: =A3A!A5 -> Vote 01 - Council & Committees | C5: =A3A!C5 -> 0 | D5: =A3A!D5 -> 0 | E5: =A3A!E5 -> 0 | F5: =A3A!F5 -> 217599311 | G5: =A3A!G5 -> 245902485 | H5: =A3A!H5 -> 245902485 | I5: =A3A!I5 -> 243214080 | J5: =A3A!J5 -> 267834842 | K5: =A3A!K5 -> 280163051
A6: =A3A!A13 -> Vote 02 - Finance & Administration | C6: =A3A!C13 -> 1098633954 | D6: =A3A!D13 -> 780698013.1 | E6: =A3A!E13 -> 834234881.7 | F6: =A3A!F13 -> 328390383 | G6: =A3A!G13 -> 328179370 | H6: =A3A!H13 -> 328179370 | I6: =A3A!I13 -> 327588427 | J6: =A3A!J13 -> 355202730 | K6: =A3A!K13 -> 367455835
A7: =A3A!A28 -> Vote 03 - Planning & Development | C7: =A3A!C28 -> 3174662.97 | D7: =A3A!D28 -> 4811000 | E7: =A3A!E28 -> 4882000 | F7: =A3A!F28 -> 85478913 | G7: =A3A!G28 -> 102003913 | H7: =A3A!H28 -> 102003913 | I7: =A3A!I28 -> 119250004 | J7: =A3A!J28 -> 105243882 | K7: =A3A!K28 -> 105467672
A8: =A3A!A33 -> Vote 04 - Health | C8: =A3A!C33 -> 0 | D8: =A3A!D33 -> 0 | E8: =A3A!E33 -> 0 | F8: =A3A!F33 -> 21951898 | G8: =A3A!G33 -> 22351898 | H8: =A3A!H33 -> 22351898 | I8: =A3A!I33 -> 22857657 | J8: =A3A!J33 -> 24253046 | K8: =A3A!K33 -> 25734119
A9: =A3A!A35 -> Vote 05 - Community & Social Services | C9: =A3A!C35 -> 0 | D9: =A3A!D35 -> 0 | E9: =A3A!E35 -> 0 | F9: =A3A!F35 -> 15360956 | G9: =A3A!G35 -> 15360956 | H9: =A3A!H35 -> 15360956 | I9: =A3A!I35 -> 15621174 | J9: =A3A!J35 -> 16509024 | K9: =A3A!K35 -> 17448296
A10: =A3A!A37 -> Vote 06 - Housing | C10: =A3A!C37 -> 0 | D10: =A3A!D37 -> 0 | E10: =A3A!E37 -> 5284162 | F10: =A3A!F37 -> 19662654 | G10: =A3A!G37 -> 66913384 | H10: =A3A!H37 -> 66913384 | I10: =A3A!I37 -> 55330001 | J10: =A3A!J37 -> 16957707 | K10: =A3A!K37 -> 17895112
A11: =A3A!A40 -> Vote 07 - Public Safety | C11: =A3A!C40 -> 0 | D11: =A3A!D40 -> 425380.42 | E11: =A3A!E40 -> 0 | F11: =A3A!F40 -> 67716156 | G11: =A3A!G40 -> 71517156 | H11: =A3A!H40 -> 71517156 | I11: =A3A!I40 -> 66839344 | J11: =A3A!J40 -> 70446270 | K11: =A3A!K40 -> 74769309
A12: =A3A!A43 -> Vote 08 - Sports & Recreation | C12: =A3A!C43 -> 0 | D12: =A3A!D43 -> 0 | E12: =A3A!E43 -> 0 | F12: =A3A!F43 -> 11212608 | G12: =A3A!G43 -> 11212608 | H12: =A3A!H43 -> 11212608 | I12: =A3A!I43 -> 8845544 | J12: =A3A!J43 -> 9330948 | K12: =A3A!K43 -> 9843587
A13: =A3A!A45 -> Vote 09 - Environmental | C13: =A3A!C45 -> 0 | D13: =A3A!D45 -> 0 | E13: =A3A!E45 -> 0 | F13: =A3A!F45 -> 14827567 | G13: =A3A!G45 -> 15517567 | H13: =A3A!H45 -> 15517567 | I13: =A3A!I45 -> 16041164 | J13: =A3A!J45 -> 16855298 | K13: =A3A!K45 -> 17711649
A14: =A3A!A47 -> Vote 10 - Roads | C14: =A3A!C47 -> 0 | D14: =A3A!D47 -> 2587480.03 | E14: =A3A!E47 -> 2971841.41 | F14: =A3A!F47 -> 69827630 | G14: =A3A!G47 -> 61127630 | H14: =A3A!H47 -> 61127630 | I14: =A3A!I47 -> 65842177 | J14: =A3A!J47 -> 30749301 | K14: =A3A!K47 -> 27025670
A15: =A3A!A50 -> Vote 11 - Water | C15: =A3A!C50 -> 758435007.1 | D15: =A3A!D50 -> 1317340337 | E15: =A3A!E50 -> 1385438599 | F15: =A3A!F50 -> 1623968906 | G15: =A3A!G50 -> 1706011839 | H15: =A3A!H50 -> 1706011839 | I15: =A3A!I50 -> 1580353821 | J15: =A3A!J50 -> 1648214958 | K15: =A3A!K50 -> 1795104699 | L15: =A5A!#REF! -> 
A16: =A3A!A59 -> Vote 12 - Tourism | C16: =A3A!C59 -> 0 | D16: =A3A!D59 -> 0 | E16: =A3A!E59 -> 0 | F16: =A3A!F59 -> 6819452 | G16: =A3A!G59 -> 6879452 | H16: =A3A!H59 -> 6879452 | I16: =A3A!I59 -> 7544928 | J16: =A3A!J59 -> 7634195 | K16: =A3A!K59 -> 8044869 | L16: =A5A!#REF! -> 
A17: =A3A!A61 -> Vote 13 - Development Agency | C17: =A3A!C61 -> 0 | D17: =A3A!D61 -> 0 | E17: =A3A!E61 -> 0 | F17: =A3A!F61 -> 0 | G17: =A3A!G61 -> 119416674 | H17: =A3A!H61 -> 119416674 | I17: =A3A!I61 -> 110998186 | J17: =A3A!J61 -> 104792812 | K17: =A3A!K61 -> 110115433 | L17: =A5A!#REF! -> 
A18: ='Org structure'!A15 -> Vote 14 - | C18: =A3A!C63 -> 0 | D18: =A3A!D63 -> 0 | E18: =A3A!E63 -> 0 | F18: =A3A!F63 -> 0 | G18: =A3A!G63 -> 0 | H18: =A3A!H63 -> 0 | I18: =A3A!I63 -> 0 | J18: =A3A!J63 -> 0 | K18: =A3A!K63 -> 0 | L18: =A5A!#REF! -> 
A19: ='Org structure'!A16 -> Vote 15 - Other | C19: =A3A!C64 -> 0 | D19: =A3A!D64 -> 0 | E19: =A3A!E64 -> 0 | F19: =A3A!F64 -> 0 | G19: =A3A!G64 -> 0 | H19: =A3A!H64 -> 0 | I19: =A3A!I64 -> 0 | J19: =A3A!J64 -> 0 | K19: =A3A!K64 -> 0 | L19: =A5A!#REF! -> 
A20: Total Revenue by Vote | B20: 2 | C20: =SUM(C5:C19) -> 1860243624 | D20: =SUM(D5:D19) -> 2105862210 | E20: 2232811484 | F20: 2482816434 | G20: 2772394932 | H20: 2772394932 | I20: 2640326507 | J20: 2674025013 | K20: 2856779301
A22: Expenditure by Vote to be appropriated | B22: 1
A23: =A3A!A68 -> Vote 01 - Council & Committees | C23: =A3A!C68 -> 145797885.8 | D23: =A3A!D68 -> 202225837 | E23: =A3A!E68 -> 250420048.4 | F23: =A3A!F68 -> 221893304 | G23: =A3A!G68 -> 250546481 | H23: =A3A!H68 -> 250546481 | I23: =A3A!I68 -> 253320022 | J23: =A3A!J68 -> 273342325 | K23: =A3A!K68 -> 286351030
A24: =A3A!A76 -> Vote 02 - Finance & Administration | C24: =A3A!C76 -> 382014515.7 | D24: =A3A!D76 -> 306204948.5 | E24: =A3A!E76 -> 301633192.9 | F24: =A3A!F76 -> 306554229 | G24: =A3A!G76 -> 302443214 | H24: =A3A!H76 -> 302443214 | I24: =A3A!I76 -> 310891173 | J24: =A3A!J76 -> 339518088 | K24: =A3A!K76 -> 357305834
A25: =A3A!A91 -> Vote 03 - Planning & Development | C25: =A3A!C91 -> 76591171.42 | D25: =A3A!D91 -> 136494781.1 | E25: =A3A!E91 -> 77360420.76 | F25: =A3A!F91 -> 79184913 | G25: =A3A!G91 -> 95949913 | H25: =A3A!H91 -> 95949913 | I25: =A3A!I91 -> 110233002 | J25: =A3A!J91 -> 101943878 | K25: =A3A!K91 -> 105467674
A26: =A3A!A96 -> Vote 04 - Health | C26: =A3A!C96 -> 3032774.87 | D26: =A3A!D96 -> 2570350.9 | E26: =A3A!E96 -> 19140225.74 | F26: =A3A!F96 -> 21831899 | G26: =A3A!G96 -> 21831899 | H26: =A3A!H96 -> 21831899 | I26: =A3A!I96 -> 22940979 | J26: =A3A!J96 -> 24340868 | K26: =A3A!K96 -> 25734120
A27: =A3A!A98 -> Vote 05 - Community & Social Services | C27: =A3A!C98 -> 11890245.78 | D27: =A3A!D98 -> 11548608.53 | E27: =A3A!E98 -> 13273852.94 | F27: =A3A!F98 -> 15360954 | G27: =A3A!G98 -> 15360954 | H27: =A3A!H98 -> 15360954 | I27: =A3A!I98 -> 16209958 | J27: =A3A!J98 -> 17129603 | K27: =A3A!K98 -> 17448293
A28: =A3A!A100 -> Vote 06 - Housing | C28: =A3A!C100 -> 8327762.41 | D28: =A3A!D100 -> 15702638.19 | E28: =A3A!E100 -> 20208908.59 | F28: =A3A!F100 -> 16117653 | G28: =A3A!G100 -> 16117654 | H28: =A3A!H100 -> 16117654 | I28: =A3A!I100 -> 15638526 | J28: =A3A!J100 -> 17285324 | K28: =A3A!K100 -> 17895115
A29: =A3A!A103 -> Vote 07 - Public Safety | C29: =A3A!C103 -> 27942786.84 | D29: =A3A!D103 -> 41665651.09 | E29: =A3A!E103 -> 45905202.85 | F29: =A3A!F103 -> 59716156 | G29: =A3A!G103 -> 62596156 | H29: =A3A!H103 -> 62596156 | I29: =A3A!I103 -> 65172567 | J29: =A3A!J103 -> 65613685 | K29: =A3A!K103 -> 68769308
A30: =A3A!A106 -> Vote 08 - Sports & Recreation | C30: =A3A!C106 -> 4895070.3 | D30: =A3A!D106 -> 5251346.02 | E30: =A3A!E106 -> 7186701.12 | F30: =A3A!F106 -> 11212604 | G30: =A3A!G106 -> 11212605 | H30: =A3A!H106 -> 11212605 | I30: =A3A!I106 -> 9298410 | J30: =A3A!J106 -> 9808264 | K30: =A3A!K106 -> 9843593
A31: =A3A!A108 -> Vote 09 - Environmental | C31: =A3A!C108 -> 24944094.43 | D31: =A3A!D108 -> 26142656.94 | E31: =A3A!E108 -> 12268469.94 | F31: =A3A!F108 -> 14827567 | G31: =A3A!G108 -> 15277567 | H31: =A3A!H108 -> 15277567 | I31: =A3A!I108 -> 18149167 | J31: =A3A!J108 -> 19077134 | K31: =A3A!K108 -> 17711647
A32: =A3A!A110 -> Vote 10 - Roads | C32: =A3A!C110 -> 18225948.05 | D32: =A3A!D110 -> 9781256.12 | E32: =A3A!E110 -> 9860994.33 | F32: =A3A!F110 -> 21715630 | G32: =A3A!G110 -> 22515629 | H32: =A3A!H110 -> 22515629 | I32: =A3A!I110 -> 23000963 | J32: =A3A!J110 -> 23067810 | K32: =A3A!K110 -> 23719669
A33: =A3A!A113 -> Vote 11 - Water | C33: =A3A!C113 -> 683644106.7 | D33: =A3A!D113 -> 808050691.3 | E33: =A3A!E113 -> 919779580.8 | F33: =A3A!F113 -> 658009367 | G33: =A3A!G113 -> 653996261 | H33: =A3A!H113 -> 653996261 | I33: =A3A!I113 -> 770110423 | J33: =A3A!J113 -> 799168249 | K33: =A3A!K113 -> 823555382 | L33: =A3A!L114 -> 0
A34: =A3A!A122 -> Vote 12 - Tourism | C34: =A3A!C122 -> 937884.68 | D34: =A3A!D122 -> 4685074.41 | E34: =A3A!E122 -> 5295167.55 | F34: =A3A!F122 -> 6819452 | G34: =A3A!G122 -> 6879452 | H34: =A3A!H122 -> 6879452 | I34: =A3A!I122 -> 7544929 | J34: =A3A!J122 -> 7634193 | K34: =A3A!K122 -> 8044869 | L34: =A3A!L123 -> 0
A35: =A3A!A124 -> Vote 13 - Development Agency | C35: =A3A!C124 -> 0 | D35: =A3A!D124 -> 0 | E35: =A3A!E124 -> 0 | F35: =A3A!F124 -> 0 | G35: =A3A!G124 -> 184838637 | H35: =A3A!H124 -> 184838637 | I35: =A3A!I124 -> 83891124 | J35: =A3A!J124 -> 94575398 | K35: =A3A!K124 -> 102160727 | L35: =A3A!L125 -> 0
A36: ='Org structure'!A15 -> Vote 14 - | C36: =A3A!C126 -> 0 | D36: =A3A!D126 -> 0 | E36: =A3A!E126 -> 0 | F36: =A3A!F126 -> 0 | G36: =A3A!G126 -> 0 | H36: =A3A!H126 -> 0 | I36: =A3A!I126 -> 0 | J36: =A3A!J126 -> 0 | K36: =A3A!K126 -> 0 | L36: =A3A!#REF! -> 
A37: ='Org structure'!A16 -> Vote 15 - Other | C37: =A3A!C127 -> 0 | D37: =A3A!D127 -> 0 | E37: =A3A!E127 -> 0 | F37: =A3A!F127 -> 0 | G37: =A3A!G127 -> 0 | H37: =A3A!H127 -> 0 | I37: =A3A!I127 -> 0 | J37: =A3A!J127 -> 0 | K37: =A3A!K127 -> 0 | L37: =A3A!#REF! -> 
A38: Total Expenditure by Vote | B38: 2 | C38: =SUM(C23:C37) -> 1388244247 | D38: =SUM(D23:D37) -> 1570323840 | E38: 1682332766 | F38: 1433243728 | G38: 1659566422 | H38: 1659566422 | I38: 1706401243 | J38: 1792504819 | K38: 1864007261 | L38: =SUM(L23:L29) -> 0 | M38: 0 | N38: 0 | O38: 0 | P38: 0 | Q38: 0 | R38: 0 | S38: 0 | T38: 0 | U38: 0 | V38: 0 | W38: 0
A39: =result -> Surplus/(Deficit) for the year | B39: 2 | C39: =C20-C38 -> 471999377 | D39: 535538370 | E39: 550478717.9 | F39: 1049572706 | G39: 1112828510 | H39: 1112828510 | I39: 933925264 | J39: 881520194 | K39: 992772040 | L39: 0 | M39: 0 | N39: 0 | O39: 0 | P39: 0 | Q39: 0 | R39: 0 | S39: 0 | T39: 0 | U39: 0 | V39: 0 | W39: 0
A40: =head27a -> References
A41: 1. Insert 'Vote'; e.g. department, if different to functional classification structure
A42: 2. Must reconcile to Budgeted Financial Performance (revenue and expenditure)
A43: 3. Assign share in 'associate' to relevant Vote
A45: ="check "&A39 -> check Surplus/(Deficit) for the year | C45: =C39-A3A!C130 -> 0 | D45: =D39-A3A!D130 -> 0 | E45: =E39-A3A!E130 -> 0 | F45: =F39-A3A!F130 -> 0 | G45: =G39-A3A!G130 -> 0 | H45: =H39-A3A!H130 -> 0 | I45: =I39-A3A!I130 -> 0 | J45: =J39-A3A!J130 -> 0 | K45: =K39-A3A!K130 -> 0

Sheet A3A
A1: =muni&" - "&Approve2&"A" -> DC15 O .R. Tambo - Table A3 Consolidated Budgeted Financial Performance (revenue and expenditure by municipal vote)A
A2: =Vdesc -> Vote Description | B2: =head27 -> Ref | C2: =head1b -> 2016/17 | D2: =head1A -> 2017/18 | E2: =Head1 -> 2018/19 | F2: =Head2 -> Current Year 2019/20 | I2: =Head3 -> 2020/21 Medium Term Revenue & Expenditure Framework | L2: =Head4 -> LTFS
A3: R thousand | C3: =Head5 -> Audited Outcome | D3: =Head5 -> Audited Outcome | E3: =Head5 -> Audited Outcome | F3: =Head6 -> Original Budget | G3: =Head7 -> Adjusted Budget | H3: =Head8 -> Full Year Forecast | I3: =Head9 -> Budget Year 2020/21 | J3: =Head10 -> Budget Year +1 2021/22 | K3: =Head11 -> Budget Year +2 2022/23 | L3: =Head12 -> Forecast 2023/24 | M3: =Head13 -> Forecast 2024/25 | N3: =Head14 -> Forecast 2025/26 | O3: =Head15 -> Forecast 2026/27 | P3: =Head16 -> Forecast 2027/28 | Q3: =Head17 -> Forecast 2028/29 | R3: =Head18 -> Forecast 2029/30 | S3: =Head19 -> Forecast 2030/31 | T3: =Head20 -> Forecast 2031/32 | U3: =Head21 -> Forecast 2032/33 | V3: =Head22 -> Forecast 2033/34 | W3: =Head23 -> Forecast 2034/35
A4: Revenue by Vote | B4: 1
A5: ='Org structure'!A2 -> Vote 01 - Council & Committees | C5: =SUM(C6:C12) -> 0 | D5: 0 | E5: 0 | F5: 217599311 | G5: 245902485 | H5: 245902485 | I5: 243214080 | J5: 267834842 | K5: 280163051
A6: ='Org structure'!E3 -> 01.1 - Speaker's Office | C6: 0 | D6: 0 | E6: 0 | F6: 77249118 | G6: 90924118 | H6: 90924118 | I6: 102395908 | J6: 107349987 | K6: 110477758
A7: ='Org structure'!E4 -> 01.2 - Mayoral Office | C7: 0 | D7: 0 | E7: 0 | F7: 47073336 | G7: 50305419 | H7: 50305419 | I7: 52815737 | J7: 56822938 | K7: 60340086
A8: ='Org structure'!E5 -> 01.3 - Office Of The Municipal Manager | C8: 0 | D8: 0 | E8: 0 | F8: 21817058 | G8: 23072640 | H8: 23072640 | I8: 21567735 | J8: 29548240 | K8: 31089793
A9: ='Org structure'!E6 -> 01.4 - Office Of The Executive Mayor | C9: 0 | D9: 0 | E9: 0 | F9: 35763681 | G9: 40659772 | H9: 40659772 | I9: 35115341 | J9: 37872833 | K9: 39983271
A10: ='Org structure'!E7 -> 01.5 - Internal Audit | C10: 0 | D10: 0 | E10: 0 | F10: 8559283 | G10: 8559283 | H10: 8559283 | I10: 8409220 | J10: 8911019 | K10: 9443087
A11: ='Org structure'!E8 -> 01.6 - Office Of The Chief Operating Officer | C11: 0 | D11: 0 | E11: 0 | F11: 17748456 | G11: 21943477 | H11: 21943477 | I11: 14948462 | J11: 15809613 | K11: 16721222
A12: ='Org structure'!E9 -> 01.7 - Legal Services | C12: 0 | D12: 0 | E12: 0 | F12: 9388379 | G12: 10437776 | H12: 10437776 | I12: 7961677 | J12: 11520212 | K12: 12107834
A13: ='Org structure'!A3 -> Vote 02 - Finance & Administration | C13: =SUM(C14:C27) -> 1098633954 | D13: 780698013.1 | E13: 834234881.7 | F13: 328390383 | G13: 328179370 | H13: 328179370 | I13: 327588427 | J13: 355202730 | K13: 367455835
A14: ='Org structure'!E11 -> 02.1 - Budget And Reporting Office | C14: 1098242422 | D14: 730215000 | E14: 793641000 | F14: 0 | G14: 0 | H14: 0 | I14: 0 | J14: 0 | K14: 0
A15: ='Org structure'!E12 -> 02.2 - Budget And Reporting Office | C15: 0 | D15: 0 | E15: 0 | F15: 23057346 | G15: 21557346 | H15: 21557346 | I15: 21531001 | J15: 22743558 | K15: 23920676
A16: ='Org structure'!E13 -> 02.3 - Human Resources | C16: 391531.86 | D16: 0 | E16: 0 | F16: 90433454 | G16: 81420661 | H16: 81420661 | I16: 94237891 | J16: 100729114 | K16: 106542325
A17: ='Org structure'!E14 -> 02.4 - Procurement And Asset Management | C17: 0 | D17: 50405630.42 | E17: 40454699.65 | F17: 56331092 | G17: 75781092 | H17: 75781092 | I17: 70048942 | J17: 70992773 | K17: 67311898
A18: ='Org structure'!E15 -> 02.5 - Information Technology | C18: 0 | D18: 0 | E18: 0 | F18: 34764271 | G18: 34105449 | H18: 34105449 | I18: 21797681 | J18: 34857676 | K18: 36343479
A19: ='Org structure'!E16 -> 02.6 - Municipal Records And Auxiliary Services | C19: 0 | D19: 0 | E19: 0 | F19: 10430756 | G19: 9315908 | H19: 9315908 | I19: 11075549 | J19: 11770500 | K19: 12501611
A20: ='Org structure'!E17 -> 02.7 - Geographical Information Systems | C20: 0 | D20: 0 | E20: 0 | F20: 1913152 | G20: 1913152 | H20: 1913152 | I20: 2025207 | J20: 2144376 | K20: 2270652
A21: ='Org structure'!E18 -> 02.8 - Security Services & Municipal Keypoints | C21: 0 | D21: 0 | E21: 0 | F21: 34811466 | G21: 34597929 | H21: 34597929 | I21: 36327943 | J21: 38505195 | K21: 40854320
A22: ='Org structure'!E19 -> 02.9 - Treasury And Revenue | C22: 0 | D22: 0 | E22: 0 | F22: 0 | G22: 0 | H22: 0 | I22: 0 | J22: 0 | K22: 0
A23: ='Org structure'!E20 -> 02.10 - Treasury And Revenue | C23: 0 | D23: 0 | E23: 0 | F23: 0 | G23: 0 | H23: 0 | I23: 0 | J23: 0 | K23: 0
A24: ='Org structure'!E21 -> 02.11 - Budget And Reporting | C24: 0 | D24: 0 | E24: 0 | F24: 0 | G24: 0 | H24: 0 | I24: 0 | J24: 0 | K24: 0
A25: ='Org structure'!E22 -> 02.12 - Budget And Reporting | C25: 0 | D25: 0 | E25: 0 | F25: 7979029 | G25: 7979029 | H25: 7979029 | I25: 7630634 | J25: 6923757 | K25: 7340759
A26: ='Org structure'!E23 -> 02.13 - Accounting Services | C26: 0 | D26: 77382.65 | E26: 139182.01 | F26: 29600920 | G26: 29989907 | H26: 29989907 | I26: 31584840 | J26: 33283569 | K26: 35075803
A27: ='Org structure'!E24 -> 02.14 - Wsa Finance | C27: 0 | D27: 0 | E27: 0 | F27: 39068897 | G27: 31518897 | H27: 31518897 | I27: 31328739 | J27: 33252212 | K27: 35294312
A28: ='Org structure'!A4 -> Vote 03 - Planning & Development | C28: =SUM(C29:C32) -> 3174662.97 | D28: 4811000 | E28: 4882000 | F28: 85478913 | G28: 102003913 | H28: 102003913 | I28: 119250004 | J28: 105243882 | K28: 105467672
A29: ='Org structure'!E26 -> 03.1 - Economic Development | C29: 3174662.97 | D29: 4811000 | E29: 4882000 | F29: 45226800 | G29: 51351800 | H29: 51351800 | I29: 67059449 | J29: 51985239 | K29: 51037850
A30: ='Org structure'!E27 -> 03.2 - Survey And Planning | C30: 0 | D30: 0 | E30: 0 | F30: 3412059 | G30: 3412059 | H30: 3412059 | I30: 3625313 | J30: 3851895 | K30: 4092639
A31: ='Org structure'!E28 -> 03.3 - Ntinga Development Agency | C31: 0 | D31: 0 | E31: 0 | F31: 32791559 | G31: 43191559 | H31: 43191559 | I31: 44267179 | J31: 44843469 | K31: 45492269
A32: ='Org structure'!E29 -> 03.4 - Socio-Economic Development Facilitation | C32: 0 | D32: 0 | E32: 0 | F32: 4048495 | G32: 4048495 | H32: 4048495 | I32: 4298063 | J32: 4563279 | K32: 4844914
A33: ='Org structure'!A5 -> Vote 04 - Health | C33: =SUM(C34:C34) -> 0 | D33: 0 | E33: 0 | F33: 21951898 | G33: 22351898 | H33: 22351898 | I33: 22857657 | J33: 24253046 | K33: 25734119
A34: ='Org structure'!E31 -> 04.1 - Municipal Health | C34: 0 | D34: 0 | E34: 0 | F34: 21951898 | G34: 22351898 | H34: 22351898 | I34: 22857657 | J34: 24253046 | K34: 25734119
A35: ='Org structure'!A6 -> Vote 05 - Community & Social Services | C35: =SUM(C36:C36) -> 0 | D35: 0 | E35: 0 | F35: 15360956 | G35: 15360956 | H35: 15360956 | I35: 15621174 | J35: 16509024 | K35: 17448296
A36: ='Org structure'!E33 -> 05.1 - Social Development And Community Safety | C36: 0 | D36: 0 | E36: 0 | F36: 15360956 | G36: 15360956 | H36: 15360956 | I36: 15621174 | J36: 16509024 | K36: 17448296
A37: ='Org structure'!A7 -> Vote 06 - Housing | C37: =SUM(C38:C39) -> 0 | D37: 0 | E37: 5284162 | F37: 19662654 | G37: 66913384 | H37: 66913384 | I37: 55330001 | J37: 16957707 | K37: 17895112
A38: ='Org structure'!E35 -> 06.1 - Housing Settlement | C38: 0 | D38: 0 | E38: 5284162 | F38: 17373201 | G38: 64623931 | H38: 64623931 | I38: 52897457 | J38: 14373129 | K38: 15148998
A39: ='Org structure'!E36 -> 06.2 - Building And Technology | C39: 0 | D39: 0 | E39: 0 | F39: 2289453 | G39: 2289453 | H39: 2289453 | I39: 2432544 | J39: 2584578 | K39: 2746114
A40: ='Org structure'!A8 -> Vote 07 - Public Safety | C40: =SUM(C41:C42) -> 0 | D40: 425380.42 | E40: 0 | F40: 67716156 | G40: 71517156 | H40: 71517156 | I40: 66839344 | J40: 70446270 | K40: 74769309
A41: ='Org structure'!E38 -> 07.1 - Disaster Management | C41: 0 | D41: 425380.42 | E41: 0 | F41: 31956248 | G41: 35441048 | H41: 35441048 | I41: 31896733 | J41: 30383275 | K41: 32171415
A42: ='Org structure'!E39 -> 07.2 - Fire; Rescue And Emergency | C42: 0 | D42: 0 | E42: 0 | F42: 35759908 | G42: 36076108 | H42: 36076108 | I42: 34942611 | J42: 40062995 | K42: 42597894
A43: ='Org structure'!A9 -> Vote 08 - Sports & Recreation | C43: =SUM(C44:C44) -> 0 | D43: 0 | E43: 0 | F43: 11212608 | G43: 11212608 | H43: 11212608 | I43: 8845544 | J43: 9330948 | K43: 9843587
A44: ='Org structure'!E41 -> 08.1 - Arts; Sports And Culture | C44: 0 | D44: 0 | E44: 0 | F44: 11212608 | G44: 11212608 | H44: 11212608 | I44: 8845544 | J44: 9330948 | K44: 9843587
A45: ='Org structure'!A10 -> Vote 09 - Environmental | C45: =SUM(C46:C46) -> 0 | D45: 0 | E45: 0 | F45: 14827567 | G45: 15517567 | H45: 15517567 | I45: 16041164 | J45: 16855298 | K45: 17711649
A46: ='Org structure'!E43 -> 09.1 - Environmental Management | C46: 0 | D46: 0 | E46: 0 | F46: 14827567 | G46: 15517567 | H46: 15517567 | I46: 16041164 | J46: 16855298 | K46: 17711649
A47: ='Org structure'!A11 -> Vote 10 - Roads | C47: =SUM(C48:C49) -> 0 | D47: 2587480.03 | E47: 2971841.41 | F47: 69827630 | G47: 61127630 | H47: 61127630 | I47: 65842177 | J47: 30749301 | K47: 27025670
A48: ='Org structure'!E45 -> 10.1 - Planner Transport Planning | C48: 0 | D48: 0 | E48: 0 | F48: 5649844 | G48: 5649844 | H48: 5649844 | I48: 6149931 | J48: 6484264 | K48: 6837191
A49: ='Org structure'!E46 -> 10.2 - Public Works | C49: 0 | D49: 2587480.03 | E49: 2971841.41 | F49: 64177786 | G49: 55477786 | H49: 55477786 | I49: 59692246 | J49: 24265037 | K49: 20188479
A50: ='Org structure'!A12 -> Vote 11 - Water | C50: =SUM(C51:C58) -> 758435007.1 | D50: 1317340337 | E50: 1385438599 | F50: 1623968906 | G50: 1706011839 | H50: 1706011839 | I50: 1580353821 | J50: 1648214958 | K50: 1795104699
A51: ='Org structure'!E48 -> 11.1 - Wsa Planning | C51: 0 | D51: 0 | E51: 0 | F51: 8093493 | G51: 8093493 | H51: 8093493 | I51: 8599337 | J51: 9136795 | K51: 9707845
A52: ='Org structure'!E49 -> 11.2 - Wsa Monit. Env. Municipal Health Service | C52: 0 | D52: 0 | E52: 0 | F52: 24227881 | G52: 24227881 | H52: 24227881 | I52: 25742124 | J52: 27351007 | K52: 29060445
A53: ='Org structure'!E50 -> 11.3 - Wsu1 | C53: 758672153.1 | D53: 1350873831 | E53: 1363035183 | F53: 1563259778 | G53: 1645302711 | H53: 1645302711 | I53: 1515850371 | J53: 1579680043 | K53: 1722286351
A54: ='Org structure'!E51 -> 11.4 - Wsu2 | C54: -237146 | D54: -33533494.75 | E54: 22403415.74 | F54: 8888295 | G54: 8888295 | H54: 8888295 | I54: 9443814 | J54: 10034052 | K54: 10661181
A55: ='Org structure'!E52 -> 11.5 - Wsu3 | C55: 0 | D55: 0 | E55: 0 | F55: 5177367 | G55: 5177367 | H55: 5177367 | I55: 5500952 | J55: 5844762 | K55: 6210059
A56: ='Org structure'!E53 -> 11.6 - Wsu4 | C56: 0 | D56: 0 | E56: 0 | F56: 12965198 | G56: 12965198 | H56: 12965198 | I56: 13775523 | J56: 14636493 | K56: 15551274
A57: ='Org structure'!E54 -> 11.7 - Wsa Communication Customer Relations | C57: 0 | D57: 0 | E57: 0 | F57: 0 | G57: 0 | H57: 0 | I57: 0 | J57: 0 | K57: 0
A58: ='Org structure'!E55 -> 11.8 - Wsa Capex Services | C58: 0 | D58: 0 | E58: 0 | F58: 1356894 | G58: 1356894 | H58: 1356894 | I58: 1441700 | J58: 1531806 | K58: 1627544
A59: ='Org structure'!A13 -> Vote 12 - Tourism | C59: =SUM(C60:C60) -> 0 | D59: 0 | E59: 0 | F59: 6819452 | G59: 6879452 | H59: 6879452 | I59: 7544928 | J59: 7634195 | K59: 8044869
A60: ='Org structure'!E57 -> 12.1 - Tourism | C60: 0 | D60: 0 | E60: 0 | F60: 6819452 | G60: 6879452 | H60: 6879452 | I60: 7544928 | J60: 7634195 | K60: 8044869
A61: ='Org structure'!A14 -> Vote 13 - Development Agency | C61: =SUM(C62:C62) -> 0 | D61: 0 | E61: 0 | F61: 0 | G61: 119416674 | H61: 119416674 | I61: 110998186 | J61: 104792812 | K61: 110115433
A62: ='Org structure'!E59 -> 13.1 - Ntinga Development Agency | C62: 0 | D62: 0 | E62: 0 | F62: 0 | G62: 119416674 | H62: 119416674 | I62: 110998186 | J62: 104792812 | K62: 110115433
A63: ='Org structure'!A15 -> Vote 14 - | C63: 0 | D63: 0 | E63: 0 | F63: 0 | G63: 0 | H63: 0 | I63: 0 | J63: 0 | K63: 0
A64: ='Org structure'!A16 -> Vote 15 - Other | C64: 0 | D64: 0 | E64: 0 | F64: 0 | G64: 0 | H64: 0 | I64: 0 | J64: 0 | K64: 0
A65: Total Revenue by Vote | B65: 2 | C65: =C5+C13+C28+C33+C35+C37+C40+C43+C45+C47+C50+C59+C61+C63+C64 -> 1860243624 | D65: 2105862210 | E65: 2232811484 | F65: 2482816434 | G65: 2772394932 | H65: 2772394932 | I65: 2640326507 | J65: 2674025013 | K65: 2856779301 | L65: =SUM(#REF!) ->  | M65: =SUM(#REF!) ->  | N65: =SUM(#REF!) ->  | O65: =SUM(#REF!) ->  | P65: =SUM(#REF!) ->  | Q65: =SUM(#REF!) ->  | R65: =SUM(#REF!) ->  | S65: =SUM(#REF!) ->  | T65: =SUM(#REF!) ->  | U65: =SUM(#REF!) ->  | V65: =SUM(#REF!) ->  | W65: =SUM(#REF!) -> 
A67: Expenditure by Vote | B67: 1
A68: ='Org structure'!A2 -> Vote 01 - Council & Committees | C68: =SUM(C69:C75) -> 145797885.8 | D68: 202225837 | E68: 250420048.4 | F68: 221893304 | G68: 250546481 | H68: 250546481 | I68: 253320022 | J68: 273342325 | K68: 286351030
A69: ='Org structure'!E3 -> 01.1 - Speaker's Office | C69: 44205003.29 | D69: 66562713.17 | E69: 68672855.68 | F69: 75249119 | G69: 88924118 | H69: 88924118 | I69: 97395912 | J69: 103849987 | K69: 110477757
A70: ='Org structure'!E4 -> 01.2 - Mayoral Office | C70: 29025478.53 | D70: 63375887.94 | E70: 78349757.34 | F70: 47073335 | G70: 50655419 | H70: 50655419 | I70: 54159881 | J70: 58239662 | K70: 60340087
A71: ='Org structure'!E5 -> 01.3 - Office Of The Municipal Manager | C71: 35396975.33 | D71: 22258866.91 | E71: 28328705.85 | F71: 28111057 | G71: 27976639 | H71: 27976639 | I71: 28774842 | J71: 30275614 | K71: 31089792
A72: ='Org structure'!E6 -> 01.4 - Office Of The Executive Mayor | C72: 12487993.73 | D72: 26485518.5 | E72: 24198047.08 | F72: 35763679 | G72: 40659773 | H72: 40659773 | I72: 36014344 | J72: 38820371 | K72: 39983276
A73: ='Org structure'!E7 -> 01.5 - Internal Audit | C73: 4964392.79 | D73: 5808861.92 | E73: 7977257.31 | F73: 8559282 | G73: 8559282 | H73: 8559282 | I73: 8409222 | J73: 8911021 | K73: 9443085
A74: ='Org structure'!E8 -> 01.6 - Office Of The Chief Operating Officer | C74: 6082393.22 | D74: 7096074.11 | E74: 21852323.01 | F74: 17748455 | G74: 22673476 | H74: 22673476 | I74: 20604145 | J74: 21725457 | K74: 22909199
A75: ='Org structure'!E9 -> 01.7 - Legal Services | C75: 13635648.92 | D75: 10637914.46 | E75: 21041102.14 | F75: 9388377 | G75: 11097774 | H75: 11097774 | I75: 7961676 | J75: 11520213 | K75: 12107834
A76: ='Org structure'!A3 -> Vote 02 - Finance & Administration | C76: =SUM(C77:C90) -> 382014515.7 | D76: 306204948.5 | E76: 301633192.9 | F76: 306554229 | G76: 302443214 | H76: 302443214 | I76: 310891173 | J76: 339518088 | K76: 357305834
A77: ='Org structure'!E11 -> 02.1 - Budget And Reporting Office | C77: 0 | D77: 0 | E77: 0 | F77: 0 | G77: 0 | H77: 0 | I77: 0 | J77: 0 | K77: 0
A78: ='Org structure'!E12 -> 02.2 - Budget And Reporting Office | C78: 190350264.7 | D78: 28740574.92 | E78: 26608887.06 | F78: 23057346 | G78: 21557346 | H78: 21557346 | I78: 21531001 | J78: 22743559 | K78: 23920675
A79: ='Org structure'!E13 -> 02.3 - Human Resources | C79: 47032058.74 | D79: 62964458.74 | E79: 63640649.54 | F79: 90433453 | G79: 81420659 | H79: 81420659 | I79: 94245137 | J79: 100736752 | K79: 106542325
A80: ='Org structure'!E14 -> 02.4 - Procurement And Asset Management | C80: 46635111.54 | D80: 62894629.81 | E80: 56695817.35 | F80: 47681095 | G80: 55631095 | H80: 55631095 | I80: 56413389 | J80: 59287797 | K80: 62311900
A81: ='Org structure'!E15 -> 02.5 - Information Technology | C81: 14029066.41 | D81: 17887265.8 | E81: 26796740.8 | F81: 33078116 | G81: 32019293 | H81: 32019293 | I81: 20214362 | J81: 32769859 | K81: 33693478
A82: ='Org structure'!E16 -> 02.6 - Municipal Records And Auxiliary Services | C82: 4920376.67 | D82: 6175056.51 | E82: 6749317.59 | F82: 10430757 | G82: 9315909 | H82: 9315909 | I82: 11077362 | J82: 11772407 | K82: 12501608
A83: ='Org structure'!E17 -> 02.7 - Geographical Information Systems | C83: 1866821.84 | D83: 1877651.78 | E83: 1986575.01 | F83: 1913150 | G83: 1913150 | H83: 1913150 | I83: 2025206 | J83: 2144373 | K83: 2270655
A84: ='Org structure'!E18 -> 02.8 - Security Services & Municipal Keypoints | C84: 19593170.93 | D84: 26248228.75 | E84: 31669496.56 | F84: 33311466 | G84: 33097929 | H84: 33097929 | I84: 34840502 | J84: 36603805 | K84: 38354320
A85: ='Org structure'!E19 -> 02.9 - Treasury And Revenue | C85: 0 | D85: 0 | E85: 48999.88 | F85: 0 | G85: 0 | H85: 0 | I85: 0 | J85: 0 | K85: 0
A86: ='Org structure'!E20 -> 02.10 - Treasury And Revenue | C86: 0 | D86: 0 | E86: 0 | F86: 0 | G86: 0 | H86: 0 | I86: 0 | J86: 0 | K86: 0
A87: ='Org structure'!E21 -> 02.11 - Budget And Reporting | C87: 0 | D87: 0 | E87: 0 | F87: 0 | G87: 0 | H87: 0 | I87: 0 | J87: 0 | K87: 0
A88: ='Org structure'!E22 -> 02.12 - Budget And Reporting | C88: 12116862.22 | D88: 27383487.73 | E88: 36143064.23 | F88: 7979030 | G88: 7979030 | H88: 7979030 | I88: 7630635 | J88: 6923755 | K88: 7340758
A89: ='Org structure'!E23 -> 02.13 - Accounting Services | C89: 17953562.64 | D89: 20594215.45 | E89: 22807596.62 | F89: 29600919 | G89: 29989906 | H89: 29989906 | I89: 31584840 | J89: 33283569 | K89: 35075804
A90: ='Org structure'!E24 -> 02.14 - Wsa Finance | C90: 27517220.08 | D90: 51439379.01 | E90: 28486048.24 | F90: 29068897 | G90: 29518897 | H90: 29518897 | I90: 31328739 | J90: 33252212 | K90: 35294311
A91: ='Org structure'!A4 -> Vote 03 - Planning & Development | C91: =SUM(C92:C95) -> 76591171.42 | D91: 136494781.1 | E91: 77360420.76 | F91: 79184913 | G91: 95949913 | H91: 95949913 | I91: 110233002 | J91: 101943878 | K91: 105467674
A92: ='Org structure'!E26 -> 03.1 - Economic Development | C92: 14023028.48 | D92: 37608876.54 | E92: 31736700.6 | F92: 38932800 | G92: 45297800 | H92: 45297800 | I92: 58042450 | J92: 48685238 | K92: 51037852
A93: ='Org structure'!E27 -> 03.2 - Survey And Planning | C93: 7093623.04 | D93: 8331601.34 | E93: 9039743.09 | F93: 3412059 | G93: 3412059 | H93: 3412059 | I93: 3625312 | J93: 3851894 | K93: 4092638
A94: ='Org structure'!E28 -> 03.3 - Ntinga Development Agency | C94: 54392140.35 | D94: 89153717.75 | E94: 35030157.8 | F94: 32791559 | G94: 43191559 | H94: 43191559 | I94: 44267179 | J94: 44843469 | K94: 45492269
A95: ='Org structure'!E29 -> 03.4 - Socio-Economic Development Facilitation | C95: 1082379.55 | D95: 1400585.45 | E95: 1553819.27 | F95: 4048495 | G95: 4048495 | H95: 4048495 | I95: 4298061 | J95: 4563277 | K95: 4844915
A96: ='Org structure'!A5 -> Vote 04 - Health | C96: =SUM(C97:C97) -> 3032774.87 | D96: 2570350.9 | E96: 19140225.74 | F96: 21831899 | G96: 21831899 | H96: 21831899 | I96: 22940979 | J96: 24340868 | K96: 25734120
A97: ='Org structure'!E31 -> 04.1 - Municipal Health | C97: 3032774.87 | D97: 2570350.9 | E97: 19140225.74 | F97: 21831899 | G97: 21831899 | H97: 21831899 | I97: 22940979 | J97: 24340868 | K97: 25734120
A98: ='Org structure'!A6 -> Vote 05 - Community & Social Services | C98: =SUM(C99:C99) -> 11890245.78 | D98: 11548608.53 | E98: 13273852.94 | F98: 15360954 | G98: 15360954 | H98: 15360954 | I98: 16209958 | J98: 17129603 | K98: 17448293
A99: ='Org structure'!E33 -> 05.1 - Social Development And Community Safety | C99: 11890245.78 | D99: 11548608.53 | E99: 13273852.94 | F99: 15360954 | G99: 15360954 | H99: 15360954 | I99: 16209958 | J99: 17129603 | K99: 17448293
A100: ='Org structure'!A7 -> Vote 06 - Housing | C100: =SUM(C101:C102) -> 8327762.41 | D100: 15702638.19 | E100: 20208908.59 | F100: 16117653 | G100: 16117654 | H100: 16117654 | I100: 15638526 | J100: 17285324 | K100: 17895115
A101: ='Org structure'!E35 -> 06.1 - Housing Settlement | C101: 5958904.06 | D101: 13949146.29 | E101: 17834031.52 | F101: 13828200 | G101: 13828201 | H101: 13828201 | I101: 13205983 | J101: 14700746 | K101: 15149001
A102: ='Org structure'!E36 -> 06.2 - Building And Technology | C102: 2368858.35 | D102: 1753491.9 | E102: 2374877.07 | F102: 2289453 | G102: 2289453 | H102: 2289453 | I102: 2432543 | J102: 2584578 | K102: 2746114
A103: ='Org structure'!A8 -> Vote 07 - Public Safety | C103: =SUM(C104:C105) -> 27942786.84 | D103: 41665651.09 | E103: 45905202.85 | F103: 59716156 | G103: 62596156 | H103: 62596156 | I103: 65172567 | J103: 65613685 | K103: 68769308
A104: ='Org structure'!E38 -> 07.1 - Disaster Management | C104: 13483268.74 | D104: 23322876.36 | E104: 24568018.77 | F104: 28956249 | G104: 31520049 | H104: 31520049 | I104: 32529957 | J104: 31050691 | K104: 32171415
A105: ='Org structure'!E39 -> 07.2 - Fire; Rescue And Emergency | C105: 14459518.1 | D105: 18342774.73 | E105: 21337184.08 | F105: 30759907 | G105: 31076107 | H105: 31076107 | I105: 32642610 | J105: 34562994 | K105: 36597893
A106: ='Org structure'!A9 -> Vote 08 - Sports & Recreation | C106: =SUM(C107:C107) -> 4895070.3 | D106: 5251346.02 | E106: 7186701.12 | F106: 11212604 | G106: 11212605 | H106: 11212605 | I106: 9298410 | J106: 9808264 | K106: 9843593
A107: ='Org structure'!E41 -> 08.1 - Arts; Sports And Culture | C107: 4895070.3 | D107: 5251346.02 | E107: 7186701.12 | F107: 11212604 | G107: 11212605 | H107: 11212605 | I107: 9298410 | J107: 9808264 | K107: 9843593
A108: ='Org structure'!A10 -> Vote 09 - Environmental | C108: =SUM(C109:C109) -> 24944094.43 | D108: 26142656.94 | E108: 12268469.94 | F108: 14827567 | G108: 15277567 | H108: 15277567 | I108: 18149167 | J108: 19077134 | K108: 17711647
A109: ='Org structure'!E43 -> 09.1 - Environmental Management | C109: 24944094.43 | D109: 26142656.94 | E109: 12268469.94 | F109: 14827567 | G109: 15277567 | H109: 15277567 | I109: 18149167 | J109: 19077134 | K109: 17711647
A110: ='Org structure'!A11 -> Vote 10 - Roads | C110: =SUM(C111:C112) -> 18225948.05 | D110: 9781256.12 | E110: 9860994.33 | F110: 21715630 | G110: 22515629 | H110: 22515629 | I110: 23000963 | J110: 23067810 | K110: 23719669
A111: ='Org structure'!E45 -> 10.1 - Planner Transport Planning | C111: 1766068.88 | D111: 1208835.98 | E111: 1507324.64 | F111: 5649844 | G111: 7749844 | H111: 7749844 | I111: 6570717 | J111: 6927774 | K111: 6837191
A112: ='Org structure'!E46 -> 10.2 - Public Works | C112: 16459879.17 | D112: 8572420.14 | E112: 8353669.69 | F112: 16065786 | G112: 14765785 | H112: 14765785 | I112: 16430246 | J112: 16140036 | K112: 16882478
A113: ='Org structure'!A12 -> Vote 11 - Water | C113: =SUM(C114:C121) -> 683644106.7 | D113: 808050691.3 | E113: 919779580.8 | F113: 658009367 | G113: 653996261 | H113: 653996261 | I113: 770110423 | J113: 799168249 | K113: 823555382
A114: ='Org structure'!E48 -> 11.1 - Wsa Planning | C114: 13820230.15 | D114: 2638256.84 | E114: 2075749.2 | F114: 8093494 | G114: 8093494 | H114: 8093494 | I114: 8599337 | J114: 9136795 | K114: 9707845
A115: ='Org structure'!E49 -> 11.2 - Wsa Monit. Env. Municipal Health Service | C115: 31252232.65 | D115: 44345721.53 | E115: 41275735.81 | F115: 24227881 | G115: 24227881 | H115: 24227881 | I115: 25742125 | J115: 27351006 | K115: 29060446
A116: ='Org structure'!E50 -> 11.3 - Wsu1 | C116: =636796233.74-16491300.0000002 -> 620304933.7 | D116: =636687386.38+106002800.74 -> 742690187.1 | E116: =805745300.92+48438858.45 -> 854184159.4 | F116: 597300238 | G116: 593287132 | H116: 593287132 | I116: 705606975 | J116: 730633335 | K116: 750737034
A117: ='Org structure'!E51 -> 11.4 - Wsu2 | C117: 7884436.1 | D117: 6509468.8 | E117: 8651777.25 | F117: 8888296 | G117: 8888296 | H117: 8888296 | I117: 9443813 | J117: 10034053 | K117: 10661181
A118: ='Org structure'!E52 -> 11.5 - Wsu3 | C118: 1834759.33 | D118: 1887607.46 | E118: 1967070.94 | F118: 5177367 | G118: 5177367 | H118: 5177367 | I118: 5500952 | J118: 5844762 | K118: 6210058
A119: ='Org structure'!E53 -> 11.6 - Wsu4 | C119: 6108707.39 | D119: 7034476.44 | E119: 9273707.03 | F119: 12965197 | G119: 12965197 | H119: 12965197 | I119: 13775522 | J119: 14636492 | K119: 15551274
A120: ='Org structure'!E54 -> 11.7 - Wsa Communication Customer Relations | C120: 680667.7 | D120: 748032.07 | E120: 35383.33 | F120: 0 | G120: 0 | H120: 0 | I120: 0 | J120: 0 | K120: 0
A121: ='Org structure'!E55 -> 11.8 - Wsa Capex Services | C121: 1758139.6 | D121: 2196940.99 | E121: 2315997.86 | F121: 1356894 | G121: 1356894 | H121: 1356894 | I121: 1441699 | J121: 1531806 | K121: 1627544
A122: ='Org structure'!A13 -> Vote 12 - Tourism | C122: =SUM(C123:C123) -> 937884.68 | D122: 4685074.41 | E122: 5295167.55 | F122: 6819452 | G122: 6879452 | H122: 6879452 | I122: 7544929 | J122: 7634193 | K122: 8044869
A123: ='Org structure'!E57 -> 12.1 - Tourism | C123: 937884.68 | D123: 4685074.41 | E123: 5295167.55 | F123: 6819452 | G123: 6879452 | H123: 6879452 | I123: 7544929 | J123: 7634193 | K123: 8044869
A124: ='Org structure'!A14 -> Vote 13 - Development Agency | C124: =SUM(C125:C125) -> 0 | D124: 0 | E124: 0 | F124: 0 | G124: 184838637 | H124: 184838637 | I124: 83891124 | J124: 94575398 | K124: 102160727
A125: ='Org structure'!E59 -> 13.1 - Ntinga Development Agency | C125: 0 | D125: 0 | E125: 0 | F125: 0 | G125: 184838637 | H125: 184838637 | I125: 83891124 | J125: 94575398 | K125: 102160727
A126: ='Org structure'!A15 -> Vote 14 - | C126: 0 | D126: 0 | E126: 0 | F126: 0 | G126: 0 | H126: 0 | I126: 0 | J126: 0 | K126: 0
A127: ='Org structure'!A16 -> Vote 15 - Other | C127: 0 | D127: 0 | E127: 0 | F127: 0 | G127: 0 | H127: 0 | I127: 0 | J127: 0 | K127: 0
A128: Total Expenditure by Vote | B128: 2 | C128: =C68+C76+C91+C96+C98+C100+C103+C106+C108+C110+C113+C122+C124+C126+C127 -> 1388244247 | D128: 1570323840 | E128: 1682332766 | F128: 1433243728 | G128: 1659566422 | H128: 1659566422 | I128: 1706401243 | J128: 1792504819 | K128: 1864007261 | L128: =SUM(L68:L105) -> 0 | M128: 0 | N128: 0 | O128: 0 | P128: 0 | Q128: 0 | R128: 0 | S128: 0 | T128: 0 | U128: 0 | V128: 0 | W128: 0
A130: =result -> Surplus/(Deficit) for the year | B130: 2 | C130: =C65-C128 -> 471999377 | D130: 535538370 | E130: 550478717.9 | F130: 1049572706 | G130: 1112828510 | H130: 1112828510 | I130: 933925264 | J130: 881520194 | K130: 992772040
A131: =head27a -> References
A132: 1. Insert 'Vote'; e.g. Department, if different to Functional structure
A133: 2. Must reconcile to Financial Performance ('Revenue and Expenditure by Functional Classification' and 'Revenue and Expenditure')
A134: 3. Assign share in 'associate' to relevant Vote
A136: check revenue | C136: =C65-'A4-FinPerf RE'!C59 -> 0 | D136: =D65-'A4-FinPerf RE'!D59 -> 0 | E136: =E65-'A4-FinPerf RE'!E59 -> 0 | F136: =F65-'A4-FinPerf RE'!F59 -> 0 | G136: =G65-'A4-FinPerf RE'!G59 -> 0 | H136: =H65-'A4-FinPerf RE'!H59 -> 0 | I136: =I65-'A4-FinPerf RE'!J59 -> 0 | J136: =J65-'A4-FinPerf RE'!K59 -> 0 | K136: =K65-'A4-FinPerf RE'!L59 -> 0
A137: check expenditure | C137: =C128-'A4-FinPerf RE'!C35 -> 0 | D137: =D128-'A4-FinPerf RE'!D35 -> 0 | E137: =E128-'A4-FinPerf RE'!E35 -> 0 | F137: =F128-'A4-FinPerf RE'!F35 -> 0 | G137: =G128-'A4-FinPerf RE'!G35 -> 0 | H137: =H128-'A4-FinPerf RE'!H35 -> 0 | I137: =I128-'A4-FinPerf RE'!J35 -> 0 | J137: =J128-'A4-FinPerf RE'!K35 -> 0 | K137: =K128-'A4-FinPerf RE'!L35 -> 0

Sheet A4-FinPerf RE
A1: =muni&" - "&Approve4 -> DC15 O .R. Tambo - Table A4 Consolidated Budgeted Financial Performance (revenue and expenditure)
A2: =desc -> Description | B2: =head27 -> Ref | C2: =head1b -> 2016/17 | D2: =head1A -> 2017/18 | E2: =Head1 -> 2018/19 | F2: =Head2 -> Current Year 2019/20 | J2: =Head3 -> 2020/21 Medium Term Revenue & Expenditure Framework | M2: =Head4 -> LTFS
A3: R thousand | B3: 1 | C3: =Head5 -> Audited Outcome | D3: =Head5 -> Audited Outcome | E3: =Head5 -> Audited Outcome | F3: =Head6 -> Original Budget | G3: =Head7 -> Adjusted Budget | H3: =Head8 -> Full Year Forecast | I3: =Head5b -> Pre-audit outcome | J3: =Head9 -> Budget Year 2020/21 | K3: =Head10 -> Budget Year +1 2021/22 | L3: =Head11 -> Budget Year +2 2022/23 | M3: =Head12 -> Forecast 2023/24 | N3: =Head13 -> Forecast 2024/25 | O3: =Head14 -> Forecast 2025/26 | P3: =Head15 -> Forecast 2026/27 | Q3: =Head16 -> Forecast 2027/28 | R3: =Head17 -> Forecast 2028/29 | S3: =Head18 -> Forecast 2029/30 | T3: =Head19 -> Forecast 2030/31 | U3: =Head20 -> Forecast 2031/32 | V3: =Head21 -> Forecast 2032/33 | W3: =Head22 -> Forecast 2033/34 | X3: =Head23 -> Forecast 2034/35
A4: Revenue By Source
A5: Property rates | B5: 2 | C5: ='SA1'!C9 -> 0 | D5: ='SA1'!D9 -> 0 | E5: ='SA1'!E9 -> 0 | F5: ='SA1'!F9 -> 0 | G5: ='SA1'!G9 -> 0 | H5: ='SA1'!H9 -> 0 | I5: ='SA1'!I9 -> 0 | J5: ='SA1'!J9 -> 0 | K5: ='SA1'!K9 -> 0 | L5: ='SA1'!L9 -> 0
A6: Service charges - electricity revenue | B6: 2 | C6: ='SA1'!C15 -> 0 | D6: ='SA1'!D15 -> 0 | E6: ='SA1'!E15 -> 0 | F6: ='SA1'!F15 -> 0 | G6: ='SA1'!G15 -> 0 | H6: ='SA1'!H15 -> 0 | I6: ='SA1'!I15 -> 0 | J6: ='SA1'!J15 -> 0 | K6: ='SA1'!K15 -> 0 | L6: ='SA1'!L15 -> 0
A7: Service charges - water revenue | B7: 2 | C7: ='SA1'!C21 -> 164031226 | D7: ='SA1'!D21 -> 182034408.7 | E7: ='SA1'!E21 -> 193658835 | F7: ='SA1'!F21 -> 214245106 | G7: ='SA1'!G21 -> 234745106 | H7: ='SA1'!H21 -> 234745106 | I7: ='SA1'!I21 -> 178450376.4 | J7: ='SA1'!J21 -> 254699812 | K7: ='SA1'!K21 -> 249025801 | L7: ='SA1'!L21 -> 263969349
A8: Service charges - sanitation revenue | B8: 2 | C8: ='SA1'!C27 -> 42791119 | D8: ='SA1'!D27 -> 48234972.38 | E8: ='SA1'!E27 -> 52992746.72 | F8: ='SA1'!F27 -> 93228922 | G8: ='SA1'!G27 -> 106228922 | H8: ='SA1'!H27 -> 106228922 | I8: ='SA1'!I27 -> 46942208.07 | J8: ='SA1'!J27 -> 112602658 | K8: ='SA1'!K27 -> 119358817 | L8: ='SA1'!L27 -> 126520346
A9: Service charges - refuse revenue | B9: 2 | C9: ='SA1'!C34 -> 0 | D9: ='SA1'!D34 -> 0 | E9: ='SA1'!E34 -> 0 | F9: ='SA1'!F34 -> 0 | G9: ='SA1'!G34 -> 0 | H9: ='SA1'!H34 -> 0 | I9: ='SA1'!I34 -> 0 | J9: ='SA1'!J34 -> 0 | K9: ='SA1'!K34 -> 0 | L9: ='SA1'!L34 -> 0
A11: Rental of facilities and equipment | C11: 822311 | D11: 89795 | E11: 97810 | F11: 60984 | G11: 170984 | H11: 170984 | I11: 0 | J11: 867337 | K11: 1194114 | L11: 1345867
A12: Interest earned - external investments | C12: 39503639 | D12: 52465123 | E12: 41483463 | F12: 36882200 | G12: 23882200 | H12: 23882200 | I12: 22753738.77 | J12: 29515576 | K12: 38899639 | L12: 40689023
A13: Interest earned - outstanding debtors | C13: 46914379 | D13: 36952171 | E13: 41772269 | F13: 30000000 | G13: 32550000 | H13: 32550000 | I13: 22348480.29 | J13: 32250000 | K13: 34163000 | L13: 36190480
A14: Dividends received
A15: Fines, penalties and forfeits | D15: 0 | E15: 0 | F15: 0 | G15: 0 | H15: 0 | I15: 0 | J15: 0 | K15: 0 | L15: 0
A16: Licences and permits
A17: Agency services | C17: 407060 | D17: 77383 | E17: 139182
A18: Transfers and subsidies | C18: 648400220 | D18: 728676577 | E18: 793811821 | F18: 863952000 | G18: 900944560 | H18: 900944560 | I18: 842731747.7 | J18: 976036181 | K18: 1036542466 | L18: 1104844272
A19: Other revenue | B19: 2 | C19: ='SA1'!C49 -> 134176919 | D19: ='SA1'!D49 -> 31423469 | E19: ='SA1'!E49 -> 14764579 | F19: ='SA1'!F49 -> 261542222 | G19: ='SA1'!G49 -> 324267430 | H19: ='SA1'!H49 -> 324267430 | I19: ='SA1'!I49 -> 123335.32 | J19: ='SA1'!J49 -> 340695943 | K19: ='SA1'!K49 -> 310186176 | L19: ='SA1'!L49 -> 292592964
A20: Gains | C20: 2547922 | D20: 4586207 | E20: 4226443 | F20: 0 | G20: -150000 | H20: -150000 | I20: 228636.38 | J20: 2140000 | K20: 2190000 | L20: 2190000
A21: Total Revenue (excluding capital transfers and contributions) | C21: =SUM(C5:C9)+SUM(C11:C20) -> 1079594795 | D21: =SUM(D5:D9)+SUM(D11:D20) -> 1084540106 | E21: 1142947149 | F21: 1499911434 | G21: 1622639202 | H21: 1622639202 | I21: 1113578523 | J21: 1748807507 | K21: 1791560013 | L21: 1868342301 | M21: =SUM(M5:M20) -> 0 | N21: 0 | O21: 0 | P21: 0 | Q21: 0 | R21: 0 | S21: 0 | T21: 0 | U21: 0 | V21: 0 | W21: 0 | X21: 0
A23: Expenditure By Type
A24: Employee related costs | B24: 2 | C24: ='SA1'!C67 -> 436330870 | D24: ='SA1'!D67 -> 545660194.5 | E24: ='SA1'!E67 -> 580576128.8 | F24: ='SA1'!F67 -> 579709959 | G24: ='SA1'!G67 -> 624867280 | H24: ='SA1'!H67 -> 624867280 | I24: ='SA1'!I67 -> 520522197.4 | J24: ='SA1'!J67 -> 680160045 | K24: ='SA1'!K67 -> 720651764 | L24: ='SA1'!L67 -> 765566273
A25: Remuneration of councillors | C25: 17749620 | D25: 20304599 | E25: 23714415 | F25: 22659098 | G25: 22659098 | H25: 22659098 | I25: 15900351.45 | J25: 24075294 | K25: 25579999 | L25: 27178747
A26: Debt impairment | B26: 3 | C26: 147042015 | D26: 93648158 | E26: 86600916 | F26: 92405456 | G26: 92405456 | H26: 92405456 | I26: 0 | J26: 160430386 | K26: 171994184 | L26: 179905916
A27: Depreciation & asset impairment | B27: 2 | C27: ='SA1'!C83 -> 164455907 | D27: ='SA1'!D83 -> 189380733 | E27: ='SA1'!E83 -> 196525406 | F27: ='SA1'!F83 -> 165748000 | G27: ='SA1'!G83 -> 241121946 | H27: ='SA1'!H83 -> 241121946 | I27: ='SA1'!I83 -> 0 | J27: ='SA1'!J83 -> 176963581 | K27: ='SA1'!K83 -> 185858322 | L27: ='SA1'!L83 -> 194022428
A28: Finance charges | C28: 12769623 | D28: 9151978 | E28: 9355557 | F28: 0 | G28: 0 | H28: 0 | I28: 122365.66 | J28: 0 | K28: 0 | L28: 0
A29: Bulk purchases | B29: 2 | C29: ='SA1'!C88 -> 42406949 | D29: ='SA1'!D88 -> 44443738 | E29: ='SA1'!E88 -> 35038658 | F29: ='SA1'!F88 -> 41145000 | G29: ='SA1'!G88 -> 35745000 | H29: ='SA1'!H88 -> 35745000 | I29: ='SA1'!I88 -> 8068535.3 | J29: ='SA1'!J88 -> 37353525 | K29: ='SA1'!K88 -> 39071787 | L29: ='SA1'!L88 -> 40869089
A30: Other materials | B30: 8 | C30: 0 | D30: 41802675 | E30: 39533156 | F30: 24758782 | G30: 54717212 | H30: 54717212 | I30: 16603764.91 | J30: 37053543 | K30: 41379528 | L30: 45261315
A31: Contracted services | C31: ='SA1'!C127 -> 174490806 | D31: ='SA1'!D127 -> 229972408.3 | E31: ='SA1'!E127 -> 235505007.6 | F31: ='SA1'!F127 -> 213751988 | G31: ='SA1'!G127 -> 217286758 | H31: ='SA1'!H127 -> 217286758 | I31: ='SA1'!I127 -> 113276865.5 | J31: ='SA1'!J127 -> 231134005 | K31: ='SA1'!K127 -> 231771819 | L31: ='SA1'!L127 -> 224272370
A32: Transfers and subsidies | C32: ='SA1'!C93 -> 112119877 | D32: ='SA1'!D93 -> 66107346.52 | E32: ='SA1'!E93 -> 92458694.33 | F32: ='SA1'!F93 -> 71524657 | G32: ='SA1'!G93 -> 87523211 | H32: ='SA1'!H93 -> 87523211 | I32: ='SA1'!I93 -> 56275810.3 | J32: ='SA1'!J93 -> 97304786 | K32: ='SA1'!K93 -> 91060295 | L32: ='SA1'!L93 -> 93760687
A33: Other expenditure | B33: 4, 5 | C33: ='SA1'!C157 -> 280878580 | D33: ='SA1'!D157 -> 312224322.7 | E33: ='SA1'!E157 -> 366204604.2 | F33: ='SA1'!F157 -> 221540788 | G33: ='SA1'!G157 -> 283240461 | H33: ='SA1'!H157 -> 283240461 | I33: ='SA1'!I157 -> 181644319.1 | J33: ='SA1'!J157 -> 261776078 | K33: ='SA1'!K157 -> 285037121 | L33: ='SA1'!L157 -> 293070436
A34: Losses | C34: 0 | D34: 17627687 | E34: 16820223 | F34: 0 | G34: 0 | H34: 0 | I34: 0 | J34: 150000 | K34: 100000 | L34: 100000
A35: Total Expenditure | C35: =SUM(C24:C34) -> 1388244247 | D35: =SUM(D24:D34) -> 1570323840 | E35: 1682332766 | F35: 1433243728 | G35: 1659566422 | H35: 1659566422 | I35: 912414209.6 | J35: 1706401243 | K35: 1792504819 | L35: 1864007261 | M35: =SUM(M24:M34) -> 0 | N35: 0 | O35: 0 | P35: 0 | Q35: 0 | R35: 0 | S35: 0 | T35: 0 | U35: 0 | V35: 0 | W35: 0 | X35: 0
A37: Surplus/(Deficit) | C37: =C21-C35 -> -308649452 | D37: -485783734 | E37: -539385617.1 | F37: 66667706 | G37: -36927220 | H37: -36927220 | I37: 201164313.4 | J37: 42406264 | K37: -944806 | L37: 4335040 | M37: =M21+M35 -> 0 | N37: 0 | O37: 0 | P37: 0 | Q37: 0 | R37: 0 | S37: 0 | T37: 0 | U37: 0 | V37: 0 | W37: 0 | X37: 0
A38: Transfers and subsidies - capital (monetary allocations) (National / Provincial and District) | C38: 780648829 | D38: 1021322104 | E38: 1089864335 | F38: 982905000 | G38: 1149755730 | H38: 1149755730 | I38: 15065078.46 | J38: 891519000 | K38: 882465000 | L38: 988437000
A39: Transfers and subsidies - capital (monetary allocations) (National / Provincial Departmental Agencies, Households, Non-profit Institutions, Private Enterprises, Public Corporatons, Higher Educational Institutions) | B39: 6 | C39: ='SA1'!C76 -> 0
A40: Transfers and subsidies - capital (in-kind - all)
A41: Surplus/(Deficit) after capital transfers & contributions | C41: =SUM(C37:C40) -> 471999377 | D41: 535538370 | E41: 550478717.9 | F41: 1049572706 | G41: 1112828510 | H41: 1112828510 | I41: 216229391.8 | J41: 933925264 | K41: 881520194 | L41: 992772040
A42: Taxation | D42: -1866427 | E42: -5353124
A43: Surplus/(Deficit) after taxation | C43: =C41-C42 -> 471999377 | D43: 537404797 | E43: 555831841.9 | F43: 1049572706 | G43: 1112828510 | H43: 1112828510 | I43: 216229391.8 | J43: 933925264 | K43: 881520194 | L43: 992772040
A44: Attributable to minorities
A45: Surplus/(Deficit) attributable to municipality | C45: =SUM(C43:C44) -> 471999377 | D45: 537404797 | E45: 555831841.9 | F45: 1049572706 | G45: 1112828510 | H45: 1112828510 | I45: 216229391.8 | J45: 933925264 | K45: 881520194 | L45: 992772040
A46: Share of surplus/ (deficit) of associate | B46: 7
A47: =result -> Surplus/(Deficit) for the year | C47: =SUM(C45:C46) -> 471999377 | D47: 537404797 | E47: 555831841.9 | F47: 1049572706 | G47: 1112828510 | H47: 1112828510 | I47: 216229391.8 | J47: 933925264 | K47: 881520194 | L47: 992772040 | M47: =M25+M46 -> 0 | N47: 0 | O47: 0 | P47: 0 | Q47: 0 | R47: 0 | S47: 0 | T47: 0 | U47: 0 | V47: 0 | W47: 0 | X47: 0
A48: =head27a -> References
A49: 1. Classifications are revenue sources and expenditure type
A50: 2. Detail to be provided in Table SA1
A51: 3. Previously described as 'bad or doubtful debts' - amounts shown should reflect the change in the provision for debt impairment
A52: 4. Expenditure type components previously shown under repairs and maintenance should be allocated back to the originating expenditure group/item; e.g. employee costs
A53: 5. Repairs & maintenance detailed in Table A9 and Table SA34c
A54: 6. Contributions are funds provided by external organisations to assist with infrastructure development; e.g. developer contributions (detail to be provided in Table SA1)
A55: 7. Equity method ( Includes Joint Ventures)
A56: 8. All materials not part of 'bulk' e.g road making materials, pipe, cable etc.
A57: check balance | C57: =C45-'A3-FinPerf V'!C39 -> 0 | D57: =D45-'A3-FinPerf V'!D39 -> 1866427 | E57: =E45-'A3-FinPerf V'!E39 -> 5353124 | F57: =F45-'A3-FinPerf V'!F39 -> 0 | G57: =G45-'A3-FinPerf V'!G39 -> 0 | H57: =H45-'A3-FinPerf V'!H39 -> 0 | J57: =J45-'A3-FinPerf V'!I39 -> 0 | K57: =K45-'A3-FinPerf V'!J39 -> 0 | L57: =L45-'A3-FinPerf V'!K39 -> 0
A59: Total revenue | C59: =C21+SUM(C38:C40) -> 1860243624 | D59: 2105862210 | E59: 2232811484 | F59: 2482816434 | G59: 2772394932 | H59: 2772394932 | I59: 1128643601 | J59: 2640326507 | K59: 2674025013 | L59: 2856779301

Sheet A5-Capex
A2: =Vdesc -> Vote Description | B2: =head27 -> Ref | C2: =head1b -> 2016/17 | D2: =head1A -> 2017/18 | E2: =Head1 -> 2018/19 | F2: =Head2 -> Current Year 2019/20 | J2: =Head3 -> 2020/21 Medium Term Revenue & Expenditure Framework
A3: R thousand | B3: 1 | C3: =Head5 -> Audited Outcome | D3: =Head5 -> Audited Outcome | E3: =Head5 -> Audited Outcome | F3: =Head6 -> Original Budget | G3: =Head7 -> Adjusted Budget | H3: =Head8 -> Full Year Forecast | I3: =Head5b -> Pre-audit outcome | J3: =Head9 -> Budget Year 2020/21 | K3: =Head10 -> Budget Year +1 2021/22 | L3: =Head11 -> Budget Year +2 2022/23
A4: Capital expenditure - Vote
A5: Multi-year expenditure to be appropriated | B5: 2
A6: =A5A!A6 -> Vote 01 - Council & Committees | C6: =A5A!C6 -> 318000 | D6: =A5A!D6 -> 0 | E6: =A5A!E6 -> 0 | F6: =A5A!F6 -> 2000000 | G6: =A5A!G6 -> 2000000 | H6: =A5A!H6 -> 2000000 | I6: =A5A!I6 -> 0 | J6: =A5A!J6 -> 5000000 | K6: =A5A!K6 -> 3500000 | L6: =A5A!L6 -> 0
A7: =A5A!A14 -> Vote 02 - Finance & Administration | C7: =A5A!C14 -> 805184 | D7: =A5A!D14 -> 46403514 | E7: =A5A!E14 -> 12641367 | F7: =A5A!F14 -> 21836154 | G7: =A5A!G14 -> 25736154 | H7: =A5A!H14 -> 25736154 | I7: =A5A!I14 -> 3967422.66 | J7: =A5A!J14 -> 16154207 | K7: =A5A!K14 -> 15112259 | L7: =A5A!L14 -> 10150000
A8: =A5A!A29 -> Vote 03 - Planning & Development | C8: =A5A!C29 -> 0 | D8: =A5A!D29 -> 1112401 | E8: =A5A!E29 -> 0 | F8: =A5A!F29 -> 0 | G8: =A5A!G29 -> 0 | H8: =A5A!H29 -> 0 | I8: =A5A!I29 -> 0 | J8: =A5A!J29 -> 2500000 | K8: =A5A!K29 -> 3300000 | L8: =A5A!L29 -> 0
A9: =A5A!A34 -> Vote 04 - Health | C9: =A5A!C34 -> 0 | D9: =A5A!D34 -> 0 | E9: =A5A!E34 -> 0 | F9: =A5A!F34 -> 120000 | G9: =A5A!G34 -> 520000 | H9: =A5A!H34 -> 520000 | I9: =A5A!I34 -> 28900 | J9: =A5A!J34 -> 0 | K9: =A5A!K34 -> 0 | L9: =A5A!L34 -> 0
A10: =A5A!A36 -> Vote 05 - Community & Social Services | C10: =A5A!C36 -> 0 | D10: =A5A!D36 -> 0 | E10: =A5A!E36 -> 0 | F10: =A5A!F36 -> 0 | G10: =A5A!G36 -> 0 | H10: =A5A!H36 -> 0 | I10: =A5A!I36 -> 0 | J10: =A5A!J36 -> 0 | K10: =A5A!K36 -> 0 | L10: =A5A!L36 -> 0
A11: =A5A!A38 -> Vote 06 - Housing | C11: =A5A!C38 -> 0 | D11: =A5A!D38 -> 0 | E11: =A5A!E38 -> 0 | F11: =A5A!F38 -> 3545000 | G11: =A5A!G38 -> 50795730 | H11: =A5A!H38 -> 50795730 | I11: =A5A!I38 -> 10776435.03 | J11: =A5A!J38 -> 40045000 | K11: =A5A!K38 -> 45000 | L11: =A5A!L38 -> 0
A12: =A5A!A41 -> Vote 07 - Public Safety | C12: =A5A!C41 -> 0 | D12: =A5A!D41 -> 0 | E12: =A5A!E41 -> 0 | F12: =A5A!F41 -> 8000000 | G12: =A5A!G41 -> 8921000 | H12: =A5A!H41 -> 8921000 | I12: =A5A!I41 -> 286814.5 | J12: =A5A!J41 -> 2300000 | K12: =A5A!K41 -> 5500000 | L12: =A5A!L41 -> 6000000
A13: =A5A!A44 -> Vote 08 - Sports & Recreation | C13: =A5A!C44 -> 0 | D13: =A5A!D44 -> 0 | E13: =A5A!E44 -> 0 | F13: =A5A!F44 -> 0 | G13: =A5A!G44 -> 0 | H13: =A5A!H44 -> 0 | I13: =A5A!I44 -> 0 | J13: =A5A!J44 -> 0 | K13: =A5A!K44 -> 0 | L13: =A5A!L44 -> 0
A14: =A5A!A46 -> Vote 09 - Environmental | C14: =A5A!C46 -> 0 | D14: =A5A!D46 -> 0 | E14: =A5A!E46 -> 0 | F14: =A5A!F46 -> 0 | G14: =A5A!G46 -> 0 | H14: =A5A!H46 -> 0 | I14: =A5A!I46 -> 0 | J14: =A5A!J46 -> 0 | K14: =A5A!K46 -> 0 | L14: =A5A!L46 -> 0
A15: =A5A!A48 -> Vote 10 - Roads | C15: =A5A!C48 -> 0 | D15: =A5A!D48 -> 0 | E15: =A5A!E48 -> 0 | F15: =A5A!F48 -> 48112000 | G15: =A5A!G48 -> 38612000 | H15: =A5A!H48 -> 38612000 | I15: =A5A!I48 -> 13143896.01 | J15: =A5A!J48 -> 43262000 | K15: =A5A!K48 -> 8125000 | L15: =A5A!L48 -> 3306000
A16: =A5A!A51 -> Vote 11 - Water | C16: =A5A!C51 -> 809271875 | D16: =A5A!D51 -> 731779794 | E16: =A5A!E51 -> 862537145 | F16: =A5A!F51 -> 1039614380 | G16: =A5A!G51 -> 1217879527 | H16: =A5A!H51 -> 1217879527 | I16: =A5A!I51 -> 494954099.6 | J16: =A5A!J51 -> 906649846 | K16: =A5A!K51 -> 936244573 | L16: =A5A!L51 -> 1034340635
A17: =A5A!A60 -> Vote 12 - Tourism | C17: =A5A!C60 -> 0 | D17: =A5A!D60 -> 0 | E17: =A5A!E60 -> 0 | F17: =A5A!F60 -> 0 | G17: =A5A!G60 -> 0 | H17: =A5A!H60 -> 0 | I17: =A5A!I60 -> 0 | J17: =A5A!J60 -> 0 | K17: =A5A!K60 -> 0 | L17: =A5A!L60 -> 0
A18: =A5A!A62 -> Vote 13 - Development Agency | C18: =A5A!C62 -> 0 | D18: =A5A!D62 -> 0 | E18: =A5A!E62 -> 0 | F18: =A5A!F62 -> 0 | G18: =A5A!G62 -> 7245000 | H18: =A5A!H62 -> 7245000 | I18: =A5A!I62 -> 0 | J18: =A5A!J62 -> 28896000 | K18: =A5A!K62 -> 6833000 | L18: =A5A!L62 -> 6852800
A19: ='Org structure'!A15 -> Vote 14 - | C19: =A5A!C64 -> 0 | D19: =A5A!D64 -> 0 | E19: =A5A!E64 -> 0 | F19: =A5A!F64 -> 0 | G19: =A5A!G64 -> 0 | H19: =A5A!H64 -> 0 | I19: =A5A!I64 -> 0 | J19: =A5A!J64 -> 0 | K19: =A5A!K64 -> 0 | L19: =A5A!L64 -> 0
A20: ='Org structure'!A16 -> Vote 15 - Other | C20: =A5A!C65 -> 0 | D20: =A5A!D65 -> 0 | E20: =A5A!E65 -> 0 | F20: =A5A!F65 -> 0 | G20: =A5A!G65 -> 0 | H20: =A5A!H65 -> 0 | I20: =A5A!I65 -> 0 | J20: =A5A!J65 -> 0 | K20: =A5A!K65 -> 0 | L20: =A5A!L65 -> 0
A21: Capital multi-year expenditure sub-total | B21: 7 | C21: =SUM(C6:C20) -> 810395059 | D21: =SUM(D6:D20) -> 779295709 | E21: 875178512 | F21: 1123227534 | G21: 1351709411 | H21: =SUM(H6:H20) -> 1351709411 | I21: 523157567.8 | J21: 1044807053 | K21: 978659832 | L21: 1060649435
A23: Single-year expenditure to be appropriated | B23: 2
A24: =A5A!A70 -> Vote 01 - Council & Committees | C24: =A5A!C70 -> 0 | D24: =A5A!D70 -> 0 | E24: =A5A!E70 -> 0 | F24: =A5A!F70 -> 0 | G24: =A5A!G70 -> 0 | H24: =A5A!H70 -> 0 | I24: =A5A!I70 -> 0 | J24: =A5A!J70 -> 0 | K24: =A5A!K70 -> 0 | L24: =A5A!L70 -> 0
A25: =A5A!A78 -> Vote 02 - Finance & Administration | C25: =A5A!C78 -> 0 | D25: =A5A!D78 -> 0 | E25: =A5A!E78 -> 0 | F25: =A5A!F78 -> 0 | G25: =A5A!G78 -> 0 | H25: =A5A!H78 -> 0 | I25: =A5A!I78 -> 0 | J25: =A5A!J78 -> 0 | K25: =A5A!K78 -> 0 | L25: =A5A!L78 -> 0
A26: =A5A!A93 -> Vote 03 - Planning & Development | C26: =A5A!C93 -> 0 | D26: =A5A!D93 -> 0 | E26: =A5A!E93 -> 0 | F26: =A5A!F93 -> 0 | G26: =A5A!G93 -> 0 | H26: =A5A!H93 -> 0 | I26: =A5A!I93 -> 0 | J26: =A5A!J93 -> 0 | K26: =A5A!K93 -> 0 | L26: =A5A!L93 -> 0
A27: =A5A!A98 -> Vote 04 - Health | C27: =A5A!C98 -> 0 | D27: =A5A!D98 -> 0 | E27: =A5A!E98 -> 0 | F27: =A5A!F98 -> 0 | G27: =A5A!G98 -> 0 | H27: =A5A!H98 -> 0 | I27: =A5A!I98 -> 0 | J27: =A5A!J98 -> 0 | K27: =A5A!K98 -> 0 | L27: =A5A!L98 -> 0
A28: =A5A!A100 -> Vote 05 - Community & Social Services | C28: =A5A!C100 -> 0 | D28: =A5A!D100 -> 0 | E28: =A5A!E100 -> 0 | F28: =A5A!F100 -> 0 | G28: =A5A!G100 -> 0 | H28: =A5A!H100 -> 0 | I28: =A5A!I100 -> 0 | J28: =A5A!J100 -> 0 | K28: =A5A!K100 -> 0 | L28: =A5A!L100 -> 0
A29: =A5A!A102 -> Vote 06 - Housing | C29: =A5A!C102 -> 0 | D29: =A5A!D102 -> 0 | E29: =A5A!E102 -> 0 | F29: =A5A!F102 -> 0 | G29: =A5A!G102 -> 0 | H29: =A5A!H102 -> 0 | I29: =A5A!I102 -> 0 | J29: =A5A!J102 -> 0 | K29: =A5A!K102 -> 0 | L29: =A5A!L102 -> 0
A30: =A5A!A105 -> Vote 07 - Public Safety | C30: =A5A!C105 -> 0 | D30: =A5A!D105 -> 0 | E30: =A5A!E105 -> 0 | F30: =A5A!F105 -> 0 | G30: =A5A!G105 -> 0 | H30: =A5A!H105 -> 0 | I30: =A5A!I105 -> 0 | J30: =A5A!J105 -> 0 | K30: =A5A!K105 -> 0 | L30: =A5A!L105 -> 0
A31: =A5A!A108 -> Vote 08 - Sports & Recreation | C31: =A5A!C108 -> 0 | D31: =A5A!D108 -> 0 | E31: =A5A!E108 -> 0 | F31: =A5A!F108 -> 0 | G31: =A5A!G108 -> 0 | H31: =A5A!H108 -> 0 | I31: =A5A!I108 -> 0 | J31: =A5A!J108 -> 0 | K31: =A5A!K108 -> 0 | L31: =A5A!L108 -> 0
A32: =A5A!A110 -> Vote 09 - Environmental | C32: =A5A!C110 -> 0 | D32: =A5A!D110 -> 0 | E32: =A5A!E110 -> 0 | F32: =A5A!F110 -> 0 | G32: =A5A!G110 -> 0 | H32: =A5A!H110 -> 0 | I32: =A5A!I110 -> 0 | J32: =A5A!J110 -> 0 | K32: =A5A!K110 -> 0 | L32: =A5A!L110 -> 0
A33: =A5A!A112 -> Vote 10 - Roads | C33: =A5A!C112 -> 0 | D33: =A5A!D112 -> 0 | E33: =A5A!E112 -> 0 | F33: =A5A!F112 -> 0 | G33: =A5A!G112 -> 0 | H33: =A5A!H112 -> 0 | I33: =A5A!I112 -> 0 | J33: =A5A!J112 -> 0 | K33: =A5A!K112 -> 0 | L33: =A5A!L112 -> 0
A34: =A5A!A115 -> Vote 11 - Water | C34: =A5A!C115 -> 0 | D34: =A5A!D115 -> 0 | E34: =A5A!E115 -> 0 | F34: =A5A!F115 -> 0 | G34: =A5A!G115 -> 0 | H34: =A5A!H115 -> 0 | I34: =A5A!I115 -> 0 | J34: =A5A!J115 -> 0 | K34: =A5A!K115 -> 0 | L34: =A5A!L115 -> 0
A35: =A5A!A124 -> Vote 12 - Tourism | C35: =A5A!C124 -> 0 | D35: =A5A!D124 -> 0 | E35: =A5A!E124 -> 0 | F35: =A5A!F124 -> 0 | G35: =A5A!G124 -> 0 | H35: =A5A!H124 -> 0 | I35: =A5A!I124 -> 0 | J35: =A5A!J124 -> 0 | K35: =A5A!K124 -> 0 | L35: =A5A!L124 -> 0
A36: =A5A!A126 -> Vote 13 - Development Agency | C36: =A5A!C126 -> 0 | D36: =A5A!D126 -> 0 | E36: =A5A!E126 -> 0 | F36: =A5A!F126 -> 0 | G36: =A5A!G126 -> 0 | H36: =A5A!H126 -> 0 | I36: =A5A!I126 -> 0 | J36: =A5A!J126 -> 0 | K36: =A5A!K126 -> 0 | L36: =A5A!L126 -> 0
A37: ='Org structure'!A15 -> Vote 14 - | C37: =A5A!C128 -> 0 | D37: =A5A!D128 -> 0 | E37: =A5A!E128 -> 0 | F37: =A5A!F128 -> 0 | G37: =A5A!G128 -> 0 | H37: =A5A!H128 -> 0 | I37: =A5A!I128 -> 0 | J37: =A5A!J128 -> 0 | K37: =A5A!K128 -> 0 | L37: =A5A!L128 -> 0
A38: ='Org structure'!A16 -> Vote 15 - Other | C38: =A5A!C129 -> 0 | D38: =A5A!D129 -> 0 | E38: =A5A!E129 -> 0 | F38: =A5A!F129 -> 0 | G38: =A5A!G129 -> 0 | H38: =A5A!H129 -> 0 | I38: =A5A!I129 -> 0 | J38: =A5A!J129 -> 0 | K38: =A5A!K129 -> 0 | L38: =A5A!L129 -> 0
A39: Capital single-year expenditure sub-total | C39: =SUM(C24:C38) -> 0 | D39: =SUM(D24:D38) -> 0 | E39: 0 | F39: 0 | G39: 0 | H39: 0 | I39: 0 | J39: 0 | K39: 0 | L39: 0
A40: Total Capital Expenditure - Vote | C40: =C39+C21 -> 810395059 | D40: =D39+D21 -> 779295709 | E40: 875178512 | F40: 1123227534 | G40: 1351709411 | H40: 1351709411 | I40: 523157567.8 | J40: 1044807053 | K40: 978659832 | L40: 1060649435
A42: Capital Expenditure - Functional
A43: Governance and administration | C43: =SUM(C44:C46) -> 1123184 | D43: =SUM(D44:D46) -> 46403514 | E43: 12641367 | F43: 23836154 | G43: 27736154 | H43: 27736154 | I43: 3967422.66 | J43: 21154207 | K43: 18612259 | L43: 10150000
A44: Executive and council | C44: 318000 | D44: 0 | E44: 0 | F44: 2000000 | G44: 2000000 | H44: 2000000 | I44: 0 | J44: 5000000 | K44: 3500000 | L44: 0
A45: Finance and administration | C45: 805184 | D45: =41051701+5351813 -> 46403514 | E45: =10882082+1759285 -> 12641367 | F45: 21836154 | G45: 25736154 | H45: 25736154 | I45: 3967422.66 | J45: 16154207 | K45: 15112259 | L45: 10150000
A46: Internal audit
A47: Community and public safety | C47: =SUM(C48:C52) -> 0 | D47: =SUM(D48:D52) -> 0 | E47: 0 | F47: 11665000 | G47: 60236730 | H47: 60236730 | I47: 11092149.53 | J47: 42345000 | K47: 5545000 | L47: 6000000
A48: Community and social services | C48: 0 | D48: 0 | E48: 0 | F48: 3000000 | G48: 3921000 | H48: 3921000 | I48: 286814.5 | J48: 0 | K48: 0 | L48: 0
A49: Sport and recreation | C49: 0 | D49: 0 | E49: 0 | F49: 0 | G49: 0 | H49: 0 | I49: 0 | J49: 0 | K49: 0 | L49: 0
A50: Public safety | C50: 0 | D50: 0 | E50: 0 | F50: 5000000 | G50: 5000000 | H50: 5000000 | I50: 0 | J50: 2300000 | K50: 5500000 | L50: 6000000
A51: Housing | C51: 0 | D51: 0 | E51: 0 | F51: 3545000 | G51: 50795730 | H51: 50795730 | I51: 10776435.03 | J51: 40045000 | K51: 45000 | L51: 0
A52: Health | C52: 0 | D52: 0 | E52: 0 | F52: 120000 | G52: 520000 | H52: 520000 | I52: 28900 | J52: 0 | K52: 0 | L52: 0
A53: Economic and environmental services | C53: =SUM(C54:C56) -> 0 | D53: =SUM(D54:D56) -> 1112401 | E53: 0 | F53: 48112000 | G53: 45857000 | H53: 45857000 | I53: 13143896.01 | J53: 74658000 | K53: 18258000 | L53: 10158800
A54: Planning and development | C54: 0 | D54: 1112401 | E54: 0 | F54: 0 | G54: 7245000 | H54: 7245000 | I54: 0 | J54: 31396000 | K54: 10133000 | L54: 6852800
A55: Road transport | C55: 0 | D55: 0 | E55: 0 | F55: 48112000 | G55: 38612000 | H55: 38612000 | I55: 13143896.01 | J55: 43262000 | K55: 8125000 | L55: 3306000
A56: Environmental protection | C56: 0 | D56: 0 | E56: 0 | F56: 0 | G56: 0 | H56: 0 | I56: 0 | J56: 0 | K56: 0 | L56: 0
A57: Trading services | C57: =SUM(C58:C61) -> 809271875 | D57: =SUM(D58:D61) -> 731779794 | E57: 862537145 | F57: 1039614380 | G57: 1217879527 | H57: 1217879527 | I57: 494954099.6 | J57: 906649846 | K57: 936244573 | L57: 1034340635
A58: Energy sources
A59: Water management | C59: 809271875 | D59: 731779794 | E59: 862537145 | F59: 1039614380 | G59: 1217879527 | H59: 1217879527 | I59: 494954099.6 | J59: 906649846 | K59: 936244573 | L59: 1034340635
A60: Waste water management
A61: Waste management
A62: Other
A63: Total Capital Expenditure - Functional | B63: 3 | C63: =C43+C47+C53+C57+C62 -> 810395059 | D63: =D43+D47+D53+D57+D62 -> 779295709 | E63: 875178512 | F63: 1123227534 | G63: 1351709411 | H63: 1351709411 | I63: 523157567.8 | J63: 1044807053 | K63: 978659832 | L63: =L43+L47+L53+L57+L62 -> 1060649435
A65: Funded by:
A66: National Government | C66: 809271875 | D66: 731779794 | E66: 862537145 | F66: 982905001 | G66: 1212220772 | H66: 1212220772 | I66: 471255319.9 | J66: 891519000 | K66: 882465000 | L66: 988437000
A67: Provincial Government | C67: 0 | D67: 0 | E67: 0 | F67: 0 | G67: 0 | H67: 0 | I67: 0 | J67: 0 | K67: 0 | L67: 0
A68: District Municipality | C68: 0 | D68: 0 | E68: 0 | F68: 0 | G68: 7245000 | H68: 7245000 | I68: 0 | J68: 28896000 | K68: 6833000 | L68: 6852800
A69: ='A4-FinPerf RE'!A39 -> Transfers and subsidies - capital (monetary allocations) (National / Provincial Departmental Agencies, Households, Non-profit Institutions, Private Enterprises, Public Corporatons, Higher Educational Institutions)
A70: Transfers recognised - capital | B70: 4 | C70: =SUM(C66:C69) -> 809271875 | D70: 731779794 | E70: 862537145 | F70: 982905001 | G70: 1219465772 | H70: 1219465772 | I70: 471255319.9 | J70: 920415000 | K70: 889298000 | L70: 995289800
A72: Borrowing | B72: 6
A73: Internally generated funds | C73: 1123184 | D73: 47515915 | E73: 12641367 | F73: 140322533 | G73: 132243639 | H73: 132243639 | I73: 51902247.86 | J73: 124392053 | K73: 89361832 | L73: 65359635
A74: Total Capital Funding | B74: 7 | C74: =+C70+C72+C73 -> 810395059 | D74: =+D70+D72+D73 -> 779295709 | E74: 875178512 | F74: 1123227534 | G74: 1351709411 | H74: 1351709411 | I74: 523157567.8 | J74: 1044807053 | K74: 978659832 | L74: 1060649435
A75: =head27a -> References
A76: 1. Municipalities may choose to appropriate for capital expenditure for three years or for one year (if one year appropriation projected expenditure required for yr2 and yr3).
A77: 2. Include capital component of PPP unitary payment. Note that capital transfers are only appropriated to municipalities for the budget year
A78: 3. Capital expenditure by functional classification must reconcile to the appropriations by vote
A79: 4. Must reconcile to supporting table SA20 and to Budgeted Financial Performance (revenue and expenditure)
A81: 6. Include finance leases and PPP capital funding component of unitary payment - total borrowing/repayments to reconcile to changes in Table SA17
A82: 7. Total Capital Funding must balance with Total Capital Expenditure
A83: 8. Include any capitalised interest (MFMA section 46) as part of relevant capital budget
A85: check balance | C85: =IF((C63-C74)=0,0,"Unbalanced") -> 0 | D85: =IF((D63-D74)=0,0,"Unbalanced") -> 0 | E85: 0 | F85: 0 | G85: 0 | H85: 0 | I85: Unbalanced | J85: 0 | K85: 0 | L85: 0

Sheet A5A
A1: =muni&" - "&Approve5 -> DC15 O .R. Tambo - Table A5 Consolidated Budgeted Capital Expenditure by vote, functional classification and funding
A2: =Vdesc -> Vote Description | B2: =head27 -> Ref | C2: =head1b -> 2016/17 | D2: =head1A -> 2017/18 | E2: =Head1 -> 2018/19 | F2: =Head2 -> Current Year 2019/20 | J2: =Head3 -> 2020/21 Medium Term Revenue & Expenditure Framework | N2: ="Multi-year appropriation for "&Head9& " in the "&Head2A&" Annual Budget" -> Multi-year appropriation for Budget Year 2020/21 in the 2019/20 Annual Budget | R2: ="Multi-year appropriation for "&RIGHT(Head10,7)& " in the "&Head2A&" Annual Budget" -> Multi-year appropriation for 2021/22 in the 2019/20 Annual Budget | V2: New multi-year appropriations (funds for new and existing projects)
A3: R thousand | B3: 1 | C3: =Head5 -> Audited Outcome | D3: =Head5 -> Audited Outcome | E3: =Head5 -> Audited Outcome | F3: =Head6 -> Original Budget | G3: =Head7 -> Adjusted Budget | H3: =Head8 -> Full Year Forecast | I3: =Head5b -> Pre-audit outcome | J3: =Head9 -> Budget Year 2020/21 | K3: =Head10 -> Budget Year +1 2021/22 | L3: =Head11 -> Budget Year +2 2022/23 | N3: ="Appropriation for "&RIGHT(Head9,7) -> Appropriation for 2020/21 | O3: ="Adjustments in "&Head2A -> Adjustments in 2019/20 | P3: ="Downward adjustments for "&RIGHT(Head9,7) -> Downward adjustments for 2020/21 | Q3: Appropriation carried forward | R3: ="Appropriation for "&RIGHT(Head9,7) -> Appropriation for 2020/21 | S3: ="Adjustments in "&Head2A -> Adjustments in 2019/20 | T3: ="Downward adjustments for "&RIGHT(Head9,7) -> Downward adjustments for 2020/21 | U3: Appropriation carried forward | V3: =Head9 -> Budget Year 2020/21 | W3: =Head10 -> Budget Year +1 2021/22 | X3: =Head11 -> Budget Year +2 2022/23
A4: Capital expenditure - Municipal Vote
A5: Multi-year expenditure appropriation | B5: 2
A6: ='Org structure'!A2 -> Vote 01 - Council & Committees | C6: =SUM(C7:C13) -> 318000 | D6: 0 | E6: 0 | F6: 2000000 | G6: 2000000 | H6: 2000000 | I6: 0 | J6: 5000000 | K6: 3500000 | L6: 0 | N6: =SUM(N7:N13) -> 5000000 | O6: 0 | P6: 0 | Q6: 5000000 | R6: 3500000 | S6: 0 | T6: 0 | U6: 3500000 | V6: 0 | W6: 0 | X6: 0
A7: ='Org structure'!E3 -> 01.1 - Speaker's Office | C7: 318000 | D7: 0 | E7: 0 | F7: 2000000 | G7: 2000000 | H7: 2000000 | I7: 0 | J7: =Q7+V7 -> 5000000 | K7: =U7+W7 -> 3500000 | L7: =X7 -> 0 | N7: 5000000 | O7: 0 | P7: 0 | Q7: =SUM(N7:P7) -> 5000000 | R7: 3500000 | S7: 0 | T7: 0 | U7: =SUM(R7:T7) -> 3500000 | V7: 0 | W7: 0 | X7: 0
A8: ='Org structure'!E4 -> 01.2 - Mayoral Office | C8: 0 | D8: 0 | E8: 0 | F8: 0 | G8: 0 | H8: 0 | I8: 0 | J8: 0 | K8: 0 | L8: 0 | N8: 0 | O8: 0 | P8: 0 | Q8: 0 | R8: 0 | S8: 0 | T8: 0 | U8: 0 | V8: 0 | W8: 0 | X8: 0
A9: ='Org structure'!E5 -> 01.3 - Office Of The Municipal Manager | C9: 0 | D9: 0 | E9: 0 | F9: 0 | G9: 0 | H9: 0 | I9: 0 | J9: 0 | K9: 0 | L9: 0 | N9: 0 | O9: 0 | P9: 0 | Q9: 0 | R9: 0 | S9: 0 | T9: 0 | U9: 0 | V9: 0 | W9: 0 | X9: 0
A10: ='Org structure'!E6 -> 01.4 - Office Of The Executive Mayor | C10: 0 | D10: 0 | E10: 0 | F10: 0 | G10: 0 | H10: 0 | I10: 0 | J10: 0 | K10: 0 | L10: 0 | N10: 0 | O10: 0 | P10: 0 | Q10: 0 | R10: 0 | S10: 0 | T10: 0 | U10: 0 | V10: 0 | W10: 0 | X10: 0
A11: ='Org structure'!E7 -> 01.5 - Internal Audit | C11: 0 | D11: 0 | E11: 0 | F11: 0 | G11: 0 | H11: 0 | I11: 0 | J11: 0 | K11: 0 | L11: 0 | N11: 0 | O11: 0 | P11: 0 | Q11: 0 | R11: 0 | S11: 0 | T11: 0 | U11: 0 | V11: 0 | W11: 0 | X11: 0
A12: ='Org structure'!E8 -> 01.6 - Office Of The Chief Operating Officer | C12: 0 | D12: 0 | E12: 0 | F12: 0 | G12: 0 | H12: 0 | I12: 0 | J12: 0 | K12: 0 | L12: 0 | N12: 0 | O12: 0 | P12: 0 | Q12: 0 | R12: 0 | S12: 0 | T12: 0 | U12: 0 | V12: 0 | W12: 0 | X12: 0
A13: ='Org structure'!E9 -> 01.7 - Legal Services | C13: 0 | D13: 0 | E13: 0 | F13: 0 | G13: 0 | H13: 0 | I13: 0 | J13: 0 | K13: 0 | L13: 0 | N13: 0 | O13: 0 | P13: 0 | Q13: 0 | R13: 0 | S13: 0 | T13: 0 | U13: 0 | V13: 0 | W13: 0 | X13: 0
A14: ='Org structure'!A3 -> Vote 02 - Finance & Administration | C14: =SUM(C15:C28) -> 805184 | D14: 46403514 | E14: 12641367 | F14: 21836154 | G14: 25736154 | H14: 25736154 | I14: 3967422.66 | J14: 16154207 | K14: 15112259 | L14: 10150000 | N14: =SUM(N15:N28) -> 16154207 | O14: 0 | P14: 0 | Q14: 16154207 | R14: 15112259 | S14: 0 | T14: 0 | U14: 15112259 | V14: 0 | W14: 0 | X14: 10150000
A15: ='Org structure'!E11 -> 02.1 - Budget And Reporting Office | C15: 0 | D15: 0 | E15: 0 | F15: 0 | G15: 0 | H15: 0 | I15: 0 | J15: =Q15+V15 -> 0 | K15: =U15+W15 -> 0 | L15: =X15 -> 0 | N15: 0 | O15: 0 | P15: 0 | Q15: =SUM(N15:P15) -> 0 | R15: 0 | S15: 0 | T15: 0 | U15: =SUM(R15:T15) -> 0 | V15: 0 | W15: 0 | X15: 0
A16: ='Org structure'!E12 -> 02.2 - Budget And Reporting Office | C16: 0 | D16: 0 | E16: 0 | F16: 0 | G16: 0 | H16: 0 | I16: 0 | J16: 0 | K16: 0 | L16: 0 | N16: 0 | O16: 0 | P16: 0 | Q16: 0 | R16: 0 | S16: 0 | T16: 0 | U16: 0 | V16: 0 | W16: 0 | X16: 0
A17: ='Org structure'!E13 -> 02.3 - Human Resources | C17: 0 | D17: 0 | E17: 0 | F17: 0 | G17: 0 | H17: 0 | I17: 0 | J17: 0 | K17: 0 | L17: 0 | N17: 0 | O17: 0 | P17: 0 | Q17: 0 | R17: 0 | S17: 0 | T17: 0 | U17: 0 | V17: 0 | W17: 0 | X17: 0
A18: ='Org structure'!E14 -> 02.4 - Procurement And Asset Management | C18: 0 | D18: 41051701 | E18: 10882082 | F18: 8650000 | G18: 20150000 | H18: 20150000 | I18: 3012159.73 | J18: 12350000 | K18: 10350000 | L18: 5000000 | N18: 12350000 | O18: 0 | P18: 0 | Q18: 12350000 | R18: 10350000 | S18: 0 | T18: 0 | U18: 10350000 | V18: 0 | W18: 0 | X18: 5000000
A19: ='Org structure'!E15 -> 02.5 - Information Technology | C19: 805184 | D19: 5351813 | E19: 1759285 | F19: 1686154 | G19: 2086154 | H19: 2086154 | I19: 845862.18 | J19: 2223207 | K19: 2762259 | L19: 2650000 | N19: 2223207 | O19: 0 | P19: 0 | Q19: 2223207 | R19: 2762259 | S19: 0 | T19: 0 | U19: 2762259 | V19: 0 | W19: 0 | X19: 2650000
A20: ='Org structure'!E16 -> 02.6 - Municipal Records And Auxiliary Services | C20: 0 | D20: 0 | E20: 0 | F20: 0 | G20: 0 | H20: 0 | I20: 0 | J20: 0 | K20: 0 | L20: 0 | N20: 0 | O20: 0 | P20: 0 | Q20: 0 | R20: 0 | S20: 0 | T20: 0 | U20: 0 | V20: 0 | W20: 0 | X20: 0
A21: ='Org structure'!E17 -> 02.7 - Geographical Information Systems | C21: 0 | D21: 0 | E21: 0 | F21: 0 | G21: 0 | H21: 0 | I21: 0 | J21: 0 | K21: 0 | L21: 0 | N21: 0 | O21: 0 | P21: 0 | Q21: 0 | R21: 0 | S21: 0 | T21: 0 | U21: 0 | V21: 0 | W21: 0 | X21: 0
A22: ='Org structure'!E18 -> 02.8 - Security Services & Municipal Keypoints | C22: 0 | D22: 0 | E22: 0 | F22: 1500000 | G22: 1500000 | H22: 1500000 | I22: 0 | J22: 1581000 | K22: 2000000 | L22: 2500000 | N22: 1581000 | O22: 0 | P22: 0 | Q22: 1581000 | R22: 2000000 | S22: 0 | T22: 0 | U22: 2000000 | V22: 0 | W22: 0 | X22: 2500000
A23: ='Org structure'!E19 -> 02.9 - Treasury And Revenue | C23: 0 | D23: 0 | E23: 0 | F23: 0 | G23: 0 | H23: 0 | I23: 0 | J23: 0 | K23: 0 | L23: 0 | N23: 0 | O23: 0 | P23: 0 | Q23: 0 | R23: 0 | S23: 0 | T23: 0 | U23: 0 | V23: 0 | W23: 0 | X23: 0
A24: ='Org structure'!E20 -> 02.10 - Treasury And Revenue | C24: 0 | D24: 0 | E24: 0 | F24: 0 | G24: 0 | H24: 0 | I24: 0 | J24: 0 | K24: 0 | L24: 0 | N24: 0 | O24: 0 | P24: 0 | Q24: 0 | R24: 0 | S24: 0 | T24: 0 | U24: 0 | V24: 0 | W24: 0 | X24: 0
A25: ='Org structure'!E21 -> 02.11 - Budget And Reporting | C25: 0 | D25: 0 | E25: 0 | F25: 0 | G25: 0 | H25: 0 | I25: 0 | J25: 0 | K25: 0 | L25: 0 | N25: 0 | O25: 0 | P25: 0 | Q25: 0 | R25: 0 | S25: 0 | T25: 0 | U25: 0 | V25: 0 | W25: 0 | X25: 0
A26: ='Org structure'!E22 -> 02.12 - Budget And Reporting | C26: 0 | D26: 0 | E26: 0 | F26: 0 | G26: 0 | H26: 0 | I26: 0 | J26: 0 | K26: 0 | L26: 0 | N26: 0 | O26: 0 | P26: 0 | Q26: 0 | R26: 0 | S26: 0 | T26: 0 | U26: 0 | V26: 0 | W26: 0 | X26: 0
A27: ='Org structure'!E23 -> 02.13 - Accounting Services | C27: 0 | D27: 0 | E27: 0 | F27: 0 | G27: 0 | H27: 0 | I27: 0 | J27: 0 | K27: 0 | L27: 0 | N27: 0 | O27: 0 | P27: 0 | Q27: 0 | R27: 0 | S27: 0 | T27: 0 | U27: 0 | V27: 0 | W27: 0 | X27: 0
A28: ='Org structure'!E24 -> 02.14 - Wsa Finance | C28: 0 | D28: 0 | E28: 0 | F28: 10000000 | G28: 2000000 | H28: 2000000 | I28: 109400.75 | J28: 0 | K28: 0 | L28: 0 | N28: 0 | O28: 0 | P28: 0 | Q28: 0 | R28: 0 | S28: 0 | T28: 0 | U28: 0 | V28: 0 | W28: 0 | X28: 0
A29: ='Org structure'!A4 -> Vote 03 - Planning & Development | C29: =SUM(C30:C33) -> 0 | D29: 1112401 | E29: 0 | F29: 0 | G29: 0 | H29: 0 | I29: 0 | J29: 2500000 | K29: 3300000 | L29: 0 | N29: =SUM(N30:N33) -> 2500000 | O29: 0 | P29: 0 | Q29: 2500000 | R29: 3300000 | S29: 0 | T29: 0 | U29: 3300000 | V29: 0 | W29: 0 | X29: 0
A30: ='Org structure'!E26 -> 03.1 - Economic Development | C30: 0 | D30: 1112401 | E30: 0 | F30: 0 | G30: 0 | H30: 0 | I30: 0 | J30: =Q30+V30 -> 2500000 | K30: =U30+W30 -> 3300000 | L30: =X30 -> 0 | N30: 2500000 | O30: 0 | P30: 0 | Q30: =SUM(N30:P30) -> 2500000 | R30: 3300000 | S30: 0 | T30: 0 | U30: =SUM(R30:T30) -> 3300000 | V30: 0 | W30: 0 | X30: 0
A31: ='Org structure'!E27 -> 03.2 - Survey And Planning | C31: 0 | D31: 0 | E31: 0 | F31: 0 | G31: 0 | H31: 0 | I31: 0 | J31: =Q31+V31 -> 0 | K31: =U31+W31 -> 0 | L31: =X31 -> 0 | N31: 0 | O31: 0 | P31: 0 | Q31: =SUM(N31:P31) -> 0 | R31: 0 | S31: 0 | T31: 0 | U31: =SUM(R31:T31) -> 0 | V31: 0 | W31: 0 | X31: 0
A32: ='Org structure'!E28 -> 03.3 - Ntinga Development Agency | C32: 0 | D32: 0 | E32: 0 | F32: 0 | G32: 0 | H32: 0 | I32: 0 | J32: =Q32+V32 -> 0 | K32: =U32+W32 -> 0 | L32: =X32 -> 0 | N32: 0 | O32: 0 | P32: 0 | Q32: =SUM(N32:P32) -> 0 | R32: 0 | S32: 0 | T32: 0 | U32: =SUM(R32:T32) -> 0 | V32: 0 | W32: 0 | X32: 0
A33: ='Org structure'!E29 -> 03.4 - Socio-Economic Development Facilitation | C33: 0 | D33: 0 | E33: 0 | F33: 0 | G33: 0 | H33: 0 | I33: 0 | J33: =Q33+V33 -> 0 | K33: =U33+W33 -> 0 | L33: =X33 -> 0 | N33: 0 | O33: 0 | P33: 0 | Q33: =SUM(N33:P33) -> 0 | R33: 0 | S33: 0 | T33: 0 | U33: =SUM(R33:T33) -> 0 | V33: 0 | W33: 0 | X33: 0
A34: ='Org structure'!A5 -> Vote 04 - Health | C34: =SUM(C35:C35) -> 0 | D34: 0 | E34: 0 | F34: 120000 | G34: 520000 | H34: 520000 | I34: 28900 | J34: 0 | K34: 0 | L34: 0 | N34: =SUM(N35:N35) -> 0 | O34: 0 | P34: 0 | Q34: 0 | R34: 0 | S34: 0 | T34: 0 | U34: 0 | V34: 0 | W34: 0 | X34: 0
A35: ='Org structure'!E31 -> 04.1 - Municipal Health | C35: 0 | D35: 0 | E35: 0 | F35: 120000 | G35: 520000 | H35: 520000 | I35: 28900 | J35: =Q35+V35 -> 0 | K35: =U35+W35 -> 0 | L35: =X35 -> 0 | N35: 0 | O35: 0 | P35: 0 | Q35: =SUM(N35:P35) -> 0 | R35: 0 | S35: 0 | T35: 0 | U35: =SUM(R35:T35) -> 0 | V35: 0 | W35: 0 | X35: 0
A36: ='Org structure'!A6 -> Vote 05 - Community & Social Services | C36: =SUM(C37:C37) -> 0 | D36: 0 | E36: 0 | F36: 0 | G36: 0 | H36: 0 | I36: 0 | J36: 0 | K36: 0 | L36: 0 | N36: =SUM(N37:N37) -> 0 | O36: 0 | P36: 0 | Q36: 0 | R36: 0 | S36: 0 | T36: 0 | U36: 0 | V36: 0 | W36: 0 | X36: 0
A37: ='Org structure'!E33 -> 05.1 - Social Development And Community Safety | C37: 0 | D37: 0 | E37: 0 | F37: 0 | G37: 0 | H37: 0 | I37: 0 | J37: =Q37+V37 -> 0 | K37: =U37+W37 -> 0 | L37: =X37 -> 0 | N37: 0 | O37: 0 | P37: 0 | Q37: =SUM(N37:P37) -> 0 | R37: 0 | S37: 0 | T37: 0 | U37: =SUM(R37:T37) -> 0 | V37: 0 | W37: 0 | X37: 0
A38: ='Org structure'!A7 -> Vote 06 - Housing | C38: =SUM(C39:C40) -> 0 | D38: 0 | E38: 0 | F38: 3545000 | G38: 50795730 | H38: 50795730 | I38: 10776435.03 | J38: 40045000 | K38: 45000 | L38: 0 | N38: =SUM(N39:N40) -> 40045000 | O38: 0 | P38: 0 | Q38: 40045000 | R38: 45000 | S38: 0 | T38: 0 | U38: 45000 | V38: 0 | W38: 0 | X38: 0
A39: ='Org structure'!E35 -> 06.1 - Housing Settlement | C39: 0 | D39: 0 | E39: 0 | F39: 3545000 | G39: 50795730 | H39: 50795730 | I39: 10776435.03 | J39: =Q39+V39 -> 40045000 | K39: =U39+W39 -> 45000 | L39: =X39 -> 0 | N39: 40045000 | O39: 0 | P39: 0 | Q39: =SUM(N39:P39) -> 40045000 | R39: 45000 | S39: 0 | T39: 0 | U39: =SUM(R39:T39) -> 45000 | V39: 0 | W39: 0 | X39: 0
A40: ='Org structure'!E36 -> 06.2 - Building And Technology | C40: 0 | D40: 0 | E40: 0 | F40: 0 | G40: 0 | H40: 0 | I40: 0 | J40: =Q40+V40 -> 0 | K40: =U40+W40 -> 0 | L40: =X40 -> 0 | N40: 0 | O40: 0 | P40: 0 | Q40: =SUM(N40:P40) -> 0 | R40: 0 | S40: 0 | T40: 0 | U40: =SUM(R40:T40) -> 0 | V40: 0 | W40: 0 | X40: 0
A41: ='Org structure'!A8 -> Vote 07 - Public Safety | C41: =SUM(C42:C43) -> 0 | D41: 0 | E41: 0 | F41: 8000000 | G41: 8921000 | H41: 8921000 | I41: 286814.5 | J41: 2300000 | K41: 5500000 | L41: 6000000 | N41: =SUM(N42:N43) -> 2300000 | O41: 0 | P41: 0 | Q41: 2300000 | R41: 5500000 | S41: 0 | T41: 0 | U41: 5500000 | V41: 0 | W41: 0 | X41: 6000000
A42: ='Org structure'!E38 -> 07.1 - Disaster Management | C42: 0 | D42: 0 | E42: 0 | F42: 3000000 | G42: 3921000 | H42: 3921000 | I42: 286814.5 | J42: =Q42+V42 -> 0 | K42: =U42+W42 -> 0 | L42: =X42 -> 0 | N42: 0 | O42: 0 | P42: 0 | Q42: =SUM(N42:P42) -> 0 | R42: 0 | S42: 0 | T42: 0 | U42: =SUM(R42:T42) -> 0 | V42: 0 | W42: 0 | X42: 0
A43: ='Org structure'!E39 -> 07.2 - Fire; Rescue And Emergency | C43: 0 | D43: 0 | E43: 0 | F43: 5000000 | G43: 5000000 | H43: 5000000 | I43: 0 | J43: =Q43+V43 -> 2300000 | K43: =U43+W43 -> 5500000 | L43: =X43 -> 6000000 | N43: 2300000 | O43: 0 | P43: 0 | Q43: =SUM(N43:P43) -> 2300000 | R43: 5500000 | S43: 0 | T43: 0 | U43: =SUM(R43:T43) -> 5500000 | V43: 0 | W43: 0 | X43: 6000000
A44: ='Org structure'!A9 -> Vote 08 - Sports & Recreation | C44: =SUM(C45:C45) -> 0 | D44: 0 | E44: 0 | F44: 0 | G44: 0 | H44: 0 | I44: 0 | J44: 0 | K44: 0 | L44: 0 | N44: =SUM(N45:N45) -> 0 | O44: 0 | P44: 0 | Q44: 0 | R44: 0 | S44: 0 | T44: 0 | U44: 0 | V44: 0 | W44: 0 | X44: 0
A45: ='Org structure'!E41 -> 08.1 - Arts; Sports And Culture | C45: 0 | D45: 0 | E45: 0 | F45: 0 | G45: 0 | H45: 0 | I45: 0 | J45: =Q45+V45 -> 0 | K45: =U45+W45 -> 0 | L45: =X45 -> 0 | N45: 0 | O45: 0 | P45: 0 | Q45: =SUM(N45:P45) -> 0 | R45: 0 | S45: 0 | T45: 0 | U45: =SUM(R45:T45) -> 0 | V45: 0 | W45: 0 | X45: 0
A46: ='Org structure'!A10 -> Vote 09 - Environmental | C46: =SUM(C47:C47) -> 0 | D46: 0 | E46: 0 | F46: 0 | G46: 0 | H46: 0 | I46: 0 | J46: 0 | K46: 0 | L46: 0 | N46: =SUM(N47:N47) -> 0 | O46: 0 | P46: 0 | Q46: 0 | R46: 0 | S46: 0 | T46: 0 | U46: 0 | V46: 0 | W46: 0 | X46: 0
A47: ='Org structure'!E43 -> 09.1 - Environmental Management | C47: 0 | D47: 0 | E47: 0 | F47: 0 | G47: 0 | H47: 0 | I47: 0 | J47: =Q47+V47 -> 0 | K47: =U47+W47 -> 0 | L47: =X47 -> 0 | N47: 0 | O47: 0 | P47: 0 | Q47: =SUM(N47:P47) -> 0 | R47: 0 | S47: 0 | T47: 0 | U47: =SUM(R47:T47) -> 0 | V47: 0 | W47: 0 | X47: 0
A48: ='Org structure'!A11 -> Vote 10 - Roads | C48: =SUM(C49:C50) -> 0 | D48: 0 | E48: 0 | F48: 48112000 | G48: 38612000 | H48: 38612000 | I48: 13143896.01 | J48: 43262000 | K48: 8125000 | L48: 3306000 | N48: =SUM(N49:N50) -> 43262000 | O48: 0 | P48: 0 | Q48: 43262000 | R48: 8125000 | S48: 0 | T48: 0 | U48: 8125000 | V48: 0 | W48: 0 | X48: 3306000
A49: ='Org structure'!E45 -> 10.1 - Planner Transport Planning | C49: 0 | D49: 0 | E49: 0 | F49: 0 | G49: 0 | H49: 0 | I49: 0 | J49: =Q49+V49 -> 0 | K49: =U49+W49 -> 0 | L49: =X49 -> 0 | N49: 0 | O49: 0 | P49: 0 | Q49: =SUM(N49:P49) -> 0 | R49: 0 | S49: 0 | T49: 0 | U49: =SUM(R49:T49) -> 0 | V49: 0 | W49: 0 | X49: 0
A50: ='Org structure'!E46 -> 10.2 - Public Works | C50: 0 | D50: 0 | E50: 0 | F50: 48112000 | G50: 38612000 | H50: 38612000 | I50: 13143896.01 | J50: =Q50+V50 -> 43262000 | K50: =U50+W50 -> 8125000 | L50: =X50 -> 3306000 | N50: 43262000 | O50: 0 | P50: 0 | Q50: =SUM(N50:P50) -> 43262000 | R50: 8125000 | S50: 0 | T50: 0 | U50: =SUM(R50:T50) -> 8125000 | V50: 0 | W50: 0 | X50: 3306000
A51: ='Org structure'!A12 -> Vote 11 - Water | C51: =SUM(C52:C59) -> 809271875 | D51: 731779794 | E51: 862537145 | F51: 1039614380 | G51: 1217879527 | H51: 1217879527 | I51: 494954099.6 | J51: 906649846 | K51: 936244573 | L51: 1034340635 | N51: =SUM(N52:N59) -> 906649846 | O51: 0 | P51: 0 | Q51: 906649846 | R51: 936244573 | S51: 0 | T51: 0 | U51: 936244573 | V51: 0 | W51: 0 | X51: 1034340635
A52: ='Org structure'!E48 -> 11.1 - Wsa Planning | C52: 0 | D52: 0 | E52: 0 | F52: 0 | G52: 0 | H52: 0 | I52: 0 | J52: =Q52+V52 -> 0 | K52: =U52+W52 -> 0 | L52: =X52 -> 0 | N52: 0 | O52: 0 | P52: 0 | Q52: =SUM(N52:P52) -> 0 | R52: 0 | S52: 0 | T52: 0 | U52: =SUM(R52:T52) -> 0 | V52: 0 | W52: 0 | X52: 0
A53: ='Org structure'!E49 -> 11.2 - Wsa Monit. Env. Municipal Health Service | C53: 0 | D53: 0 | E53: 0 | F53: 0 | G53: 0 | H53: 0 | I53: 0 | J53: 0 | K53: 0 | L53: 0 | N53: 0 | O53: 0 | P53: 0 | Q53: 0 | R53: 0 | S53: 0 | T53: 0 | U53: 0 | V53: 0 | W53: 0 | X53: 0
A54: ='Org structure'!E50 -> 11.3 - Wsu1 | C54: 809271875 | D54: 731779794 | E54: 862537145 | F54: 1039614380 | G54: 1217879527 | H54: 1217879527 | I54: 494954099.6 | J54: 906649846 | K54: 936244573 | L54: 1034340635 | N54: 906649846 | O54: 0 | P54: 0 | Q54: 906649846 | R54: 936244573 | S54: 0 | T54: 0 | U54: 936244573 | V54: 0 | W54: 0 | X54: 1034340635
A55: ='Org structure'!E51 -> 11.4 - Wsu2 | C55: 0 | D55: 0 | E55: 0 | F55: 0 | G55: 0 | H55: 0 | I55: 0 | J55: 0 | K55: 0 | L55: 0 | N55: 0 | O55: 0 | P55: 0 | Q55: 0 | R55: 0 | S55: 0 | T55: 0 | U55: 0 | V55: 0 | W55: 0 | X55: 0
A56: ='Org structure'!E52 -> 11.5 - Wsu3 | C56: 0 | D56: 0 | E56: 0 | F56: 0 | G56: 0 | H56: 0 | I56: 0 | J56: 0 | K56: 0 | L56: 0 | N56: 0 | O56: 0 | P56: 0 | Q56: 0 | R56: 0 | S56: 0 | T56: 0 | U56: 0 | V56: 0 | W56: 0 | X56: 0
A57: ='Org structure'!E53 -> 11.6 - Wsu4 | C57: 0 | D57: 0 | E57: 0 | F57: 0 | G57: 0 | H57: 0 | I57: 0 | J57: 0 | K57: 0 | L57: 0 | N57: 0 | O57: 0 | P57: 0 | Q57: 0 | R57: 0 | S57: 0 | T57: 0 | U57: 0 | V57: 0 | W57: 0 | X57: 0
A58: ='Org structure'!E54 -> 11.7 - Wsa Communication Customer Relations | C58: 0 | D58: 0 | E58: 0 | F58: 0 | G58: 0 | H58: 0 | I58: 0 | J58: 0 | K58: 0 | L58: 0 | N58: 0 | O58: 0 | P58: 0 | Q58: 0 | R58: 0 | S58: 0 | T58: 0 | U58: 0 | V58: 0 | W58: 0 | X58: 0
A59: ='Org structure'!E55 -> 11.8 - Wsa Capex Services | C59: 0 | D59: 0 | E59: 0 | F59: 0 | G59: 0 | H59: 0 | I59: 0 | J59: 0 | K59: 0 | L59: 0 | N59: 0 | O59: 0 | P59: 0 | Q59: 0 | R59: 0 | S59: 0 | T59: 0 | U59: 0 | V59: 0 | W59: 0 | X59: 0
A60: ='Org structure'!A13 -> Vote 12 - Tourism | C60: =SUM(C61:C61) -> 0 | D60: 0 | E60: 0 | F60: 0 | G60: 0 | H60: 0 | I60: 0 | J60: 0 | K60: 0 | L60: 0 | N60: =SUM(N61:N61) -> 0 | O60: 0 | P60: 0 | Q60: 0 | R60: 0 | S60: 0 | T60: 0 | U60: 0 | V60: 0 | W60: 0 | X60: 0
A61: ='Org structure'!E57 -> 12.1 - Tourism | C61: 0 | D61: 0 | E61: 0 | F61: 0 | G61: 0 | H61: 0 | I61: 0 | J61: =Q61+V61 -> 0 | K61: =U61+W61 -> 0 | L61: =X61 -> 0 | N61: 0 | O61: 0 | P61: 0 | Q61: =SUM(N61:P61) -> 0 | R61: 0 | S61: 0 | T61: 0 | U61: =SUM(R61:T61) -> 0 | V61: 0 | W61: 0 | X61: 0
A62: ='Org structure'!A14 -> Vote 13 - Development Agency | C62: =SUM(C63:C63) -> 0 | D62: 0 | E62: 0 | F62: 0 | G62: 7245000 | H62: 7245000 | I62: 0 | J62: 28896000 | K62: 6833000 | L62: 6852800 | N62: =SUM(N63:N63) -> 28896000 | O62: 0 | P62: 0 | Q62: 28896000 | R62: 6833000 | S62: 0 | T62: 0 | U62: 6833000 | V62: 0 | W62: 0 | X62: 6852800
A63: ='Org structure'!E59 -> 13.1 - Ntinga Development Agency | C63: 0 | D63: 0 | E63: 0 | F63: 0 | G63: 7245000 | H63: 7245000 | I63: 0 | J63: =Q63+V63 -> 28896000 | K63: =U63+W63 -> 6833000 | L63: =X63 -> 6852800 | N63: 28896000 | O63: 0 | P63: 0 | Q63: =SUM(N63:P63) -> 28896000 | R63: 6833000 | S63: 0 | T63: 0 | U63: =SUM(R63:T63) -> 6833000 | V63: 0 | W63: 0 | X63: 6852800
A64: ='Org structure'!A15 -> Vote 14 - | C64: 0 | D64: 0 | E64: 0 | F64: 0 | G64: 0 | H64: 0 | I64: 0 | J64: 0 | K64: 0 | L64: 0 | N64: 0 | O64: 0 | P64: 0 | Q64: 0 | R64: 0 | S64: 0 | T64: 0 | U64: 0 | V64: 0 | W64: 0
A65: ='Org structure'!A16 -> Vote 15 - Other | C65: 0 | D65: 0 | E65: 0 | F65: 0 | G65: 0 | H65: 0 | I65: 0 | J65: 0 | K65: 0 | L65: 0 | N65: 0 | O65: 0 | P65: 0 | Q65: 0 | R65: 0 | S65: 0 | T65: 0 | U65: 0 | V65: 0 | W65: 0
A66: Capital multi-year expenditure sub-total | C66: =C6+C14+C29+C34+C36+C38+C41+C44+C46+C48+C51+C60+C62+C64+C65 -> 810395059 | D66: 779295709 | E66: 875178512 | F66: 1123227534 | G66: 1351709411 | H66: 1351709411 | I66: 523157567.8 | J66: 1044807053 | K66: 978659832 | L66: 1060649435 | N66: =N6+N14+N29+N34+N36+N38+N41+N44+N46+N48+N51+N60+N62+N64+N65 -> 1044807053 | O66: 0 | P66: 0 | Q66: 1044807053 | R66: 978659832 | S66: 0 | T66: 0 | U66: 978659832 | V66: 0 | W66: 0
A68: Capital expenditure - Municipal Vote
A69: Single-year expenditure appropriation | B69: 2
A70: ='Org structure'!A2 -> Vote 01 - Council & Committees | C70: =SUM(C71:C77) -> 0 | D70: 0 | E70: 0 | F70: 0 | G70: 0 | H70: 0 | I70: 0 | J70: 0 | K70: 0 | L70: 0
A71: ='Org structure'!E3 -> 01.1 - Speaker's Office | C71: 0 | D71: 0 | E71: 0 | F71: 0 | G71: 0 | H71: 0 | I71: 0 | J71: 0 | K71: 0 | L71: 0
A72: ='Org structure'!E4 -> 01.2 - Mayoral Office | C72: 0 | D72: 0 | E72: 0 | F72: 0 | G72: 0 | H72: 0 | I72: 0 | J72: 0 | K72: 0 | L72: 0
A73: ='Org structure'!E5 -> 01.3 - Office Of The Municipal Manager | C73: 0 | D73: 0 | E73: 0 | F73: 0 | G73: 0 | H73: 0 | I73: 0 | J73: 0 | K73: 0 | L73: 0
A74: ='Org structure'!E6 -> 01.4 - Office Of The Executive Mayor | C74: 0 | D74: 0 | E74: 0 | F74: 0 | G74: 0 | H74: 0 | I74: 0 | J74: 0 | K74: 0 | L74: 0
A75: ='Org structure'!E7 -> 01.5 - Internal Audit | C75: 0 | D75: 0 | E75: 0 | F75: 0 | G75: 0 | H75: 0 | I75: 0 | J75: 0 | K75: 0 | L75: 0
A76: ='Org structure'!E8 -> 01.6 - Office Of The Chief Operating Officer | C76: 0 | D76: 0 | E76: 0 | F76: 0 | G76: 0 | H76: 0 | I76: 0 | J76: 0 | K76: 0 | L76: 0
A77: ='Org structure'!E9 -> 01.7 - Legal Services | C77: 0 | D77: 0 | E77: 0 | F77: 0 | G77: 0 | H77: 0 | I77: 0 | J77: 0 | K77: 0 | L77: 0
A78: ='Org structure'!A3 -> Vote 02 - Finance & Administration | C78: =SUM(C79:C92) -> 0 | D78: 0 | E78: 0 | F78: 0 | G78: 0 | H78: 0 | I78: 0 | J78: 0 | K78: 0 | L78: 0
A79: ='Org structure'!E11 -> 02.1 - Budget And Reporting Office | C79: 0 | D79: 0 | E79: 0 | F79: 0 | G79: 0 | H79: 0 | I79: 0 | J79: 0 | K79: 0 | L79: 0
A80: ='Org structure'!E12 -> 02.2 - Budget And Reporting Office | C80: 0 | D80: 0 | E80: 0 | F80: 0 | G80: 0 | H80: 0 | I80: 0 | J80: 0 | K80: 0 | L80: 0
A81: ='Org structure'!E13 -> 02.3 - Human Resources | C81: 0 | D81: 0 | E81: 0 | F81: 0 | G81: 0 | H81: 0 | I81: 0 | J81: 0 | K81: 0 | L81: 0
A82: ='Org structure'!E14 -> 02.4 - Procurement And Asset Management | C82: 0 | D82: 0 | E82: 0 | F82: 0 | G82: 0 | H82: 0 | I82: 0 | J82: 0 | K82: 0 | L82: 0
A83: ='Org structure'!E15 -> 02.5 - Information Technology | C83: 0 | D83: 0 | E83: 0 | F83: 0 | G83: 0 | H83: 0 | I83: 0 | J83: 0 | K83: 0 | L83: 0
A84: ='Org structure'!E16 -> 02.6 - Municipal Records And Auxiliary Services | C84: 0 | D84: 0 | E84: 0 | F84: 0 | G84: 0 | H84: 0 | I84: 0 | J84: 0 | K84: 0 | L84: 0
A85: ='Org structure'!E17 -> 02.7 - Geographical Information Systems | C85: 0 | D85: 0 | E85: 0 | F85: 0 | G85: 0 | H85: 0 | I85: 0 | J85: 0 | K85: 0 | L85: 0
A86: ='Org structure'!E18 -> 02.8 - Security Services & Municipal Keypoints | C86: 0 | D86: 0 | E86: 0 | F86: 0 | G86: 0 | H86: 0 | I86: 0 | J86: 0 | K86: 0 | L86: 0
A87: ='Org structure'!E19 -> 02.9 - Treasury And Revenue | C87: 0 | D87: 0 | E87: 0 | F87: 0 | G87: 0 | H87: 0 | I87: 0 | J87: 0 | K87: 0 | L87: 0
A88: ='Org structure'!E20 -> 02.10 - Treasury And Revenue | C88: 0 | D88: 0 | E88: 0 | F88: 0 | G88: 0 | H88: 0 | I88: 0 | J88: 0 | K88: 0 | L88: 0
A89: ='Org structure'!E21 -> 02.11 - Budget And Reporting | C89: 0 | D89: 0 | E89: 0 | F89: 0 | G89: 0 | H89: 0 | I89: 0 | J89: 0 | K89: 0 | L89: 0
A90: ='Org structure'!E22 -> 02.12 - Budget And Reporting | C90: 0 | D90: 0 | E90: 0 | F90: 0 | G90: 0 | H90: 0 | I90: 0 | J90: 0 | K90: 0 | L90: 0
A91: ='Org structure'!E23 -> 02.13 - Accounting Services | C91: 0 | D91: 0 | E91: 0 | F91: 0 | G91: 0 | H91: 0 | I91: 0 | J91: 0 | K91: 0 | L91: 0
A92: ='Org structure'!E24 -> 02.14 - Wsa Finance | C92: 0 | D92: 0 | E92: 0 | F92: 0 | G92: 0 | H92: 0 | I92: 0 | J92: 0 | K92: 0 | L92: 0
A93: ='Org structure'!A4 -> Vote 03 - Planning & Development | C93: =SUM(C94:C97) -> 0 | D93: 0 | E93: 0 | F93: 0 | G93: 0 | H93: 0 | I93: 0 | J93: 0 | K93: 0 | L93: 0
A94: ='Org structure'!E26 -> 03.1 - Economic Development | C94: 0 | D94: 0 | E94: 0 | F94: 0 | G94: 0 | H94: 0 | I94: 0 | J94: 0 | K94: 0 | L94: 0
A95: ='Org structure'!E27 -> 03.2 - Survey And Planning | C95: 0 | D95: 0 | E95: 0 | F95: 0 | G95: 0 | H95: 0 | I95: 0 | J95: 0 | K95: 0 | L95: 0
A96: ='Org structure'!E28 -> 03.3 - Ntinga Development Agency | C96: 0 | D96: 0 | E96: 0 | F96: 0 | G96: 0 | H96: 0 | I96: 0 | J96: 0 | K96: 0 | L96: 0
A97: ='Org structure'!E29 -> 03.4 - Socio-Economic Development Facilitation | C97: 0 | D97: 0 | E97: 0 | F97: 0 | G97: 0 | H97: 0 | I97: 0 | J97: 0 | K97: 0 | L97: 0
A98: ='Org structure'!A5 -> Vote 04 - Health | C98: =SUM(C99:C99) -> 0 | D98: 0 | E98: 0 | F98: 0 | G98: 0 | H98: 0 | I98: 0 | J98: 0 | K98: 0 | L98: 0
A99: ='Org structure'!E31 -> 04.1 - Municipal Health | C99: 0 | D99: 0 | E99: 0 | F99: 0 | G99: 0 | H99: 0 | I99: 0 | J99: 0 | K99: 0 | L99: 0
A100: ='Org structure'!A6 -> Vote 05 - Community & Social Services | C100: =SUM(C101:C101) -> 0 | D100: 0 | E100: 0 | F100: 0 | G100: 0 | H100: 0 | I100: 0 | J100: 0 | K100: 0 | L100: 0
A101: ='Org structure'!E33 -> 05.1 - Social Development And Community Safety | C101: 0 | D101: 0 | E101: 0 | F101: 0 | G101: 0 | H101: 0 | I101: 0 | J101: 0 | K101: 0 | L101: 0
A102: ='Org structure'!A7 -> Vote 06 - Housing | C102: =SUM(C103:C104) -> 0 | D102: 0 | E102: 0 | F102: 0 | G102: 0 | H102: 0 | I102: 0 | J102: 0 | K102: 0 | L102: 0
A103: ='Org structure'!E35 -> 06.1 - Housing Settlement | C103: 0 | D103: 0 | E103: 0 | F103: 0 | G103: 0 | H103: 0 | I103: 0 | J103: 0 | K103: 0 | L103: 0
A104: ='Org structure'!E36 -> 06.2 - Building And Technology | C104: 0 | D104: 0 | E104: 0 | F104: 0 | G104: 0 | H104: 0 | I104: 0 | J104: 0 | K104: 0 | L104: 0
A105: ='Org structure'!A8 -> Vote 07 - Public Safety | C105: =SUM(C106:C107) -> 0 | D105: 0 | E105: 0 | F105: 0 | G105: 0 | H105: 0 | I105: 0 | J105: 0 | K105: 0 | L105: 0
A106: ='Org structure'!E38 -> 07.1 - Disaster Management | C106: 0 | D106: 0 | E106: 0 | F106: 0 | G106: 0 | H106: 0 | I106: 0 | J106: 0 | K106: 0 | L106: 0
A107: ='Org structure'!E39 -> 07.2 - Fire; Rescue And Emergency | C107: 0 | D107: 0 | E107: 0 | F107: 0 | G107: 0 | H107: 0 | I107: 0 | J107: 0 | K107: 0 | L107: 0
A108: ='Org structure'!A9 -> Vote 08 - Sports & Recreation | C108: =SUM(C109:C109) -> 0 | D108: 0 | E108: 0 | F108: 0 | G108: 0 | H108: 0 | I108: 0 | J108: 0 | K108: 0 | L108: 0
A109: ='Org structure'!E41 -> 08.1 - Arts; Sports And Culture | C109: 0 | D109: 0 | E109: 0 | F109: 0 | G109: 0 | H109: 0 | I109: 0 | J109: 0 | K109: 0 | L109: 0
A110: ='Org structure'!A10 -> Vote 09 - Environmental | C110: =SUM(C111:C111) -> 0 | D110: 0 | E110: 0 | F110: 0 | G110: 0 | H110: 0 | I110: 0 | J110: 0 | K110: 0 | L110: 0
A111: ='Org structure'!E43 -> 09.1 - Environmental Management | C111: 0 | D111: 0 | E111: 0 | F111: 0 | G111: 0 | H111: 0 | I111: 0 | J111: 0 | K111: 0 | L111: 0
A112: ='Org structure'!A11 -> Vote 10 - Roads | C112: =SUM(C113:C114) -> 0 | D112: 0 | E112: 0 | F112: 0 | G112: 0 | H112: 0 | I112: 0 | J112: 0 | K112: 0 | L112: 0
A113: ='Org structure'!E45 -> 10.1 - Planner Transport Planning | C113: 0 | D113: 0 | E113: 0 | F113: 0 | G113: 0 | H113: 0 | I113: 0 | J113: 0 | K113: 0 | L113: 0
A114: ='Org structure'!E46 -> 10.2 - Public Works | C114: 0 | D114: 0 | E114: 0 | F114: 0 | G114: 0 | H114: 0 | I114: 0 | J114: 0 | K114: 0 | L114: 0
A115: ='Org structure'!A12 -> Vote 11 - Water | C115: =SUM(C116:C123) -> 0 | D115: 0 | E115: 0 | F115: 0 | G115: 0 | H115: 0 | I115: 0 | J115: 0 | K115: 0 | L115: 0
A116: ='Org structure'!E48 -> 11.1 - Wsa Planning | C116: 0 | D116: 0 | E116: 0 | F116: 0 | G116: 0 | H116: 0 | I116: 0 | J116: 0 | K116: 0 | L116: 0
A117: ='Org structure'!E49 -> 11.2 - Wsa Monit. Env. Municipal Health Service | C117: 0 | D117: 0 | E117: 0 | F117: 0 | G117: 0 | H117: 0 | I117: 0 | J117: 0 | K117: 0 | L117: 0
A118: ='Org structure'!E50 -> 11.3 - Wsu1 | C118: 0 | D118: 0 | E118: 0 | F118: 0 | G118: 0 | H118: 0 | I118: 0 | J118: 0 | K118: 0 | L118: 0
A119: ='Org structure'!E51 -> 11.4 - Wsu2 | C119: 0 | D119: 0 | E119: 0 | F119: 0 | G119: 0 | H119: 0 | I119: 0 | J119: 0 | K119: 0 | L119: 0
A120: ='Org structure'!E52 -> 11.5 - Wsu3 | C120: 0 | D120: 0 | E120: 0 | F120: 0 | G120: 0 | H120: 0 | I120: 0 | J120: 0 | K120: 0 | L120: 0
A121: ='Org structure'!E53 -> 11.6 - Wsu4 | C121: 0 | D121: 0 | E121: 0 | F121: 0 | G121: 0 | H121: 0 | I121: 0 | J121: 0 | K121: 0 | L121: 0
A122: ='Org structure'!E54 -> 11.7 - Wsa Communication Customer Relations | C122: 0 | D122: 0 | E122: 0 | F122: 0 | G122: 0 | H122: 0 | I122: 0 | J122: 0 | K122: 0 | L122: 0
A123: ='Org structure'!E55 -> 11.8 - Wsa Capex Services | C123: 0 | D123: 0 | E123: 0 | F123: 0 | G123: 0 | H123: 0 | I123: 0 | J123: 0 | K123: 0 | L123: 0
A124: ='Org structure'!A13 -> Vote 12 - Tourism | C124: =SUM(C125:C125) -> 0 | D124: 0 | E124: 0 | F124: 0 | G124: 0 | H124: 0 | I124: 0 | J124: 0 | K124: 0 | L124: 0
A125: ='Org structure'!E57 -> 12.1 - Tourism | C125: 0 | D125: 0 | E125: 0 | F125: 0 | G125: 0 | H125: 0 | I125: 0 | J125: 0 | K125: 0 | L125: 0
A126: ='Org structure'!A14 -> Vote 13 - Development Agency | C126: =SUM(C127:C127) -> 0 | D126: 0 | E126: 0 | F126: 0 | G126: 0 | H126: 0 | I126: 0 | J126: 0 | K126: 0 | L126: 0
A127: ='Org structure'!E59 -> 13.1 - Ntinga Development Agency | C127: 0 | D127: 0 | E127: 0 | F127: 0 | G127: 0 | H127: 0 | I127: 0 | J127: 0 | K127: 0 | L127: 0
A128: ='Org structure'!A15 -> Vote 14 - | C128: 0 | D128: 0 | E128: 0 | F128: 0 | G128: 0 | H128: 0 | I128: 0 | J128: 0 | K128: 0 | L128: 0
A129: ='Org structure'!A16 -> Vote 15 - Other | C129: 0 | D129: 0 | E129: 0 | F129: 0 | G129: 0 | H129: 0 | I129: 0 | J129: 0 | K129: 0 | L129: 0
A130: Capital single-year expenditure sub-total | C130: =C70+C78+C93+C98+C100+C102+C105+C108+C110+C112+C115+C124+C126+C128+C129 -> 0 | D130: 0 | E130: 0 | F130: 0 | G130: 0 | H130: 0 | I130: 0 | J130: 0 | K130: 0 | L130: 0
A131: Total Capital Expenditure | C131: =C66+C130 -> 810395059 | D131: 779295709 | E131: 875178512 | F131: 1123227534 | G131: 1351709411 | H131: 1351709411 | I131: 523157567.8 | J131: 1044807053 | K131: 978659832 | L131: 1060649435

Sheet A6-FinPos
A1: =muni&" - "&Approve6 -> DC15 O .R. Tambo - Table A6 Consolidated Budgeted Financial Position
A2: =desc -> Description | B2: =head27 -> Ref | C2: =head1b -> 2016/17 | D2: =head1A -> 2017/18 | E2: =Head1 -> 2018/19 | F2: =Head2 -> Current Year 2019/20 | J2: =Head3 -> 2020/21 Medium Term Revenue & Expenditure Framework
A3: R thousand | C3: =Head5 -> Audited Outcome | D3: =Head5 -> Audited Outcome | E3: =Head5 -> Audited Outcome | F3: =Head6 -> Original Budget | G3: =Head7 -> Adjusted Budget | H3: =Head8 -> Full Year Forecast | I3: =Head5b -> Pre-audit outcome | J3: =Head9 -> Budget Year 2020/21 | K3: =Head10 -> Budget Year +1 2021/22 | L3: =Head11 -> Budget Year +2 2022/23
A4: ASSETS
A5: Current assets
A6: Cash | C6: ='[3]A6-FinPos'!C6 -> 291314534 | D6: ='[3]A6-FinPos'!D6 -> 214654510 | E6: ='[3]A6-FinPos'!E6 -> 158050383 | F6: ='[3]A6-FinPos'!F6 -> 225423480.2 | G6: ='[3]A6-FinPos'!G6 -> 134248075 | H6: ='[3]A6-FinPos'!H6 -> 134248075 | I6: ='[3]A6-FinPos'!I6 -> -53837713.32 | J6: 119676977 | K6: 126139534 | L6: 131815813
A7: Call investment deposits | B7: 1 | C7: ='[3]A6-FinPos'!C7 -> 0 | D7: ='[3]A6-FinPos'!D7 -> 0 | E7: ='[3]A6-FinPos'!E7 -> 118361546 | F7: ='[3]A6-FinPos'!F7 -> 230094999.7 | G7: ='[3]A6-FinPos'!G7 -> 120585754 | H7: ='[3]A6-FinPos'!H7 -> 120585754 | I7: ='[3]A6-FinPos'!I7 -> 269655572.4 | J7: 127097385 | K7: 133960643 | L7: 139988872
A8: Consumer debtors | B8: 1 | C8: ='SA3'!C14 -> 55062221 | D8: ='SA3'!D14 -> 69677589.38 | E8: ='SA3'!E14 -> 85630580.53 | F8: ='SA3'!F14 -> 168545582.1 | G8: ='SA3'!G14 -> 99868838 | H8: ='SA3'!H14 -> 99868838 | I8: ='SA3'!I14 -> 139263695.4 | J8: ='SA3'!J14 -> 28031836.13 | K8: ='SA3'!K14 -> 181037652.1 | L8: ='SA3'!L14 -> 126131736.1
A9: Other debtors | C9: ='[3]A6-FinPos'!C9 -> 88394608 | D9: ='[3]A6-FinPos'!D9 -> 170553509 | E9: ='[3]A6-FinPos'!E9 -> 113916676 | F9: ='[3]A6-FinPos'!F9 -> 3112001.675 | G9: ='[3]A6-FinPos'!G9 -> 57941249 | H9: ='[3]A6-FinPos'!H9 -> 57941249 | I9: ='[3]A6-FinPos'!I9 -> 139091868.7 | J9: 57600498 | K9: 63360548 | L9: 66211772
A10: Current portion of long-term receivables | C10: ='[3]A6-FinPos'!C10 -> 0 | D10: ='[3]A6-FinPos'!D10 -> 0 | E10: ='[3]A6-FinPos'!E10 -> 57006736 | F10: ='[3]A6-FinPos'!F10 -> 0 | G10: ='[3]A6-FinPos'!G10 -> 0 | H10: ='[3]A6-FinPos'!H10 -> 0 | I10: ='[3]A6-FinPos'!I10 -> 0
A11: Inventory | B11: 2 | C11: ='[3]A6-FinPos'!C11 -> 20893353 | D11: ='[3]A6-FinPos'!D11 -> 21354721 | E11: ='[3]A6-FinPos'!E11 -> 16875077 | F11: ='[3]A6-FinPos'!F11 -> 35613057.5 | G11: ='[3]A6-FinPos'!G11 -> 17540052 | H11: ='[3]A6-FinPos'!H11 -> 17540052 | I11: ='[3]A6-FinPos'!I11 -> 200569.12 | J11: 19294057 | K11: 21223462 | L11: 22178518
A12: Total current assets | C12: =SUM(C6:C11) -> 455664716 | D12: 476240329.4 | E12: 549840998.5 | F12: 662789121.1 | G12: 430183968 | H12: 430183968 | I12: 494373992.2 | J12: 351700753.1 | K12: 525721839.1 | L12: 486326711.1
A14: Non current assets
A15: Long-term receivables | C15: ='[3]A6-FinPos'!C15 -> 1199163 | D15: ='[3]A6-FinPos'!D15 -> 1199163 | E15: ='[3]A6-FinPos'!E15 -> 0 | F15: ='[3]A6-FinPos'!F15 -> 0 | G15: ='[3]A6-FinPos'!G15 -> 0 | H15: ='[3]A6-FinPos'!H15 -> 0 | I15: ='[3]A6-FinPos'!I15 -> 443671.93 | J15: 0 | K15: 0 | L15: 0
A16: Investments | C16: ='[3]A6-FinPos'!C16 -> 0 | D16: ='[3]A6-FinPos'!D16 -> 0 | E16: ='[3]A6-FinPos'!E16 -> 0 | F16: ='[3]A6-FinPos'!F16 -> 0 | G16: ='[3]A6-FinPos'!G16 -> 0 | H16: ='[3]A6-FinPos'!H16 -> 0 | I16: ='[3]A6-FinPos'!I16 -> 0 | J16: 0 | K16: 0 | L16: 0
A17: Investment property | C17: ='[3]A6-FinPos'!C17 -> 2200000 | D17: ='[3]A6-FinPos'!D17 -> 2200000 | E17: ='[3]A6-FinPos'!E17 -> 2200000 | F17: ='[3]A6-FinPos'!F17 -> 0 | G17: ='[3]A6-FinPos'!G17 -> 2200000 | H17: ='[3]A6-FinPos'!H17 -> 2200000 | I17: ='[3]A6-FinPos'!I17 -> 2200000 | J17: 2200000 | K17: 2200000 | L17: 2299000
A18: Investment in Associate | C18: ='[3]A6-FinPos'!C18 -> 0 | D18: ='[3]A6-FinPos'!D18 -> 0 | E18: ='[3]A6-FinPos'!E18 -> 0 | F18: ='[3]A6-FinPos'!F18 -> 0 | G18: ='[3]A6-FinPos'!G18 -> 0 | H18: ='[3]A6-FinPos'!H18 -> 0 | I18: ='[3]A6-FinPos'!I18 -> 0
A19: Property, plant and equipment | B19: 3 | C19: ='SA3'!C26 -> 5349900582 | D19: ='SA3'!D26 -> 5969111709 | E19: ='SA3'!E26 -> 6513885672 | F19: ='SA3'!F26 -> 9715593110 | G19: ='SA3'!G26 -> 8489173656 | H19: ='SA3'!H26 -> 8489173656 | I19: ='SA3'!I26 -> 6959684865 | J19: ='SA3'!J26 -> 9114556386 | K19: ='SA3'!K26 -> 9779302786 | L19: ='SA3'!L26 -> 10257580383
A21: Biological | C21: ='[3]A6-FinPos'!C21 -> 20954697 | D21: ='[3]A6-FinPos'!D21 -> 11232450 | E21: ='[3]A6-FinPos'!E21 -> 13234502 | F21: ='[3]A6-FinPos'!F21 -> 0 | G21: ='[3]A6-FinPos'!G21 -> 0 | H21: ='[3]A6-FinPos'!H21 -> 0 | I21: ='[3]A6-FinPos'!I21 -> 0 | J21: 0 | K21: 0 | L21: 0
A22: Intangible | C22: ='[3]A6-FinPos'!C22 -> 1901754 | D22: ='[3]A6-FinPos'!D22 -> 4989024 | E22: ='[3]A6-FinPos'!E22 -> 3582059 | F22: ='[3]A6-FinPos'!F22 -> 2686154 | G22: ='[3]A6-FinPos'!G22 -> 18886965 | H22: ='[3]A6-FinPos'!H22 -> 18886965 | I22: ='[3]A6-FinPos'!I22 -> 2868062.17 | J22: 16832018 | K22: 13163070 | L22: 13496347
A23: Other non-current assets | C23: ='[3]A6-FinPos'!C23 -> 90000 | D23: ='[3]A6-FinPos'!D23 -> 247025 | E23: ='[3]A6-FinPos'!E23 -> 247025 | F23: ='[3]A6-FinPos'!F23 -> 0 | G23: ='[3]A6-FinPos'!G23 -> 250000 | H23: ='[3]A6-FinPos'!H23 -> 250000 | I23: ='[3]A6-FinPos'!I23 -> 247025 | J23: 250000 | K23: 250000 | L23: 261250
A24: Total non current assets | C24: =SUM(C15:C19)+SUM(C21:C23) -> 5376246196 | D24: =SUM(D15:D19)+SUM(D21:D23) -> 5988979371 | E24: 6533149258 | F24: 9718279264 | G24: 8510510621 | H24: 8510510621 | I24: 6965443624 | J24: 9133838404 | K24: 9794915856 | L24: 10273636980
A25: TOTAL ASSETS | C25: =C12+C24 -> 5831910912 | D25: =D12+D24 -> 6465219700 | E25: =E12+E24 -> 7082990256 | F25: =F12+F24 -> 1.038106839e+10 | G25: 8940694589 | H25: 8940694589 | I25: 7459817616 | J25: 9485539157 | K25: 1.03206377e+10 | L25: 1.075996369e+10
A27: LIABILITIES
A28: Current liabilities
A29: Bank overdraft | B29: 1 | C29: ='[3]A6-FinPos'!C29 -> 0 | D29: ='[3]A6-FinPos'!D29 -> 0 | E29: ='[3]A6-FinPos'!E29 -> 0 | F29: ='[3]A6-FinPos'!F29 -> 0 | G29: ='[3]A6-FinPos'!G29 -> 0 | H29: ='[3]A6-FinPos'!H29 -> 0 | I29: ='[3]A6-FinPos'!I29 -> 0 | J29: 0 | K29: 0 | L29: 0
A30: Borrowing | B30: 4 | C30: ='SA3'!C32 -> 0 | D30: ='SA3'!D32 -> 0 | E30: ='SA3'!E32 -> 0 | F30: ='SA3'!F32 -> 297648 | G30: ='SA3'!G32 -> 0 | H30: ='SA3'!H32 -> 0 | I30: ='SA3'!I32 -> 0 | J30: ='SA3'!J32 -> 0 | K30: ='SA3'!K32 -> 0 | L30: ='SA3'!L32 -> 0
A31: Consumer deposits | C31: ='[3]A6-FinPos'!C31 -> 1604949 | D31: ='[3]A6-FinPos'!D31 -> 2930638 | E31: ='[3]A6-FinPos'!E31 -> 3213932 | F31: ='[3]A6-FinPos'!F31 -> 3313800 | G31: ='[3]A6-FinPos'!G31 -> 3500000 | H31: ='[3]A6-FinPos'!H31 -> 3500000 | I31: ='[3]A6-FinPos'!I31 -> -479461.94 | J31: 3745000 | K31: 4007150 | L31: 4187472
A32: Trade and other payables | B32: 4 | C32: ='SA3'!C39 -> 391505460 | D32: ='SA3'!D39 -> 461201744 | E32: ='SA3'!E39 -> 630946025 | F32: ='SA3'!F39 -> 278568378.5 | G32: ='SA3'!G39 -> 105224306 | H32: ='SA3'!H39 -> 105224306 | I32: ='SA3'!I39 -> 902883266.7 | J32: ='SA3'!J39 -> 101915877 | K32: ='SA3'!K39 -> 327462503.1 | L32: ='SA3'!L39 -> 279145705.1
A33: Provisions | C33: ='[3]A6-FinPos'!C33 -> 2211000 | D33: ='[3]A6-FinPos'!D33 -> 3623000 | E33: ='[3]A6-FinPos'!E33 -> 3211000 | F33: ='[3]A6-FinPos'!F33 -> 0 | G33: ='[3]A6-FinPos'!G33 -> 113644052 | H33: ='[3]A6-FinPos'!H33 -> 113644052 | I33: ='[3]A6-FinPos'!I33 -> 183510234.2 | J33: 121599136 | K33: 130111075 | L33: 135966074
A34: Total current liabilities | C34: =SUM(C29:C33) -> 395321409 | D34: 467755382 | E34: 637370957 | F34: 282179826.5 | G34: 222368358 | H34: 222368358 | I34: 1085914039 | J34: 227260013 | K34: 461580728.1 | L34: 419299251.1
A36: Non current liabilities
A37: Borrowing | C37: ='SA3'!C44 -> 38795339 | D37: ='SA3'!D44 -> 0 | E37: ='SA3'!E44 -> 0 | F37: ='SA3'!F44 -> 104000 | G37: ='SA3'!G44 -> 0 | H37: ='SA3'!H44 -> 0 | I37: ='SA3'!I44 -> 0 | J37: ='SA3'!J44 -> 0 | K37: ='SA3'!K44 -> 0 | L37: ='SA3'!L44 -> 0
A38: Provisions | C38: ='SA3'!C51 -> 64042052 | D38: ='SA3'!D51 -> 87087052 | E38: ='SA3'!E51 -> 113540052 | F38: ='SA3'!F51 -> 40570534.08 | G38: ='SA3'!G51 -> 0 | H38: ='SA3'!H51 -> 0 | I38: ='SA3'!I51 -> 0 | J38: ='SA3'!J51 -> 0 | K38: ='SA3'!K51 -> 0 | L38: ='SA3'!L51 -> 0
A39: Total non current liabilities | C39: =SUM(C37:C38) -> 102837391 | D39: =SUM(D37:D38) -> 87087052 | E39: =SUM(E37:E38) -> 113540052 | F39: =SUM(F37:F38) -> 40674534.08 | G39: 0 | H39: 0 | I39: 0 | J39: 0 | K39: =SUM(K37:K38) -> 0 | L39: 0
A40: TOTAL LIABILITIES | C40: =C34+C39 -> 498158800 | D40: =D34+D39 -> 554842434 | E40: =E34+E39 -> 750911009 | F40: =F34+F39 -> 322854360.6 | G40: 222368358 | H40: 222368358 | I40: 1085914039 | J40: 227260013 | K40: =K34+K39 -> 461580728.1 | L40: 419299251.1
A42: NET ASSETS | B42: 5 | C42: =C25-C40 -> 5333752112 | D42: 5910377266 | E42: 6332079247 | F42: 1.005821402e+10 | G42: 8718326231 | H42: 8718326231 | I42: 6373903577 | J42: 9258279144 | K42: 9859056967 | L42: 10340664440
A44: COMMUNITY WEALTH/EQUITY
A45: Accumulated Surplus/(Deficit) | C45: ='[3]A6-FinPos'!C45 -> 5350006140 | D45: ='[3]A6-FinPos'!D45 -> 5903313468 | E45: ='[3]A6-FinPos'!E45 -> 6458937889 | F45: ='[3]A6-FinPos'!F45 -> 1.005821402e+10 | G45: ='[3]A6-FinPos'!G45 -> 8718326231 | H45: ='[3]A6-FinPos'!H45 -> 8718326231 | I45: ='[3]A6-FinPos'!I45 -> 6373903577 | J45: ='SA3'!J63 -> 9258279145 | K45: ='SA3'!K63 -> 9859056967 | L45: ='SA3'!L63 -> 10340664440
A46: Reserves | B46: 4 | C46: ='SA3'!C70 -> 0 | D46: ='SA3'!D70 -> 0 | E46: ='SA3'!E70 -> 0 | F46: ='SA3'!F70 -> 0 | G46: ='SA3'!G70 -> 0 | H46: ='SA3'!H70 -> 0 | I46: ='SA3'!I70 -> 0 | J46: ='SA3'!J70 -> 0 | K46: ='SA3'!K70 -> 0 | L46: ='SA3'!L70 -> 0
A48: TOTAL COMMUNITY WEALTH/EQUITY | B48: 5 | C48: =SUM(C45:C46) -> 5350006140 | D48: =SUM(D45:D46) -> 5903313468 | E48: 6458937889 | F48: 1.005821402e+10 | G48: 8718326231 | H48: 8718326231 | I48: 6373903577 | J48: 9258279145 | K48: 9859056967 | L48: 10340664440
A49: =head27a -> References
A50: 1. Detail to be provided in Table SA3
A51: 2. Include completed low cost housing to be transferred to beneficiaries within 12 months
A52: 3. Include 'Construction-work-in-progress' (disclosed separately in annual financial statements)
A53: 4. Detail to be provided in Table SA3. Includes reserves to be funded by statute.
A54: 5. Net assets must balance with Total Community Wealth/Equity
A55: check balance | C55: =IF((C42-C48)=0,0,"Unbalanced") -> Unbalanced | D55: =IF((D42-D48)=0,0,"Unbalanced") -> Unbalanced | E55: Unbalanced | F55: 0 | G55: 0 | H55: 0 | I55: 0 | J55: Unbalanced | K55: 0 | L55: 0

Sheet A7-CFlow
A1: =muni&" - "&Approve7 -> DC15 O .R. Tambo - Table A7 Consolidated Budgeted Cash Flows
A2: =desc -> Description | B2: =head27 -> Ref | C2: =head1b -> 2016/17 | D2: =head1A -> 2017/18 | E2: =Head1 -> 2018/19 | F2: =Head2 -> Current Year 2019/20 | J2: =Head3 -> 2020/21 Medium Term Revenue & Expenditure Framework
A3: R thousand | C3: =Head5 -> Audited Outcome | D3: =Head5 -> Audited Outcome | E3: =Head5 -> Audited Outcome | F3: =Head6 -> Original Budget | G3: =Head7 -> Adjusted Budget | H3: =Head8 -> Full Year Forecast | I3: =Head5b -> Pre-audit outcome | J3: =Head9 -> Budget Year 2020/21 | K3: =Head10 -> Budget Year +1 2021/22 | L3: =Head11 -> Budget Year +2 2022/23
A4: CASH FLOW FROM OPERATING ACTIVITIES
A5: Receipts
A6: Property rates | J6: ='SA30'!N5 -> 0 | K6: ='SA30'!O5 -> 0 | L6: ='SA30'!P5 -> 0
A7: Service charges | C7: ='[3]A7-CFlow'!C7 -> 127560412 | D7: ='[3]A7-CFlow'!D7 -> 131458266 | E7: ='[3]A7-CFlow'!E7 -> 109436731 | F7: ='[3]A7-CFlow'!F7 -> 319772989.3 | G7: ='[3]A7-CFlow'!G7 -> 332772989.3 | H7: ='[3]A7-CFlow'!H7 -> 332772989.3 | I7: ='[3]A7-CFlow'!I7 -> 293757019.4 | J7: ='SA30'!N6+'SA30'!N7+'SA30'!N8+'SA30'!N9 -> 206872084 | K7: ='SA30'!O6+'SA30'!O7+'SA30'!O8+'SA30'!O9 -> 196390434 | L7: ='SA30'!P6+'SA30'!P7+'SA30'!P8+'SA30'!P9 -> 210583779
A8: Other revenue | C8: ='[3]A7-CFlow'!C8 -> 124791261 | D8: ='[3]A7-CFlow'!D8 -> 117242733 | E8: ='[3]A7-CFlow'!E8 -> 31751479 | F8: ='[3]A7-CFlow'!F8 -> 246117204 | G8: ='[3]A7-CFlow'!G8 -> 80161474.59 | H8: ='[3]A7-CFlow'!H8 -> 80161474.59 | I8: ='[3]A7-CFlow'!I8 -> 80161474.59 | J8: ='SA30'!N11+'SA30'!N15+'SA30'!N16+'SA30'!N17+'SA30'!N19 -> 259912640 | K8: ='SA30'!O11+'SA30'!O15+'SA30'!O16+'SA30'!O17+'SA30'!O19 -> 196681245 | L8: ='SA30'!P11+'SA30'!P15+'SA30'!P16+'SA30'!P17+'SA30'!P19 -> 138290637
A9: Transfers and Subsidies - Operational | B9: 1 | C9: ='[3]A7-CFlow'!C9 -> 1414280433 | D9: ='[3]A7-CFlow'!D9 -> 735535512 | E9: ='[3]A7-CFlow'!E9 -> 800808821 | F9: ='[3]A7-CFlow'!F9 -> 863952000.3 | G9: ='[3]A7-CFlow'!G9 -> 863952000.3 | H9: ='[3]A7-CFlow'!H9 -> 863952000.3 | I9: ='[3]A7-CFlow'!I9 -> 863952000.3 | J9: ='SA30'!N18 -> 976036181 | K9: ='SA30'!O18 -> 1036542466 | L9: ='SA30'!P18 -> 1104844272
A10: Transfers and Subsidies - Capital | B10: 1 | C10: ='[3]A7-CFlow'!C10 -> 0 | D10: ='[3]A7-CFlow'!D10 -> 1014469297 | E10: ='[3]A7-CFlow'!E10 -> 1208939773 | F10: ='[3]A7-CFlow'!F10 -> 979793000 | G10: ='[3]A7-CFlow'!G10 -> 1146643730 | H10: ='[3]A7-CFlow'!H10 -> 1146643730 | I10: ='[3]A7-CFlow'!I10 -> 1146643730 | J10: ='SA30'!N23 -> 891519000 | K10: ='SA30'!O23 -> 882465000 | L10: ='SA30'!P23 -> 988437000
A11: Interest | C11: ='[3]A7-CFlow'!C11 -> 59707960 | D11: ='[3]A7-CFlow'!D11 -> 93945495 | E11: ='[3]A7-CFlow'!E11 -> 124603945 | F11: ='[3]A7-CFlow'!F11 -> 36882200 | G11: ='[3]A7-CFlow'!G11 -> 23882200 | H11: ='[3]A7-CFlow'!H11 -> 23882200 | I11: ='[3]A7-CFlow'!I11 -> 23882200 | J11: ='SA30'!N12+'SA30'!N13 -> 61765576 | K11: ='SA30'!O12+'SA30'!O13 -> 73062639 | L11: ='SA30'!P12+'SA30'!P13 -> 76879503
A12: Dividends | C12: ='[3]A7-CFlow'!C12 -> 0 | D12: ='[3]A7-CFlow'!D12 -> 0 | E12: ='[3]A7-CFlow'!E12 -> 0 | F12: ='[3]A7-CFlow'!F12 -> 0 | G12: ='[3]A7-CFlow'!G12 -> 0 | H12: ='[3]A7-CFlow'!H12 -> 0 | I12: ='[3]A7-CFlow'!I12 -> 0 | J12: ='SA30'!N14 -> 0 | K12: ='SA30'!O14 -> 0 | L12: ='SA30'!P14 -> 0
A13: Payments
A14: Suppliers and employees | C14: ='[3]A7-CFlow'!C14 -> -995784253 | D14: ='[3]A7-CFlow'!D14 -> -1352420791 | E14: ='[3]A7-CFlow'!E14 -> -1340404002 | F14: ='[3]A7-CFlow'!F14 -> -1188161505 | G14: ='[3]A7-CFlow'!G14 -> -1181811505 | H14: ='[3]A7-CFlow'!H14 -> -1181811505 | I14: ='[3]A7-CFlow'!I14 -> -1181811505 | J14: =-('SA30'!N35+'SA30'!N36+'SA30'!N38+'SA30'!N39+'SA30'!N40+'SA30'!N41+'SA30'!N44+'SA30'!N50) -> -1271552490 | K14: =-('SA30'!O35+'SA30'!O36+'SA30'!O38+'SA30'!O39+'SA30'!O40+'SA30'!O41+'SA30'!O44+'SA30'!O50) -> -1343492018 | L14: =-('SA30'!P35+'SA30'!P36+'SA30'!P38+'SA30'!P39+'SA30'!P40+'SA30'!P41+'SA30'!P44+'SA30'!P50) -> -1396218230
A15: Finance charges | C15: ='[3]A7-CFlow'!C15 -> -7752623 | D15: ='[3]A7-CFlow'!D15 -> -1369978 | E15: ='[3]A7-CFlow'!E15 -> -506557 | F15: ='[3]A7-CFlow'!F15 -> 0 | G15: ='[3]A7-CFlow'!G15 -> 0 | H15: ='[3]A7-CFlow'!H15 -> 0 | I15: ='[3]A7-CFlow'!I15 -> 0 | J15: =-('SA30'!N37) -> 0 | K15: =-('SA30'!O37) -> 0 | L15: =-('SA30'!P37) -> 0
A16: Transfers and Grants | B16: 1 | C16: ='[3]A7-CFlow'!C16 -> 0 | D16: ='[3]A7-CFlow'!D16 -> 0 | E16: ='[3]A7-CFlow'!E16 -> 0 | F16: ='[3]A7-CFlow'!F16 -> -100383344.8 | G16: ='[3]A7-CFlow'!G16 -> -100383344.8 | H16: ='[3]A7-CFlow'!H16 -> -100383344.8 | I16: ='[3]A7-CFlow'!I16 -> -100383344.8 | J16: =-('SA30'!N42+'SA30'!N43) -> -45044435 | K16: =-('SA30'!O42+'SA30'!O43) -> -45656969 | L16: =-('SA30'!P42+'SA30'!P43) -> -46275546
A17: NET CASH FROM/(USED) OPERATING ACTIVITIES | C17: =SUM(C6:C12)+SUM(C14:C16) -> 722803190 | D17: 738860534 | E17: 934630190 | F17: 1157972544 | G17: 1165217545 | H17: 1165217545 | I17: 1126201575 | J17: 1079508556 | K17: 995992797 | L17: 1076541415
A19: CASH FLOWS FROM INVESTING ACTIVITIES
A20: Receipts
A21: Proceeds on disposal of PPE | C21: ='[3]A7-CFlow'!C21 -> 0 | D21: ='[3]A7-CFlow'!D21 -> 2818874 | E21: ='[3]A7-CFlow'!E21 -> 3418145 | F21: ='[3]A7-CFlow'!F21 -> 0 | G21: ='[3]A7-CFlow'!G21 -> 0 | H21: ='[3]A7-CFlow'!H21 -> 0 | I21: ='[3]A7-CFlow'!I21 -> 0 | J21: ='SA30'!N24+'SA30'!N25 -> 0 | K21: ='SA30'!O24+'SA30'!O25 -> 0 | L21: ='SA30'!P24+'SA30'!P25 -> 0
C22: ='[3]A7-CFlow'!C22 -> 0 | D22: ='[3]A7-CFlow'!D22 -> 0 | E22: ='[3]A7-CFlow'!E22 -> 0 | F22: ='[3]A7-CFlow'!F22 -> 0 | G22: ='[3]A7-CFlow'!G22 -> 0 | H22: ='[3]A7-CFlow'!H22 -> 0 | I22: ='[3]A7-CFlow'!I22 -> 0
A23: Decrease (increase) in non-current receivables | C23: ='[3]A7-CFlow'!C23 -> 0 | D23: ='[3]A7-CFlow'!D23 -> 0 | E23: ='[3]A7-CFlow'!E23 -> 0 | F23: ='[3]A7-CFlow'!F23 -> 0 | G23: ='[3]A7-CFlow'!G23 -> 0 | H23: ='[3]A7-CFlow'!H23 -> 0 | I23: ='[3]A7-CFlow'!I23 -> 0 | J23: ='SA30'!N30 -> 0 | K23: ='SA30'!O30 -> 0 | L23: ='SA30'!P30 -> 0
A24: Decrease (increase) in non-current investments | C24: ='[3]A7-CFlow'!C24 -> 0 | D24: ='[3]A7-CFlow'!D24 -> 0 | E24: ='[3]A7-CFlow'!E24 -> 0 | F24: ='[3]A7-CFlow'!F24 -> 0 | G24: ='[3]A7-CFlow'!G24 -> 0 | H24: ='[3]A7-CFlow'!H24 -> 0 | I24: ='[3]A7-CFlow'!I24 -> 0 | J24: ='SA30'!N31 -> 0 | K24: ='SA30'!O31 -> 0 | L24: ='SA30'!P31 -> 0
A25: Payments
A26: Capital assets | C26: ='[3]A7-CFlow'!C26 -> -800860959 | D26: ='[3]A7-CFlow'!D26 -> -779544093 | E26: ='[3]A7-CFlow'!E26 -> -876290914 | F26: ='[3]A7-CFlow'!F26 -> -1107615533 | G26: ='[3]A7-CFlow'!G26 -> -1281711263 | H26: ='[3]A7-CFlow'!H26 -> -1281711263 | I26: ='[3]A7-CFlow'!I26 -> -1281711263 | J26: =-('SA30'!N48) -> -1044807053 | K26: =-('SA30'!O48) -> -978659832 | L26: =-('SA30'!P48) -> -1060649435
A27: NET CASH FROM/(USED) INVESTING ACTIVITIES | C27: =+C21+C23+C24+C26 -> -800860959 | D27: =+D21+D23+D24+D26 -> -776725219 | E27: -872872769 | F27: -1107615533 | G27: -1281711263 | H27: -1281711263 | I27: -1281711263 | J27: -1044807053 | K27: -978659832 | L27: -1060649435
A29: CASH FLOWS FROM FINANCING ACTIVITIES
A30: Receipts
A31: Short term loans | C31: ='[3]A7-CFlow'!C31 -> 0 | D31: ='[3]A7-CFlow'!D31 -> 0 | E31: ='[3]A7-CFlow'!E31 -> 0 | F31: ='[3]A7-CFlow'!F31 -> 0 | G31: ='[3]A7-CFlow'!G31 -> 0 | H31: ='[3]A7-CFlow'!H31 -> 0 | I31: ='[3]A7-CFlow'!I31 -> 0 | J31: ='SA30'!N26 -> 0 | K31: ='SA30'!O26 -> 0 | L31: ='SA30'!P26 -> 0
A32: Borrowing long term/refinancing | C32: ='[3]A7-CFlow'!C32 -> 0 | D32: ='[3]A7-CFlow'!D32 -> 0 | E32: ='[3]A7-CFlow'!E32 -> 0 | F32: ='[3]A7-CFlow'!F32 -> 0 | G32: ='[3]A7-CFlow'!G32 -> 0 | H32: ='[3]A7-CFlow'!H32 -> 0 | I32: ='[3]A7-CFlow'!I32 -> 0 | J32: ='SA30'!N27 -> 0 | K32: ='SA30'!O27 -> 0 | L32: ='SA30'!P27 -> 0
A33: Increase (decrease) in consumer deposits | C33: ='[3]A7-CFlow'!C33 -> 0 | D33: ='[3]A7-CFlow'!D33 -> 0 | E33: ='[3]A7-CFlow'!E33 -> 0 | F33: ='[3]A7-CFlow'!F33 -> 0 | G33: ='[3]A7-CFlow'!G33 -> 0 | H33: ='[3]A7-CFlow'!H33 -> 0 | I33: ='[3]A7-CFlow'!I33 -> 0 | J33: ='SA30'!N28 -> -3745000 | K33: ='SA30'!O28 -> -4007150 | L33: ='SA30'!P28 -> -4187472
A34: Payments
A35: Repayment of borrowing | C35: ='[3]A7-CFlow'!C35 -> -20434 | D35: ='[3]A7-CFlow'!D35 -> -38795339 | E35: ='[3]A7-CFlow'!E35 -> 0 | F35: ='[3]A7-CFlow'!F35 -> 0 | G35: ='[3]A7-CFlow'!G35 -> 0 | H35: ='[3]A7-CFlow'!H35 -> 0 | I35: ='[3]A7-CFlow'!I35 -> 0 | J35: =-('SA30'!N49) -> 0 | K35: =-('SA30'!O49) -> 0 | L35: =-('SA30'!P49) -> 0
A36: NET CASH FROM/(USED) FINANCING ACTIVITIES | C36: =SUM(C31:C33)+C35 -> -20434 | D36: =SUM(D31:D33)+D35 -> -38795339 | E36: 0 | F36: 0 | G36: 0 | H36: 0 | I36: 0 | J36: -3745000 | K36: -4007150 | L36: -4187472
A38: NET INCREASE/ (DECREASE) IN CASH HELD | C38: =C17+C27+C36 -> -78078203 | D38: =D17+D27+D36 -> -76660024 | E38: 61757421 | F38: 50357011.42 | G38: -116493718 | H38: -116493718 | I38: -155509688 | J38: 30956502.96 | K38: 13325815 | L38: 11704508
A39: Cash/cash equivalents at the year begin: | B39: 2 | C39: ='[3]A7-CFlow'!C39 -> 369392737 | D39: ='[3]A7-CFlow'!D39 -> 291314534 | E39: ='[3]A7-CFlow'!E39 -> 214654510 | F39: ='[3]A7-CFlow'!F39 -> 183774261 | G39: ='[3]A7-CFlow'!G39 -> 371327547 | H39: ='[3]A7-CFlow'!H39 -> 371327547 | I39: ='[3]A7-CFlow'!I39 -> 371327547 | J39: ='SA30'!N54 -> 215817859 | K39: =J40 -> 246774362 | L39: =K40 -> 260100177
A40: Cash/cash equivalents at the year end: | B40: 2 | C40: =C38+C39 -> 291314534 | D40: =D38+D39 -> 214654510 | E40: =E38+E39 -> 276411931 | F40: =F38+F39 -> 234131272.4 | G40: 254833829 | H40: 254833829 | I40: 215817859 | J40: 246774362 | K40: 260100177 | L40: 271804685
A41: =head27a -> References
A42: 1. Local/District municipalities to include transfers from/to District/Local Municipalities
A43: 2. Cash equivalents includes investments with maturities of 3 months or less
A44: 3. The MTREF is populated directly from SA30.
A45: Total receipts | C45: =SUM(C6:C12)+SUM(C21:C23) -> 1726340066 | D45: 2095470177 | E45: 2278958894 | F45: 2446517394 | G45: 2447412394 | H45: 2447412394 | I45: 2408396424 | J45: 2396105481 | K45: 2385141784 | L45: 2519035191
A46: Total payments | C46: =SUM(C14:C16)+C26 -> -1804397835 | D46: =SUM(D14:D16)+D26 -> -2133334862 | E46: -2217201473 | F46: -2396160382 | G46: -2563906112 | H46: -2563906112 | I46: -2563906112 | J46: -2361403978 | K46: -2367808819 | L46: -2503143211
C47: =C45+C46 -> -78057769 | D47: =D45+D46 -> -37864685 | E47: 61757421 | F47: 50357011.42 | G47: -116493718 | H47: -116493718 | I47: -155509688 | J47: 34701502.96 | K47: 17332965 | L47: 15891980
A48: Borrowings & investments & c.deposits | C48: =C24+C32+C33 -> 0 | D48: =D24+D32+D33 -> 0 | E48: 0 | F48: 0 | G48: 0 | H48: 0 | I48: 0 | J48: -3745000 | K48: -4007150 | L48: -4187472
A49: =A35 -> Repayment of borrowing | C49: =C35 -> -20434 | D49: =D35 -> -38795339 | E49: 0 | F49: 0 | G49: 0 | H49: 0 | I49: =I35 -> 0 | J49: 0 | K49: 0 | L49: 0
C50: =C47+C48+C49 -> -78078203 | D50: =D47+D48+D49 -> -76660024 | E50: 61757421 | F50: 50357011.42 | G50: -116493718 | H50: -116493718 | I50: -155509688 | J50: 30956502.96 | K50: 13325815 | L50: 11704508
C51: =C38-C50 -> 0 | D51: 0 | E51: 0 | F51: 2.384185791e-07 | G51: 2.384185791e-07 | H51: 2.384185791e-07 | I51: 2.384185791e-07 | J51: 0 | K51: 0 | L51: 0

Sheet A8-ResRecon
A1: =muni&" - "&Approve8 -> DC15 O .R. Tambo - Table A8 Consolidated Cash backed reserves/accumulated surplus reconciliation
A2: =desc -> Description | B2: =head27 -> Ref | C2: =head1b -> 2016/17 | D2: =head1A -> 2017/18 | E2: =Head1 -> 2018/19 | F2: =Head2 -> Current Year 2019/20 | J2: =Head3 -> 2020/21 Medium Term Revenue & Expenditure Framework
A3: R thousand | C3: =Head5 -> Audited Outcome | D3: =Head5 -> Audited Outcome | E3: =Head5 -> Audited Outcome | F3: =Head6 -> Original Budget | G3: =Head7 -> Adjusted Budget | H3: =Head8 -> Full Year Forecast | I3: =Head5b -> Pre-audit outcome | J3: =Head9 -> Budget Year 2020/21 | K3: =Head10 -> Budget Year +1 2021/22 | L3: =Head11 -> Budget Year +2 2022/23
A4: Cash and investments available
A5: =LEFT('A7-CFlow'!A40,37) -> Cash/cash equivalents at the year end | B5: 1 | C5: ='A7-CFlow'!C40 -> 291314534 | D5: ='A7-CFlow'!D40 -> 214654510 | E5: ='A7-CFlow'!E40 -> 276411931 | F5: ='A7-CFlow'!F40 -> 234131272.4 | G5: ='A7-CFlow'!G40 -> 254833829 | H5: ='A7-CFlow'!H40 -> 254833829 | I5: ='A7-CFlow'!I40 -> 215817859 | J5: ='A7-CFlow'!J40 -> 246774362 | K5: ='A7-CFlow'!K40 -> 260100177 | L5: ='A7-CFlow'!L40 -> 271804685
A6: Other current investments > 90 days | C6: ='A6-FinPos'!C6+'A6-FinPos'!C7-'A6-FinPos'!C29-'A8-ResRecon'!C5 -> 0 | D6: ='A6-FinPos'!D6+'A6-FinPos'!D7-'A6-FinPos'!D29-'A8-ResRecon'!D5 -> 0 | E6: ='A6-FinPos'!E6+'A6-FinPos'!E7-'A6-FinPos'!E29-'A8-ResRecon'!E5 -> -2 | F6: ='A6-FinPos'!F6+'A6-FinPos'!F7-'A6-FinPos'!F29-'A8-ResRecon'!F5 -> 221387207.4 | G6: ='A6-FinPos'!G6+'A6-FinPos'!G7-'A6-FinPos'!G29-'A8-ResRecon'!G5 -> 2.384185791e-07 | H6: ='A6-FinPos'!H6+'A6-FinPos'!H7-'A6-FinPos'!H29-'A8-ResRecon'!H5 -> 2.384185791e-07 | I6: ='A6-FinPos'!I6+'A6-FinPos'!I7-'A6-FinPos'!I29-'A8-ResRecon'!I5 -> 2.980232239e-07 | J6: ='A6-FinPos'!J6+'A6-FinPos'!J7-'A6-FinPos'!J29-'A8-ResRecon'!J5 -> 2.384185791e-07 | K6: ='A6-FinPos'!K6+'A6-FinPos'!K7-'A6-FinPos'!K29-'A8-ResRecon'!K5 -> 2.384185791e-07 | L6: ='A6-FinPos'!L6+'A6-FinPos'!L7-'A6-FinPos'!L29-'A8-ResRecon'!L5 -> 0
A7: ='A6-FinPos'!A14&" - "&'A6-FinPos'!A16 -> Non current assets - Investments | B7: 1 | C7: ='A6-FinPos'!C16 -> 0 | D7: ='A6-FinPos'!D16 -> 0 | E7: ='A6-FinPos'!E16 -> 0 | F7: ='A6-FinPos'!F16 -> 0 | G7: ='A6-FinPos'!G16 -> 0 | H7: ='A6-FinPos'!H16 -> 0 | I7: ='A6-FinPos'!I16 -> 0 | J7: ='A6-FinPos'!J16 -> 0 | K7: ='A6-FinPos'!K16 -> 0 | L7: ='A6-FinPos'!L16 -> 0
A8: Cash and investments available: | C8: =SUM(C5:C7) -> 291314534 | D8: =SUM(D5:D7) -> 214654510 | E8: 276411929 | F8: 455518479.8 | G8: 254833829 | H8: 254833829 | I8: 215817859 | J8: 246774362 | K8: 260100177 | L8: 271804685
A10: Application of cash and investments
A11: ='SA3'!A37 -> Unspent conditional transfers | C11: ='SA3'!C37 -> 7229655 | D11: ='SA3'!D37 -> 0 | E11: ='SA3'!E37 -> 0 | F11: ='SA3'!F37 -> 0 | G11: ='SA3'!G37 -> 0 | H11: ='SA3'!H37 -> 0 | I11: ='SA3'!I37 -> 823679284.8 | J11: ='SA3'!J37 -> 0 | K11: ='SA3'!K37 -> 0 | L11: ='SA3'!L37 -> 0
A12: Unspent borrowing | C12: ='SA17'!C67 -> 0 | D12: ='SA17'!D67 -> 0 | E12: ='SA17'!E67 -> 0 | F12: ='SA17'!F67 -> 0 | G12: ='SA17'!G67 -> 0 | H12: ='SA17'!H67 -> 0 | J12: ='SA17'!I67 -> 0 | K12: ='SA17'!J67 -> 0 | L12: ='SA17'!K67 -> 0
A13: Statutory requirements | B13: 2 | F13: ='[3]A8-ResRecon'!F13 -> -140322533 | G13: ='[3]A8-ResRecon'!G13 -> -139243639.2 | H13: ='[3]A8-ResRecon'!H13 -> -139243639.2 | I13: ='[3]A8-ResRecon'!I13 -> -139243639.2 | J13: =-'[4]OVERALL SUMMARY'!E1130 -> -173534952.7 | K13: =-'[4]OVERALL SUMMARY'!F1130 -> -132316649.8 | L13: =-'[4]OVERALL SUMMARY'!G1130 -> -120553723.5
A14: Other working capital requirements | B14: 3 | C14: =-C32 -> 290468805 | D14: =-D32 -> 260259744 | E14: 538094025 | F14: =-F32 -> 116420378.5 | G14: 11509306 | H14: 11509306 | I14: -372210769.9 | J14: 47980877 | K14: 192902503.1 | L14: 186025705.1
A15: Other provisions
A16: Long term investments committed | B16: 4 | C16: =C42 -> 0 | D16: =D42 -> 0 | E16: 0 | F16: 0 | G16: 0 | H16: 0 | I16: 0 | J16: 0 | K16: 0 | L16: 0
A17: Reserves to be backed by cash/investments | B17: 5 | C17: =SUM(C44:C48) -> 0 | D17: 0 | E17: 0 | F17: 0 | G17: 0 | H17: 0 | I17: 0 | J17: 0 | K17: 0 | L17: 0
A18: ="Total "&A10&":" -> Total Application of cash and investments: | C18: =SUM(C11:C17) -> 297698460 | D18: =SUM(D11:D17) -> 260259744 | E18: 538094025 | F18: -23902154.51 | G18: -127734333.2 | H18: -127734333.2 | I18: 312224875.7 | J18: -125554075.7 | K18: 60585853.3 | L18: 65471981.67
A19: Surplus(shortfall) | C19: =C8-C18 -> -6383926 | D19: =D8-D18 -> -45605234 | E19: -261682096 | F19: 479420634.3 | G19: 382568162.2 | H19: 382568162.2 | I19: -96407016.71 | J19: 372328437.7 | K19: 199514323.7 | L19: 206332703.3
A20: =head27a -> References
A21: 1. Must reconcile with Budgeted Cash Flows
A22: 2. For example: VAT, taxation
A23: 3. Council approval for policy required - include sufficient working capital (e.g. allowing for a % of current debtors > 90 days as uncollectable)
A24: 4. For example: sinking fund requirements for borrowing
A25: 5. Council approval required for each reserve created and basis of cash backing of reserves
A28: Other working capital requirements
A29: Debtors | C29: =IF(ISERROR(ROUND(C35*C36,-3)),0,(ROUND(C35*C36,-3))) -> 93807000 | D29: =IF(ISERROR(ROUND(D35*D36,-3)),0,(ROUND(D35*D36,-3))) -> 200942000 | E29: 92852000 | F29: 162148000 | G29: 93365000 | H29: 93365000 | I29: 420586000 | J29: 53935000 | K29: 134560000 | L29: 93120000
A31: Creditors due | C31: ='SA3'!C35+'SA3'!C36 -> 384275805 | D31: ='SA3'!D35+'SA3'!D36 -> 461201744 | E31: ='SA3'!E35+'SA3'!E36 -> 630946025 | F31: ='SA3'!F35+'SA3'!F36 -> 278568378.5 | G31: ='SA3'!G35+'SA3'!G36 -> 104874306 | H31: ='SA3'!H35+'SA3'!H36 -> 104874306 | I31: ='SA3'!I35+'SA3'!I36 -> 48375230.08 | J31: ='SA3'!J35+'SA3'!J36 -> 101915877 | K31: ='SA3'!K35+'SA3'!K36 -> 327462503.1 | L31: ='SA3'!L35+'SA3'!L36 -> 279145705.1
A32: Total | C32: =C29-C31 -> -290468805 | D32: =D29-D31 -> -260259744 | E32: -538094025 | F32: -116420378.5 | G32: -11509306 | H32: -11509306 | I32: 372210769.9 | J32: -47980877 | K32: -192902503.1 | L32: -186025705.1
A34: Debtors collection assumptions
A35: Balance outstanding - debtors | C35: ='A6-FinPos'!C8+'A6-FinPos'!C9+'A6-FinPos'!C15 -> 144655992 | D35: ='A6-FinPos'!D8+'A6-FinPos'!D9+'A6-FinPos'!D15 -> 241430261.4 | E35: ='A6-FinPos'!E8+'A6-FinPos'!E9+'A6-FinPos'!E15 -> 199547256.5 | F35: ='A6-FinPos'!F8+'A6-FinPos'!F9+'A6-FinPos'!F15 -> 171657583.8 | G35: ='A6-FinPos'!G8+'A6-FinPos'!G9+'A6-FinPos'!G15 -> 157810087 | H35: ='A6-FinPos'!H8+'A6-FinPos'!H9+'A6-FinPos'!H15 -> 157810087 | I35: ='A6-FinPos'!I8+'A6-FinPos'!I9+'A6-FinPos'!I15 -> 278799236 | J35: ='A6-FinPos'!J8+'A6-FinPos'!J9+'A6-FinPos'!J15 -> 85632334.13 | K35: ='A6-FinPos'!K8+'A6-FinPos'!K9+'A6-FinPos'!K15 -> 244398200.1 | L35: ='A6-FinPos'!L8+'A6-FinPos'!L9+'A6-FinPos'!L15 -> 192343508.1
A36: Estimate of debtors collection rate | C36: =IF(ISERROR('SA10'!D10),0,('SA10'!D10)) -> 0.6484805429 | D36: =IF(ISERROR('SA10'!E10),0,('SA10'!E10)) -> 0.8322986805 | E36: =IF(ISERROR('SA10'!F10),0,('SA10'!F10)) -> 0.4653143734 | F36: =IF(ISERROR('SA10'!G10),0,('SA10'!G10)) -> 0.9446030682 | G36: =IF(ISERROR('SA10'!H10),0,('SA10'!H10)) -> 0.5916284876 | H36: =IF(ISERROR('SA10'!I10),0,('SA10'!I10)) -> 0.5916284876 | I36: =IF(ISERROR('SA10'!J10),0,('SA10'!J10)) -> 1.508560704 | J36: =IF(ISERROR('SA10'!K10),0,('SA10'!K10)) -> 0.6298405127 | K36: =IF(ISERROR('SA10'!L10),0,('SA10'!L10)) -> 0.5505761501 | L36: =IF(ISERROR('SA10'!M10),0,('SA10'!M10)) -> 0.4841315773
K39: `
A40: =A16 -> Long term investments committed
A41: Balance (Insert description; eg sinking fund)
C42: =SUM(C41:C41) -> 0 | D42: 0 | E42: 0 | F42: 0 | G42: 0 | H42: 0 | I42: 0 | J42: 0 | K42: 0 | L42: 0
A43: =A17 -> Reserves to be backed by cash/investments
A44: ='SA3'!A65 -> Housing Development Fund | C44: ='SA3'!C65 -> 0 | D44: ='SA3'!D65 -> 0 | E44: ='SA3'!E65 -> 0 | F44: ='SA3'!F65 -> 0 | G44: ='SA3'!G65 -> 0 | H44: ='SA3'!H65 -> 0 | I44: ='SA3'!I65 -> 0 | J44: ='SA3'!J65 -> 0 | K44: ='SA3'!K65 -> 0 | L44: ='SA3'!L65 -> 0
A45: ='SA3'!A66 -> Capital replacement | C45: ='SA3'!C66 -> 0 | D45: ='SA3'!D66 -> 0 | E45: ='SA3'!E66 -> 0 | F45: ='SA3'!F66 -> 0 | G45: ='SA3'!G66 -> 0 | H45: ='SA3'!H66 -> 0 | I45: ='SA3'!I66 -> 0 | J45: ='SA3'!J66 -> 0 | K45: ='SA3'!K66 -> 0 | L45: ='SA3'!L66 -> 0
A46: ='SA3'!A67 -> Self-insurance | C46: ='SA3'!C67 -> 0 | D46: ='SA3'!D67 -> 0 | E46: ='SA3'!E67 -> 0 | F46: ='SA3'!F67 -> 0 | G46: ='SA3'!G67 -> 0 | H46: ='SA3'!H67 -> 0 | I46: ='SA3'!I67 -> 0 | J46: ='SA3'!J67 -> 0 | K46: ='SA3'!K67 -> 0 | L46: ='SA3'!L67 -> 0
A47: ='SA3'!A68 -> Other reserves | C47: ='SA3'!C68 -> 0 | D47: ='SA3'!D68 -> 0 | E47: ='SA3'!E68 -> 0 | F47: ='SA3'!F68 -> 0 | G47: ='SA3'!G68 -> 0 | H47: ='SA3'!H68 -> 0 | I47: ='SA3'!I68 -> 0 | J47: ='SA3'!J68 -> 0 | K47: ='SA3'!K68 -> 0 | L47: ='SA3'!L68 -> 0
A48: ='SA3'!A69 -> Revaluation | C48: ='SA3'!C69 -> 0 | D48: ='SA3'!D69 -> 0 | E48: ='SA3'!E69 -> 0 | F48: ='SA3'!F69 -> 0 | G48: ='SA3'!G69 -> 0 | H48: ='SA3'!H69 -> 0 | I48: ='SA3'!I69 -> 0 | J48: ='SA3'!J69 -> 0 | K48: ='SA3'!K69 -> 0 | L48: ='SA3'!L69 -> 0
C49: =SUM(C44:C48) -> 0 | D49: 0 | E49: 0 | F49: 0 | G49: 0 | H49: 0 | I49: 0 | J49: 0 | K49: 0 | L49: 0

Sheet A9-Asset
A1: =muni&" - "&Approve9 -> DC15 O .R. Tambo - Table A9 Consolidated Asset Management
A2: =desc -> Description | B2: =head27 -> Ref | C2: =head1b -> 2016/17 | D2: =head1A -> 2017/18 | E2: =Head1 -> 2018/19 | F2: =Head2 -> Current Year 2019/20 | I2: =Head3 -> 2020/21 Medium Term Revenue & Expenditure Framework
A3: R thousand | C3: =Head5 -> Audited Outcome | D3: =Head5 -> Audited Outcome | E3: =Head5 -> Audited Outcome | F3: =Head6 -> Original Budget | G3: =Head7 -> Adjusted Budget | H3: =Head8 -> Full Year Forecast | I3: =Head9 -> Budget Year 2020/21 | J3: =Head10 -> Budget Year +1 2021/22 | K3: =Head11 -> Budget Year +2 2022/23
A4: CAPITAL EXPENDITURE
A5: Total New Assets | B5: 1 | C5: =C15+C18+C19+C22+C25+C26+SUM(C29:C35) -> 810395059 | D5: =D15+D18+D19+D22+D25+D26+SUM(D29:D35) -> 779295709 | E5: 875178512 | F5: 1095046263 | G5: 1338774355 | H5: 1338774355 | I5: 1024429199 | J5: 968068950 | K5: 1053050533
A6: Roads Infrastructure | C6: =SA34a!C7 -> 0 | D6: =SA34a!D7 -> 0 | E6: =SA34a!E7 -> 0 | F6: =SA34a!F7 -> 3112000 | G6: =SA34a!G7 -> 6112000 | H6: =SA34a!H7 -> 6112000 | I6: =SA34a!I7 -> 2962000 | J6: =SA34a!J7 -> 3125000 | K6: =SA34a!K7 -> 3306000
A7: Storm water Infrastructure | C7: =SA34a!C12 -> 0 | D7: =SA34a!D12 -> 0 | E7: =SA34a!E12 -> 0 | F7: =SA34a!F12 -> 0 | G7: =SA34a!G12 -> 0 | H7: =SA34a!H12 -> 0 | I7: =SA34a!I12 -> 0 | J7: =SA34a!J12 -> 0 | K7: =SA34a!K12 -> 0
A8: Electrical Infrastructure | C8: =SA34a!C16 -> 0 | D8: =SA34a!D16 -> 0 | E8: =SA34a!E16 -> 0 | F8: =SA34a!F16 -> 0 | G8: =SA34a!G16 -> 0 | H8: =SA34a!H16 -> 0 | I8: =SA34a!I16 -> 0 | J8: =SA34a!J16 -> 0 | K8: =SA34a!K16 -> 0
A9: Water Supply Infrastructure | C9: =SA34a!C26 -> 809271875 | D9: =SA34a!D26 -> 731779794 | E9: =SA34a!E26 -> 862537145 | F9: =SA34a!F26 -> 783411233 | G9: =SA34a!G26 -> 1023707245 | H9: =SA34a!H26 -> 1023707245 | I9: =SA34a!I26 -> 732747412 | J9: =SA34a!J26 -> 906588730 | K9: =SA34a!K26 -> 1013633172
A10: Sanitation Infrastructure | C10: =SA34a!C37 -> 0 | D10: =SA34a!D37 -> 0 | E10: =SA34a!E37 -> 0 | F10: =SA34a!F37 -> 206033438 | G10: =SA34a!G37 -> 140343471 | H10: =SA34a!H37 -> 140343471 | I10: =SA34a!I37 -> 136371882 | J10: =SA34a!J37 -> 10612628 | K10: =SA34a!K37 -> 11531809
A11: Solid Waste Infrastructure | C11: =SA34a!C44 -> 0 | D11: =SA34a!D44 -> 0 | E11: =SA34a!E44 -> 0 | F11: =SA34a!F44 -> 0 | G11: =SA34a!G44 -> 0 | H11: =SA34a!H44 -> 0 | I11: =SA34a!I44 -> 0 | J11: =SA34a!J44 -> 0 | K11: =SA34a!K44 -> 0
A12: Rail Infrastructure | C12: =SA34a!C52 -> 0 | D12: =SA34a!D52 -> 0 | E12: =SA34a!E52 -> 0 | F12: =SA34a!F52 -> 0 | G12: =SA34a!G52 -> 0 | H12: =SA34a!H52 -> 0 | I12: =SA34a!I52 -> 0 | J12: =SA34a!J52 -> 0 | K12: =SA34a!K52 -> 0
A13: Coastal Infrastructure | C13: =SA34a!C62 -> 0 | D13: =SA34a!D62 -> 0 | E13: =SA34a!E62 -> 0 | F13: =SA34a!F62 -> 0 | G13: =SA34a!G62 -> 0 | H13: =SA34a!H62 -> 0 | I13: =SA34a!I62 -> 0 | J13: =SA34a!J62 -> 0 | K13: =SA34a!K62 -> 0
A14: Information and Communication Infrastructure | C14: =SA34a!C68 -> 0 | D14: =SA34a!D68 -> 0 | E14: =SA34a!E68 -> 0 | F14: =SA34a!F68 -> 0 | G14: =SA34a!G68 -> 0 | H14: =SA34a!H68 -> 0 | I14: =SA34a!I68 -> 0 | J14: =SA34a!J68 -> 0 | K14: =SA34a!K68 -> 0
A15: Infrastructure | C15: =SUM(C6:C14) -> 809271875 | D15: =SUM(D6:D14) -> 731779794 | E15: 862537145 | F15: 992556671 | G15: 1170162716 | H15: 1170162716 | I15: 872081294 | J15: 920326358 | K15: 1028470981
A16: Community Facilities | C16: =SA34a!C75 -> 0 | D16: =SA34a!D75 -> 0 | E16: =SA34a!E75 -> 0 | F16: =SA34a!F75 -> 67850824 | G16: =SA34a!G75 -> 73377383 | H16: =SA34a!H75 -> 73377383 | I16: =SA34a!I75 -> 48200000 | J16: =SA34a!J75 -> 7000000 | K16: =SA34a!K75 -> 0
A17: Sport and Recreation Facilities | C17: =SA34a!C98 -> 0 | D17: =SA34a!D98 -> 0 | E17: =SA34a!E98 -> 0 | F17: =SA34a!F98 -> 0 | G17: =SA34a!G98 -> 0 | H17: =SA34a!H98 -> 0 | I17: =SA34a!I98 -> 0 | J17: =SA34a!J98 -> 0 | K17: =SA34a!K98 -> 0
A18: Community Assets | C18: =SUM(C16:C17) -> 0 | D18: =SUM(D16:D17) -> 0 | E18: 0 | F18: 67850824 | G18: 73377383 | H18: 73377383 | I18: 48200000 | J18: 7000000 | K18: 0
A19: Heritage Assets | C19: =SA34a!C103 -> 0 | D19: =SA34a!D103 -> 0 | E19: =SA34a!E103 -> 0 | F19: =SA34a!F103 -> 0 | G19: =SA34a!G103 -> 0 | H19: =SA34a!H103 -> 0 | I19: =SA34a!I103 -> 0 | J19: =SA34a!J103 -> 0 | K19: =SA34a!K103 -> 0
A20: Revenue Generating | C20: =SA34a!C111 -> 0 | D20: =SA34a!D111 -> 0 | E20: =SA34a!E111 -> 0 | F20: =SA34a!F111 -> 0 | G20: =SA34a!G111 -> 0 | H20: =SA34a!H111 -> 0 | I20: =SA34a!I111 -> 0 | J20: =SA34a!J111 -> 0 | K20: =SA34a!K111 -> 0
A21: Non-revenue Generating | C21: =SA34a!C114 -> 0 | D21: =SA34a!D114 -> 0 | E21: =SA34a!E114 -> 0 | F21: =SA34a!F114 -> 0 | G21: =SA34a!G114 -> 0 | H21: =SA34a!H114 -> 0 | I21: =SA34a!I114 -> 0 | J21: =SA34a!J114 -> 0 | K21: =SA34a!K114 -> 0
A22: Investment properties | C22: =SUM(C20:C21) -> 0 | D22: =SUM(D20:D21) -> 0 | E22: 0 | F22: 0 | G22: 0 | H22: 0 | I22: 0 | J22: 0 | K22: 0
A23: Operational Buildings | C23: =SA34a!C119 -> 0 | D23: =SA34a!D119 -> 0 | E23: =SA34a!E119 -> 2230623 | F23: =SA34a!F119 -> 0 | G23: =SA34a!G119 -> 1600000 | H23: =SA34a!H119 -> 1600000 | I23: =SA34a!I119 -> 8030000 | J23: =SA34a!J119 -> 6833000 | K23: =SA34a!K119 -> 6833000
A24: Housing | C24: =SA34a!C131 -> 0 | D24: =SA34a!D131 -> 0 | E24: =SA34a!E131 -> 0 | F24: =SA34a!F131 -> 500000 | G24: =SA34a!G131 -> 47795730 | H24: =SA34a!H131 -> 47795730 | I24: =SA34a!I131 -> 40000000 | J24: =SA34a!J131 -> 0 | K24: =SA34a!K131 -> 0
A25: Other Assets | C25: =SUM(C23:C24) -> 0 | D25: =SUM(D23:D24) -> 0 | E25: 2230623 | F25: 500000 | G25: 49395730 | H25: 49395730 | I25: 48030000 | J25: 6833000 | K25: 6833000
A26: Biological or Cultivated Assets | C26: =SA34a!C136 -> 0 | D26: =SA34a!D136 -> 1112401 | E26: =SA34a!E136 -> 0 | F26: =SA34a!F136 -> 0 | G26: =SA34a!G136 -> 0 | H26: =SA34a!H136 -> 0 | I26: =SA34a!I136 -> 0 | J26: =SA34a!J136 -> 0 | K26: =SA34a!K136 -> 0
A27: Servitudes | C27: =SA34a!C140 -> 0 | D27: =SA34a!D140 -> 0 | E27: =SA34a!E140 -> 0 | F27: =SA34a!F140 -> 0 | G27: =SA34a!G140 -> 0 | H27: =SA34a!H140 -> 0 | I27: =SA34a!I140 -> 0 | J27: =SA34a!J140 -> 0 | K27: =SA34a!K140 -> 0
A28: Licences and Rights | C28: =SA34a!C141 -> 805184 | D28: =SA34a!D141 -> 4989617 | E28: =SA34a!E141 -> 315580 | F28: =SA34a!F141 -> 2686154 | G28: =SA34a!G141 -> 9086154 | H28: =SA34a!H141 -> 9086154 | I28: =SA34a!I141 -> 6881207 | J28: =SA34a!J141 -> 3262259 | K28: =SA34a!K141 -> 3150000
A29: Intangible Assets | C29: =SUM(C27:C28) -> 805184 | D29: =SUM(D27:D28) -> 4989617 | E29: 315580 | F29: 2686154 | G29: 9086154 | H29: 9086154 | I29: 6881207 | J29: 3262259 | K29: 3150000
A30: Computer Equipment | C30: =SA34a!C149 -> 0 | D30: =SA34a!D149 -> 0 | E30: =SA34a!E149 -> 0 | F30: =SA34a!F149 -> 1970000 | G30: =SA34a!G149 -> 2410000 | H30: =SA34a!H149 -> 2410000 | I30: =SA34a!I149 -> 2658000 | J30: =SA34a!J149 -> 3500000 | K30: =SA34a!K149 -> 4519800
A31: Furniture and Office Equipment | C31: =SA34a!C152 -> 318000 | D31: =SA34a!D152 -> 2604077 | E31: =SA34a!E152 -> 1419204 | F31: =SA34a!F152 -> 1300000 | G31: =SA34a!G152 -> 7280000 | H31: =SA34a!H152 -> 7280000 | I31: =SA34a!I152 -> 4850000 | J31: =SA34a!J152 -> 3850000 | K31: =SA34a!K152 -> 0
A32: Machinery and Equipment | C32: =SA34a!C155 -> 0 | D32: =SA34a!D155 -> 7721540 | E32: =SA34a!E155 -> 3924816 | F32: =SA34a!F155 -> 11682614 | G32: =SA34a!G155 -> 7962372 | H32: =SA34a!H155 -> 7962372 | I32: =SA34a!I155 -> 28528698 | J32: =SA34a!J155 -> 8497333 | K32: =SA34a!K155 -> 2076752
A33: Transport Assets | C33: =SA34a!C158 -> 0 | D33: =SA34a!D158 -> 4179831 | E33: =SA34a!E158 -> 4751144 | F33: =SA34a!F158 -> 16500000 | G33: =SA34a!G158 -> 19100000 | H33: =SA34a!H158 -> 19100000 | I33: =SA34a!I158 -> 13200000 | J33: =SA34a!J158 -> 14800000 | K33: =SA34a!K158 -> 8000000
A34: Land | C34: =SA34a!C161 -> 0 | D34: =SA34a!D161 -> 26908449 | E34: =SA34a!E161 -> 0 | F34: =SA34a!F161 -> 0 | G34: =SA34a!G161 -> 0 | H34: =SA34a!H161 -> 0 | I34: =SA34a!I161 -> 0 | J34: =SA34a!J161 -> 0 | K34: =SA34a!K161 -> 0
A35: Zoo's, Marine and Non-biological Animals | C35: =SA34a!C164 -> 0 | D35: =SA34a!D164 -> 0 | E35: =SA34a!E164 -> 0 | F35: =SA34a!F164 -> 0 | G35: =SA34a!G164 -> 0 | H35: =SA34a!H164 -> 0 | I35: =SA34a!I164 -> 0 | J35: =SA34a!J164 -> 0 | K35: =SA34a!K164 -> 0
A37: Total Renewal of Existing Assets | B37: 2 | C37: =C47+C50+C51+C54+C57+C58+SUM(C61:C67) -> 0 | D37: =D47+D50+D51+D54+D57+D58+SUM(D61:D67) -> 0 | E37: 0 | F37: 28181271 | G37: 12935056 | H37: 12935056 | I37: 20377854 | J37: 10590882 | K37: 7598902
A38: Roads Infrastructure | C38: =SA34b!C7 -> 0 | D38: =SA34b!D7 -> 0 | E38: =SA34b!E7 -> 0 | F38: =SA34b!F7 -> 0 | G38: =SA34b!G7 -> 0 | H38: =SA34b!H7 -> 0 | I38: =SA34b!I7 -> 0 | J38: =SA34b!J7 -> 0 | K38: =SA34b!K7 -> 0
A39: Storm water Infrastructure | C39: =SA34b!C12 -> 0 | D39: =SA34b!D12 -> 0 | E39: =SA34b!E12 -> 0 | F39: =SA34b!F12 -> 0 | G39: =SA34b!G12 -> 0 | H39: =SA34b!H12 -> 0 | I39: =SA34b!I12 -> 0 | J39: =SA34b!J12 -> 0 | K39: =SA34b!K12 -> 0
A40: Electrical Infrastructure | C40: =SA34b!C16 -> 0 | D40: =SA34b!D16 -> 0 | E40: =SA34b!E16 -> 0 | F40: =SA34b!F16 -> 0 | G40: =SA34b!G16 -> 0 | H40: =SA34b!H16 -> 0 | I40: =SA34b!I16 -> 0 | J40: =SA34b!J16 -> 0 | K40: =SA34b!K16 -> 0
A41: Water Supply Infrastructure | C41: =SA34b!C26 -> 0 | D41: =SA34b!D26 -> 0 | E41: =SA34b!E26 -> 0 | F41: =SA34b!F26 -> 7572463 | G41: =SA34b!G26 -> 4326248 | H41: =SA34b!H26 -> 4326248 | I41: =SA34b!I26 -> 7638150 | J41: =SA34b!J26 -> 7378877 | K41: =SA34b!K26 -> 3831145
A42: Sanitation Infrastructure | C42: =SA34b!C37 -> 0 | D42: =SA34b!D37 -> 0 | E42: =SA34b!E37 -> 0 | F42: =SA34b!F37 -> 1108808 | G42: =SA34b!G37 -> 1108808 | H42: =SA34b!H37 -> 1108808 | I42: =SA34b!I37 -> 1158704 | J42: =SA34b!J37 -> 1212005 | K42: =SA34b!K37 -> 1267757
A43: Solid Waste Infrastructure | C43: =SA34b!C44 -> 0 | D43: =SA34b!D44 -> 0 | E43: =SA34b!E44 -> 0 | F43: =SA34b!F44 -> 0 | G43: =SA34b!G44 -> 0 | H43: =SA34b!H44 -> 0 | I43: =SA34b!I44 -> 0 | J43: =SA34b!J44 -> 0 | K43: =SA34b!K44 -> 0
A44: Rail Infrastructure | C44: =SA34b!C52 -> 0 | D44: =SA34b!D52 -> 0 | E44: =SA34b!E52 -> 0 | F44: =SA34b!F52 -> 0 | G44: =SA34b!G52 -> 0 | H44: =SA34b!H52 -> 0 | I44: =SA34b!I52 -> 0 | J44: =SA34b!J52 -> 0 | K44: =SA34b!K52 -> 0
A45: Coastal Infrastructure | C45: =SA34b!C62 -> 0 | D45: =SA34b!D62 -> 0 | E45: =SA34b!E62 -> 0 | F45: =SA34b!F62 -> 0 | G45: =SA34b!G62 -> 0 | H45: =SA34b!H62 -> 0 | I45: =SA34b!I62 -> 0 | J45: =SA34b!J62 -> 0 | K45: =SA34b!K62 -> 0
A46: Information and Communication Infrastructure | C46: =SA34b!C68 -> 0 | D46: =SA34b!D68 -> 0 | E46: =SA34b!E68 -> 0 | F46: =SA34b!F68 -> 0 | G46: =SA34b!G68 -> 0 | H46: =SA34b!H68 -> 0 | I46: =SA34b!I68 -> 0 | J46: =SA34b!J68 -> 0 | K46: =SA34b!K68 -> 0
A47: Infrastructure | C47: =SUM(C38:C46) -> 0 | D47: =SUM(D38:D46) -> 0 | E47: 0 | F47: 8681271 | G47: 5435056 | H47: 5435056 | I47: 8796854 | J47: 8590882 | K47: 5098902
A48: Community Facilities | C48: =SA34b!C75 -> 0 | D48: =SA34b!D75 -> 0 | E48: =SA34b!E75 -> 0 | F48: =SA34b!F75 -> 0 | G48: =SA34b!G75 -> 0 | H48: =SA34b!H75 -> 0 | I48: =SA34b!I75 -> 0 | J48: =SA34b!J75 -> 0 | K48: =SA34b!K75 -> 0
A49: Sport and Recreation Facilities | C49: =SA34b!C98 -> 0 | D49: =SA34b!D98 -> 0 | E49: =SA34b!E98 -> 0 | F49: =SA34b!F98 -> 0 | G49: =SA34b!G98 -> 0 | H49: =SA34b!H98 -> 0 | I49: =SA34b!I98 -> 0 | J49: =SA34b!J98 -> 0 | K49: =SA34b!K98 -> 0
A50: Community Assets | C50: =SUM(C48:C49) -> 0 | D50: =SUM(D48:D49) -> 0 | E50: 0 | F50: 0 | G50: 0 | H50: 0 | I50: 0 | J50: 0 | K50: 0
A51: Heritage Assets | C51: =SA34b!C103 -> 0 | D51: =SA34b!D103 -> 0 | E51: =SA34b!E103 -> 0 | F51: =SA34b!F103 -> 0 | G51: =SA34b!G103 -> 0 | H51: =SA34b!H103 -> 0 | I51: =SA34b!I103 -> 0 | J51: =SA34b!J103 -> 0 | K51: =SA34b!K103 -> 0
A52: Revenue Generating | C52: =SA34b!C111 -> 0 | D52: =SA34b!D111 -> 0 | E52: =SA34b!E111 -> 0 | F52: =SA34b!F111 -> 0 | G52: =SA34b!G111 -> 0 | H52: =SA34b!H111 -> 0 | I52: =SA34b!I111 -> 0 | J52: =SA34b!J111 -> 0 | K52: =SA34b!K111 -> 0
A53: Non-revenue Generating | C53: =SA34b!C114 -> 0 | D53: =SA34b!D114 -> 0 | E53: =SA34b!E114 -> 0 | F53: =SA34b!F114 -> 0 | G53: =SA34b!G114 -> 0 | H53: =SA34b!H114 -> 0 | I53: =SA34b!I114 -> 0 | J53: =SA34b!J114 -> 0 | K53: =SA34b!K114 -> 0
A54: Investment properties | C54: =SUM(C52:C53) -> 0 | D54: =SUM(D52:D53) -> 0 | E54: 0 | F54: 0 | G54: 0 | H54: 0 | I54: 0 | J54: 0 | K54: 0
A55: Operational Buildings | C55: =SA34b!C119 -> 0 | D55: =SA34b!D119 -> 0 | E55: =SA34b!E119 -> 0 | F55: =SA34b!F119 -> 16500000 | G55: =SA34b!G119 -> 4500000 | H55: =SA34b!H119 -> 4500000 | I55: =SA34b!I119 -> 11581000 | J55: =SA34b!J119 -> 2000000 | K55: =SA34b!K119 -> 2500000
A56: Housing | C56: =SA34b!C131 -> 0 | D56: =SA34b!D131 -> 0 | E56: =SA34b!E131 -> 0 | F56: =SA34b!F131 -> 3000000 | G56: =SA34b!G131 -> 3000000 | H56: =SA34b!H131 -> 3000000 | I56: =SA34b!I131 -> 0 | J56: =SA34b!J131 -> 0 | K56: =SA34b!K131 -> 0
A57: Other Assets | C57: =SUM(C55:C56) -> 0 | D57: =SUM(D55:D56) -> 0 | E57: 0 | F57: 19500000 | G57: 7500000 | H57: 7500000 | I57: 11581000 | J57: 2000000 | K57: 2500000
A58: Biological or Cultivated Assets | C58: =SA34b!C136 -> 0 | D58: =SA34b!D136 -> 0 | E58: =SA34b!E136 -> 0 | F58: =SA34b!F136 -> 0 | G58: =SA34b!G136 -> 0 | H58: =SA34b!H136 -> 0 | I58: =SA34b!I136 -> 0 | J58: =SA34b!J136 -> 0 | K58: =SA34b!K136 -> 0
A59: Servitudes | C59: =SA34b!C140 -> 0 | D59: =SA34b!D140 -> 0 | E59: =SA34b!E140 -> 0 | F59: =SA34b!F140 -> 0 | G59: =SA34b!G140 -> 0 | H59: =SA34b!H140 -> 0 | I59: =SA34b!I140 -> 0 | J59: =SA34b!J140 -> 0 | K59: =SA34b!K140 -> 0
A60: Licences and Rights | C60: =SA34b!C141 -> 0 | D60: =SA34b!D141 -> 0 | E60: =SA34b!E141 -> 0 | F60: =SA34b!F141 -> 0 | G60: =SA34b!G141 -> 0 | H60: =SA34b!H141 -> 0 | I60: =SA34b!I141 -> 0 | J60: =SA34b!J141 -> 0 | K60: =SA34b!K141 -> 0
A61: Intangible Assets | C61: =SUM(C59:C60) -> 0 | D61: =SUM(D59:D60) -> 0 | E61: 0 | F61: 0 | G61: 0 | H61: 0 | I61: 0 | J61: 0 | K61: 0
A62: Computer Equipment | C62: =SA34b!C149 -> 0 | D62: =SA34b!D149 -> 0 | E62: =SA34b!E149 -> 0 | F62: =SA34b!F149 -> 0 | G62: =SA34b!G149 -> 0 | H62: =SA34b!H149 -> 0 | I62: =SA34b!I149 -> 0 | J62: =SA34b!J149 -> 0 | K62: =SA34b!K149 -> 0
A63: Furniture and Office Equipment | C63: =SA34b!C152 -> 0 | D63: =SA34b!D152 -> 0 | E63: =SA34b!E152 -> 0 | F63: =SA34b!F152 -> 0 | G63: =SA34b!G152 -> 0 | H63: =SA34b!H152 -> 0 | I63: =SA34b!I152 -> 0 | J63: =SA34b!J152 -> 0 | K63: =SA34b!K152 -> 0
A64: Machinery and Equipment | C64: =SA34b!C155 -> 0 | D64: =SA34b!D155 -> 0 | E64: =SA34b!E155 -> 0 | F64: =SA34b!F155 -> 0 | G64: =SA34b!G155 -> 0 | H64: =SA34b!H155 -> 0 | I64: =SA34b!I155 -> 0 | J64: =SA34b!J155 -> 0 | K64: =SA34b!K155 -> 0
A65: Transport Assets | C65: =SA34b!C158 -> 0 | D65: =SA34b!D158 -> 0 | E65: =SA34b!E158 -> 0 | F65: =SA34b!F158 -> 0 | G65: =SA34b!G158 -> 0 | H65: =SA34b!H158 -> 0 | I65: =SA34b!I158 -> 0 | J65: =SA34b!J158 -> 0 | K65: =SA34b!K158 -> 0
A66: Land | C66: =SA34b!C161 -> 0 | D66: =SA34b!D161 -> 0 | E66: =SA34b!E161 -> 0 | F66: =SA34b!F161 -> 0 | G66: =SA34b!G161 -> 0 | H66: =SA34b!H161 -> 0 | I66: =SA34b!I161 -> 0 | J66: =SA34b!J161 -> 0 | K66: =SA34b!K161 -> 0
A67: Zoo's, Marine and Non-biological Animals | C67: =SA34b!C164 -> 0 | D67: =SA34b!D164 -> 0 | E67: =SA34b!E164 -> 0 | F67: =SA34b!F164 -> 0 | G67: =SA34b!G164 -> 0 | H67: =SA34b!H164 -> 0 | I67: =SA34b!I164 -> 0 | J67: =SA34b!J164 -> 0 | K67: =SA34b!K164 -> 0
A69: Total Upgrading of Existing Assets | B69: 6 | C69: =C79+C82+C83+C86+C89+C90+SUM(C93:C99) -> 0 | D69: =D79+D82+D83+D86+D89+D90+SUM(D93:D99) -> 0 | E69: 0 | F69: 0 | G69: 0 | H69: 0 | I69: 0 | J69: 0 | K69: 0
A70: Roads Infrastructure | C70: =SA34e!C7 -> 0 | D70: =SA34e!D7 -> 0 | E70: =SA34e!E7 -> 0 | F70: =SA34e!F7 -> 0 | G70: =SA34e!G7 -> 0 | H70: =SA34e!H7 -> 0 | I70: =SA34e!I7 -> 0 | J70: =SA34e!J7 -> 0 | K70: =SA34e!K7 -> 0
A71: Storm water Infrastructure | C71: =SA34e!C12 -> 0 | D71: =SA34e!D12 -> 0 | E71: =SA34e!E12 -> 0 | F71: =SA34e!F12 -> 0 | G71: =SA34e!G12 -> 0 | H71: =SA34e!H12 -> 0 | I71: =SA34e!I12 -> 0 | J71: =SA34e!J12 -> 0 | K71: =SA34e!K12 -> 0
A72: Electrical Infrastructure | C72: =SA34e!C16 -> 0 | D72: =SA34e!D16 -> 0 | E72: =SA34e!E16 -> 0 | F72: =SA34e!F16 -> 0 | G72: =SA34e!G16 -> 0 | H72: =SA34e!H16 -> 0 | I72: =SA34e!I16 -> 0 | J72: =SA34e!J16 -> 0 | K72: =SA34e!K16 -> 0
A73: Water Supply Infrastructure | C73: =SA34e!C26 -> 0 | D73: =SA34e!D26 -> 0 | E73: =SA34e!E26 -> 0 | F73: =SA34e!F26 -> 0 | G73: =SA34e!G26 -> 0 | H73: =SA34e!H26 -> 0 | I73: =SA34e!I26 -> 0 | J73: =SA34e!J26 -> 0 | K73: =SA34e!K26 -> 0
A74: Sanitation Infrastructure | C74: =SA34e!C37 -> 0 | D74: =SA34e!D37 -> 0 | E74: =SA34e!E37 -> 0 | F74: =SA34e!F37 -> 0 | G74: =SA34e!G37 -> 0 | H74: =SA34e!H37 -> 0 | I74: =SA34e!I37 -> 0 | J74: =SA34e!J37 -> 0 | K74: =SA34e!K37 -> 0
A75: Solid Waste Infrastructure | C75: =SA34e!C44 -> 0 | D75: =SA34e!D44 -> 0 | E75: =SA34e!E44 -> 0 | F75: =SA34e!F44 -> 0 | G75: =SA34e!G44 -> 0 | H75: =SA34e!H44 -> 0 | I75: =SA34e!I44 -> 0 | J75: =SA34e!J44 -> 0 | K75: =SA34e!K44 -> 0
A76: Rail Infrastructure | C76: =SA34e!C52 -> 0 | D76: =SA34e!D52 -> 0 | E76: =SA34e!E52 -> 0 | F76: =SA34e!F52 -> 0 | G76: =SA34e!G52 -> 0 | H76: =SA34e!H52 -> 0 | I76: =SA34e!I52 -> 0 | J76: =SA34e!J52 -> 0 | K76: =SA34e!K52 -> 0
A77: Coastal Infrastructure | C77: =SA34e!C62 -> 0 | D77: =SA34e!D62 -> 0 | E77: =SA34e!E62 -> 0 | F77: =SA34e!F62 -> 0 | G77: =SA34e!G62 -> 0 | H77: =SA34e!H62 -> 0 | I77: =SA34e!I62 -> 0 | J77: =SA34e!J62 -> 0 | K77: =SA34e!K62 -> 0
A78: Information and Communication Infrastructure | C78: =SA34e!C68 -> 0 | D78: =SA34e!D68 -> 0 | E78: =SA34e!E68 -> 0 | F78: =SA34e!F68 -> 0 | G78: =SA34e!G68 -> 0 | H78: =SA34e!H68 -> 0 | I78: =SA34e!I68 -> 0 | J78: =SA34e!J68 -> 0 | K78: =SA34e!K68 -> 0
A79: Infrastructure | C79: =SUM(C70:C78) -> 0 | D79: 0 | E79: 0 | F79: 0 | G79: 0 | H79: 0 | I79: 0 | J79: 0 | K79: 0
A80: Community Facilities | C80: =SA34e!C75 -> 0 | D80: =SA34e!D75 -> 0 | E80: =SA34e!E75 -> 0 | F80: =SA34e!F75 -> 0 | G80: =SA34e!G75 -> 0 | H80: =SA34e!H75 -> 0 | I80: =SA34e!I75 -> 0 | J80: =SA34e!J75 -> 0 | K80: =SA34e!K75 -> 0
A81: Sport and Recreation Facilities | C81: =SA34e!C98 -> 0 | D81: =SA34e!D98 -> 0 | E81: =SA34e!E98 -> 0 | F81: =SA34e!F98 -> 0 | G81: =SA34e!G98 -> 0 | H81: =SA34e!H98 -> 0 | I81: =SA34e!I98 -> 0 | J81: =SA34e!J98 -> 0 | K81: =SA34e!K98 -> 0
A82: Community Assets | C82: =SUM(C80:C81) -> 0 | D82: 0 | E82: 0 | F82: 0 | G82: 0 | H82: 0 | I82: 0 | J82: 0 | K82: 0
A83: Heritage Assets | C83: =SA34e!C103 -> 0 | D83: =SA34e!D103 -> 0 | E83: =SA34e!E103 -> 0 | F83: =SA34e!F103 -> 0 | G83: =SA34e!G103 -> 0 | H83: =SA34e!H103 -> 0 | I83: =SA34e!I103 -> 0 | J83: =SA34e!J103 -> 0 | K83: =SA34e!K103 -> 0
A84: Revenue Generating | C84: =SA34e!C111 -> 0 | D84: =SA34e!D111 -> 0 | E84: =SA34e!E111 -> 0 | F84: =SA34e!F111 -> 0 | G84: =SA34e!G111 -> 0 | H84: =SA34e!H111 -> 0 | I84: =SA34e!I111 -> 0 | J84: =SA34e!J111 -> 0 | K84: =SA34e!K111 -> 0
A85: Non-revenue Generating | C85: =SA34e!C114 -> 0 | D85: =SA34e!D114 -> 0 | E85: =SA34e!E114 -> 0 | F85: =SA34e!F114 -> 0 | G85: =SA34e!G114 -> 0 | H85: =SA34e!H114 -> 0 | I85: =SA34e!I114 -> 0 | J85: =SA34e!J114 -> 0 | K85: =SA34e!K114 -> 0
A86: Investment properties | C86: =SUM(C84:C85) -> 0 | D86: 0 | E86: 0 | F86: 0 | G86: 0 | H86: 0 | I86: 0 | J86: 0 | K86: 0
A87: Operational Buildings | C87: =SA34e!C119 -> 0 | D87: =SA34e!D119 -> 0 | E87: =SA34e!E119 -> 0 | F87: =SA34e!F119 -> 0 | G87: =SA34e!G119 -> 0 | H87: =SA34e!H119 -> 0 | I87: =SA34e!I119 -> 0 | J87: =SA34e!J119 -> 0 | K87: =SA34e!K119 -> 0
A88: Housing | C88: =SA34e!C131 -> 0 | D88: =SA34e!D131 -> 0 | E88: =SA34e!E131 -> 0 | F88: =SA34e!F131 -> 0 | G88: =SA34e!G131 -> 0 | H88: =SA34e!H131 -> 0 | I88: =SA34e!I131 -> 0 | J88: =SA34e!J131 -> 0 | K88: =SA34e!K131 -> 0
A89: Other Assets | C89: =SUM(C87:C88) -> 0 | D89: 0 | E89: 0 | F89: 0 | G89: 0 | H89: 0 | I89: 0 | J89: 0 | K89: 0
A90: Biological or Cultivated Assets | C90: =SA34e!C136 -> 0 | D90: =SA34e!D136 -> 0 | E90: =SA34e!E136 -> 0 | F90: =SA34e!F136 -> 0 | G90: =SA34e!G136 -> 0 | H90: =SA34e!H136 -> 0 | I90: =SA34e!I136 -> 0 | J90: =SA34e!J136 -> 0 | K90: =SA34e!K136 -> 0
A91: Servitudes | C91: =SA34e!C140 -> 0 | D91: =SA34e!D140 -> 0 | E91: =SA34e!E140 -> 0 | F91: =SA34e!F140 -> 0 | G91: =SA34e!G140 -> 0 | H91: =SA34e!H140 -> 0 | I91: =SA34e!I140 -> 0 | J91: =SA34e!J140 -> 0 | K91: =SA34e!K140 -> 0
A92: Licences and Rights | C92: =SA34e!C141 -> 0 | D92: =SA34e!D141 -> 0 | E92: =SA34e!E141 -> 0 | F92: =SA34e!F141 -> 0 | G92: =SA34e!G141 -> 0 | H92: =SA34e!H141 -> 0 | I92: =SA34e!I141 -> 0 | J92: =SA34e!J141 -> 0 | K92: =SA34e!K141 -> 0
A93: Intangible Assets | C93: =SUM(C91:C92) -> 0 | D93: 0 | E93: 0 | F93: 0 | G93: 0 | H93: 0 | I93: 0 | J93: 0 | K93: 0
A94: Computer Equipment | C94: =SA34e!C149 -> 0 | D94: =SA34e!D149 -> 0 | E94: =SA34e!E149 -> 0 | F94: =SA34e!F149 -> 0 | G94: =SA34e!G149 -> 0 | H94: =SA34e!H149 -> 0 | I94: =SA34e!I149 -> 0 | J94: =SA34e!J149 -> 0 | K94: =SA34e!K149 -> 0
A95: Furniture and Office Equipment | C95: =SA34e!C152 -> 0 | D95: =SA34e!D152 -> 0 | E95: =SA34e!E152 -> 0 | F95: =SA34e!F152 -> 0 | G95: =SA34e!G152 -> 0 | H95: =SA34e!H152 -> 0 | I95: =SA34e!I152 -> 0 | J95: =SA34e!J152 -> 0 | K95: =SA34e!K152 -> 0
A96: Machinery and Equipment | C96: =SA34e!C155 -> 0 | D96: =SA34e!D155 -> 0 | E96: =SA34e!E155 -> 0 | F96: =SA34e!F155 -> 0 | G96: =SA34e!G155 -> 0 | H96: =SA34e!H155 -> 0 | I96: =SA34e!I155 -> 0 | J96: =SA34e!J155 -> 0 | K96: =SA34e!K155 -> 0
A97: Transport Assets | C97: =SA34e!C158 -> 0 | D97: =SA34e!D158 -> 0 | E97: =SA34e!E158 -> 0 | F97: =SA34e!F158 -> 0 | G97: =SA34e!G158 -> 0 | H97: =SA34e!H158 -> 0 | I97: =SA34e!I158 -> 0 | J97: =SA34e!J158 -> 0 | K97: =SA34e!K158 -> 0
A98: Land | C98: =SA34e!C161 -> 0 | D98: =SA34e!D161 -> 0 | E98: =SA34e!E161 -> 0 | F98: =SA34e!F161 -> 0 | G98: =SA34e!G161 -> 0 | H98: =SA34e!H161 -> 0 | I98: =SA34e!I161 -> 0 | J98: =SA34e!J161 -> 0 | K98: =SA34e!K161 -> 0
A99: Zoo's, Marine and Non-biological Animals | C99: =SA34e!C164 -> 0 | D99: =SA34e!D164 -> 0 | E99: =SA34e!E164 -> 0 | F99: =SA34e!F164 -> 0 | G99: =SA34e!G164 -> 0 | H99: =SA34e!H164 -> 0 | I99: =SA34e!I164 -> 0 | J99: =SA34e!J164 -> 0 | K99: =SA34e!K164 -> 0
A101: Total Capital Expenditure | B101: 4 | C101: =+C5+C37+C69 -> 810395059 | D101: =+D5+D37+D69 -> 779295709 | E101: 875178512 | F101: 1123227534 | G101: 1351709411 | H101: 1351709411 | I101: 1044807053 | J101: 978659832 | K101: 1060649435
A102: Roads Infrastructure | C102: =+C6+C38+C70 -> 0 | D102: =+D6+D38+D70 -> 0 | E102: 0 | F102: 3112000 | G102: 6112000 | H102: 6112000 | I102: 2962000 | J102: 3125000 | K102: 3306000
A103: Storm water Infrastructure | C103: =+C7+C39+C71 -> 0 | D103: 0 | E103: 0 | F103: 0 | G103: 0 | H103: 0 | I103: 0 | J103: 0 | K103: 0
A104: Electrical Infrastructure | C104: 0 | D104: 0 | E104: 0 | F104: 0 | G104: 0 | H104: 0 | I104: 0 | J104: 0 | K104: 0
A105: Water Supply Infrastructure | C105: 809271875 | D105: 731779794 | E105: 862537145 | F105: 790983696 | G105: 1028033493 | H105: 1028033493 | I105: 740385562 | J105: 913967607 | K105: 1017464317
A106: Sanitation Infrastructure | C106: 0 | D106: 0 | E106: 0 | F106: 207142246 | G106: 141452279 | H106: 141452279 | I106: 137530586 | J106: 11824633 | K106: 12799566
A107: Solid Waste Infrastructure | C107: 0 | D107: 0 | E107: 0 | F107: 0 | G107: 0 | H107: 0 | I107: 0 | J107: 0 | K107: 0
A108: Rail Infrastructure | C108: 0 | D108: 0 | E108: 0 | F108: 0 | G108: 0 | H108: 0 | I108: 0 | J108: 0 | K108: 0
A109: Coastal Infrastructure | C109: 0 | D109: 0 | E109: 0 | F109: 0 | G109: 0 | H109: 0 | I109: 0 | J109: 0 | K109: 0
A110: Information and Communication Infrastructure | C110: 0 | D110: 0 | E110: 0 | F110: 0 | G110: 0 | H110: 0 | I110: 0 | J110: 0 | K110: 0
A111: Infrastructure | C111: =SUM(C102:C110) -> 809271875 | D111: =SUM(D102:D110) -> 731779794 | E111: 862537145 | F111: 1001237942 | G111: 1175597772 | H111: 1175597772 | I111: 880878148 | J111: 928917240 | K111: 1033569883
A112: Community Facilities | C112: =+C16+C48+C80 -> 0 | D112: =+D16+D48+D80 -> 0 | E112: 0 | F112: 67850824 | G112: 73377383 | H112: 73377383 | I112: 48200000 | J112: 7000000 | K112: 0
A113: Sport and Recreation Facilities | C113: =+C17+C49+C81 -> 0 | D113: =+D17+D49+D81 -> 0 | E113: 0 | F113: 0 | G113: 0 | H113: 0 | I113: 0 | J113: 0 | K113: 0
A114: Community Assets | C114: =SUM(C112:C113) -> 0 | D114: =SUM(D112:D113) -> 0 | E114: 0 | F114: 67850824 | G114: 73377383 | H114: 73377383 | I114: 48200000 | J114: 7000000 | K114: 0
A115: Heritage Assets | C115: =+C19+C51+C83 -> 0 | D115: =+D19+D51+D83 -> 0 | E115: 0 | F115: 0 | G115: 0 | H115: 0 | I115: 0 | J115: 0 | K115: 0
A116: Revenue Generating | C116: =+C20+C52+C84 -> 0 | D116: =+D20+D52+D84 -> 0 | E116: 0 | F116: 0 | G116: 0 | H116: 0 | I116: 0 | J116: 0 | K116: 0
A117: Non-revenue Generating | C117: =+C21+C53+C85 -> 0 | D117: =+D21+D53+D85 -> 0 | E117: 0 | F117: 0 | G117: 0 | H117: 0 | I117: 0 | J117: 0 | K117: 0
A118: Investment properties | C118: =SUM(C116:C117) -> 0 | D118: =SUM(D116:D117) -> 0 | E118: 0 | F118: 0 | G118: 0 | H118: 0 | I118: 0 | J118: 0 | K118: 0
A119: Operational Buildings | C119: =+C23+C55+C87 -> 0 | D119: =+D23+D55+D87 -> 0 | E119: 2230623 | F119: 16500000 | G119: 6100000 | H119: 6100000 | I119: 19611000 | J119: 8833000 | K119: 9333000
A120: Housing | C120: =+C24+C56+C88 -> 0 | D120: =+D24+D56+D88 -> 0 | E120: 0 | F120: 3500000 | G120: 50795730 | H120: 50795730 | I120: 40000000 | J120: 0 | K120: 0
A121: Other Assets | C121: =SUM(C119:C120) -> 0 | D121: 0 | E121: 2230623 | F121: 20000000 | G121: 56895730 | H121: 56895730 | I121: 59611000 | J121: 8833000 | K121: 9333000
A122: Biological or Cultivated Assets | C122: =+C26+C58+C90 -> 0 | D122: =+D26+D58+D90 -> 1112401 | E122: 0 | F122: 0 | G122: 0 | H122: 0 | I122: 0 | J122: 0 | K122: 0
A123: Servitudes | C123: =+C27+C59+C91 -> 0 | D123: =+D27+D59+D91 -> 0 | E123: 0 | F123: 0 | G123: 0 | H123: 0 | I123: 0 | J123: 0 | K123: 0
A124: Licences and Rights | C124: =+C28+C60+C92 -> 805184 | D124: =+D28+D60+D92 -> 4989617 | E124: 315580 | F124: 2686154 | G124: 9086154 | H124: 9086154 | I124: 6881207 | J124: 3262259 | K124: 3150000
A125: Intangible Assets | C125: =SUM(C123:C124) -> 805184 | D125: =SUM(D123:D124) -> 4989617 | E125: 315580 | F125: 2686154 | G125: 9086154 | H125: 9086154 | I125: 6881207 | J125: 3262259 | K125: 3150000
A126: Computer Equipment | C126: =+C30+C62+C94 -> 0 | D126: =+D30+D62+D94 -> 0 | E126: 0 | F126: 1970000 | G126: 2410000 | H126: 2410000 | I126: 2658000 | J126: 3500000 | K126: 4519800
A127: Furniture and Office Equipment | C127: =+C31+C63+C95 -> 318000 | D127: 2604077 | E127: 1419204 | F127: 1300000 | G127: 7280000 | H127: 7280000 | I127: 4850000 | J127: 3850000 | K127: 0
A128: Machinery and Equipment | C128: 0 | D128: 7721540 | E128: 3924816 | F128: 11682614 | G128: 7962372 | H128: 7962372 | I128: 28528698 | J128: 8497333 | K128: 2076752
A129: Transport Assets | C129: 0 | D129: 4179831 | E129: 4751144 | F129: 16500000 | G129: 19100000 | H129: 19100000 | I129: 13200000 | J129: 14800000 | K129: 8000000
A130: Land | C130: 0 | D130: 26908449 | E130: 0 | F130: 0 | G130: 0 | H130: 0 | I130: 0 | J130: 0 | K130: 0
A131: Zoo's, Marine and Non-biological Animals | C131: 0 | D131: 0 | E131: 0 | F131: 0 | G131: 0 | H131: 0 | I131: 0 | J131: 0 | K131: 0
A132: TOTAL CAPITAL EXPENDITURE - Asset class | C132: =+C5+C37+C69 -> 810395059 | D132: =+D5+D37+D69 -> 779295709 | E132: 875178512 | F132: 1123227534 | G132: 1351709411 | H132: 1351709411 | I132: 1044807053 | J132: 978659832 | K132: 1060649435
A134: ASSET REGISTER SUMMARY - PPE (WDV) | B134: 5 | C134: =C144+C147+C148+C151+C154+C155+C158+C159+C160+C161+C162+C163+C164 -> 802234498 | D134: =D144+D147+D148+D151+D154+D155+D158+D159+D160+D161+D162+D163+D164 -> 2910489141 | E134: 4624109566 | F134: 1123227534 | G134: 8504831621 | H134: 8504831621 | I134: 9133838404 | J134: 9794915856 | K134: 10273636980
A135: Roads Infrastructure | C135: 0 | D135: 0 | E135: 0 | F135: 3112000 | G135: 6112000 | H135: 6112000 | I135: 2962000 | J135: 3125000 | K135: 3306000
A136: Storm water Infrastructure
A137: Electrical Infrastructure | C137: 0 | D137: 0 | E137: 0 | F137: 0 | G137: 0 | H137: 0 | I137: 0 | J137: 0 | K137: 0
A138: Water Supply Infrastructure | C138: 784897113 | D138: 2751683978 | E138: 4463777507 | F138: 790983696 | G138: 8168904892 | H138: 8168904892 | I138: 8817016102 | J138: 9717872820 | K138: 10217545265
A139: Sanitation Infrastructure | C139: 0 | D139: -12529073.97 | E139: -12674440.55 | F139: 207142246 | G139: 141452279 | H139: 141452279 | I139: 137530586 | J139: 11824633 | K139: 12799566
A140: Solid Waste Infrastructure
A141: Rail Infrastructure
A142: Coastal Infrastructure
A143: Information and Communication Infrastructure | C143: 0 | D143: 0 | E143: 0 | F143: 0 | G143: 0 | H143: 0 | I143: 0 | J143: 0 | K143: 0
A144: Infrastructure | C144: =SUM(C135:C143) -> 784897113 | D144: =SUM(D135:D143) -> 2739154904 | E144: 4451103066 | F144: 1001237942 | G144: 8316469171 | H144: 8316469171 | I144: 8957508688 | J144: 9732822453 | K144: 10233650831
A147: Community Assets | C147: 0 | D147: 374533.25 | E147: 13464621.26 | F147: 67850824 | G147: 73377383 | H147: 73377383 | I147: 48200000 | J147: 7000000 | K147: 0
A148: Heritage Assets | C148: 0 | D148: 247025 | E148: 247025 | F148: 0 | G148: 250000 | H148: 250000 | I148: 250000 | J148: 250000 | K148: 261250
A151: Investment properties | C151: 0 | D151: 2200000 | E151: 2200000 | F151: 0 | G151: 2200000 | H151: 2200000 | I151: 2200000 | J151: 2200000 | K151: 2299000
A154: Other Assets | C154: 1974469 | D154: 108867494.7 | E154: 104371225.8 | F154: 20000000 | G154: 56895730 | H154: 56895730 | I154: 59611000 | J154: 8833000 | K154: 9333000
A155: Biological or Cultivated Assets | C155: 0 | D155: 0 | E155: 0 | F155: 0 | G155: 0 | H155: 0 | I155: 0 | J155: 0 | K155: 0
A158: Intangible Assets | C158: 0 | D158: 4344902.81 | E158: 2800833.99 | F158: 2686154 | G158: 18886965 | H158: 18886965 | I158: 16832018 | J158: 13163070 | K158: 13496347
A159: Computer Equipment | C159: 800864 | D159: 2080175.02 | E159: 1972619.59 | F159: 1970000 | G159: 2410000 | H159: 2410000 | I159: 2658000 | J159: 3500000 | K159: 4519800
A160: Furniture and Office Equipment | C160: 2501785 | D160: 10402751.51 | E160: 8504273.89 | F160: 1300000 | G160: 7280000 | H160: 7280000 | I160: 4850000 | J160: 3850000 | K160: 0
A161: Machinery and Equipment | C161: 1623026 | D161: 2841455.63 | E161: 2110047.65 | F161: 11682614 | G161: 7962372 | H161: 7962372 | I161: 28528698 | J161: 8497333 | K161: 2076752
A162: Transport Assets | C162: 10437241 | D162: 35991982.85 | E162: 30057238.19 | F162: 16500000 | G162: 19100000 | H162: 19100000 | I162: 13200000 | J162: 14800000 | K162: 8000000
A163: Land | C163: 0 | D163: 3983916.77 | E163: 7278614.87 | F163: 0 | G163: 0 | H163: 0 | I163: 0 | J163: 0 | K163: 0
A164: Zoo's, Marine and Non-biological Animals
A165: TOTAL ASSET REGISTER SUMMARY - PPE (WDV) | B165: 5 | C165: =C144+C147+C148+C151+C154+C155+C158+C159+C160+C161+C162+C163+C164 -> 802234498 | D165: =D144+D147+D148+D151+D154+D155+D158+D159+D160+D161+D162+D163+D164 -> 2910489141 | E165: 4624109566 | F165: 1123227534 | G165: 8504831621 | H165: 8504831621 | I165: 9133838404 | J165: 9794915856 | K165: 10273636980
A167: EXPENDITURE OTHER ITEMS | C167: =SUM(C168:C169) -> 250767313 | D167: =SUM(D168:D169) -> 346250968.7 | E167: 341669548.4 | F167: 248557477 | G167: 317417661 | H167: 317417661 | I167: 274184194 | J167: 279168583 | K167: 285462353
A168: Depreciation | B168: 7 | C168: =SA34d!C167 -> 164455907 | D168: =SA34d!D167 -> 189380733 | E168: =SA34d!E167 -> 196525406 | F168: =SA34d!F167 -> 165748000 | G168: =SA34d!G167 -> 241121946 | H168: =SA34d!H167 -> 241121946 | I168: =SA34d!I167 -> 176963581 | J168: =SA34d!J167 -> 185858322 | K168: =SA34d!K167 -> 194022428
A169: Repairs and Maintenance by Asset Class | B169: 3 | C169: =C179+C182+C183+C186+C189+C190+SUM(C193:C199) -> 86311406 | D169: =D179+D182+D183+D186+D189+D190+SUM(D193:D199) -> 156870235.7 | E169: 145144142.4 | F169: 82809477 | G169: 76295715 | H169: 76295715 | I169: 97220613 | J169: 93310261 | K169: 91439925
A170: Roads Infrastructure | C170: =SA34c!C7 -> 0 | D170: =SA34c!D7 -> 5984940.11 | E170: =SA34c!E7 -> 1094290.85 | F170: =SA34c!F7 -> 5112000 | G170: =SA34c!G7 -> 5912000 | H170: =SA34c!H7 -> 5912000 | I170: =SA34c!I7 -> 7252206 | J170: =SA34c!J7 -> 9677807 | K170: =SA34c!K7 -> 10122986
A171: Storm water Infrastructure | C171: =SA34c!C12 -> 0 | D171: =SA34c!D12 -> 0 | E171: =SA34c!E12 -> 0 | F171: =SA34c!F12 -> 0 | G171: =SA34c!G12 -> 0 | H171: =SA34c!H12 -> 0 | I171: =SA34c!I12 -> 0 | J171: =SA34c!J12 -> 0 | K171: =SA34c!K12 -> 0
A172: Electrical Infrastructure | C172: =SA34c!C16 -> 0 | D172: =SA34c!D16 -> 0 | E172: =SA34c!E16 -> 0 | F172: =SA34c!F16 -> 0 | G172: =SA34c!G16 -> 0 | H172: =SA34c!H16 -> 0 | I172: =SA34c!I16 -> 0 | J172: =SA34c!J16 -> 0 | K172: =SA34c!K16 -> 0
A173: Water Supply Infrastructure | C173: =SA34c!C26 -> 86311406 | D173: =SA34c!D26 -> 117508756.2 | E173: =SA34c!E26 -> 68635342.92 | F173: =SA34c!F26 -> 26641127 | G173: =SA34c!G26 -> 25433159 | H173: =SA34c!H26 -> 25433159 | I173: =SA34c!I26 -> 42804769 | J173: =SA34c!J26 -> 33393605 | K173: =SA34c!K26 -> 33479033
A174: Sanitation Infrastructure | C174: =SA34c!C37 -> 0 | D174: =SA34c!D37 -> 26951940.69 | E174: =SA34c!E37 -> 57879205.45 | F174: =SA34c!F37 -> 30174313 | G174: =SA34c!G37 -> 22046786 | H174: =SA34c!H37 -> 22046786 | I174: =SA34c!I37 -> 23129283 | J174: =SA34c!J37 -> 28409954 | K174: =SA34c!K37 -> 25207220
A175: Solid Waste Infrastructure | C175: =SA34c!C44 -> 0 | D175: =SA34c!D44 -> 0 | E175: =SA34c!E44 -> 0 | F175: =SA34c!F44 -> 0 | G175: =SA34c!G44 -> 0 | H175: =SA34c!H44 -> 0 | I175: =SA34c!I44 -> 0 | J175: =SA34c!J44 -> 0 | K175: =SA34c!K44 -> 0
A176: Rail Infrastructure | C176: =SA34c!C52 -> 0 | D176: =SA34c!D52 -> 0 | E176: =SA34c!E52 -> 0 | F176: =SA34c!F52 -> 0 | G176: =SA34c!G52 -> 0 | H176: =SA34c!H52 -> 0 | I176: =SA34c!I52 -> 0 | J176: =SA34c!J52 -> 0 | K176: =SA34c!K52 -> 0
A177: Coastal Infrastructure | C177: =SA34c!C62 -> 0 | D177: =SA34c!D62 -> 0 | E177: =SA34c!E62 -> 0 | F177: =SA34c!F62 -> 0 | G177: =SA34c!G62 -> 0 | H177: =SA34c!H62 -> 0 | I177: =SA34c!I62 -> 0 | J177: =SA34c!J62 -> 0 | K177: =SA34c!K62 -> 0
A178: Information and Communication Infrastructure | C178: =SA34c!C68 -> 0 | D178: =SA34c!D68 -> 0 | E178: =SA34c!E68 -> 0 | F178: =SA34c!F68 -> 0 | G178: =SA34c!G68 -> 0 | H178: =SA34c!H68 -> 0 | I178: =SA34c!I68 -> 0 | J178: =SA34c!J68 -> 0 | K178: =SA34c!K68 -> 0
A179: Infrastructure | C179: =SUM(C170:C178) -> 86311406 | D179: =SUM(D170:D178) -> 150445637 | E179: 127608839.2 | F179: 61927440 | G179: 53391945 | H179: 53391945 | I179: 73186258 | J179: 71481366 | K179: 68809239
A180: Community Facilities | C180: =SA34c!C75 -> 0 | D180: =SA34c!D75 -> 0 | E180: =SA34c!E75 -> 0 | F180: =SA34c!F75 -> 0 | G180: =SA34c!G75 -> 0 | H180: =SA34c!H75 -> 0 | I180: =SA34c!I75 -> 0 | J180: =SA34c!J75 -> 0 | K180: =SA34c!K75 -> 0
A181: Sport and Recreation Facilities | C181: =SA34c!C98 -> 0 | D181: =SA34c!D98 -> 0 | E181: =SA34c!E98 -> 0 | F181: =SA34c!F98 -> 0 | G181: =SA34c!G98 -> 0 | H181: =SA34c!H98 -> 0 | I181: =SA34c!I98 -> 0 | J181: =SA34c!J98 -> 0 | K181: =SA34c!K98 -> 0
A182: Community Assets | C182: =SUM(C180:C181) -> 0 | D182: 0 | E182: 0 | F182: 0 | G182: 0 | H182: 0 | I182: 0 | J182: 0 | K182: 0
A183: Heritage Assets | C183: =SA34c!C103 -> 0 | D183: =SA34c!D103 -> 0 | E183: =SA34c!E103 -> 0 | F183: =SA34c!F103 -> 0 | G183: =SA34c!G103 -> 0 | H183: =SA34c!H103 -> 0 | I183: =SA34c!I103 -> 0 | J183: =SA34c!J103 -> 0 | K183: =SA34c!K103 -> 0
A184: Revenue Generating | C184: =SA34c!C111 -> 0 | D184: =SA34c!D111 -> 0 | E184: =SA34c!E111 -> 0 | F184: =SA34c!F111 -> 0 | G184: =SA34c!G111 -> 0 | H184: =SA34c!H111 -> 0 | I184: =SA34c!I111 -> 0 | J184: =SA34c!J111 -> 0 | K184: =SA34c!K111 -> 0
A185: Non-revenue Generating | C185: =SA34c!C114 -> 0 | D185: =SA34c!D114 -> 0 | E185: =SA34c!E114 -> 0 | F185: =SA34c!F114 -> 0 | G185: =SA34c!G114 -> 0 | H185: =SA34c!H114 -> 0 | I185: =SA34c!I114 -> 0 | J185: =SA34c!J114 -> 0 | K185: =SA34c!K114 -> 0
A186: Investment properties | C186: =SUM(C184:C185) -> 0 | D186: 0 | E186: 0 | F186: 0 | G186: 0 | H186: 0 | I186: 0 | J186: 0 | K186: 0
A187: Operational Buildings | C187: =SA34c!C119 -> 0 | D187: =SA34c!D119 -> 1116123.09 | E187: =SA34c!E119 -> 4674607.49 | F187: =SA34c!F119 -> 11208040 | G187: =SA34c!G119 -> 13363773 | H187: =SA34c!H119 -> 13363773 | I187: =SA34c!I119 -> 13683176 | J187: =SA34c!J119 -> 10959066 | K187: =SA34c!K119 -> 11274436
A188: Housing | C188: =SA34c!C131 -> 0 | D188: =SA34c!D131 -> 0 | E188: =SA34c!E131 -> 0 | F188: =SA34c!F131 -> 0 | G188: =SA34c!G131 -> 0 | H188: =SA34c!H131 -> 0 | I188: =SA34c!I131 -> 0 | J188: =SA34c!J131 -> 0 | K188: =SA34c!K131 -> 0
A189: Other Assets | C189: =SUM(C187:C188) -> 0 | D189: 1116123.09 | E189: 4674607.49 | F189: 11208040 | G189: 13363773 | H189: 13363773 | I189: 13683176 | J189: 10959066 | K189: 11274436
A190: Biological or Cultivated Assets | C190: =SA34c!C136 -> 0 | D190: =SA34c!D136 -> 0 | E190: =SA34c!E136 -> 0 | F190: =SA34c!F136 -> 0 | G190: =SA34c!G136 -> 0 | H190: =SA34c!H136 -> 0 | I190: =SA34c!I136 -> 0 | J190: =SA34c!J136 -> 0 | K190: =SA34c!K136 -> 0
A191: Servitudes | C191: =SA34c!C140 -> 0 | D191: =SA34c!D140 -> 0 | E191: =SA34c!E140 -> 0 | F191: =SA34c!F140 -> 0 | G191: =SA34c!G140 -> 0 | H191: =SA34c!H140 -> 0 | I191: =SA34c!I140 -> 0 | J191: =SA34c!J140 -> 0 | K191: =SA34c!K140 -> 0
A192: Licences and Rights | C192: =SA34c!C141 -> 0 | D192: =SA34c!D141 -> 501795.72 | E192: =SA34c!E141 -> 5603139.73 | F192: =SA34c!F141 -> 3786579 | G192: =SA34c!G141 -> 3786579 | H192: =SA34c!H141 -> 3786579 | I192: =SA34c!I141 -> 3956975 | J192: =SA34c!J141 -> 4138996 | K192: =SA34c!K141 -> 4329390
A193: Intangible Assets | C193: =SUM(C191:C192) -> 0 | D193: 501795.72 | E193: 5603139.73 | F193: 3786579 | G193: 3786579 | H193: 3786579 | I193: 3956975 | J193: 4138996 | K193: 4329390
A194: Computer Equipment | C194: =SA34c!C149 -> 0 | D194: =SA34c!D149 -> 470638.32 | E194: =SA34c!E149 -> 544183.1 | F194: =SA34c!F149 -> 582124 | G194: =SA34c!G149 -> 282124 | H194: =SA34c!H149 -> 282124 | I194: =SA34c!I149 -> 608320 | J194: =SA34c!J149 -> 636302 | K194: =SA34c!K149 -> 665572
A195: Furniture and Office Equipment | C195: =SA34c!C152 -> 0 | D195: =SA34c!D152 -> 1393125 | E195: =SA34c!E152 -> 529068.68 | F195: =SA34c!F152 -> 562294 | G195: =SA34c!G152 -> 562294 | H195: =SA34c!H152 -> 562294 | I195: =SA34c!I152 -> 587597 | J195: =SA34c!J152 -> 614627 | K195: =SA34c!K152 -> 642900
A196: Machinery and Equipment | C196: =SA34c!C155 -> 0 | D196: =SA34c!D155 -> 512729.19 | E196: =SA34c!E155 -> 848727.43 | F196: =SA34c!F155 -> 1054000 | G196: =SA34c!G155 -> 1220000 | H196: =SA34c!H155 -> 1220000 | I196: =SA34c!I155 -> 1343282 | J196: =SA34c!J155 -> 1447569 | K196: =SA34c!K155 -> 1500565
A197: Transport Assets | C197: =SA34c!C158 -> 0 | D197: =SA34c!D158 -> 2430187.37 | E197: =SA34c!E158 -> 5335576.76 | F197: =SA34c!F158 -> 3689000 | G197: =SA34c!G158 -> 3689000 | H197: =SA34c!H158 -> 3689000 | I197: =SA34c!I158 -> 3855005 | J197: =SA34c!J158 -> 4032335 | K197: =SA34c!K158 -> 4217823
A198: Land | C198: =SA34c!C161 -> 0 | D198: =SA34c!D161 -> 0 | E198: =SA34c!E161 -> 0 | F198: =SA34c!F161 -> 0 | G198: =SA34c!G161 -> 0 | H198: =SA34c!H161 -> 0 | I198: =SA34c!I161 -> 0 | J198: =SA34c!J161 -> 0 | K198: =SA34c!K161 -> 0
A199: Zoo's, Marine and Non-biological Animals | C199: =SA34c!C164 -> 0 | D199: =SA34c!D164 -> 0 | E199: =SA34c!E164 -> 0 | F199: =SA34c!F164 -> 0 | G199: =SA34c!G164 -> 0 | H199: =SA34c!H164 -> 0 | I199: =SA34c!I164 -> 0 | J199: =SA34c!J164 -> 0 | K199: =SA34c!K164 -> 0
A201: TOTAL EXPENDITURE OTHER ITEMS | C201: =SUM(C168:C169) -> 250767313 | D201: 346250968.7 | E201: 341669548.4 | F201: 248557477 | G201: 317417661 | H201: 317417661 | I201: 274184194 | J201: 279168583 | K201: 285462353
A203: Renewal and upgrading of Existing Assets as % of total capex | C203: =IF(ISERROR((C37+C69)/C132),0,((C37+C69)/C132)) -> 0 | D203: =IF(ISERROR((D37+D69)/D132),0,((D37+D69)/D132)) -> 0 | E203: 0 | F203: 0.02508954788 | G203: 0.009569405891 | H203: 0.009569405891 | I203: 0.01950393993 | J203: 0.01082182149 | K203: 0.007164386035
A204: Renewal and upgrading of Existing Assets as % of deprecn | C204: =IF(ISERROR((C37+C69)/C168),0,((C37+C69)/C168)) -> 0 | D204: =IF(ISERROR((D37+D69)/D168),0,((D37+D69)/D168)) -> 0 | E204: 0 | F204: 0.1700248027 | G204: 0.05364528702 | H204: 0.05364528702 | I204: 0.1151528121 | J204: 0.05698363079 | K204: 0.03916507013
A205: R&M as a % of PPE | C205: =IF(ISERROR(ROUND(C169/'A6-FinPos'!C19,3)),0,(ROUND(C169/'A6-FinPos'!C19,3))) -> 0.016 | D205: =IF(ISERROR(ROUND(D169/'A6-FinPos'!D19,3)),0,(ROUND(D169/'A6-FinPos'!D19,3))) -> 0.026 | E205: =IF(ISERROR(ROUND(E169/'A6-FinPos'!E19,3)),0,(ROUND(E169/'A6-FinPos'!E19,3))) -> 0.022 | F205: =IF(ISERROR(ROUND(F169/'A6-FinPos'!F19,3)),0,(ROUND(F169/'A6-FinPos'!F19,3))) -> 0.009 | G205: =IF(ISERROR(ROUND(G169/'A6-FinPos'!G19,3)),0,(ROUND(G169/'A6-FinPos'!G19,3))) -> 0.009 | H205: =IF(ISERROR(ROUND(H169/'A6-FinPos'!H19,3)),0,(ROUND(H169/'A6-FinPos'!H19,3))) -> 0.009 | I205: =IF(ISERROR(ROUND(I169/'A6-FinPos'!J19,3)),0,(ROUND(I169/'A6-FinPos'!J19,3))) -> 0.011 | J205: =IF(ISERROR(ROUND(J169/'A6-FinPos'!K19,3)),0,(ROUND(J169/'A6-FinPos'!K19,3))) -> 0.01 | K205: =IF(ISERROR(ROUND(K169/'A6-FinPos'!L19,3)),0,(ROUND(K169/'A6-FinPos'!L19,3))) -> 0.009
A206: Renewal and upgrading and R&M as a % of PPE | C206: =IF(ISERROR(ROUND((C37+C69+C169)/C165,2)),0,(ROUND((C37+C69+C169)/C165,2))) -> 0.11 | D206: =IF(ISERROR(ROUND((D37+D69+D169)/D165,2)),0,(ROUND((D37+D69+D169)/D165,2))) -> 0.05 | E206: 0.03 | F206: 0.1 | G206: 0.01 | H206: 0.01 | I206: 0.01 | J206: 0.01 | K206: 0.01
A208: =head27a -> References
A209: 1. Detail of new assets provided in Table SA34a
A210: 2. Detail of renewal of existing assets provided in Table SA34b
A211: 3. Detail of Repairs and Maintenance by Asset Class provided in Table SA34c
A212: 4. Must reconcile to total capital expenditure on Budgeted Capital Expenditure
A213: 5. Must reconcile to 'Budgeted Financial Position' (written down value)
A214: 6. Detail of upgrading of existing assets provided in Table SA34e
A215: 7. Detail of depreciation provided in Table SA34d
A217: Check balance to A6 | C217: =C165-'A6-FinPos'!D17-'A6-FinPos'!D19-'A6-FinPos'!D20-'A6-FinPos'!D21-'A6-FinPos'!D22-C148 -> -5185298685 | D217: =D165-'A6-FinPos'!E17-'A6-FinPos'!E19-'A6-FinPos'!E20-'A6-FinPos'!E21-'A6-FinPos'!E22-D148 -> -3622660117 | E217: =E165-'A6-FinPos'!F17-'A6-FinPos'!F19-'A6-FinPos'!F20-'A6-FinPos'!F21-'A6-FinPos'!F22-E148 -> -5094416723 | F217: =F165-'A6-FinPos'!G17-'A6-FinPos'!G19-'A6-FinPos'!G20-'A6-FinPos'!G21-'A6-FinPos'!G22-F148 -> -7387033087 | G217: =G165-'A6-FinPos'!H17-'A6-FinPos'!H19-'A6-FinPos'!H20-'A6-FinPos'!H21-'A6-FinPos'!H22-G148 -> -5679000 | H217: =H165-'A6-FinPos'!I17-'A6-FinPos'!I19-'A6-FinPos'!I20-'A6-FinPos'!I21-'A6-FinPos'!I22-H148 -> 1539828694 | I217: =I165-'A6-FinPos'!J17-'A6-FinPos'!J19-'A6-FinPos'!J20-'A6-FinPos'!J21-'A6-FinPos'!J22-I148 -> 0 | J217: =J165-'A6-FinPos'!K17-'A6-FinPos'!K19-'A6-FinPos'!K20-'A6-FinPos'!K21-'A6-FinPos'!K22-J148 -> 0 | K217: =K165-'A6-FinPos'!L17-'A6-FinPos'!L19-'A6-FinPos'!L20-'A6-FinPos'!L21-'A6-FinPos'!L22-K148 -> 0

Sheet A10-SerDel
A1: =muni&" - "&Approve10 -> DC15 O .R. Tambo - Table A10 Consolidated basic service delivery measurement
A2: =desc -> Description | B2: =head27 -> Ref | C2: =head1b -> 2016/17 | D2: =head1A -> 2017/18 | E2: =Head1 -> 2018/19 | F2: =Head2 -> Current Year 2019/20 | I2: =Head3 -> 2020/21 Medium Term Revenue & Expenditure Framework
C3: =Head5A -> Outcome | D3: =Head5A -> Outcome | E3: =Head5A -> Outcome | F3: =Head6 -> Original Budget | G3: =Head7 -> Adjusted Budget | H3: =Head8 -> Full Year Forecast | I3: =Head9 -> Budget Year 2020/21 | J3: =Head10 -> Budget Year +1 2021/22 | K3: =Head11 -> Budget Year +2 2022/23
A4: Household service targets | B4: 1
A5: Water:
A6: Piped water inside dwelling | C6: ='SA9'!E67 -> 33554 | D6: ='SA9'!F67 -> 20181 | E6: ='SA9'!G67 -> 20181 | F6: ='SA9'!H67 -> 20493 | G6: ='SA9'!I67 -> 20493 | H6: ='SA9'!J67 -> 20493 | I6: ='SA9'!K67 -> 20805 | J6: ='SA9'!L67 -> 20805 | K6: ='SA9'!M67 -> 20805
A7: Piped water inside yard (but not in dwelling) | C7: ='SA9'!E68 -> 29809 | D7: ='SA9'!F68 -> 39480 | E7: ='SA9'!G68 -> 39480 | F7: ='SA9'!H68 -> 40091 | G7: ='SA9'!I68 -> 40091 | H7: ='SA9'!J68 -> 40091 | I7: ='SA9'!K68 -> 40702 | J7: ='SA9'!L68 -> 40702 | K7: ='SA9'!M68 -> 40702
A8: Using public tap (at least min.service level) | B8: 2 | C8: ='SA9'!E69 -> 47727 | D8: ='SA9'!F69 -> 91252 | E8: ='SA9'!G69 -> 93636 | F8: ='SA9'!H69 -> 95087 | G8: ='SA9'!I69 -> 95087 | H8: ='SA9'!J69 -> 95087 | I8: ='SA9'!K69 -> 96538 | J8: ='SA9'!L69 -> 96538 | K8: ='SA9'!M69 -> 96538
A9: Other water supply (at least min.service level) | B9: 4 | C9: ='SA9'!E70 -> 0 | D9: ='SA9'!F70 -> 0 | E9: ='SA9'!G70 -> 0 | F9: ='SA9'!H70 -> 0 | G9: ='SA9'!I70 -> 0 | H9: ='SA9'!J70 -> 0 | I9: ='SA9'!K70 -> 0 | J9: ='SA9'!L70 -> 0 | K9: ='SA9'!M70 -> 0
A10: Minimum Service Level and Above sub-total | C10: =SUM(C6:C9) -> 111090 | D10: =SUM(D6:D9) -> 150913 | E10: 153297 | F10: 155671 | G10: 155671 | H10: 155671 | I10: 158045 | J10: 158045 | K10: 158045
A11: Using public tap (< min.service level) | B11: 3 | C11: ='SA9'!E72 -> 0 | D11: ='SA9'!F72 -> 0 | E11: ='SA9'!G72 -> 0 | F11: ='SA9'!H72 -> 0 | G11: ='SA9'!I72 -> 0 | H11: ='SA9'!J72 -> 0 | I11: ='SA9'!K72 -> 0 | J11: ='SA9'!L72 -> 0 | K11: ='SA9'!M72 -> 0
A12: Other water supply (< min.service level) | B12: =B9 -> 4 | C12: ='SA9'!E73 -> 18954 | D12: ='SA9'!F73 -> 10966 | E12: ='SA9'!G73 -> 11767 | F12: ='SA9'!H73 -> 13578 | G12: ='SA9'!I73 -> 13578 | H12: ='SA9'!J73 -> 13578 | I12: ='SA9'!K73 -> 25389 | J12: ='SA9'!L73 -> 37512 | K12: ='SA9'!M73 -> 49624
A13: No water supply | C13: ='SA9'!E74 -> 193186 | D13: ='SA9'!F74 -> 158341 | E13: ='SA9'!G74 -> 161016 | F13: ='SA9'!H74 -> 163672 | G13: ='SA9'!I74 -> 163672 | H13: ='SA9'!J74 -> 163672 | I13: ='SA9'!K74 -> 165072 | J13: ='SA9'!L74 -> 168534 | K13: ='SA9'!M74 -> 171996
A14: Below Minimum Service Level sub-total | C14: =SUM(C11:C13) -> 212140 | D14: =SUM(D11:D13) -> 169307 | E14: 172783 | F14: 177250 | G14: 177250 | H14: 177250 | I14: 190461 | J14: 206046 | K14: 221620
A15: Total number of households | B15: 5 | C15: =C10+C14 -> 323230 | D15: =D10+D14 -> 320220 | E15: 326080 | F15: 332921 | G15: 332921 | H15: 332921 | I15: 348506 | J15: 364091 | K15: 379665
A16: Sanitation/sewerage:
A17: Flush toilet (connected to sewerage) | C17: ='SA9'!E78 -> 33554 | D17: ='SA9'!F78 -> 29650 | E17: ='SA9'!G78 -> 46389 | F17: ='SA9'!H78 -> 52153 | G17: ='SA9'!I78 -> 52153 | H17: ='SA9'!J78 -> 52153 | I17: ='SA9'!K78 -> 57948 | J17: ='SA9'!L78 -> 63743 | K17: ='SA9'!M78 -> 69538
A18: Flush toilet (with septic tank) | C18: ='SA9'!E79 -> 22444 | D18: ='SA9'!F79 -> 2027 | E18: ='SA9'!G79 -> 2027 | F18: ='SA9'!H79 -> 2058 | G18: ='SA9'!I79 -> 2058 | H18: ='SA9'!J79 -> 2058 | I18: ='SA9'!K79 -> 2058 | J18: ='SA9'!L79 -> 2058 | K18: ='SA9'!M79 -> 2058
A19: Chemical toilet | C19: ='SA9'!E80 -> 0 | D19: ='SA9'!F80 -> 46792 | E19: ='SA9'!G80 -> 46792 | F19: ='SA9'!H80 -> 47517 | G19: ='SA9'!I80 -> 47517 | H19: ='SA9'!J80 -> 47517 | I19: ='SA9'!K80 -> 47517 | J19: ='SA9'!L80 -> 47517 | K19: ='SA9'!M80 -> 47517
A20: Pit toilet (ventilated) | C20: ='SA9'!E81 -> 238152 | D20: ='SA9'!F81 -> 163057 | E20: ='SA9'!G81 -> 163057 | F20: ='SA9'!H81 -> 165584 | G20: ='SA9'!I81 -> 165584 | H20: ='SA9'!J81 -> 165584 | I20: ='SA9'!K81 -> 181207 | J20: ='SA9'!L81 -> 196830 | K20: ='SA9'!M81 -> 212626
A21: Other toilet provisions (> min.service level) | C21: ='SA9'!E82 -> 0 | D21: ='SA9'!F82 -> 2542 | E21: ='SA9'!G82 -> 2542 | F21: ='SA9'!H82 -> 2581 | G21: ='SA9'!I82 -> 2581 | H21: ='SA9'!J82 -> 2581 | I21: ='SA9'!K82 -> 0 | J21: ='SA9'!L82 -> 0 | K21: ='SA9'!M82 -> 0
A22: =$A$10 -> Minimum Service Level and Above sub-total | C22: =SUM(C17:C21) -> 294150 | D22: =SUM(D17:D21) -> 244068 | E22: 260807 | F22: 269893 | G22: 269893 | H22: 269893 | I22: 288730 | J22: 310148 | K22: 331739
A23: Bucket toilet | C23: ='SA9'!E84 -> 0 | D23: ='SA9'!F84 -> 0 | E23: ='SA9'!G84 -> 0 | F23: ='SA9'!H84 -> 0 | G23: ='SA9'!I84 -> 0 | H23: ='SA9'!J84 -> 0 | I23: ='SA9'!K84 -> 0 | J23: ='SA9'!L84 -> 0 | K23: ='SA9'!M84 -> 0
A24: Other toilet provisions (< min.service level) | C24: ='SA9'!E85 -> 29080 | D24: ='SA9'!F85 -> 18185 | E24: ='SA9'!G85 -> 18185 | F24: ='SA9'!H85 -> 18467 | G24: ='SA9'!I85 -> 18467 | H24: ='SA9'!J85 -> 18467 | I24: ='SA9'!K85 -> 18467 | J24: ='SA9'!L85 -> 18467 | K24: ='SA9'!M85 -> 18467
A25: No toilet provisions | C25: ='SA9'!E86 -> 0 | D25: ='SA9'!F86 -> 57967 | E25: ='SA9'!G86 -> 47088 | F25: ='SA9'!H86 -> 44561 | G25: ='SA9'!I86 -> 44561 | H25: ='SA9'!J86 -> 44561 | I25: ='SA9'!K86 -> 41309 | J25: ='SA9'!L86 -> 35476 | K25: ='SA9'!M86 -> 29459
A26: =$A$14 -> Below Minimum Service Level sub-total | C26: =SUM(C23:C25) -> 29080 | D26: =SUM(D23:D25) -> 76152 | E26: 65273 | F26: 63028 | G26: 63028 | H26: 63028 | I26: 59776 | J26: 53943 | K26: 47926
A27: =$A$15 -> Total number of households | B27: =$B$15 -> 5 | C27: =C22+C26 -> 323230 | D27: =D22+D26 -> 320220 | E27: 326080 | F27: 332921 | G27: 332921 | H27: 332921 | I27: 348506 | J27: 364091 | K27: 379665
A28: Energy:
A29: Electricity (at least min.service level) | C29: ='SA9'!E90 -> 0 | D29: ='SA9'!F90 -> 0 | E29: ='SA9'!G90 -> 0 | F29: ='SA9'!H90 -> 0 | G29: ='SA9'!I90 -> 0 | H29: ='SA9'!J90 -> 0 | I29: ='SA9'!K90 -> 0 | J29: ='SA9'!L90 -> 0 | K29: ='SA9'!M90 -> 0
A30: Electricity - prepaid (min.service level) | C30: ='SA9'!E91 -> 0 | D30: ='SA9'!F91 -> 0 | E30: ='SA9'!G91 -> 0 | F30: ='SA9'!H91 -> 0 | G30: ='SA9'!I91 -> 0 | H30: ='SA9'!J91 -> 0 | I30: ='SA9'!K91 -> 0 | J30: ='SA9'!L91 -> 0 | K30: ='SA9'!M91 -> 0
A31: =$A$10 -> Minimum Service Level and Above sub-total | C31: =SUM(C29:C30) -> 0 | D31: =SUM(D29:D30) -> 0 | E31: 0 | F31: 0 | G31: 0 | H31: 0 | I31: 0 | J31: 0 | K31: 0
A32: Electricity (< min.service level) | C32: ='SA9'!E93 -> 0 | D32: ='SA9'!F93 -> 0 | E32: ='SA9'!G93 -> 0 | F32: ='SA9'!H93 -> 0 | G32: ='SA9'!I93 -> 0 | H32: ='SA9'!J93 -> 0 | I32: ='SA9'!K93 -> 0 | J32: ='SA9'!L93 -> 0 | K32: ='SA9'!M93 -> 0
A33: Electricity - prepaid (< min. service level) | C33: ='SA9'!E94 -> 0 | D33: ='SA9'!F94 -> 0 | E33: ='SA9'!G94 -> 0 | F33: ='SA9'!H94 -> 0 | G33: ='SA9'!I94 -> 0 | H33: ='SA9'!J94 -> 0 | I33: ='SA9'!K94 -> 0 | J33: ='SA9'!L94 -> 0 | K33: ='SA9'!M94 -> 0
A34: Other energy sources | C34: ='SA9'!E95 -> 0 | D34: ='SA9'!F95 -> 0 | E34: ='SA9'!G95 -> 0 | F34: ='SA9'!H95 -> 0 | G34: ='SA9'!I95 -> 0 | H34: ='SA9'!J95 -> 0 | I34: ='SA9'!K95 -> 0 | J34: ='SA9'!L95 -> 0 | K34: ='SA9'!M95 -> 0
A35: =$A$14 -> Below Minimum Service Level sub-total | C35: =SUM(C32:C34) -> 0 | D35: =SUM(D32:D34) -> 0 | E35: 0 | F35: 0 | G35: 0 | H35: 0 | I35: 0 | J35: 0 | K35: 0
A36: =$A$15 -> Total number of households | B36: =$B$15 -> 5 | C36: =C31+C35 -> 0 | D36: =D31+D35 -> 0 | E36: 0 | F36: 0 | G36: 0 | H36: 0 | I36: 0 | J36: 0 | K36: 0
A37: Refuse:
A38: Removed at least once a week | C38: ='SA9'!E99 -> 0 | D38: ='SA9'!F99 -> 0 | E38: ='SA9'!G99 -> 0 | F38: ='SA9'!H99 -> 0 | G38: ='SA9'!I99 -> 0 | H38: ='SA9'!J99 -> 0 | I38: ='SA9'!K99 -> 0 | J38: ='SA9'!L99 -> 0 | K38: ='SA9'!M99 -> 0
A39: =$A$10 -> Minimum Service Level and Above sub-total | C39: =SUM(C38) -> 0 | D39: =SUM(D38) -> 0 | E39: 0 | F39: 0 | G39: 0 | H39: 0 | I39: 0 | J39: 0 | K39: 0
A40: Removed less frequently than once a week | C40: ='SA9'!E101 -> 0 | D40: ='SA9'!F101 -> 0 | E40: ='SA9'!G101 -> 0 | F40: ='SA9'!H101 -> 0 | G40: ='SA9'!I101 -> 0 | H40: ='SA9'!J101 -> 0 | I40: ='SA9'!K101 -> 0 | J40: ='SA9'!L101 -> 0 | K40: ='SA9'!M101 -> 0
A41: Using communal refuse dump | C41: ='SA9'!E102 -> 0 | D41: ='SA9'!F102 -> 0 | E41: ='SA9'!G102 -> 0 | F41: ='SA9'!H102 -> 0 | G41: ='SA9'!I102 -> 0 | H41: ='SA9'!J102 -> 0 | I41: ='SA9'!K102 -> 0 | J41: ='SA9'!L102 -> 0 | K41: ='SA9'!M102 -> 0
A42: Using own refuse dump | C42: ='SA9'!E103 -> 0 | D42: ='SA9'!F103 -> 0 | E42: ='SA9'!G103 -> 0 | F42: ='SA9'!H103 -> 0 | G42: ='SA9'!I103 -> 0 | H42: ='SA9'!J103 -> 0 | I42: ='SA9'!K103 -> 0 | J42: ='SA9'!L103 -> 0 | K42: ='SA9'!M103 -> 0
A43: Other rubbish disposal | C43: ='SA9'!E104 -> 0 | D43: ='SA9'!F104 -> 0 | E43: ='SA9'!G104 -> 0 | F43: ='SA9'!H104 -> 0 | G43: ='SA9'!I104 -> 0 | H43: ='SA9'!J104 -> 0 | I43: ='SA9'!K104 -> 0 | J43: ='SA9'!L104 -> 0 | K43: ='SA9'!M104 -> 0
A44: No rubbish disposal | C44: ='SA9'!E105 -> 0 | D44: ='SA9'!F105 -> 0 | E44: ='SA9'!G105 -> 0 | F44: ='SA9'!H105 -> 0 | G44: ='SA9'!I105 -> 0 | H44: ='SA9'!J105 -> 0 | I44: ='SA9'!K105 -> 0 | J44: ='SA9'!L105 -> 0 | K44: ='SA9'!M105 -> 0
A45: =$A$14 -> Below Minimum Service Level sub-total | C45: =SUM(C40:C44) -> 0 | D45: 0 | E45: 0 | F45: 0 | G45: 0 | H45: 0 | I45: 0 | J45: 0 | K45: 0
A46: =$A$15 -> Total number of households | B46: =$B$15 -> 5 | C46: =C39+C45 -> 0 | D46: =D39+D45 -> 0 | E46: 0 | F46: 0 | G46: 0 | H46: 0 | I46: 0 | J46: 0 | K46: 0
A48: Households receiving Free Basic Service | B48: 7
A49: Water (6 kilolitres per household per month) | C49: ='SA9'!E263 -> 0 | D49: ='SA9'!F263 -> 0 | E49: ='SA9'!G263 -> 0 | F49: ='SA9'!H263 -> 299628.9 | G49: ='SA9'!I263 -> 299628.9 | H49: ='SA9'!J263 -> 299628.9 | I49: ='SA9'!K263 -> 328992.5322 | J49: ='SA9'!L263 -> 361233.8004 | K49: ='SA9'!M263 -> 396634.7128
A50: Sanitation (free minimum level service) | C50: ='SA9'!E275 -> 0 | D50: ='SA9'!F275 -> 0 | E50: ='SA9'!G275 -> 0 | F50: ='SA9'!H275 -> 0 | G50: ='SA9'!I275 -> 0 | H50: ='SA9'!J275 -> 0 | I50: ='SA9'!K275 -> 0 | J50: ='SA9'!L275 -> 0 | K50: ='SA9'!M275 -> 0
A51: Electricity/other energy (50kwh per household per month) | C51: ='SA9'!E251 -> 0 | D51: ='SA9'!F251 -> 0 | E51: ='SA9'!G251 -> 0 | F51: ='SA9'!H251 -> 0 | G51: ='SA9'!I251 -> 0 | H51: ='SA9'!J251 -> 0 | I51: ='SA9'!K251 -> 0 | J51: ='SA9'!L251 -> 0 | K51: ='SA9'!M251 -> 0
A52: Refuse (removed at least once a week) | C52: ='SA9'!E287 -> 0 | D52: ='SA9'!F287 -> 0 | E52: ='SA9'!G287 -> 0 | F52: ='SA9'!H287 -> 0 | G52: ='SA9'!I287 -> 0 | H52: ='SA9'!J287 -> 0 | I52: ='SA9'!K287 -> 0 | J52: ='SA9'!L287 -> 0 | K52: ='SA9'!M287 -> 0
A54: Cost of Free Basic Services provided - Formal Settlements (R'000) | B54: 8
A55: Water (6 kilolitres per indigent household per month) | C55: ='SA1'!C20 -> 0 | D55: ='SA1'!D20 -> 0 | E55: ='SA1'!E20 -> 0 | F55: ='SA1'!F20 -> 577491525 | G55: ='SA1'!G20 -> 577491525 | H55: ='SA1'!H20 -> 577491525 | I55: ='SA1'!J20 -> 612141016.5 | J55: ='SA1'!K20 -> 648869477.5 | K55: ='SA1'!L20 -> 687801646.1
A56: Sanitation (free sanitation service to indigent households) | C56: ='SA1'!C26 -> 0 | D56: ='SA1'!D26 -> 0 | E56: ='SA1'!E26 -> 0 | F56: ='SA1'!F26 -> 0 | G56: ='SA1'!G26 -> 0 | H56: ='SA1'!H26 -> 0 | I56: ='SA1'!J26 -> 0 | J56: ='SA1'!K26 -> 0 | K56: ='SA1'!L26 -> 0
A57: Electricity/other energy (50kwh per indigent household per month) | C57: ='SA1'!C14 -> 0 | D57: ='SA1'!D14 -> 0 | E57: ='SA1'!E14 -> 0 | F57: ='SA1'!F14 -> 0 | G57: ='SA1'!G14 -> 0 | H57: ='SA1'!H14 -> 0 | I57: ='SA1'!J14 -> 0 | J57: ='SA1'!K14 -> 0 | K57: ='SA1'!L14 -> 0
A58: Refuse (removed once a week for indigent households) | C58: ='SA1'!C33 -> 0 | D58: ='SA1'!D33 -> 0 | E58: ='SA1'!E33 -> 0 | F58: ='SA1'!F33 -> 0 | G58: ='SA1'!G33 -> 0 | H58: ='SA1'!H33 -> 0 | I58: ='SA1'!J33 -> 0 | J58: ='SA1'!K33 -> 0 | K58: ='SA1'!L33 -> 0
A59: Cost of Free Basic Services provided - Informal Formal Settlements (R'000) | C59: ='SA9'!E260+'SA9'!E272+'SA9'!E284+'SA9'!E296 -> 0 | D59: ='SA9'!F260+'SA9'!F272+'SA9'!F284+'SA9'!F296 -> 0 | E59: ='SA9'!G260+'SA9'!G272+'SA9'!G284+'SA9'!G296 -> 0 | F59: ='SA9'!H260+'SA9'!H272+'SA9'!H284+'SA9'!H296 -> 0 | G59: ='SA9'!I260+'SA9'!I272+'SA9'!I284+'SA9'!I296 -> 0 | H59: ='SA9'!J260+'SA9'!J272+'SA9'!J284+'SA9'!J296 -> 0 | I59: ='SA9'!K260+'SA9'!K272+'SA9'!K284+'SA9'!K296 -> 0 | J59: ='SA9'!L260+'SA9'!L272+'SA9'!L284+'SA9'!L296 -> 0 | K59: ='SA9'!M260+'SA9'!M272+'SA9'!M284+'SA9'!M296 -> 0
A60: Total cost of FBS provided | C60: =SUM(C55:C59) -> 0 | D60: 0 | E60: 0 | F60: 577491525 | G60: 577491525 | H60: 577491525 | I60: 612141016.5 | J60: 648869477.5 | K60: 687801646.1
A62: Highest level of free service provided per household
A63: Property rates (R value threshold)
A64: Water (kilolitres per household per month)
